Workbook

Sheet Please Read
A1: =ClubForIR&" "&Coding!AV6 -> CIPFA Public Libraries Profile 2018
A2: INTERACTIVE REPORT
B4: A) What is the Interactive Report?
B6: The Interactive Report is another version of the club's final reports. It contains the same data and will faithfully recreate the charts displayed in the pdf/hardcopy reports. It is easy to use and provides additional information.
B8: B) What are the advantages of the Interactive Report compared to the normal reports?
B10: The Interactive Report has the following advantages over the normal reports:
B12: 1) The comparison group can be changed.
B14: • This enables multiple comparisons e.g. against neighbouring authorities, high performers or family groups.
B15: • Different comparison groups can be used for different charts.
B17: 2) The value for each authority displaying on the graph is displayed in a table below the chart.
B18: This information is not available in the normal reports and has several uses.
B20: • Giving detailed information on family groups, e.g. the values of the headline indicators for each member.
B21: • Identifying authorities with high, low or similar values.
B22: • Identifying quartiles, and which authorities fall into each quartile.
B24: 3) The format of the chart can be changed.
B25: The charts in our reports have been formatted to print clearly on a wide range of printers in both colour
B26: and in black and white. In the interactive report this can be amended to suit your preferences.
B28: • The colour scheme can be amended to match 'corporate' colour schemes.
B29: • More 'aesthetic' options can be used.
B31: 4) Charts automatically print as an A4 page or charts can be copied to produce custom reports
B32: or presentations.
B34: • The Chart prints automatically as an A4 sheet containing all the relevant information.
B35: • Please see below for details of how to use this to copy charts and produce your own reports.
B36: This could be used to produce for example summary reports, any selection of charts or the same
B37: chart compared to multiple comparison groups.
B39: C) Instructions for the Interactive Report
B41: The report sheet is split into two sections:
B43: The Upper section: This section prints out on one page of A4 paper. It allows you to view or print out a copy of individual charts from the original report. Using 3 controls, you can choose which graph is to be displayed, which authority's value you would like to see and within which comparator group set. If the chosen chart contains less than 22 authorities' data, e.g. if the "Original Comparators" selection is chosen, a key with corresponding letters will appear on the right of the chart. The boxes "Black Bar" and "Average" display the value of the selected authority and the average value across the selected comparator group.
B44: The three controls are in the form of three drop down lists:
C45: Step 1 - Graph: This selects the graph you would like to display
C46: Step 2 - Authority: This highlights any authority on the graph
C47: Step 3 - Comparator Group: This chooses which overall comparison group is used
B49: The Bottom section: This section does not print. This section provides data for the authorities displaying on the graph and enables you to select customised comparison groups.
B51: The contents of this bottom section are affected by the comparator group chosen in Step 3 of the Upper section. Only authorities present in the selected comparator group will be displayed in the bottom section.
B53: The table of data is automatically sorted by the value displayed on the chart. This means that the first value showing in the table corresponds to the first bar on the left of the chart and so on. You can change how the data is sorted by using the "radio buttons" at the top of the table.
B55: Using the Radio buttons to sort the data: The small circles beside each column heading of the Bottom section are radio buttons. By using these buttons, the information on the Bottom section can be sorted in a different order. This has no effect on the way the chart is displayed. "Short Name", causes information to be displayed in alphabetical order. "Data", causes information to be displayed in descending order of the graph data. "Tier", causes information to be displayed by order of tier.
B57: Selecting Authorities:
B58: Authorities of interest can be selected and then either be made to display at the top of the table, so their data can be found quickly or displayed on the chart on their own as a customised comparator group.
B60: To select an authority: Tick the tickbox beside the authority's name.
B62: To unselect an authority: Untick the tickbox beside the authority's name.
B64: You will then be able to use the two additional tick boxes to bring this data to the top of the table or to display
B65: the selected group on the chart.
B67: "Force Selected Authorities to top" tick box: Ticking this box has no effect on the chart itself but it will force the selected authorities to rise to the top of the table. This would be particularly useful if you want to see how other authorities perform in the same comparator group.
B68: "Display only selected authorities" tick box: When this is selected the chart will only display the authorities that have been selected. If this is unchecked the chart will display all authorities in the overall Comparator Group from the Upper section.
B70: D) Copying Charts to produce your own reports
B72: Our Benchmarking reports contain a lot of information, and members may sometimes find it
B73: useful to summarise key aspects, or incorporate some of this information into their own reports.
B75: Charts produced in the Interactive Report can be used in member's own reports. There are many
B76: ways in which the charts can be copied, however some produce lower quality charts, here we give
B77: two options.
B79: In either case, the member may wish to change the format of the graph (colours/backgrounds/shading etc…)
B80: to suit their requirements.
B82: The Simpler method - however quality of charts may be reduced
B84: I) Highlight the chart:
C86: Hold down shift and left click on the chart. The chart will be selected.
B88: II) Copy the chart:
C90: Hold down shift and using the menus select Edit --> Copy Picture
C91: Select the options "As shown on screen" and "Picture" and press Okay
B93: III) You can now paste the chart into a Word, Powerpoint or new Excel document.
C95: (Edit --> Paste)
B97: A slightly longer method which produces full quality charts
B99: This method produces higher quality charts, but the 'size' (in kb) of the picture produced will also be
B100: much bigger.
B102: I) Remove the textured background for the view.
C104: View --> "Page Break Preview"
C106: You may need to refresh the screen. This can been done by pressing "Page Down"
C107: and then "Page Up". You may also wish to change the colour of the background.
B109: II) Copy the whole Screen.
C111: Press the "Print Screen" key.
C113: You will need to make sure that the cursor and active cell are not in near the chart
C114: to prevent them disrupting the picture.
B116: III) Paste into a new Excel Worksheet (or word/powerpoint etc…)
C118: Edit --> Paste
B120: IV) Activate the "Picture" Toolbar.
C122: View --> Toolbars --> Picture
B124: V) Crop the picture to leave only the chart.
C130: Left click on the picture to activate it.
C131: Select the crop tool from the toolbar (circled above).
C132: At the corners and centre of the sides short, thick black bars will appear.
C133: Move these bars to crop the picture to leave only the chart.
B135: VI) The cropped picture can now be copied and pasted into your report.
B138: E) Please Note
B140: We hope that you find this reasonably intuitive to use after a little practice and that it provides
B141: ="some interesting comparisons. If you have any queries please e-mail "&Coding!AV7 -> some interesting comparisons. If you have any queries please e-mail libraries@cipfa.org

Sheet Interactive Report
B2: =ClubForIR&" "&Coding!AV6 -> CIPFA Public Libraries Profile 2018
L4: =IF(ISERROR(Coding!Z7),"",Coding!Z7) ->  | M4: =IF(L4="","",OFFSET($C$35,MATCH(L4,OFFSET($D$35,0,0,Coding!$J$4,1),FALSE)-1,0,,)) -> 
L5: =IF(ISERROR(Coding!Z8),"",Coding!Z8) ->  | M5: =IF(L5="","",OFFSET($C$35,MATCH(L5,OFFSET($D$35,0,0,Coding!$J$4,1),FALSE)-1,0,,)) -> 
L6: =IF(ISERROR(Coding!Z9),"",Coding!Z9) ->  | M6: =IF(L6="","",OFFSET($C$35,MATCH(L6,OFFSET($D$35,0,0,Coding!$J$4,1),FALSE)-1,0,,)) -> 
L7: =IF(ISERROR(Coding!Z10),"",Coding!Z10) ->  | M7: =IF(L7="","",OFFSET($C$35,MATCH(L7,OFFSET($D$35,0,0,Coding!$J$4,1),FALSE)-1,0,,)) -> 
L8: =IF(ISERROR(Coding!Z11),"",Coding!Z11) ->  | M8: =IF(L8="","",OFFSET($C$35,MATCH(L8,OFFSET($D$35,0,0,Coding!$J$4,1),FALSE)-1,0,,)) -> 
L9: =IF(ISERROR(Coding!Z12),"",Coding!Z12) ->  | M9: =IF(L9="","",OFFSET($C$35,MATCH(L9,OFFSET($D$35,0,0,Coding!$J$4,1),FALSE)-1,0,,)) -> 
L10: =IF(ISERROR(Coding!Z13),"",Coding!Z13) ->  | M10: =IF(L10="","",OFFSET($C$35,MATCH(L10,OFFSET($D$35,0,0,Coding!$J$4,1),FALSE)-1,0,,)) -> 
L11: =IF(ISERROR(Coding!Z14),"",Coding!Z14) ->  | M11: =IF(L11="","",OFFSET($C$35,MATCH(L11,OFFSET($D$35,0,0,Coding!$J$4,1),FALSE)-1,0,,)) -> 
L12: =IF(ISERROR(Coding!Z15),"",Coding!Z15) ->  | M12: =IF(L12="","",OFFSET($C$35,MATCH(L12,OFFSET($D$35,0,0,Coding!$J$4,1),FALSE)-1,0,,)) -> 
L13: =IF(ISERROR(Coding!Z16),"",Coding!Z16) ->  | M13: =IF(L13="","",OFFSET($C$35,MATCH(L13,OFFSET($D$35,0,0,Coding!$J$4,1),FALSE)-1,0,,)) -> 
L14: =IF(ISERROR(Coding!Z17),"",Coding!Z17) ->  | M14: =IF(L14="","",OFFSET($C$35,MATCH(L14,OFFSET($D$35,0,0,Coding!$J$4,1),FALSE)-1,0,,)) -> 
L15: =IF(ISERROR(Coding!Z18),"",Coding!Z18) ->  | M15: =IF(L15="","",OFFSET($C$35,MATCH(L15,OFFSET($D$35,0,0,Coding!$J$4,1),FALSE)-1,0,,)) -> 
L16: =IF(ISERROR(Coding!Z19),"",Coding!Z19) ->  | M16: =IF(L16="","",OFFSET($C$35,MATCH(L16,OFFSET($D$35,0,0,Coding!$J$4,1),FALSE)-1,0,,)) -> 
C17: 5 | L17: =IF(ISERROR(Coding!Z20),"",Coding!Z20) ->  | M17: =IF(L17="","",OFFSET($C$35,MATCH(L17,OFFSET($D$35,0,0,Coding!$J$4,1),FALSE)-1,0,,)) -> 
L18: =IF(ISERROR(Coding!Z21),"",Coding!Z21) ->  | M18: =IF(L18="","",OFFSET($C$35,MATCH(L18,OFFSET($D$35,0,0,Coding!$J$4,1),FALSE)-1,0,,)) -> 
L19: =IF(ISERROR(Coding!Z22),"",Coding!Z22) ->  | M19: =IF(L19="","",OFFSET($C$35,MATCH(L19,OFFSET($D$35,0,0,Coding!$J$4,1),FALSE)-1,0,,)) -> 
L20: =IF(ISERROR(Coding!Z23),"",Coding!Z23) ->  | M20: =IF(L20="","",OFFSET($C$35,MATCH(L20,OFFSET($D$35,0,0,Coding!$J$4,1),FALSE)-1,0,,)) -> 
L21: =IF(ISERROR(Coding!Z24),"",Coding!Z24) ->  | M21: =IF(L21="","",OFFSET($C$35,MATCH(L21,OFFSET($D$35,0,0,Coding!$J$4,1),FALSE)-1,0,,)) -> 
L22: =IF(ISERROR(Coding!Z25),"",Coding!Z25) ->  | M22: =IF(L22="","",OFFSET($C$35,MATCH(L22,OFFSET($D$35,0,0,Coding!$J$4,1),FALSE)-1,0,,)) -> 
L23: =IF(ISERROR(Coding!Z26),"",Coding!Z26) -> 
C24: Black Bar: | D24: =TEXT(Coding!AB2,OFFSET(Coding!$IU$2,MAX(Coding!$G$38-2,0),0)) ->  | H24: Average: | I24: =TEXT(IF(ISERROR(Coding!AB3),"na",Coding!AB3),OFFSET(Coding!$IU$2,MAX(Coding!$G$38-2,0),0)) -> 0 | L24: =IF(ISERROR(Coding!Z27),"",Coding!Z27) ->  | M24: =IF(L24="","",OFFSET($C$35,MATCH(L24,OFFSET($D$35,0,0,Coding!$J$4,1),FALSE)-1,0,,)) -> 
B29: Confidential - Please remember that club information is confidential and named data must not be passed beyond club members.
B31: =IF(Coding!J9=0," These two tickboxes are currently inactive as no authorities are selected in the table below."," Use tickboxes to display selected authorities on graph or bring selected authorities to the top of the data table.") -> These two tickboxes are currently inactive as no authorities are selected in the table below.
B32: Bring selected authorities to top of data table | H32: Display selected authorities on chart
B33: DATA TABLE | L33: Use radio buttons (next to Shortname, Data and Tier) to sort table.
B34: Select | C34: Authority: | D34: Letter: | F34: Data: | G34: Tier: | H34: Full Name:
C35: =IF(ROW()-34>AuthNo,"na",Coding!AR7) -> Barking & Dagenham | D35: =IF(C35="","",VLOOKUP(C35,OFFSET(Coding!$L$7,0,0,AuthorityCounter,11),11,FALSE)) ->  | F35: =IF(C35="","",TEXT(VLOOKUP(C35,OFFSET(Coding!$L$7,0,0,AuthorityCounter,4),4,FALSE),OFFSET(Coding!$IU$2,MAX(Coding!$G$38-2,0),0))) -> 0 | G35: =IF(C35="","",VLOOKUP(C35,OFFSET(Coding!$L$7,0,0,AuthorityCounter,2),2,FALSE)) -> ul | H35: =IF(C35="","",VLOOKUP(C35,NameRange,2,FALSE)) -> London Borough of Barking & Dagenham
C36: =IF(ROW()-34>AuthNo,"na",Coding!AR8) -> Barnet | D36: =IF(C36="","",VLOOKUP(C36,OFFSET(Coding!$L$7,0,0,AuthorityCounter,11),11,FALSE)) ->  | F36: =IF(C36="","",TEXT(VLOOKUP(C36,OFFSET(Coding!$L$7,0,0,AuthorityCounter,4),4,FALSE),OFFSET(Coding!$IU$2,MAX(Coding!$G$38-2,0),0))) -> 0 | G36: =IF(C36="","",VLOOKUP(C36,OFFSET(Coding!$L$7,0,0,AuthorityCounter,2),2,FALSE)) -> ul | H36: =IF(C36="","",VLOOKUP(C36,NameRange,2,FALSE)) -> London Borough of Barnet
C37: =IF(ROW()-34>AuthNo,"na",Coding!AR9) -> Bedford | D37: =IF(C37="","",VLOOKUP(C37,OFFSET(Coding!$L$7,0,0,AuthorityCounter,11),11,FALSE)) ->  | F37: =IF(C37="","",TEXT(VLOOKUP(C37,OFFSET(Coding!$L$7,0,0,AuthorityCounter,4),4,FALSE),OFFSET(Coding!$IU$2,MAX(Coding!$G$38-2,0),0))) -> 0 | G37: =IF(C37="","",VLOOKUP(C37,OFFSET(Coding!$L$7,0,0,AuthorityCounter,2),2,FALSE)) -> uu | H37: Bedford Council
C38: =IF(ROW()-34>AuthNo,"na",Coding!AR10) -> Bexley | D38: =IF(C38="","",VLOOKUP(C38,OFFSET(Coding!$L$7,0,0,AuthorityCounter,11),11,FALSE)) ->  | F38: =IF(C38="","",TEXT(VLOOKUP(C38,OFFSET(Coding!$L$7,0,0,AuthorityCounter,4),4,FALSE),OFFSET(Coding!$IU$2,MAX(Coding!$G$38-2,0),0))) -> 0 | G38: =IF(C38="","",VLOOKUP(C38,OFFSET(Coding!$L$7,0,0,AuthorityCounter,2),2,FALSE)) -> ul | H38: London Borough of Bexley
C39: =IF(ROW()-34>AuthNo,"na",Coding!AR11) -> Blackburn with Darwen | D39: =IF(C39="","",VLOOKUP(C39,OFFSET(Coding!$L$7,0,0,AuthorityCounter,11),11,FALSE)) ->  | F39: =IF(C39="","",TEXT(VLOOKUP(C39,OFFSET(Coding!$L$7,0,0,AuthorityCounter,4),4,FALSE),OFFSET(Coding!$IU$2,MAX(Coding!$G$38-2,0),0))) -> 0 | G39: =IF(C39="","",VLOOKUP(C39,OFFSET(Coding!$L$7,0,0,AuthorityCounter,2),2,FALSE)) -> uu | H39: Blackburn with Darwen Borough Council
C40: =IF(ROW()-34>AuthNo,"na",Coding!AR12) -> Blackpool | D40: =IF(C40="","",VLOOKUP(C40,OFFSET(Coding!$L$7,0,0,AuthorityCounter,11),11,FALSE)) ->  | F40: =IF(C40="","",TEXT(VLOOKUP(C40,OFFSET(Coding!$L$7,0,0,AuthorityCounter,4),4,FALSE),OFFSET(Coding!$IU$2,MAX(Coding!$G$38-2,0),0))) -> 0 | G40: =IF(C40="","",VLOOKUP(C40,OFFSET(Coding!$L$7,0,0,AuthorityCounter,2),2,FALSE)) -> uu | H40: Blackpool Borough Council
C41: =IF(ROW()-34>AuthNo,"na",Coding!AR13) -> Bolton | D41: =IF(C41="","",VLOOKUP(C41,OFFSET(Coding!$L$7,0,0,AuthorityCounter,11),11,FALSE)) ->  | F41: =IF(C41="","",TEXT(VLOOKUP(C41,OFFSET(Coding!$L$7,0,0,AuthorityCounter,4),4,FALSE),OFFSET(Coding!$IU$2,MAX(Coding!$G$38-2,0),0))) -> 0 | G41: =IF(C41="","",VLOOKUP(C41,OFFSET(Coding!$L$7,0,0,AuthorityCounter,2),2,FALSE)) -> um | H41: Bolton Metropolitan Borough Council
C42: =IF(ROW()-34>AuthNo,"na",Coding!AR14) -> Bournemouth | D42: =IF(C42="","",VLOOKUP(C42,OFFSET(Coding!$L$7,0,0,AuthorityCounter,11),11,FALSE)) ->  | F42: =IF(C42="","",TEXT(VLOOKUP(C42,OFFSET(Coding!$L$7,0,0,AuthorityCounter,4),4,FALSE),OFFSET(Coding!$IU$2,MAX(Coding!$G$38-2,0),0))) -> 0 | G42: =IF(C42="","",VLOOKUP(C42,OFFSET(Coding!$L$7,0,0,AuthorityCounter,2),2,FALSE)) -> uu | H42: Bournemouth Borough Council
C43: =IF(ROW()-34>AuthNo,"na",Coding!AR15) -> Bracknell Forest | D43: =IF(C43="","",VLOOKUP(C43,OFFSET(Coding!$L$7,0,0,AuthorityCounter,11),11,FALSE)) ->  | F43: =IF(C43="","",TEXT(VLOOKUP(C43,OFFSET(Coding!$L$7,0,0,AuthorityCounter,4),4,FALSE),OFFSET(Coding!$IU$2,MAX(Coding!$G$38-2,0),0))) -> 0 | G43: =IF(C43="","",VLOOKUP(C43,OFFSET(Coding!$L$7,0,0,AuthorityCounter,2),2,FALSE)) -> uu | H43: Bracknell Forest Borough Council
C44: =IF(ROW()-34>AuthNo,"na",Coding!AR16) -> Brent | D44: =IF(C44="","",VLOOKUP(C44,OFFSET(Coding!$L$7,0,0,AuthorityCounter,11),11,FALSE)) ->  | F44: =IF(C44="","",TEXT(VLOOKUP(C44,OFFSET(Coding!$L$7,0,0,AuthorityCounter,4),4,FALSE),OFFSET(Coding!$IU$2,MAX(Coding!$G$38-2,0),0))) -> 0 | G44: =IF(C44="","",VLOOKUP(C44,OFFSET(Coding!$L$7,0,0,AuthorityCounter,2),2,FALSE)) -> ul | H44: London Borough of Brent
C45: =IF(ROW()-34>AuthNo,"na",Coding!AR17) -> Brighton & Hove | D45: =IF(C45="","",VLOOKUP(C45,OFFSET(Coding!$L$7,0,0,AuthorityCounter,11),11,FALSE)) ->  | F45: =IF(C45="","",TEXT(VLOOKUP(C45,OFFSET(Coding!$L$7,0,0,AuthorityCounter,4),4,FALSE),OFFSET(Coding!$IU$2,MAX(Coding!$G$38-2,0),0))) -> 0 | G45: =IF(C45="","",VLOOKUP(C45,OFFSET(Coding!$L$7,0,0,AuthorityCounter,2),2,FALSE)) -> uu | H45: Brighton & Hove City Council
C46: =IF(ROW()-34>AuthNo,"na",Coding!AR18) -> Bristol | D46: =IF(C46="","",VLOOKUP(C46,OFFSET(Coding!$L$7,0,0,AuthorityCounter,11),11,FALSE)) ->  | F46: =IF(C46="","",TEXT(VLOOKUP(C46,OFFSET(Coding!$L$7,0,0,AuthorityCounter,4),4,FALSE),OFFSET(Coding!$IU$2,MAX(Coding!$G$38-2,0),0))) -> 0 | G46: =IF(C46="","",VLOOKUP(C46,OFFSET(Coding!$L$7,0,0,AuthorityCounter,2),2,FALSE)) -> uu | H46: Bristol City Council
C47: =IF(ROW()-34>AuthNo,"na",Coding!AR19) -> Bromley | D47: =IF(C47="","",VLOOKUP(C47,OFFSET(Coding!$L$7,0,0,AuthorityCounter,11),11,FALSE)) ->  | F47: =IF(C47="","",TEXT(VLOOKUP(C47,OFFSET(Coding!$L$7,0,0,AuthorityCounter,4),4,FALSE),OFFSET(Coding!$IU$2,MAX(Coding!$G$38-2,0),0))) -> 0 | G47: =IF(C47="","",VLOOKUP(C47,OFFSET(Coding!$L$7,0,0,AuthorityCounter,2),2,FALSE)) -> ul | H47: London Borough of Bromley
C48: =IF(ROW()-34>AuthNo,"na",Coding!AR20) -> Buckinghamshire | D48: =IF(C48="","",VLOOKUP(C48,OFFSET(Coding!$L$7,0,0,AuthorityCounter,11),11,FALSE)) ->  | F48: =IF(C48="","",TEXT(VLOOKUP(C48,OFFSET(Coding!$L$7,0,0,AuthorityCounter,4),4,FALSE),OFFSET(Coding!$IU$2,MAX(Coding!$G$38-2,0),0))) -> 0 | G48: =IF(C48="","",VLOOKUP(C48,OFFSET(Coding!$L$7,0,0,AuthorityCounter,2),2,FALSE)) -> c | H48: Buckinghamshire County Council
C49: =IF(ROW()-34>AuthNo,"na",Coding!AR21) -> Bury | D49: =IF(C49="","",VLOOKUP(C49,OFFSET(Coding!$L$7,0,0,AuthorityCounter,11),11,FALSE)) ->  | F49: =IF(C49="","",TEXT(VLOOKUP(C49,OFFSET(Coding!$L$7,0,0,AuthorityCounter,4),4,FALSE),OFFSET(Coding!$IU$2,MAX(Coding!$G$38-2,0),0))) -> 0 | G49: =IF(C49="","",VLOOKUP(C49,OFFSET(Coding!$L$7,0,0,AuthorityCounter,2),2,FALSE)) -> um | H49: Bury Metropolitan Borough Council
C50: =IF(ROW()-34>AuthNo,"na",Coding!AR22) -> Calderdale | D50: =IF(C50="","",VLOOKUP(C50,OFFSET(Coding!$L$7,0,0,AuthorityCounter,11),11,FALSE)) ->  | F50: =IF(C50="","",TEXT(VLOOKUP(C50,OFFSET(Coding!$L$7,0,0,AuthorityCounter,4),4,FALSE),OFFSET(Coding!$IU$2,MAX(Coding!$G$38-2,0),0))) -> 0 | G50: =IF(C50="","",VLOOKUP(C50,OFFSET(Coding!$L$7,0,0,AuthorityCounter,2),2,FALSE)) -> um | H50: Calderdale Metropolitan Borough Council
C51: =IF(ROW()-34>AuthNo,"na",Coding!AR23) -> Cambridgeshire | D51: =IF(C51="","",VLOOKUP(C51,OFFSET(Coding!$L$7,0,0,AuthorityCounter,11),11,FALSE)) ->  | F51: =IF(C51="","",TEXT(VLOOKUP(C51,OFFSET(Coding!$L$7,0,0,AuthorityCounter,4),4,FALSE),OFFSET(Coding!$IU$2,MAX(Coding!$G$38-2,0),0))) -> 0 | G51: =IF(C51="","",VLOOKUP(C51,OFFSET(Coding!$L$7,0,0,AuthorityCounter,2),2,FALSE)) -> c | H51: Cambridgeshire County Council
C52: =IF(ROW()-34>AuthNo,"na",Coding!AR24) -> Camden | D52: =IF(C52="","",VLOOKUP(C52,OFFSET(Coding!$L$7,0,0,AuthorityCounter,11),11,FALSE)) ->  | F52: =IF(C52="","",TEXT(VLOOKUP(C52,OFFSET(Coding!$L$7,0,0,AuthorityCounter,4),4,FALSE),OFFSET(Coding!$IU$2,MAX(Coding!$G$38-2,0),0))) -> 0 | G52: =IF(C52="","",VLOOKUP(C52,OFFSET(Coding!$L$7,0,0,AuthorityCounter,2),2,FALSE)) -> ul | H52: London Borough of Camden
C53: =IF(ROW()-34>AuthNo,"na",Coding!AR25) -> Central Bedfordshire | D53: =IF(C53="","",VLOOKUP(C53,OFFSET(Coding!$L$7,0,0,AuthorityCounter,11),11,FALSE)) ->  | F53: =IF(C53="","",TEXT(VLOOKUP(C53,OFFSET(Coding!$L$7,0,0,AuthorityCounter,4),4,FALSE),OFFSET(Coding!$IU$2,MAX(Coding!$G$38-2,0),0))) -> 0 | G53: =IF(C53="","",VLOOKUP(C53,OFFSET(Coding!$L$7,0,0,AuthorityCounter,2),2,FALSE)) -> uu | H53: Central Bedfordshire Council
C54: =IF(ROW()-34>AuthNo,"na",Coding!AR26) -> Cheshire East | D54: =IF(C54="","",VLOOKUP(C54,OFFSET(Coding!$L$7,0,0,AuthorityCounter,11),11,FALSE)) ->  | F54: =IF(C54="","",TEXT(VLOOKUP(C54,OFFSET(Coding!$L$7,0,0,AuthorityCounter,4),4,FALSE),OFFSET(Coding!$IU$2,MAX(Coding!$G$38-2,0),0))) -> 0 | G54: =IF(C54="","",VLOOKUP(C54,OFFSET(Coding!$L$7,0,0,AuthorityCounter,2),2,FALSE)) -> uu | H54: Cheshire East Council
C55: =IF(ROW()-34>AuthNo,"na",Coding!AR27) -> Cheshire West & Chester | D55: =IF(C55="","",VLOOKUP(C55,OFFSET(Coding!$L$7,0,0,AuthorityCounter,11),11,FALSE)) ->  | F55: =IF(C55="","",TEXT(VLOOKUP(C55,OFFSET(Coding!$L$7,0,0,AuthorityCounter,4),4,FALSE),OFFSET(Coding!$IU$2,MAX(Coding!$G$38-2,0),0))) -> 0 | G55: =IF(C55="","",VLOOKUP(C55,OFFSET(Coding!$L$7,0,0,AuthorityCounter,2),2,FALSE)) -> uu | H55: Cheshire West and Chester Council
C56: =IF(ROW()-34>AuthNo,"na",Coding!AR28) -> Coventry | D56: =IF(C56="","",VLOOKUP(C56,OFFSET(Coding!$L$7,0,0,AuthorityCounter,11),11,FALSE)) ->  | F56: =IF(C56="","",TEXT(VLOOKUP(C56,OFFSET(Coding!$L$7,0,0,AuthorityCounter,4),4,FALSE),OFFSET(Coding!$IU$2,MAX(Coding!$G$38-2,0),0))) -> 0 | G56: =IF(C56="","",VLOOKUP(C56,OFFSET(Coding!$L$7,0,0,AuthorityCounter,2),2,FALSE)) -> um | H56: Coventry City Council
C57: =IF(ROW()-34>AuthNo,"na",Coding!AR29) -> Croydon | D57: =IF(C57="","",VLOOKUP(C57,OFFSET(Coding!$L$7,0,0,AuthorityCounter,11),11,FALSE)) ->  | F57: =IF(C57="","",TEXT(VLOOKUP(C57,OFFSET(Coding!$L$7,0,0,AuthorityCounter,4),4,FALSE),OFFSET(Coding!$IU$2,MAX(Coding!$G$38-2,0),0))) -> 0 | G57: =IF(C57="","",VLOOKUP(C57,OFFSET(Coding!$L$7,0,0,AuthorityCounter,2),2,FALSE)) -> ul | H57: London Borough of Croydon
C58: =IF(ROW()-34>AuthNo,"na",Coding!AR30) -> Cumbria | D58: =IF(C58="","",VLOOKUP(C58,OFFSET(Coding!$L$7,0,0,AuthorityCounter,11),11,FALSE)) ->  | F58: =IF(C58="","",TEXT(VLOOKUP(C58,OFFSET(Coding!$L$7,0,0,AuthorityCounter,4),4,FALSE),OFFSET(Coding!$IU$2,MAX(Coding!$G$38-2,0),0))) -> 0 | G58: =IF(C58="","",VLOOKUP(C58,OFFSET(Coding!$L$7,0,0,AuthorityCounter,2),2,FALSE)) -> c | H58: Cumbria County Council
C59: =IF(ROW()-34>AuthNo,"na",Coding!AR31) -> Darlington | D59: =IF(C59="","",VLOOKUP(C59,OFFSET(Coding!$L$7,0,0,AuthorityCounter,11),11,FALSE)) ->  | F59: =IF(C59="","",TEXT(VLOOKUP(C59,OFFSET(Coding!$L$7,0,0,AuthorityCounter,4),4,FALSE),OFFSET(Coding!$IU$2,MAX(Coding!$G$38-2,0),0))) -> 0 | G59: =IF(C59="","",VLOOKUP(C59,OFFSET(Coding!$L$7,0,0,AuthorityCounter,2),2,FALSE)) -> uu | H59: Darlington Borough Council
C60: =IF(ROW()-34>AuthNo,"na",Coding!AR32) -> Devon | D60: =IF(C60="","",VLOOKUP(C60,OFFSET(Coding!$L$7,0,0,AuthorityCounter,11),11,FALSE)) ->  | F60: =IF(C60="","",TEXT(VLOOKUP(C60,OFFSET(Coding!$L$7,0,0,AuthorityCounter,4),4,FALSE),OFFSET(Coding!$IU$2,MAX(Coding!$G$38-2,0),0))) -> 0 | G60: =IF(C60="","",VLOOKUP(C60,OFFSET(Coding!$L$7,0,0,AuthorityCounter,2),2,FALSE)) -> c | H60: Devon County Council
C61: =IF(ROW()-34>AuthNo,"na",Coding!AR33) -> Dorset | D61: =IF(C61="","",VLOOKUP(C61,OFFSET(Coding!$L$7,0,0,AuthorityCounter,11),11,FALSE)) ->  | F61: =IF(C61="","",TEXT(VLOOKUP(C61,OFFSET(Coding!$L$7,0,0,AuthorityCounter,4),4,FALSE),OFFSET(Coding!$IU$2,MAX(Coding!$G$38-2,0),0))) -> 0 | G61: =IF(C61="","",VLOOKUP(C61,OFFSET(Coding!$L$7,0,0,AuthorityCounter,2),2,FALSE)) -> c | H61: Dorset County Council
C62: =IF(ROW()-34>AuthNo,"na",Coding!AR34) -> Dudley | D62: =IF(C62="","",VLOOKUP(C62,OFFSET(Coding!$L$7,0,0,AuthorityCounter,11),11,FALSE)) ->  | F62: =IF(C62="","",TEXT(VLOOKUP(C62,OFFSET(Coding!$L$7,0,0,AuthorityCounter,4),4,FALSE),OFFSET(Coding!$IU$2,MAX(Coding!$G$38-2,0),0))) -> 0 | G62: =IF(C62="","",VLOOKUP(C62,OFFSET(Coding!$L$7,0,0,AuthorityCounter,2),2,FALSE)) -> um | H62: Dudley Metropolitan Borough Council
C63: =IF(ROW()-34>AuthNo,"na",Coding!AR35) -> Durham | D63: =IF(C63="","",VLOOKUP(C63,OFFSET(Coding!$L$7,0,0,AuthorityCounter,11),11,FALSE)) ->  | F63: =IF(C63="","",TEXT(VLOOKUP(C63,OFFSET(Coding!$L$7,0,0,AuthorityCounter,4),4,FALSE),OFFSET(Coding!$IU$2,MAX(Coding!$G$38-2,0),0))) -> 0 | G63: =IF(C63="","",VLOOKUP(C63,OFFSET(Coding!$L$7,0,0,AuthorityCounter,2),2,FALSE)) -> uu | H63: Durham County Council
C64: =IF(ROW()-34>AuthNo,"na",Coding!AR36) -> Ealing | D64: =IF(C64="","",VLOOKUP(C64,OFFSET(Coding!$L$7,0,0,AuthorityCounter,11),11,FALSE)) ->  | F64: =IF(C64="","",TEXT(VLOOKUP(C64,OFFSET(Coding!$L$7,0,0,AuthorityCounter,4),4,FALSE),OFFSET(Coding!$IU$2,MAX(Coding!$G$38-2,0),0))) -> 0 | G64: =IF(C64="","",VLOOKUP(C64,OFFSET(Coding!$L$7,0,0,AuthorityCounter,2),2,FALSE)) -> ul | H64: London Borough of Ealing
C65: =IF(ROW()-34>AuthNo,"na",Coding!AR37) -> East Sussex | D65: =IF(C65="","",VLOOKUP(C65,OFFSET(Coding!$L$7,0,0,AuthorityCounter,11),11,FALSE)) ->  | F65: =IF(C65="","",TEXT(VLOOKUP(C65,OFFSET(Coding!$L$7,0,0,AuthorityCounter,4),4,FALSE),OFFSET(Coding!$IU$2,MAX(Coding!$G$38-2,0),0))) -> 0 | G65: =IF(C65="","",VLOOKUP(C65,OFFSET(Coding!$L$7,0,0,AuthorityCounter,2),2,FALSE)) -> c | H65: East Sussex County Council
C66: =IF(ROW()-34>AuthNo,"na",Coding!AR38) -> Enfield | D66: =IF(C66="","",VLOOKUP(C66,OFFSET(Coding!$L$7,0,0,AuthorityCounter,11),11,FALSE)) ->  | F66: =IF(C66="","",TEXT(VLOOKUP(C66,OFFSET(Coding!$L$7,0,0,AuthorityCounter,4),4,FALSE),OFFSET(Coding!$IU$2,MAX(Coding!$G$38-2,0),0))) -> 0 | G66: =IF(C66="","",VLOOKUP(C66,OFFSET(Coding!$L$7,0,0,AuthorityCounter,2),2,FALSE)) -> ul | H66: London Borough of Enfield
C67: =IF(ROW()-34>AuthNo,"na",Coding!AR39) -> Essex | D67: =IF(C67="","",VLOOKUP(C67,OFFSET(Coding!$L$7,0,0,AuthorityCounter,11),11,FALSE)) ->  | F67: =IF(C67="","",TEXT(VLOOKUP(C67,OFFSET(Coding!$L$7,0,0,AuthorityCounter,4),4,FALSE),OFFSET(Coding!$IU$2,MAX(Coding!$G$38-2,0),0))) -> 0 | G67: =IF(C67="","",VLOOKUP(C67,OFFSET(Coding!$L$7,0,0,AuthorityCounter,2),2,FALSE)) -> c | H67: Essex County Council
C68: =IF(ROW()-34>AuthNo,"na",Coding!AR40) -> Gateshead | D68: =IF(C68="","",VLOOKUP(C68,OFFSET(Coding!$L$7,0,0,AuthorityCounter,11),11,FALSE)) ->  | F68: =IF(C68="","",TEXT(VLOOKUP(C68,OFFSET(Coding!$L$7,0,0,AuthorityCounter,4),4,FALSE),OFFSET(Coding!$IU$2,MAX(Coding!$G$38-2,0),0))) -> 0 | G68: =IF(C68="","",VLOOKUP(C68,OFFSET(Coding!$L$7,0,0,AuthorityCounter,2),2,FALSE)) -> um | H68: Gateshead Metropolitan Borough Council
C69: =IF(ROW()-34>AuthNo,"na",Coding!AR41) -> Gloucestershire | D69: =IF(C69="","",VLOOKUP(C69,OFFSET(Coding!$L$7,0,0,AuthorityCounter,11),11,FALSE)) ->  | F69: =IF(C69="","",TEXT(VLOOKUP(C69,OFFSET(Coding!$L$7,0,0,AuthorityCounter,4),4,FALSE),OFFSET(Coding!$IU$2,MAX(Coding!$G$38-2,0),0))) -> 0 | G69: =IF(C69="","",VLOOKUP(C69,OFFSET(Coding!$L$7,0,0,AuthorityCounter,2),2,FALSE)) -> c | H69: Gloucestershire County Council
C70: =IF(ROW()-34>AuthNo,"na",Coding!AR42) -> Greenwich | D70: =IF(C70="","",VLOOKUP(C70,OFFSET(Coding!$L$7,0,0,AuthorityCounter,11),11,FALSE)) ->  | F70: =IF(C70="","",TEXT(VLOOKUP(C70,OFFSET(Coding!$L$7,0,0,AuthorityCounter,4),4,FALSE),OFFSET(Coding!$IU$2,MAX(Coding!$G$38-2,0),0))) -> 0 | G70: =IF(C70="","",VLOOKUP(C70,OFFSET(Coding!$L$7,0,0,AuthorityCounter,2),2,FALSE)) -> ul | H70: Royal Borough of Greenwich
C71: =IF(ROW()-34>AuthNo,"na",Coding!AR43) -> Hackney | D71: =IF(C71="","",VLOOKUP(C71,OFFSET(Coding!$L$7,0,0,AuthorityCounter,11),11,FALSE)) ->  | F71: =IF(C71="","",TEXT(VLOOKUP(C71,OFFSET(Coding!$L$7,0,0,AuthorityCounter,4),4,FALSE),OFFSET(Coding!$IU$2,MAX(Coding!$G$38-2,0),0))) -> 0 | G71: =IF(C71="","",VLOOKUP(C71,OFFSET(Coding!$L$7,0,0,AuthorityCounter,2),2,FALSE)) -> ul | H71: London Borough of Hackney
C72: =IF(ROW()-34>AuthNo,"na",Coding!AR44) -> Halton | D72: =IF(C72="","",VLOOKUP(C72,OFFSET(Coding!$L$7,0,0,AuthorityCounter,11),11,FALSE)) ->  | F72: =IF(C72="","",TEXT(VLOOKUP(C72,OFFSET(Coding!$L$7,0,0,AuthorityCounter,4),4,FALSE),OFFSET(Coding!$IU$2,MAX(Coding!$G$38-2,0),0))) -> 0 | G72: =IF(C72="","",VLOOKUP(C72,OFFSET(Coding!$L$7,0,0,AuthorityCounter,2),2,FALSE)) -> uu | H72: Halton Borough Council
C73: =IF(ROW()-34>AuthNo,"na",Coding!AR45) -> Hammersmith & Fulham | D73: =IF(C73="","",VLOOKUP(C73,OFFSET(Coding!$L$7,0,0,AuthorityCounter,11),11,FALSE)) ->  | F73: =IF(C73="","",TEXT(VLOOKUP(C73,OFFSET(Coding!$L$7,0,0,AuthorityCounter,4),4,FALSE),OFFSET(Coding!$IU$2,MAX(Coding!$G$38-2,0),0))) -> 0 | G73: =IF(C73="","",VLOOKUP(C73,OFFSET(Coding!$L$7,0,0,AuthorityCounter,2),2,FALSE)) -> ul | H73: London Borough of Hammersmith & Fulham
C74: =IF(ROW()-34>AuthNo,"na",Coding!AR46) -> Hampshire | D74: =IF(C74="","",VLOOKUP(C74,OFFSET(Coding!$L$7,0,0,AuthorityCounter,11),11,FALSE)) ->  | F74: =IF(C74="","",TEXT(VLOOKUP(C74,OFFSET(Coding!$L$7,0,0,AuthorityCounter,4),4,FALSE),OFFSET(Coding!$IU$2,MAX(Coding!$G$38-2,0),0))) -> 0 | G74: =IF(C74="","",VLOOKUP(C74,OFFSET(Coding!$L$7,0,0,AuthorityCounter,2),2,FALSE)) -> c | H74: Hampshire County Council
C75: =IF(ROW()-34>AuthNo,"na",Coding!AR47) -> Haringey | D75: =IF(C75="","",VLOOKUP(C75,OFFSET(Coding!$L$7,0,0,AuthorityCounter,11),11,FALSE)) ->  | F75: =IF(C75="","",TEXT(VLOOKUP(C75,OFFSET(Coding!$L$7,0,0,AuthorityCounter,4),4,FALSE),OFFSET(Coding!$IU$2,MAX(Coding!$G$38-2,0),0))) -> 0 | G75: =IF(C75="","",VLOOKUP(C75,OFFSET(Coding!$L$7,0,0,AuthorityCounter,2),2,FALSE)) -> ul | H75: London Borough of Haringey
C76: =IF(ROW()-34>AuthNo,"na",Coding!AR48) -> Harrow | D76: =IF(C76="","",VLOOKUP(C76,OFFSET(Coding!$L$7,0,0,AuthorityCounter,11),11,FALSE)) ->  | F76: =IF(C76="","",TEXT(VLOOKUP(C76,OFFSET(Coding!$L$7,0,0,AuthorityCounter,4),4,FALSE),OFFSET(Coding!$IU$2,MAX(Coding!$G$38-2,0),0))) -> 0 | G76: =IF(C76="","",VLOOKUP(C76,OFFSET(Coding!$L$7,0,0,AuthorityCounter,2),2,FALSE)) -> ul | H76: London Borough of Harrow
C77: =IF(ROW()-34>AuthNo,"na",Coding!AR49) -> Havering | D77: =IF(C77="","",VLOOKUP(C77,OFFSET(Coding!$L$7,0,0,AuthorityCounter,11),11,FALSE)) ->  | F77: =IF(C77="","",TEXT(VLOOKUP(C77,OFFSET(Coding!$L$7,0,0,AuthorityCounter,4),4,FALSE),OFFSET(Coding!$IU$2,MAX(Coding!$G$38-2,0),0))) -> 0 | G77: =IF(C77="","",VLOOKUP(C77,OFFSET(Coding!$L$7,0,0,AuthorityCounter,2),2,FALSE)) -> ul | H77: London Borough of Havering
C78: =IF(ROW()-34>AuthNo,"na",Coding!AR50) -> Herefordshire | D78: =IF(C78="","",VLOOKUP(C78,OFFSET(Coding!$L$7,0,0,AuthorityCounter,11),11,FALSE)) ->  | F78: =IF(C78="","",TEXT(VLOOKUP(C78,OFFSET(Coding!$L$7,0,0,AuthorityCounter,4),4,FALSE),OFFSET(Coding!$IU$2,MAX(Coding!$G$38-2,0),0))) -> 0 | G78: =IF(C78="","",VLOOKUP(C78,OFFSET(Coding!$L$7,0,0,AuthorityCounter,2),2,FALSE)) -> uu | H78: Herefordshire Council
C79: =IF(ROW()-34>AuthNo,"na",Coding!AR51) -> Hertfordshire | D79: =IF(C79="","",VLOOKUP(C79,OFFSET(Coding!$L$7,0,0,AuthorityCounter,11),11,FALSE)) ->  | F79: =IF(C79="","",TEXT(VLOOKUP(C79,OFFSET(Coding!$L$7,0,0,AuthorityCounter,4),4,FALSE),OFFSET(Coding!$IU$2,MAX(Coding!$G$38-2,0),0))) -> 0 | G79: =IF(C79="","",VLOOKUP(C79,OFFSET(Coding!$L$7,0,0,AuthorityCounter,2),2,FALSE)) -> c | H79: Hertfordshire County Council
C80: =IF(ROW()-34>AuthNo,"na",Coding!AR52) -> Hounslow | D80: =IF(C80="","",VLOOKUP(C80,OFFSET(Coding!$L$7,0,0,AuthorityCounter,11),11,FALSE)) ->  | F80: =IF(C80="","",TEXT(VLOOKUP(C80,OFFSET(Coding!$L$7,0,0,AuthorityCounter,4),4,FALSE),OFFSET(Coding!$IU$2,MAX(Coding!$G$38-2,0),0))) -> 0 | G80: =IF(C80="","",VLOOKUP(C80,OFFSET(Coding!$L$7,0,0,AuthorityCounter,2),2,FALSE)) -> ul | H80: London Borough of Hounslow
C81: =IF(ROW()-34>AuthNo,"na",Coding!AR53) -> Isle of Wight | D81: =IF(C81="","",VLOOKUP(C81,OFFSET(Coding!$L$7,0,0,AuthorityCounter,11),11,FALSE)) ->  | F81: =IF(C81="","",TEXT(VLOOKUP(C81,OFFSET(Coding!$L$7,0,0,AuthorityCounter,4),4,FALSE),OFFSET(Coding!$IU$2,MAX(Coding!$G$38-2,0),0))) -> 0 | G81: =IF(C81="","",VLOOKUP(C81,OFFSET(Coding!$L$7,0,0,AuthorityCounter,2),2,FALSE)) -> uu | H81: Isle of Wight Council
C82: =IF(ROW()-34>AuthNo,"na",Coding!AR54) -> Islington | D82: =IF(C82="","",VLOOKUP(C82,OFFSET(Coding!$L$7,0,0,AuthorityCounter,11),11,FALSE)) ->  | F82: =IF(C82="","",TEXT(VLOOKUP(C82,OFFSET(Coding!$L$7,0,0,AuthorityCounter,4),4,FALSE),OFFSET(Coding!$IU$2,MAX(Coding!$G$38-2,0),0))) -> 0 | G82: =IF(C82="","",VLOOKUP(C82,OFFSET(Coding!$L$7,0,0,AuthorityCounter,2),2,FALSE)) -> ul | H82: London Borough of Islington
C83: =IF(ROW()-34>AuthNo,"na",Coding!AR55) -> Kensington & Chelsea | D83: =IF(C83="","",VLOOKUP(C83,OFFSET(Coding!$L$7,0,0,AuthorityCounter,11),11,FALSE)) ->  | F83: =IF(C83="","",TEXT(VLOOKUP(C83,OFFSET(Coding!$L$7,0,0,AuthorityCounter,4),4,FALSE),OFFSET(Coding!$IU$2,MAX(Coding!$G$38-2,0),0))) -> 0 | G83: =IF(C83="","",VLOOKUP(C83,OFFSET(Coding!$L$7,0,0,AuthorityCounter,2),2,FALSE)) -> ul | H83: Royal Borough of Kensington & Chelsea
C84: =IF(ROW()-34>AuthNo,"na",Coding!AR56) -> Kent | D84: =IF(C84="","",VLOOKUP(C84,OFFSET(Coding!$L$7,0,0,AuthorityCounter,11),11,FALSE)) ->  | F84: =IF(C84="","",TEXT(VLOOKUP(C84,OFFSET(Coding!$L$7,0,0,AuthorityCounter,4),4,FALSE),OFFSET(Coding!$IU$2,MAX(Coding!$G$38-2,0),0))) -> 0 | G84: =IF(C84="","",VLOOKUP(C84,OFFSET(Coding!$L$7,0,0,AuthorityCounter,2),2,FALSE)) -> c | H84: Kent County Council
C85: =IF(ROW()-34>AuthNo,"na",Coding!AR57) -> Kingston-upon-Thames | D85: =IF(C85="","",VLOOKUP(C85,OFFSET(Coding!$L$7,0,0,AuthorityCounter,11),11,FALSE)) ->  | F85: =IF(C85="","",TEXT(VLOOKUP(C85,OFFSET(Coding!$L$7,0,0,AuthorityCounter,4),4,FALSE),OFFSET(Coding!$IU$2,MAX(Coding!$G$38-2,0),0))) -> 0 | G85: =IF(C85="","",VLOOKUP(C85,OFFSET(Coding!$L$7,0,0,AuthorityCounter,2),2,FALSE)) -> ul | H85: Royal Borough of Kingston-upon-Thames
C86: =IF(ROW()-34>AuthNo,"na",Coding!AR58) -> Lancashire | D86: =IF(C86="","",VLOOKUP(C86,OFFSET(Coding!$L$7,0,0,AuthorityCounter,11),11,FALSE)) ->  | F86: =IF(C86="","",TEXT(VLOOKUP(C86,OFFSET(Coding!$L$7,0,0,AuthorityCounter,4),4,FALSE),OFFSET(Coding!$IU$2,MAX(Coding!$G$38-2,0),0))) -> 0 | G86: =IF(C86="","",VLOOKUP(C86,OFFSET(Coding!$L$7,0,0,AuthorityCounter,2),2,FALSE)) -> c | H86: Lancashire County Council
C87: =IF(ROW()-34>AuthNo,"na",Coding!AR59) -> Leicester | D87: =IF(C87="","",VLOOKUP(C87,OFFSET(Coding!$L$7,0,0,AuthorityCounter,11),11,FALSE)) ->  | F87: =IF(C87="","",TEXT(VLOOKUP(C87,OFFSET(Coding!$L$7,0,0,AuthorityCounter,4),4,FALSE),OFFSET(Coding!$IU$2,MAX(Coding!$G$38-2,0),0))) -> 0 | G87: =IF(C87="","",VLOOKUP(C87,OFFSET(Coding!$L$7,0,0,AuthorityCounter,2),2,FALSE)) -> uu | H87: Leicester City Council
C88: =IF(ROW()-34>AuthNo,"na",Coding!AR60) -> Leicestershire | D88: =IF(C88="","",VLOOKUP(C88,OFFSET(Coding!$L$7,0,0,AuthorityCounter,11),11,FALSE)) ->  | F88: =IF(C88="","",TEXT(VLOOKUP(C88,OFFSET(Coding!$L$7,0,0,AuthorityCounter,4),4,FALSE),OFFSET(Coding!$IU$2,MAX(Coding!$G$38-2,0),0))) -> 0 | G88: =IF(C88="","",VLOOKUP(C88,OFFSET(Coding!$L$7,0,0,AuthorityCounter,2),2,FALSE)) -> c | H88: Leicestershire County Council
C89: =IF(ROW()-34>AuthNo,"na",Coding!AR61) -> Lewisham | D89: =IF(C89="","",VLOOKUP(C89,OFFSET(Coding!$L$7,0,0,AuthorityCounter,11),11,FALSE)) ->  | F89: =IF(C89="","",TEXT(VLOOKUP(C89,OFFSET(Coding!$L$7,0,0,AuthorityCounter,4),4,FALSE),OFFSET(Coding!$IU$2,MAX(Coding!$G$38-2,0),0))) -> 0 | G89: =IF(C89="","",VLOOKUP(C89,OFFSET(Coding!$L$7,0,0,AuthorityCounter,2),2,FALSE)) -> ul | H89: London Borough of Lewisham
C90: =IF(ROW()-34>AuthNo,"na",Coding!AR62) -> Lincolnshire | D90: =IF(C90="","",VLOOKUP(C90,OFFSET(Coding!$L$7,0,0,AuthorityCounter,11),11,FALSE)) ->  | F90: =IF(C90="","",TEXT(VLOOKUP(C90,OFFSET(Coding!$L$7,0,0,AuthorityCounter,4),4,FALSE),OFFSET(Coding!$IU$2,MAX(Coding!$G$38-2,0),0))) -> 0 | G90: =IF(C90="","",VLOOKUP(C90,OFFSET(Coding!$L$7,0,0,AuthorityCounter,2),2,FALSE)) -> c | H90: Lincolnshire County Council
C91: =IF(ROW()-34>AuthNo,"na",Coding!AR63) -> Luton | D91: =IF(C91="","",VLOOKUP(C91,OFFSET(Coding!$L$7,0,0,AuthorityCounter,11),11,FALSE)) ->  | F91: =IF(C91="","",TEXT(VLOOKUP(C91,OFFSET(Coding!$L$7,0,0,AuthorityCounter,4),4,FALSE),OFFSET(Coding!$IU$2,MAX(Coding!$G$38-2,0),0))) -> 0 | G91: =IF(C91="","",VLOOKUP(C91,OFFSET(Coding!$L$7,0,0,AuthorityCounter,2),2,FALSE)) -> uu | H91: Luton Borough Council
C92: =IF(ROW()-34>AuthNo,"na",Coding!AR64) -> Manchester | D92: =IF(C92="","",VLOOKUP(C92,OFFSET(Coding!$L$7,0,0,AuthorityCounter,11),11,FALSE)) ->  | F92: =IF(C92="","",TEXT(VLOOKUP(C92,OFFSET(Coding!$L$7,0,0,AuthorityCounter,4),4,FALSE),OFFSET(Coding!$IU$2,MAX(Coding!$G$38-2,0),0))) -> 0 | G92: =IF(C92="","",VLOOKUP(C92,OFFSET(Coding!$L$7,0,0,AuthorityCounter,2),2,FALSE)) -> um | H92: Manchester City Council
C93: =IF(ROW()-34>AuthNo,"na",Coding!AR65) -> Medway | D93: =IF(C93="","",VLOOKUP(C93,OFFSET(Coding!$L$7,0,0,AuthorityCounter,11),11,FALSE)) ->  | F93: =IF(C93="","",TEXT(VLOOKUP(C93,OFFSET(Coding!$L$7,0,0,AuthorityCounter,4),4,FALSE),OFFSET(Coding!$IU$2,MAX(Coding!$G$38-2,0),0))) -> 0 | G93: =IF(C93="","",VLOOKUP(C93,OFFSET(Coding!$L$7,0,0,AuthorityCounter,2),2,FALSE)) -> uu | H93: Medway Council
C94: =IF(ROW()-34>AuthNo,"na",Coding!AR66) -> Merton | D94: =IF(C94="","",VLOOKUP(C94,OFFSET(Coding!$L$7,0,0,AuthorityCounter,11),11,FALSE)) ->  | F94: =IF(C94="","",TEXT(VLOOKUP(C94,OFFSET(Coding!$L$7,0,0,AuthorityCounter,4),4,FALSE),OFFSET(Coding!$IU$2,MAX(Coding!$G$38-2,0),0))) -> 0 | G94: =IF(C94="","",VLOOKUP(C94,OFFSET(Coding!$L$7,0,0,AuthorityCounter,2),2,FALSE)) -> ul | H94: London Borough of Merton
C95: =IF(ROW()-34>AuthNo,"na",Coding!AR67) -> Newcastle-upon-Tyne | D95: =IF(C95="","",VLOOKUP(C95,OFFSET(Coding!$L$7,0,0,AuthorityCounter,11),11,FALSE)) ->  | F95: =IF(C95="","",TEXT(VLOOKUP(C95,OFFSET(Coding!$L$7,0,0,AuthorityCounter,4),4,FALSE),OFFSET(Coding!$IU$2,MAX(Coding!$G$38-2,0),0))) -> 0 | G95: =IF(C95="","",VLOOKUP(C95,OFFSET(Coding!$L$7,0,0,AuthorityCounter,2),2,FALSE)) -> um | H95: Newcastle City Council
C96: =IF(ROW()-34>AuthNo,"na",Coding!AR68) -> Newham | D96: =IF(C96="","",VLOOKUP(C96,OFFSET(Coding!$L$7,0,0,AuthorityCounter,11),11,FALSE)) ->  | F96: =IF(C96="","",TEXT(VLOOKUP(C96,OFFSET(Coding!$L$7,0,0,AuthorityCounter,4),4,FALSE),OFFSET(Coding!$IU$2,MAX(Coding!$G$38-2,0),0))) -> 0 | G96: =IF(C96="","",VLOOKUP(C96,OFFSET(Coding!$L$7,0,0,AuthorityCounter,2),2,FALSE)) -> ul | H96: London Borough of Newham
C97: =IF(ROW()-34>AuthNo,"na",Coding!AR69) -> Norfolk | D97: =IF(C97="","",VLOOKUP(C97,OFFSET(Coding!$L$7,0,0,AuthorityCounter,11),11,FALSE)) ->  | F97: =IF(C97="","",TEXT(VLOOKUP(C97,OFFSET(Coding!$L$7,0,0,AuthorityCounter,4),4,FALSE),OFFSET(Coding!$IU$2,MAX(Coding!$G$38-2,0),0))) -> 0 | G97: =IF(C97="","",VLOOKUP(C97,OFFSET(Coding!$L$7,0,0,AuthorityCounter,2),2,FALSE)) -> c | H97: Norfolk County Council
C98: =IF(ROW()-34>AuthNo,"na",Coding!AR70) -> North Lincolnshire | D98: =IF(C98="","",VLOOKUP(C98,OFFSET(Coding!$L$7,0,0,AuthorityCounter,11),11,FALSE)) ->  | F98: =IF(C98="","",TEXT(VLOOKUP(C98,OFFSET(Coding!$L$7,0,0,AuthorityCounter,4),4,FALSE),OFFSET(Coding!$IU$2,MAX(Coding!$G$38-2,0),0))) -> 0 | G98: =IF(C98="","",VLOOKUP(C98,OFFSET(Coding!$L$7,0,0,AuthorityCounter,2),2,FALSE)) -> uu | H98: North Lincolnshire Council
C99: =IF(ROW()-34>AuthNo,"na",Coding!AR71) -> North Somerset | D99: =IF(C99="","",VLOOKUP(C99,OFFSET(Coding!$L$7,0,0,AuthorityCounter,11),11,FALSE)) ->  | F99: =IF(C99="","",TEXT(VLOOKUP(C99,OFFSET(Coding!$L$7,0,0,AuthorityCounter,4),4,FALSE),OFFSET(Coding!$IU$2,MAX(Coding!$G$38-2,0),0))) -> 0 | G99: =IF(C99="","",VLOOKUP(C99,OFFSET(Coding!$L$7,0,0,AuthorityCounter,2),2,FALSE)) -> uu | H99: North Somerset Council
C100: =IF(ROW()-34>AuthNo,"na",Coding!AR72) -> North Tyneside | D100: =IF(C100="","",VLOOKUP(C100,OFFSET(Coding!$L$7,0,0,AuthorityCounter,11),11,FALSE)) ->  | F100: =IF(C100="","",TEXT(VLOOKUP(C100,OFFSET(Coding!$L$7,0,0,AuthorityCounter,4),4,FALSE),OFFSET(Coding!$IU$2,MAX(Coding!$G$38-2,0),0))) -> 0 | G100: =IF(C100="","",VLOOKUP(C100,OFFSET(Coding!$L$7,0,0,AuthorityCounter,2),2,FALSE)) -> um | H100: =IF(C100="","",VLOOKUP(C100,NameRange,2,FALSE)) -> North Tyneside MBC
C101: =IF(ROW()-34>AuthNo,"na",Coding!AR73) -> North Yorkshire | D101: =IF(C101="","",VLOOKUP(C101,OFFSET(Coding!$L$7,0,0,AuthorityCounter,11),11,FALSE)) ->  | F101: =IF(C101="","",TEXT(VLOOKUP(C101,OFFSET(Coding!$L$7,0,0,AuthorityCounter,4),4,FALSE),OFFSET(Coding!$IU$2,MAX(Coding!$G$38-2,0),0))) -> 0 | G101: =IF(C101="","",VLOOKUP(C101,OFFSET(Coding!$L$7,0,0,AuthorityCounter,2),2,FALSE)) -> c | H101: North Yorkshire County Council
C102: =IF(ROW()-34>AuthNo,"na",Coding!AR74) -> Northamptonshire | D102: =IF(C102="","",VLOOKUP(C102,OFFSET(Coding!$L$7,0,0,AuthorityCounter,11),11,FALSE)) ->  | F102: =IF(C102="","",TEXT(VLOOKUP(C102,OFFSET(Coding!$L$7,0,0,AuthorityCounter,4),4,FALSE),OFFSET(Coding!$IU$2,MAX(Coding!$G$38-2,0),0))) -> 0 | G102: =IF(C102="","",VLOOKUP(C102,OFFSET(Coding!$L$7,0,0,AuthorityCounter,2),2,FALSE)) -> c | H102: Northamptonshire County Council
C103: =IF(ROW()-34>AuthNo,"na",Coding!AR75) -> Nottingham | D103: =IF(C103="","",VLOOKUP(C103,OFFSET(Coding!$L$7,0,0,AuthorityCounter,11),11,FALSE)) ->  | F103: =IF(C103="","",TEXT(VLOOKUP(C103,OFFSET(Coding!$L$7,0,0,AuthorityCounter,4),4,FALSE),OFFSET(Coding!$IU$2,MAX(Coding!$G$38-2,0),0))) -> 0 | G103: =IF(C103="","",VLOOKUP(C103,OFFSET(Coding!$L$7,0,0,AuthorityCounter,2),2,FALSE)) -> uu | H103: Nottingham City Council
B104: =IF(ISERROR(VLOOKUP(C104,OFFSET(Coding!$L$7,0,0,AuthorityCounter2,11),11,FALSE)),"",VLOOKUP(C104,OFFSET(Coding!$L$7,0,0,AuthorityCounter2,11),11,FALSE)) ->  | C104: =IF(ROW()-34>AuthNo,"na",Coding!AR76) -> Nottinghamshire | D104: =IF(C104="","",VLOOKUP(C104,OFFSET(Coding!$L$7,0,0,AuthorityCounter,11),11,FALSE)) ->  | F104: =IF(C104="","",TEXT(VLOOKUP(C104,OFFSET(Coding!$L$7,0,0,AuthorityCounter,4),4,FALSE),OFFSET(Coding!$IU$2,MAX(Coding!$G$38-2,0),0))) -> 0 | G104: =IF(C104="","",VLOOKUP(C104,OFFSET(Coding!$L$7,0,0,AuthorityCounter,2),2,FALSE)) -> c | H104: Nottinghamshire County Council
B105: =IF(ISERROR(VLOOKUP(C105,OFFSET(Coding!$L$7,0,0,AuthorityCounter2,11),11,FALSE)),"",VLOOKUP(C105,OFFSET(Coding!$L$7,0,0,AuthorityCounter2,11),11,FALSE)) ->  | C105: =IF(ROW()-34>AuthNo,"na",Coding!AR77) -> Oldham | D105: =IF(C105="","",VLOOKUP(C105,OFFSET(Coding!$L$7,0,0,AuthorityCounter,11),11,FALSE)) ->  | F105: =IF(C105="","",TEXT(VLOOKUP(C105,OFFSET(Coding!$L$7,0,0,AuthorityCounter,4),4,FALSE),OFFSET(Coding!$IU$2,MAX(Coding!$G$38-2,0),0))) -> 0 | G105: =IF(C105="","",VLOOKUP(C105,OFFSET(Coding!$L$7,0,0,AuthorityCounter,2),2,FALSE)) -> um | H105: Oldham Metropolitan Borough Council
B106: =IF(ISERROR(VLOOKUP(C106,OFFSET(Coding!$L$7,0,0,AuthorityCounter2,11),11,FALSE)),"",VLOOKUP(C106,OFFSET(Coding!$L$7,0,0,AuthorityCounter2,11),11,FALSE)) ->  | C106: =IF(ROW()-34>AuthNo,"na",Coding!AR78) -> Oxfordshire | D106: =IF(C106="","",VLOOKUP(C106,OFFSET(Coding!$L$7,0,0,AuthorityCounter,11),11,FALSE)) ->  | F106: =IF(C106="","",TEXT(VLOOKUP(C106,OFFSET(Coding!$L$7,0,0,AuthorityCounter,4),4,FALSE),OFFSET(Coding!$IU$2,MAX(Coding!$G$38-2,0),0))) -> 0 | G106: =IF(C106="","",VLOOKUP(C106,OFFSET(Coding!$L$7,0,0,AuthorityCounter,2),2,FALSE)) -> c | H106: Oxfordshire County Council
B107: =IF(ISERROR(VLOOKUP(C107,OFFSET(Coding!$L$7,0,0,AuthorityCounter2,11),11,FALSE)),"",VLOOKUP(C107,OFFSET(Coding!$L$7,0,0,AuthorityCounter2,11),11,FALSE)) ->  | C107: =IF(ROW()-34>AuthNo,"na",Coding!AR79) -> Peterborough | D107: =IF(C107="","",VLOOKUP(C107,OFFSET(Coding!$L$7,0,0,AuthorityCounter,11),11,FALSE)) ->  | F107: =IF(C107="","",TEXT(VLOOKUP(C107,OFFSET(Coding!$L$7,0,0,AuthorityCounter,4),4,FALSE),OFFSET(Coding!$IU$2,MAX(Coding!$G$38-2,0),0))) -> 0 | G107: =IF(C107="","",VLOOKUP(C107,OFFSET(Coding!$L$7,0,0,AuthorityCounter,2),2,FALSE)) -> uu | H107: Peterborough City Council
B108: =IF(ISERROR(VLOOKUP(C108,OFFSET(Coding!$L$7,0,0,AuthorityCounter2,11),11,FALSE)),"",VLOOKUP(C108,OFFSET(Coding!$L$7,0,0,AuthorityCounter2,11),11,FALSE)) ->  | C108: =IF(ROW()-34>AuthNo,"na",Coding!AR80) -> Plymouth | D108: =IF(C108="","",VLOOKUP(C108,OFFSET(Coding!$L$7,0,0,AuthorityCounter,11),11,FALSE)) ->  | F108: =IF(C108="","",TEXT(VLOOKUP(C108,OFFSET(Coding!$L$7,0,0,AuthorityCounter,4),4,FALSE),OFFSET(Coding!$IU$2,MAX(Coding!$G$38-2,0),0))) -> 0 | G108: =IF(C108="","",VLOOKUP(C108,OFFSET(Coding!$L$7,0,0,AuthorityCounter,2),2,FALSE)) -> uu | H108: Plymouth City Council
B109: =IF(ISERROR(VLOOKUP(C109,OFFSET(Coding!$L$7,0,0,AuthorityCounter2,11),11,FALSE)),"",VLOOKUP(C109,OFFSET(Coding!$L$7,0,0,AuthorityCounter2,11),11,FALSE)) ->  | C109: =IF(ROW()-34>AuthNo,"na",Coding!AR81) -> Poole | D109: =IF(C109="","",VLOOKUP(C109,OFFSET(Coding!$L$7,0,0,AuthorityCounter,11),11,FALSE)) ->  | F109: =IF(C109="","",TEXT(VLOOKUP(C109,OFFSET(Coding!$L$7,0,0,AuthorityCounter,4),4,FALSE),OFFSET(Coding!$IU$2,MAX(Coding!$G$38-2,0),0))) -> 0 | G109: =IF(C109="","",VLOOKUP(C109,OFFSET(Coding!$L$7,0,0,AuthorityCounter,2),2,FALSE)) -> uu | H109: Borough of Poole
B110: =IF(ISERROR(VLOOKUP(C110,OFFSET(Coding!$L$7,0,0,AuthorityCounter2,11),11,FALSE)),"",VLOOKUP(C110,OFFSET(Coding!$L$7,0,0,AuthorityCounter2,11),11,FALSE)) ->  | C110: =IF(ROW()-34>AuthNo,"na",Coding!AR82) -> Portsmouth | D110: =IF(C110="","",VLOOKUP(C110,OFFSET(Coding!$L$7,0,0,AuthorityCounter,11),11,FALSE)) ->  | F110: =IF(C110="","",TEXT(VLOOKUP(C110,OFFSET(Coding!$L$7,0,0,AuthorityCounter,4),4,FALSE),OFFSET(Coding!$IU$2,MAX(Coding!$G$38-2,0),0))) -> 0 | G110: =IF(C110="","",VLOOKUP(C110,OFFSET(Coding!$L$7,0,0,AuthorityCounter,2),2,FALSE)) -> uu | H110: Portsmouth City Council
B111: =IF(ISERROR(VLOOKUP(C111,OFFSET(Coding!$L$7,0,0,AuthorityCounter2,11),11,FALSE)),"",VLOOKUP(C111,OFFSET(Coding!$L$7,0,0,AuthorityCounter2,11),11,FALSE)) ->  | C111: =IF(ROW()-34>AuthNo,"na",Coding!AR83) -> Reading | D111: =IF(C111="","",VLOOKUP(C111,OFFSET(Coding!$L$7,0,0,AuthorityCounter,11),11,FALSE)) ->  | F111: =IF(C111="","",TEXT(VLOOKUP(C111,OFFSET(Coding!$L$7,0,0,AuthorityCounter,4),4,FALSE),OFFSET(Coding!$IU$2,MAX(Coding!$G$38-2,0),0))) -> 0 | G111: =IF(C111="","",VLOOKUP(C111,OFFSET(Coding!$L$7,0,0,AuthorityCounter,2),2,FALSE)) -> uu | H111: Reading Borough Council
B112: =IF(ISERROR(VLOOKUP(C112,OFFSET(Coding!$L$7,0,0,AuthorityCounter2,11),11,FALSE)),"",VLOOKUP(C112,OFFSET(Coding!$L$7,0,0,AuthorityCounter2,11),11,FALSE)) ->  | C112: =IF(ROW()-34>AuthNo,"na",Coding!AR84) -> Redbridge | D112: =IF(C112="","",VLOOKUP(C112,OFFSET(Coding!$L$7,0,0,AuthorityCounter,11),11,FALSE)) ->  | F112: =IF(C112="","",TEXT(VLOOKUP(C112,OFFSET(Coding!$L$7,0,0,AuthorityCounter,4),4,FALSE),OFFSET(Coding!$IU$2,MAX(Coding!$G$38-2,0),0))) -> 0 | G112: =IF(C112="","",VLOOKUP(C112,OFFSET(Coding!$L$7,0,0,AuthorityCounter,2),2,FALSE)) -> ul | H112: London Borough of Redbridge
B113: =IF(ISERROR(VLOOKUP(C113,OFFSET(Coding!$L$7,0,0,AuthorityCounter2,11),11,FALSE)),"",VLOOKUP(C113,OFFSET(Coding!$L$7,0,0,AuthorityCounter2,11),11,FALSE)) ->  | C113: =IF(ROW()-34>AuthNo,"na",Coding!AR85) -> Redcar & Cleveland | D113: =IF(C113="","",VLOOKUP(C113,OFFSET(Coding!$L$7,0,0,AuthorityCounter,11),11,FALSE)) ->  | F113: =IF(C113="","",TEXT(VLOOKUP(C113,OFFSET(Coding!$L$7,0,0,AuthorityCounter,4),4,FALSE),OFFSET(Coding!$IU$2,MAX(Coding!$G$38-2,0),0))) -> 0 | G113: =IF(C113="","",VLOOKUP(C113,OFFSET(Coding!$L$7,0,0,AuthorityCounter,2),2,FALSE)) -> uu | H113: Redcar & Cleveland Borough Council
B114: =IF(ISERROR(VLOOKUP(C114,OFFSET(Coding!$L$7,0,0,AuthorityCounter2,11),11,FALSE)),"",VLOOKUP(C114,OFFSET(Coding!$L$7,0,0,AuthorityCounter2,11),11,FALSE)) ->  | C114: =IF(ROW()-34>AuthNo,"na",Coding!AR86) -> Richmond-upon-Thames | D114: =IF(C114="","",VLOOKUP(C114,OFFSET(Coding!$L$7,0,0,AuthorityCounter,11),11,FALSE)) ->  | F114: =IF(C114="","",TEXT(VLOOKUP(C114,OFFSET(Coding!$L$7,0,0,AuthorityCounter,4),4,FALSE),OFFSET(Coding!$IU$2,MAX(Coding!$G$38-2,0),0))) -> 0 | G114: =IF(C114="","",VLOOKUP(C114,OFFSET(Coding!$L$7,0,0,AuthorityCounter,2),2,FALSE)) -> ul | H114: London Borough of Richmond-upon-Thames
B115: =IF(ISERROR(VLOOKUP(C115,OFFSET(Coding!$L$7,0,0,AuthorityCounter2,11),11,FALSE)),"",VLOOKUP(C115,OFFSET(Coding!$L$7,0,0,AuthorityCounter2,11),11,FALSE)) ->  | C115: =IF(ROW()-34>AuthNo,"na",Coding!AR87) -> Rochdale | D115: =IF(C115="","",VLOOKUP(C115,OFFSET(Coding!$L$7,0,0,AuthorityCounter,11),11,FALSE)) ->  | F115: =IF(C115="","",TEXT(VLOOKUP(C115,OFFSET(Coding!$L$7,0,0,AuthorityCounter,4),4,FALSE),OFFSET(Coding!$IU$2,MAX(Coding!$G$38-2,0),0))) -> 0 | G115: =IF(C115="","",VLOOKUP(C115,OFFSET(Coding!$L$7,0,0,AuthorityCounter,2),2,FALSE)) -> um | H115: Rochdale Metropolitan Borough Council
B116: =IF(ISERROR(VLOOKUP(C116,OFFSET(Coding!$L$7,0,0,AuthorityCounter2,11),11,FALSE)),"",VLOOKUP(C116,OFFSET(Coding!$L$7,0,0,AuthorityCounter2,11),11,FALSE)) ->  | C116: =IF(ROW()-34>AuthNo,"na",Coding!AR88) -> Rotherham | D116: =IF(C116="","",VLOOKUP(C116,OFFSET(Coding!$L$7,0,0,AuthorityCounter,11),11,FALSE)) ->  | F116: =IF(C116="","",TEXT(VLOOKUP(C116,OFFSET(Coding!$L$7,0,0,AuthorityCounter,4),4,FALSE),OFFSET(Coding!$IU$2,MAX(Coding!$G$38-2,0),0))) -> 0 | G116: =IF(C116="","",VLOOKUP(C116,OFFSET(Coding!$L$7,0,0,AuthorityCounter,2),2,FALSE)) -> um | H116: Rotherham Metropolitan Borough Council
B117: =IF(ISERROR(VLOOKUP(C117,OFFSET(Coding!$L$7,0,0,AuthorityCounter2,11),11,FALSE)),"",VLOOKUP(C117,OFFSET(Coding!$L$7,0,0,AuthorityCounter2,11),11,FALSE)) ->  | C117: =IF(ROW()-34>AuthNo,"na",Coding!AR89) -> Rutland | D117: =IF(C117="","",VLOOKUP(C117,OFFSET(Coding!$L$7,0,0,AuthorityCounter,11),11,FALSE)) ->  | F117: =IF(C117="","",TEXT(VLOOKUP(C117,OFFSET(Coding!$L$7,0,0,AuthorityCounter,4),4,FALSE),OFFSET(Coding!$IU$2,MAX(Coding!$G$38-2,0),0))) -> 0 | G117: =IF(C117="","",VLOOKUP(C117,OFFSET(Coding!$L$7,0,0,AuthorityCounter,2),2,FALSE)) -> uu | H117: Rutland County Council
B118: =IF(ISERROR(VLOOKUP(C118,OFFSET(Coding!$L$7,0,0,AuthorityCounter2,11),11,FALSE)),"",VLOOKUP(C118,OFFSET(Coding!$L$7,0,0,AuthorityCounter2,11),11,FALSE)) ->  | C118: =IF(ROW()-34>AuthNo,"na",Coding!AR90) -> Salford | D118: =IF(C118="","",VLOOKUP(C118,OFFSET(Coding!$L$7,0,0,AuthorityCounter,11),11,FALSE)) ->  | F118: =IF(C118="","",TEXT(VLOOKUP(C118,OFFSET(Coding!$L$7,0,0,AuthorityCounter,4),4,FALSE),OFFSET(Coding!$IU$2,MAX(Coding!$G$38-2,0),0))) -> 0 | G118: =IF(C118="","",VLOOKUP(C118,OFFSET(Coding!$L$7,0,0,AuthorityCounter,2),2,FALSE)) -> um | H118: Salford City Council
B119: =IF(ISERROR(VLOOKUP(C119,OFFSET(Coding!$L$7,0,0,AuthorityCounter2,11),11,FALSE)),"",VLOOKUP(C119,OFFSET(Coding!$L$7,0,0,AuthorityCounter2,11),11,FALSE)) ->  | C119: =IF(ROW()-34>AuthNo,"na",Coding!AR91) -> Sandwell | D119: =IF(C119="","",VLOOKUP(C119,OFFSET(Coding!$L$7,0,0,AuthorityCounter,11),11,FALSE)) ->  | F119: =IF(C119="","",TEXT(VLOOKUP(C119,OFFSET(Coding!$L$7,0,0,AuthorityCounter,4),4,FALSE),OFFSET(Coding!$IU$2,MAX(Coding!$G$38-2,0),0))) -> 0 | G119: =IF(C119="","",VLOOKUP(C119,OFFSET(Coding!$L$7,0,0,AuthorityCounter,2),2,FALSE)) -> um | H119: Sandwell Metropolitan Borough Council
B120: =IF(ISERROR(VLOOKUP(C120,OFFSET(Coding!$L$7,0,0,AuthorityCounter2,11),11,FALSE)),"",VLOOKUP(C120,OFFSET(Coding!$L$7,0,0,AuthorityCounter2,11),11,FALSE)) ->  | C120: =IF(ROW()-34>AuthNo,"na",Coding!AR92) -> Sefton | D120: =IF(C120="","",VLOOKUP(C120,OFFSET(Coding!$L$7,0,0,AuthorityCounter,11),11,FALSE)) ->  | F120: =IF(C120="","",TEXT(VLOOKUP(C120,OFFSET(Coding!$L$7,0,0,AuthorityCounter,4),4,FALSE),OFFSET(Coding!$IU$2,MAX(Coding!$G$38-2,0),0))) -> 0 | G120: =IF(C120="","",VLOOKUP(C120,OFFSET(Coding!$L$7,0,0,AuthorityCounter,2),2,FALSE)) -> um | H120: Sefton Metropolitan Borough Council
B121: =IF(ISERROR(VLOOKUP(C121,OFFSET(Coding!$L$7,0,0,AuthorityCounter2,11),11,FALSE)),"",VLOOKUP(C121,OFFSET(Coding!$L$7,0,0,AuthorityCounter2,11),11,FALSE)) ->  | C121: =IF(ROW()-34>AuthNo,"na",Coding!AR93) -> Sheffield | D121: =IF(C121="","",VLOOKUP(C121,OFFSET(Coding!$L$7,0,0,AuthorityCounter,11),11,FALSE)) ->  | F121: =IF(C121="","",TEXT(VLOOKUP(C121,OFFSET(Coding!$L$7,0,0,AuthorityCounter,4),4,FALSE),OFFSET(Coding!$IU$2,MAX(Coding!$G$38-2,0),0))) -> 0 | G121: =IF(C121="","",VLOOKUP(C121,OFFSET(Coding!$L$7,0,0,AuthorityCounter,2),2,FALSE)) -> um | H121: Sheffield City Council
B122: =IF(ISERROR(VLOOKUP(C122,OFFSET(Coding!$L$7,0,0,AuthorityCounter2,11),11,FALSE)),"",VLOOKUP(C122,OFFSET(Coding!$L$7,0,0,AuthorityCounter2,11),11,FALSE)) ->  | C122: =IF(ROW()-34>AuthNo,"na",Coding!AR94) -> Shropshire | D122: =IF(C122="","",VLOOKUP(C122,OFFSET(Coding!$L$7,0,0,AuthorityCounter,11),11,FALSE)) ->  | F122: =IF(C122="","",TEXT(VLOOKUP(C122,OFFSET(Coding!$L$7,0,0,AuthorityCounter,4),4,FALSE),OFFSET(Coding!$IU$2,MAX(Coding!$G$38-2,0),0))) -> 0 | G122: =IF(C122="","",VLOOKUP(C122,OFFSET(Coding!$L$7,0,0,AuthorityCounter,2),2,FALSE)) -> uu | H122: Shropshire Council
B123: =IF(ISERROR(VLOOKUP(C123,OFFSET(Coding!$L$7,0,0,AuthorityCounter2,11),11,FALSE)),"",VLOOKUP(C123,OFFSET(Coding!$L$7,0,0,AuthorityCounter2,11),11,FALSE)) ->  | C123: =IF(ROW()-34>AuthNo,"na",Coding!AR95) -> Solihull | D123: =IF(C123="","",VLOOKUP(C123,OFFSET(Coding!$L$7,0,0,AuthorityCounter,11),11,FALSE)) ->  | F123: =IF(C123="","",TEXT(VLOOKUP(C123,OFFSET(Coding!$L$7,0,0,AuthorityCounter,4),4,FALSE),OFFSET(Coding!$IU$2,MAX(Coding!$G$38-2,0),0))) -> 0 | G123: =IF(C123="","",VLOOKUP(C123,OFFSET(Coding!$L$7,0,0,AuthorityCounter,2),2,FALSE)) -> um | H123: Solihull Metropolitan Borough Council
B124: =IF(ISERROR(VLOOKUP(C124,OFFSET(Coding!$L$7,0,0,AuthorityCounter2,11),11,FALSE)),"",VLOOKUP(C124,OFFSET(Coding!$L$7,0,0,AuthorityCounter2,11),11,FALSE)) ->  | C124: =IF(ROW()-34>AuthNo,"na",Coding!AR96) -> Somerset | D124: =IF(C124="","",VLOOKUP(C124,OFFSET(Coding!$L$7,0,0,AuthorityCounter,11),11,FALSE)) ->  | F124: =IF(C124="","",TEXT(VLOOKUP(C124,OFFSET(Coding!$L$7,0,0,AuthorityCounter,4),4,FALSE),OFFSET(Coding!$IU$2,MAX(Coding!$G$38-2,0),0))) -> 0 | G124: =IF(C124="","",VLOOKUP(C124,OFFSET(Coding!$L$7,0,0,AuthorityCounter,2),2,FALSE)) -> c | H124: Somerset County Council
B125: =IF(ISERROR(VLOOKUP(C125,OFFSET(Coding!$L$7,0,0,AuthorityCounter2,11),11,FALSE)),"",VLOOKUP(C125,OFFSET(Coding!$L$7,0,0,AuthorityCounter2,11),11,FALSE)) ->  | C125: =IF(ROW()-34>AuthNo,"na",Coding!AR97) -> South Gloucestershire | D125: =IF(C125="","",VLOOKUP(C125,OFFSET(Coding!$L$7,0,0,AuthorityCounter,11),11,FALSE)) ->  | F125: =IF(C125="","",TEXT(VLOOKUP(C125,OFFSET(Coding!$L$7,0,0,AuthorityCounter,4),4,FALSE),OFFSET(Coding!$IU$2,MAX(Coding!$G$38-2,0),0))) -> 0 | G125: =IF(C125="","",VLOOKUP(C125,OFFSET(Coding!$L$7,0,0,AuthorityCounter,2),2,FALSE)) -> uu | H125: South Gloucestershire Council
B126: =IF(ISERROR(VLOOKUP(C126,OFFSET(Coding!$L$7,0,0,AuthorityCounter2,11),11,FALSE)),"",VLOOKUP(C126,OFFSET(Coding!$L$7,0,0,AuthorityCounter2,11),11,FALSE)) ->  | C126: =IF(ROW()-34>AuthNo,"na",Coding!AR98) -> Southampton | D126: =IF(C126="","",VLOOKUP(C126,OFFSET(Coding!$L$7,0,0,AuthorityCounter,11),11,FALSE)) ->  | F126: =IF(C126="","",TEXT(VLOOKUP(C126,OFFSET(Coding!$L$7,0,0,AuthorityCounter,4),4,FALSE),OFFSET(Coding!$IU$2,MAX(Coding!$G$38-2,0),0))) -> 0 | G126: =IF(C126="","",VLOOKUP(C126,OFFSET(Coding!$L$7,0,0,AuthorityCounter,2),2,FALSE)) -> uu | H126: Southampton City Council
B127: =IF(ISERROR(VLOOKUP(C127,OFFSET(Coding!$L$7,0,0,AuthorityCounter2,11),11,FALSE)),"",VLOOKUP(C127,OFFSET(Coding!$L$7,0,0,AuthorityCounter2,11),11,FALSE)) ->  | C127: =IF(ROW()-34>AuthNo,"na",Coding!AR99) -> Southend-on-Sea | D127: =IF(C127="","",VLOOKUP(C127,OFFSET(Coding!$L$7,0,0,AuthorityCounter,11),11,FALSE)) ->  | F127: =IF(C127="","",TEXT(VLOOKUP(C127,OFFSET(Coding!$L$7,0,0,AuthorityCounter,4),4,FALSE),OFFSET(Coding!$IU$2,MAX(Coding!$G$38-2,0),0))) -> 0 | G127: =IF(C127="","",VLOOKUP(C127,OFFSET(Coding!$L$7,0,0,AuthorityCounter,2),2,FALSE)) -> uu | H127: Southend-on-Sea Borough Council
B128: =IF(ISERROR(VLOOKUP(C128,OFFSET(Coding!$L$7,0,0,AuthorityCounter2,11),11,FALSE)),"",VLOOKUP(C128,OFFSET(Coding!$L$7,0,0,AuthorityCounter2,11),11,FALSE)) ->  | C128: =IF(ROW()-34>AuthNo,"na",Coding!AR100) -> Southwark | D128: =IF(C128="","",VLOOKUP(C128,OFFSET(Coding!$L$7,0,0,AuthorityCounter,11),11,FALSE)) ->  | F128: =IF(C128="","",TEXT(VLOOKUP(C128,OFFSET(Coding!$L$7,0,0,AuthorityCounter,4),4,FALSE),OFFSET(Coding!$IU$2,MAX(Coding!$G$38-2,0),0))) -> 0 | G128: =IF(C128="","",VLOOKUP(C128,OFFSET(Coding!$L$7,0,0,AuthorityCounter,2),2,FALSE)) -> ul | H128: London Borough of Southwark
B129: =IF(ISERROR(VLOOKUP(C129,OFFSET(Coding!$L$7,0,0,AuthorityCounter2,11),11,FALSE)),"",VLOOKUP(C129,OFFSET(Coding!$L$7,0,0,AuthorityCounter2,11),11,FALSE)) ->  | C129: =IF(ROW()-34>AuthNo,"na",Coding!AR101) -> St Helens | D129: =IF(C129="","",VLOOKUP(C129,OFFSET(Coding!$L$7,0,0,AuthorityCounter,11),11,FALSE)) ->  | F129: =IF(C129="","",TEXT(VLOOKUP(C129,OFFSET(Coding!$L$7,0,0,AuthorityCounter,4),4,FALSE),OFFSET(Coding!$IU$2,MAX(Coding!$G$38-2,0),0))) -> 0 | G129: =IF(C129="","",VLOOKUP(C129,OFFSET(Coding!$L$7,0,0,AuthorityCounter,2),2,FALSE)) -> um | H129: St Helens Metropolitan Borough Council
B130: =IF(ISERROR(VLOOKUP(C130,OFFSET(Coding!$L$7,0,0,AuthorityCounter2,11),11,FALSE)),"",VLOOKUP(C130,OFFSET(Coding!$L$7,0,0,AuthorityCounter2,11),11,FALSE)) ->  | C130: =IF(ROW()-34>AuthNo,"na",Coding!AR102) -> Staffordshire | D130: =IF(C130="","",VLOOKUP(C130,OFFSET(Coding!$L$7,0,0,AuthorityCounter,11),11,FALSE)) ->  | F130: =IF(C130="","",TEXT(VLOOKUP(C130,OFFSET(Coding!$L$7,0,0,AuthorityCounter,4),4,FALSE),OFFSET(Coding!$IU$2,MAX(Coding!$G$38-2,0),0))) -> 0 | G130: =IF(C130="","",VLOOKUP(C130,OFFSET(Coding!$L$7,0,0,AuthorityCounter,2),2,FALSE)) -> c | H130: Staffordshire County Council
B131: =IF(ISERROR(VLOOKUP(C131,OFFSET(Coding!$L$7,0,0,AuthorityCounter2,11),11,FALSE)),"",VLOOKUP(C131,OFFSET(Coding!$L$7,0,0,AuthorityCounter2,11),11,FALSE)) ->  | C131: =IF(ROW()-34>AuthNo,"na",Coding!AR103) -> Stockport | D131: =IF(C131="","",VLOOKUP(C131,OFFSET(Coding!$L$7,0,0,AuthorityCounter,11),11,FALSE)) ->  | F131: =IF(C131="","",TEXT(VLOOKUP(C131,OFFSET(Coding!$L$7,0,0,AuthorityCounter,4),4,FALSE),OFFSET(Coding!$IU$2,MAX(Coding!$G$38-2,0),0))) -> 0 | G131: =IF(C131="","",VLOOKUP(C131,OFFSET(Coding!$L$7,0,0,AuthorityCounter,2),2,FALSE)) -> um | H131: Stockport Metropolitan Borough Council
B132: =IF(ISERROR(VLOOKUP(C132,OFFSET(Coding!$L$7,0,0,AuthorityCounter2,11),11,FALSE)),"",VLOOKUP(C132,OFFSET(Coding!$L$7,0,0,AuthorityCounter2,11),11,FALSE)) ->  | C132: =IF(ROW()-34>AuthNo,"na",Coding!AR104) -> Stoke-on-Trent | D132: =IF(C132="","",VLOOKUP(C132,OFFSET(Coding!$L$7,0,0,AuthorityCounter,11),11,FALSE)) ->  | F132: =IF(C132="","",TEXT(VLOOKUP(C132,OFFSET(Coding!$L$7,0,0,AuthorityCounter,4),4,FALSE),OFFSET(Coding!$IU$2,MAX(Coding!$G$38-2,0),0))) -> 0 | G132: =IF(C132="","",VLOOKUP(C132,OFFSET(Coding!$L$7,0,0,AuthorityCounter,2),2,FALSE)) -> uu | H132: Stoke-on-Trent City Council
B133: =IF(ISERROR(VLOOKUP(C133,OFFSET(Coding!$L$7,0,0,AuthorityCounter2,11),11,FALSE)),"",VLOOKUP(C133,OFFSET(Coding!$L$7,0,0,AuthorityCounter2,11),11,FALSE)) ->  | C133: =IF(ROW()-34>AuthNo,"na",Coding!AR105) -> Suffolk | D133: =IF(C133="","",VLOOKUP(C133,OFFSET(Coding!$L$7,0,0,AuthorityCounter,11),11,FALSE)) ->  | F133: =IF(C133="","",TEXT(VLOOKUP(C133,OFFSET(Coding!$L$7,0,0,AuthorityCounter,4),4,FALSE),OFFSET(Coding!$IU$2,MAX(Coding!$G$38-2,0),0))) -> 0 | G133: =IF(C133="","",VLOOKUP(C133,OFFSET(Coding!$L$7,0,0,AuthorityCounter,2),2,FALSE)) -> c | H133: Suffolk County Council
B134: =IF(ISERROR(VLOOKUP(C134,OFFSET(Coding!$L$7,0,0,AuthorityCounter2,11),11,FALSE)),"",VLOOKUP(C134,OFFSET(Coding!$L$7,0,0,AuthorityCounter2,11),11,FALSE)) ->  | C134: =IF(ROW()-34>AuthNo,"na",Coding!AR106) -> Surrey | D134: =IF(C134="","",VLOOKUP(C134,OFFSET(Coding!$L$7,0,0,AuthorityCounter,11),11,FALSE)) ->  | F134: =IF(C134="","",TEXT(VLOOKUP(C134,OFFSET(Coding!$L$7,0,0,AuthorityCounter,4),4,FALSE),OFFSET(Coding!$IU$2,MAX(Coding!$G$38-2,0),0))) -> 0 | G134: =IF(C134="","",VLOOKUP(C134,OFFSET(Coding!$L$7,0,0,AuthorityCounter,2),2,FALSE)) -> c | H134: Surrey County Council
B135: =IF(ISERROR(VLOOKUP(C135,OFFSET(Coding!$L$7,0,0,AuthorityCounter2,11),11,FALSE)),"",VLOOKUP(C135,OFFSET(Coding!$L$7,0,0,AuthorityCounter2,11),11,FALSE)) ->  | C135: =IF(ROW()-34>AuthNo,"na",Coding!AR107) -> Sutton | D135: =IF(C135="","",VLOOKUP(C135,OFFSET(Coding!$L$7,0,0,AuthorityCounter,11),11,FALSE)) ->  | F135: =IF(C135="","",TEXT(VLOOKUP(C135,OFFSET(Coding!$L$7,0,0,AuthorityCounter,4),4,FALSE),OFFSET(Coding!$IU$2,MAX(Coding!$G$38-2,0),0))) -> 0 | G135: =IF(C135="","",VLOOKUP(C135,OFFSET(Coding!$L$7,0,0,AuthorityCounter,2),2,FALSE)) -> ul | H135: London Borough of Sutton
B136: =IF(ISERROR(VLOOKUP(C136,OFFSET(Coding!$L$7,0,0,AuthorityCounter2,11),11,FALSE)),"",VLOOKUP(C136,OFFSET(Coding!$L$7,0,0,AuthorityCounter2,11),11,FALSE)) ->  | C136: =IF(ROW()-34>AuthNo,"na",Coding!AR108) -> Swindon | D136: =IF(C136="","",VLOOKUP(C136,OFFSET(Coding!$L$7,0,0,AuthorityCounter,11),11,FALSE)) ->  | F136: =IF(C136="","",TEXT(VLOOKUP(C136,OFFSET(Coding!$L$7,0,0,AuthorityCounter,4),4,FALSE),OFFSET(Coding!$IU$2,MAX(Coding!$G$38-2,0),0))) -> 0 | G136: =IF(C136="","",VLOOKUP(C136,OFFSET(Coding!$L$7,0,0,AuthorityCounter,2),2,FALSE)) -> uu | H136: Swindon Borough Council
B137: =IF(ISERROR(VLOOKUP(C137,OFFSET(Coding!$L$7,0,0,AuthorityCounter2,11),11,FALSE)),"",VLOOKUP(C137,OFFSET(Coding!$L$7,0,0,AuthorityCounter2,11),11,FALSE)) ->  | C137: =IF(ROW()-34>AuthNo,"na",Coding!AR109) -> Tameside | D137: =IF(C137="","",VLOOKUP(C137,OFFSET(Coding!$L$7,0,0,AuthorityCounter,11),11,FALSE)) ->  | F137: =IF(C137="","",TEXT(VLOOKUP(C137,OFFSET(Coding!$L$7,0,0,AuthorityCounter,4),4,FALSE),OFFSET(Coding!$IU$2,MAX(Coding!$G$38-2,0),0))) -> 0 | G137: =IF(C137="","",VLOOKUP(C137,OFFSET(Coding!$L$7,0,0,AuthorityCounter,2),2,FALSE)) -> um | H137: Tameside Metropolitan Borough Council
B138: =IF(ISERROR(VLOOKUP(C138,OFFSET(Coding!$L$7,0,0,AuthorityCounter2,11),11,FALSE)),"",VLOOKUP(C138,OFFSET(Coding!$L$7,0,0,AuthorityCounter2,11),11,FALSE)) ->  | C138: =IF(ROW()-34>AuthNo,"na",Coding!AR110) -> Telford & Wrekin | D138: =IF(C138="","",VLOOKUP(C138,OFFSET(Coding!$L$7,0,0,AuthorityCounter,11),11,FALSE)) ->  | F138: =IF(C138="","",TEXT(VLOOKUP(C138,OFFSET(Coding!$L$7,0,0,AuthorityCounter,4),4,FALSE),OFFSET(Coding!$IU$2,MAX(Coding!$G$38-2,0),0))) -> 0 | G138: =IF(C138="","",VLOOKUP(C138,OFFSET(Coding!$L$7,0,0,AuthorityCounter,2),2,FALSE)) -> uu | H138: Telford & Wrekin Council
B139: =IF(ISERROR(VLOOKUP(C139,OFFSET(Coding!$L$7,0,0,AuthorityCounter2,11),11,FALSE)),"",VLOOKUP(C139,OFFSET(Coding!$L$7,0,0,AuthorityCounter2,11),11,FALSE)) ->  | C139: =IF(ROW()-34>AuthNo,"na",Coding!AR111) -> Thurrock | D139: =IF(C139="","",VLOOKUP(C139,OFFSET(Coding!$L$7,0,0,AuthorityCounter,11),11,FALSE)) ->  | F139: =IF(C139="","",TEXT(VLOOKUP(C139,OFFSET(Coding!$L$7,0,0,AuthorityCounter,4),4,FALSE),OFFSET(Coding!$IU$2,MAX(Coding!$G$38-2,0),0))) -> 0 | G139: =IF(C139="","",VLOOKUP(C139,OFFSET(Coding!$L$7,0,0,AuthorityCounter,2),2,FALSE)) -> uu | H139: Thurrock Borough Council
B140: =IF(ISERROR(VLOOKUP(C140,OFFSET(Coding!$L$7,0,0,AuthorityCounter2,11),11,FALSE)),"",VLOOKUP(C140,OFFSET(Coding!$L$7,0,0,AuthorityCounter2,11),11,FALSE)) ->  | C140: =IF(ROW()-34>AuthNo,"na",Coding!AR112) -> Torbay | D140: =IF(C140="","",VLOOKUP(C140,OFFSET(Coding!$L$7,0,0,AuthorityCounter,11),11,FALSE)) ->  | F140: =IF(C140="","",TEXT(VLOOKUP(C140,OFFSET(Coding!$L$7,0,0,AuthorityCounter,4),4,FALSE),OFFSET(Coding!$IU$2,MAX(Coding!$G$38-2,0),0))) -> 0 | G140: =IF(C140="","",VLOOKUP(C140,OFFSET(Coding!$L$7,0,0,AuthorityCounter,2),2,FALSE)) -> uu | H140: Torbay Council
B141: =IF(ISERROR(VLOOKUP(C141,OFFSET(Coding!$L$7,0,0,AuthorityCounter2,11),11,FALSE)),"",VLOOKUP(C141,OFFSET(Coding!$L$7,0,0,AuthorityCounter2,11),11,FALSE)) ->  | C141: =IF(ROW()-34>AuthNo,"na",Coding!AR113) -> Tower Hamlets | D141: =IF(C141="","",VLOOKUP(C141,OFFSET(Coding!$L$7,0,0,AuthorityCounter,11),11,FALSE)) ->  | F141: =IF(C141="","",TEXT(VLOOKUP(C141,OFFSET(Coding!$L$7,0,0,AuthorityCounter,4),4,FALSE),OFFSET(Coding!$IU$2,MAX(Coding!$G$38-2,0),0))) -> 0 | G141: =IF(C141="","",VLOOKUP(C141,OFFSET(Coding!$L$7,0,0,AuthorityCounter,2),2,FALSE)) -> ul | H141: London Borough of Tower Hamlets
B142: =IF(ISERROR(VLOOKUP(C142,OFFSET(Coding!$L$7,0,0,AuthorityCounter2,11),11,FALSE)),"",VLOOKUP(C142,OFFSET(Coding!$L$7,0,0,AuthorityCounter2,11),11,FALSE)) ->  | C142: =IF(ROW()-34>AuthNo,"na",Coding!AR114) -> Trafford | D142: =IF(C142="","",VLOOKUP(C142,OFFSET(Coding!$L$7,0,0,AuthorityCounter,11),11,FALSE)) ->  | F142: =IF(C142="","",TEXT(VLOOKUP(C142,OFFSET(Coding!$L$7,0,0,AuthorityCounter,4),4,FALSE),OFFSET(Coding!$IU$2,MAX(Coding!$G$38-2,0),0))) -> 0 | G142: =IF(C142="","",VLOOKUP(C142,OFFSET(Coding!$L$7,0,0,AuthorityCounter,2),2,FALSE)) -> um | H142: Trafford Metropolitan Borough Council
B143: =IF(ISERROR(VLOOKUP(C143,OFFSET(Coding!$L$7,0,0,AuthorityCounter2,11),11,FALSE)),"",VLOOKUP(C143,OFFSET(Coding!$L$7,0,0,AuthorityCounter2,11),11,FALSE)) ->  | C143: =IF(ROW()-34>AuthNo,"na",Coding!AR115) -> Waltham Forest | D143: =IF(C143="","",VLOOKUP(C143,OFFSET(Coding!$L$7,0,0,AuthorityCounter,11),11,FALSE)) ->  | F143: =IF(C143="","",TEXT(VLOOKUP(C143,OFFSET(Coding!$L$7,0,0,AuthorityCounter,4),4,FALSE),OFFSET(Coding!$IU$2,MAX(Coding!$G$38-2,0),0))) -> 0 | G143: =IF(C143="","",VLOOKUP(C143,OFFSET(Coding!$L$7,0,0,AuthorityCounter,2),2,FALSE)) -> ul | H143: London Borough of Waltham Forest
B144: =IF(ISERROR(VLOOKUP(C144,OFFSET(Coding!$L$7,0,0,AuthorityCounter2,11),11,FALSE)),"",VLOOKUP(C144,OFFSET(Coding!$L$7,0,0,AuthorityCounter2,11),11,FALSE)) ->  | C144: =IF(ROW()-34>AuthNo,"na",Coding!AR116) -> Wandsworth | D144: =IF(C144="","",VLOOKUP(C144,OFFSET(Coding!$L$7,0,0,AuthorityCounter,11),11,FALSE)) ->  | F144: =IF(C144="","",TEXT(VLOOKUP(C144,OFFSET(Coding!$L$7,0,0,AuthorityCounter,4),4,FALSE),OFFSET(Coding!$IU$2,MAX(Coding!$G$38-2,0),0))) -> 0 | G144: =IF(C144="","",VLOOKUP(C144,OFFSET(Coding!$L$7,0,0,AuthorityCounter,2),2,FALSE)) -> ul | H144: London Borough of Wandsworth
B145: =IF(ISERROR(VLOOKUP(C145,OFFSET(Coding!$L$7,0,0,AuthorityCounter2,11),11,FALSE)),"",VLOOKUP(C145,OFFSET(Coding!$L$7,0,0,AuthorityCounter2,11),11,FALSE)) ->  | C145: =IF(ROW()-34>AuthNo,"na",Coding!AR117) -> Warrington | D145: =IF(C145="","",VLOOKUP(C145,OFFSET(Coding!$L$7,0,0,AuthorityCounter,11),11,FALSE)) ->  | F145: =IF(C145="","",TEXT(VLOOKUP(C145,OFFSET(Coding!$L$7,0,0,AuthorityCounter,4),4,FALSE),OFFSET(Coding!$IU$2,MAX(Coding!$G$38-2,0),0))) -> 0 | G145: =IF(C145="","",VLOOKUP(C145,OFFSET(Coding!$L$7,0,0,AuthorityCounter,2),2,FALSE)) -> uu | H145: Warrington Borough Council
B146: =IF(ISERROR(VLOOKUP(C146,OFFSET(Coding!$L$7,0,0,AuthorityCounter2,11),11,FALSE)),"",VLOOKUP(C146,OFFSET(Coding!$L$7,0,0,AuthorityCounter2,11),11,FALSE)) ->  | C146: =IF(ROW()-34>AuthNo,"na",Coding!AR118) -> Warwickshire | D146: =IF(C146="","",VLOOKUP(C146,OFFSET(Coding!$L$7,0,0,AuthorityCounter,11),11,FALSE)) ->  | F146: =IF(C146="","",TEXT(VLOOKUP(C146,OFFSET(Coding!$L$7,0,0,AuthorityCounter,4),4,FALSE),OFFSET(Coding!$IU$2,MAX(Coding!$G$38-2,0),0))) -> 0 | G146: =IF(C146="","",VLOOKUP(C146,OFFSET(Coding!$L$7,0,0,AuthorityCounter,2),2,FALSE)) -> c | H146: Warwickshire County Council
B147: =IF(ISERROR(VLOOKUP(C147,OFFSET(Coding!$L$7,0,0,AuthorityCounter2,11),11,FALSE)),"",VLOOKUP(C147,OFFSET(Coding!$L$7,0,0,AuthorityCounter2,11),11,FALSE)) ->  | C147: =IF(ROW()-34>AuthNo,"na",Coding!AR119) -> West Berkshire | D147: =IF(C147="","",VLOOKUP(C147,OFFSET(Coding!$L$7,0,0,AuthorityCounter,11),11,FALSE)) ->  | F147: =IF(C147="","",TEXT(VLOOKUP(C147,OFFSET(Coding!$L$7,0,0,AuthorityCounter,4),4,FALSE),OFFSET(Coding!$IU$2,MAX(Coding!$G$38-2,0),0))) -> 0 | G147: =IF(C147="","",VLOOKUP(C147,OFFSET(Coding!$L$7,0,0,AuthorityCounter,2),2,FALSE)) -> uu | H147: West Berkshire Council
B148: =IF(ISERROR(VLOOKUP(C148,OFFSET(Coding!$L$7,0,0,AuthorityCounter2,11),11,FALSE)),"",VLOOKUP(C148,OFFSET(Coding!$L$7,0,0,AuthorityCounter2,11),11,FALSE)) ->  | C148: =IF(ROW()-34>AuthNo,"na",Coding!AR120) -> West Sussex | D148: =IF(C148="","",VLOOKUP(C148,OFFSET(Coding!$L$7,0,0,AuthorityCounter,11),11,FALSE)) ->  | F148: =IF(C148="","",TEXT(VLOOKUP(C148,OFFSET(Coding!$L$7,0,0,AuthorityCounter,4),4,FALSE),OFFSET(Coding!$IU$2,MAX(Coding!$G$38-2,0),0))) -> 0 | G148: =IF(C148="","",VLOOKUP(C148,OFFSET(Coding!$L$7,0,0,AuthorityCounter,2),2,FALSE)) -> c | H148: West Sussex County Council
B149: =IF(ISERROR(VLOOKUP(C149,OFFSET(Coding!$L$7,0,0,AuthorityCounter2,11),11,FALSE)),"",VLOOKUP(C149,OFFSET(Coding!$L$7,0,0,AuthorityCounter2,11),11,FALSE)) ->  | C149: =IF(ROW()-34>AuthNo,"na",Coding!AR121) -> Westminster | D149: =IF(C149="","",VLOOKUP(C149,OFFSET(Coding!$L$7,0,0,AuthorityCounter,11),11,FALSE)) ->  | F149: =IF(C149="","",TEXT(VLOOKUP(C149,OFFSET(Coding!$L$7,0,0,AuthorityCounter,4),4,FALSE),OFFSET(Coding!$IU$2,MAX(Coding!$G$38-2,0),0))) -> 0 | G149: =IF(C149="","",VLOOKUP(C149,OFFSET(Coding!$L$7,0,0,AuthorityCounter,2),2,FALSE)) -> ul | H149: Westminster City Council
B150: =IF(ISERROR(VLOOKUP(C150,OFFSET(Coding!$L$7,0,0,AuthorityCounter2,11),11,FALSE)),"",VLOOKUP(C150,OFFSET(Coding!$L$7,0,0,AuthorityCounter2,11),11,FALSE)) ->  | C150: =IF(ROW()-34>AuthNo,"na",Coding!AR122) -> Wiltshire | D150: =IF(C150="","",VLOOKUP(C150,OFFSET(Coding!$L$7,0,0,AuthorityCounter,11),11,FALSE)) ->  | F150: =IF(C150="","",TEXT(VLOOKUP(C150,OFFSET(Coding!$L$7,0,0,AuthorityCounter,4),4,FALSE),OFFSET(Coding!$IU$2,MAX(Coding!$G$38-2,0),0))) -> 0 | G150: =IF(C150="","",VLOOKUP(C150,OFFSET(Coding!$L$7,0,0,AuthorityCounter,2),2,FALSE)) -> uu | H150: Wiltshire Council
B151: =IF(ISERROR(VLOOKUP(C151,OFFSET(Coding!$L$7,0,0,AuthorityCounter2,11),11,FALSE)),"",VLOOKUP(C151,OFFSET(Coding!$L$7,0,0,AuthorityCounter2,11),11,FALSE)) ->  | C151: =IF(ROW()-34>AuthNo,"na",Coding!AR123) -> Windsor & Maidenhead | D151: =IF(C151="","",VLOOKUP(C151,OFFSET(Coding!$L$7,0,0,AuthorityCounter,11),11,FALSE)) ->  | F151: =IF(C151="","",TEXT(VLOOKUP(C151,OFFSET(Coding!$L$7,0,0,AuthorityCounter,4),4,FALSE),OFFSET(Coding!$IU$2,MAX(Coding!$G$38-2,0),0))) -> 0 | G151: =IF(C151="","",VLOOKUP(C151,OFFSET(Coding!$L$7,0,0,AuthorityCounter,2),2,FALSE)) -> uu | H151: Royal Borough of Windsor & Maidenhead
B152: =IF(ISERROR(VLOOKUP(C152,OFFSET(Coding!$L$7,0,0,AuthorityCounter2,11),11,FALSE)),"",VLOOKUP(C152,OFFSET(Coding!$L$7,0,0,AuthorityCounter2,11),11,FALSE)) ->  | C152: =IF(ROW()-34>AuthNo,"na",Coding!AR124) -> Wirral | D152: =IF(C152="","",VLOOKUP(C152,OFFSET(Coding!$L$7,0,0,AuthorityCounter,11),11,FALSE)) ->  | F152: =IF(C152="","",TEXT(VLOOKUP(C152,OFFSET(Coding!$L$7,0,0,AuthorityCounter,4),4,FALSE),OFFSET(Coding!$IU$2,MAX(Coding!$G$38-2,0),0))) -> 0 | G152: =IF(C152="","",VLOOKUP(C152,OFFSET(Coding!$L$7,0,0,AuthorityCounter,2),2,FALSE)) -> um | H152: Metropolitan Borough of Wirral
B153: =IF(ISERROR(VLOOKUP(C153,OFFSET(Coding!$L$7,0,0,AuthorityCounter2,11),11,FALSE)),"",VLOOKUP(C153,OFFSET(Coding!$L$7,0,0,AuthorityCounter2,11),11,FALSE)) ->  | C153: =IF(ROW()-34>AuthNo,"na",Coding!AR125) -> Wolverhampton | D153: =IF(C153="","",VLOOKUP(C153,OFFSET(Coding!$L$7,0,0,AuthorityCounter,11),11,FALSE)) ->  | F153: =IF(C153="","",TEXT(VLOOKUP(C153,OFFSET(Coding!$L$7,0,0,AuthorityCounter,4),4,FALSE),OFFSET(Coding!$IU$2,MAX(Coding!$G$38-2,0),0))) -> 0 | G153: =IF(C153="","",VLOOKUP(C153,OFFSET(Coding!$L$7,0,0,AuthorityCounter,2),2,FALSE)) -> um | H153: Wolverhampton City Council
B154: =IF(ISERROR(VLOOKUP(C154,OFFSET(Coding!$L$7,0,0,AuthorityCounter2,11),11,FALSE)),"",VLOOKUP(C154,OFFSET(Coding!$L$7,0,0,AuthorityCounter2,11),11,FALSE)) ->  | C154: =IF(ROW()-34>AuthNo,"na",Coding!AR126) -> Worcestershire | D154: =IF(C154="","",VLOOKUP(C154,OFFSET(Coding!$L$7,0,0,AuthorityCounter,11),11,FALSE)) ->  | F154: =IF(C154="","",TEXT(VLOOKUP(C154,OFFSET(Coding!$L$7,0,0,AuthorityCounter,4),4,FALSE),OFFSET(Coding!$IU$2,MAX(Coding!$G$38-2,0),0))) -> 0 | G154: =IF(C154="","",VLOOKUP(C154,OFFSET(Coding!$L$7,0,0,AuthorityCounter,2),2,FALSE)) -> c | H154: Worcestershire County Council
B155: =IF(ISERROR(VLOOKUP(C155,OFFSET(Coding!$L$7,0,0,AuthorityCounter2,11),11,FALSE)),"",VLOOKUP(C155,OFFSET(Coding!$L$7,0,0,AuthorityCounter2,11),11,FALSE)) ->  | C155: =IF(ROW()-34>AuthNo,"na",Coding!AR127) -> York | D155: =IF(C155="","",VLOOKUP(C155,OFFSET(Coding!$L$7,0,0,AuthorityCounter,11),11,FALSE)) ->  | F155: =IF(C155="","",TEXT(VLOOKUP(C155,OFFSET(Coding!$L$7,0,0,AuthorityCounter,4),4,FALSE),OFFSET(Coding!$IU$2,MAX(Coding!$G$38-2,0),0))) -> 0 | G155: =IF(C155="","",VLOOKUP(C155,OFFSET(Coding!$L$7,0,0,AuthorityCounter,2),2,FALSE)) -> uu | H155: City of York Council

Sheet Coding (hidden)
A1: ChartTinfo | B1: -1 | C1: -1 | D1: Page Number | E1: --- Please Select --- | Y1: Check against current chartforms & test - black bars tend to be on wrong side. | IT1: --- Please Select --- | IU1: TABLE | IV1: CHARTS
A2: (P.01)[01]Number of Libraries (31/03/18) | B2: 0 | C2: 0 | D2: 4 | E2: ="Page "&D2&": " &RIGHT(A2,LEN(A2)-10) -> Page 4: Number of Libraries (31/03/18) | I2: Authority Counter: | J2: =G405 -> 121 | L2: DATA PROCESSING BLOCK FOR CHARTS | AA2: Black Bar: | AB2: =IF(Coding!G74=1,"",INDEX(OFFSET($O$6,0,0,AuthorityCounter2+1,6),Coding!G74,6)) ->  | AC2: Letter | AE2: SORTER PROCESSING FOR TABLE UNDER DATABASE | IT2: Page 1: Number of Libraries (31/03/18) | IU2: #,##0 | IV2: =AB7 -> 0
A3: (P.01)[02]Number of Active Borrowers per 1,000 population | B3: 0 | C3: 1 | D3: =D2--OR(B3<>B2,LEFT(A3,5)<>LEFT(A2,5)) -> 4 | E3: ="Page "&D3&": " &RIGHT(A3,LEN(A3)-10) -> Page 4: Number of Active Borrowers per 1,000 population | I3: Charts counter: | J3: =G404 -> 123 | AA3: Average: | AB3: =AVERAGE(OFFSET(Y7,0,0,Coding!J6,1)) -> 0 | AC3: =INDEX(V6:V360,Coding!G74) -> Letters | IT3: Page 1: Number of Active Borrowers per 1,000 population | IU3: #,##0 | IV3: =AB7 -> 0
A4: (P.02)[01]Total Revenue Expenditure per 1,000 population | B4: 0 | C4: 2 | D4: =D3--OR(B4<>B3,LEFT(A4,5)<>LEFT(A3,5)) -> 5 | E4: ="Page "&D4&": " &RIGHT(A4,LEN(A4)-10) -> Page 5: Total Revenue Expenditure per 1,000 population | I4: Authorities in Group: | J4: =IF($H$75="OC",COUNTIF(OFFSET($R$7,0,0,AuthorityCounter2,1),1),COUNTIF(OFFSET($P$7,0,0,AuthorityCounter2,1),1)) -> 121 | L4: Authority Details: | O4: Data Selection: | V4: Letters: | Y4: Chart Data: | AA4: Title: | AB4: =IF($G$38=1,"Please use drop down list below to select graph",RIGHT(OFFSET(A1,G38-1,0),LEN(OFFSET(A1,G38-1,0))-10)) -> Please use drop down list below to select graph | AE4: 1 = Auth, 2 = Tier, 3 = Data | IT4: Page 2: Total Revenue Expenditure per 1,000 population | IU4: £#,##0 | IV4: =AB7 -> 0
A5: (P.03)[01]Physical Visits for Library Purposes per 1,000 population | B5: 0 | C5: 3 | D5: 6 | E5: Page 6: Physical Visits for Library Purposes per 1,000 population | AP5: FALSE | AQ5: =354-COUNTIF(AQ7:AQ360,"")-COUNTIF(AQ7:AQ360,"0") -> 121 | AU5: UPDATE THESE IF DIFFERENT: | IT5: Page 3: Physical Visits for Library Purposes per 1,000 population | IU5: #,##0 | IV5: =AB7 -> 0
A6: (P.03)[02]Total Book Issues per 1,000 population | B6: 0 | C6: 4 | D6: 6 | E6: Page 6: Total Book Issues per 1,000 population | I6: Authorities on Graph: | J6: =SUMIF(OFFSET(Coding!$S$7,0,0,AuthorityCounter2,1),"<>0",OFFSET($S$7,0,0,AuthorityCounter2,1)) -> 121 | L6: --- Please Select --- | M6: Tier | O6: Initial Data | P6: Group | Q6: Manual | R6: OC | S6: Criteria | T6: Chart Data | V6: Letters | Y6: Ordered | Z6: Letter | AA6: Average | AB6: Black | AC6: Bars | AE6: 1 | AI6: U(prev col) | AM6: 0 | AN6: Group Selected | AQ6: Auth for table | AR6: U(prev col) | AU6: Year: | AV6: 2018 | IT6: Page 3: Total Book Issues per 1,000 population | IU6: #,##0 | IV6: =AB7 -> 0
A7: (P.03)[03]Total Book Stock per 1,000 population | B7: 0 | C7: 5 | D7: 6 | E7: Page 6: Total Book Stock per 1,000 population | I7: Show only selected Authorities tickbox: | J7: FALSE | L7: =IF((ROW()-6)<=AuthorityCounter,OFFSET($D$409,ROW()-6,0),"") -> Barking & Dagenham | M7: =IF((ROW()-6)<=AuthorityCounter,OFFSET($F$409,ROW()-6,0),"") -> ul | O7: =IF(ISNUMBER(--OFFSET($D$409,(ROW()-6)+$G$39+AuthorityCounter+5,$G$40)),OFFSET($D$409,(ROW()-6)+$G$39+AuthorityCounter+5,$G$40),"na") -> 0 | P7: =IF((ROW()-5=$G$36),1,IF((M7=Coding!$H$75)+(Coding!$H$75="ALL")+(Coding!$H$75="U")*OR(M7="W",M7="su",M7="L",M7="MD",M7="UA")+(Coding!$H$75="na")*AND(M7<>"W",M7<>"su",M7<>"L",M7<>"MD",M7<>"UA",M7<>"SC",M7<>"SD",M7<>"p"),1,0)) -> 1 | Q7: FALSE | R7: =IF(OR(NOT(ISERROR(MATCH(L7,OFFSET($H$410,$G$36-2,0,1,18),FALSE))),$G$75=L7),1,0+(($G$36=1)*($H$75="OC"))) -> 0 | S7: =IF((ROW()-5=$G$36),1,IF($H$75="OC",IF(NOT($J$10)+Q7,R7,0),IF(NOT($J$10)+Q7,P7,0))) -> 1 | T7: =IF(S7=1,O7,"not selected") -> 0 | V7: =IF((S7=1)*($J$6<22),INDEX($J$13:$J$33,SUM($S$7:S7),1),"") ->  | W7: =COUNTIF($T$7:T7,T7) -> 1 | Y7: =IF((ROW()-6-$J$8)<1,"na",LARGE(OFFSET($T$7,0,0,AuthorityCounter2,1),ROW()-6-$J$8)) -> 0 | Z7: =INDEX(V:V,SUMPRODUCT((OFFSET($T$7,0,0,AuthorityCounter2,1)=Y7)*1,(OFFSET($W$7,0,0,AuthorityCounter2,1)=COUNTIF($Y$7:Y7,Y7))*1,ROW(OFFSET($W$7,0,0,AuthorityCounter2,1)))) ->  | AA7: =AB$3 -> 0 | AB7: =IF((Y7=AB$2)*(Z7=AC$3)*(SUM($AB$6:AB6)=0),+Y7,0) -> 0 | AC7: =IF(ISNUMBER(AA7),Y7-AB7,"na") -> 0 | AE7: =IF($AE$6=3,O7,SUM((CODE(MID(CONCATENATE(UPPER(M7),"aaaaaaaaaa"),{1;2},1))-30)*{1;0.01})) -> 55.46 | AF7: =COUNTIF($AE$7:$AE7,AE7) -> 1 | AH7: =IF($AE$6=3,LARGE(OFFSET($AE$7,0,0,AuthorityCounter2,1),ROW()-6),SMALL(OFFSET($AE$7,0,0,AuthorityCounter2,1),ROW()-6)) -> 37.67 | AI7: =IF(ISERROR(AH7),"na",AH7) -> 37.67 | AJ7: =COUNTIF($AI$7:$AI7,AI7) -> 1 | AK7: =IF($AE$6=1,L7,OFFSET($L$1,SUMPRODUCT(--(OFFSET($AE$7,0,0,AuthorityCounter,1)=AI7),--(OFFSET($AF$7,0,0,AuthorityCounter,1)=COUNTIF($AI$7:AI7,AI7)),ROW(OFFSET($AF$7,0,0,AuthorityCounter,1)))-1,0)) -> Barking & Dagenham | AM7: =IF(VLOOKUP(AK7,colAM,IF($H$75="OC",8,5),FALSE)=1,MAX(AM6:$AM$6)+1,0) -> 1 | AN7: =OFFSET($AK$1,ABS(SUMPRODUCT(--(colAN=(ROW()-6)),ROW(colAN))-1),0) -> Barking & Dagenham | AO7: =IF(AN7=0,0,VLOOKUP(AN7,colAO,6,FALSE)) -> FALSE | AP7: =IF($AP$5,SUM(SUMPRODUCT(--AO$7:$AO7)*AO7,(SUMPRODUCT(--(AO$7:$AO7=FALSE))+SUMPRODUCT(--colAP))*(1-AO7)),ROW()-6) -> 1 | AQ7: =OFFSET($AN$6,MATCH(ROW()-6,colAQ,FALSE),0) -> Barking & Dagenham | AR7: =IF(ISERROR(AQ7),"na",AQ7) -> Barking & Dagenham | AU7: E-mail: | AV7: libraries@cipfa.org | IT7: Page 3: Total Book Stock per 1,000 population | IU7: #,##0 | IV7: =AB7 -> 0
A8: (P.02)[01]Total Service Points | B8: 131 | C8: 0 | D8: 8 | E8: Page 8: Total Service Points | I8: "na"s at start of Graph: | J8: =SUMPRODUCT(ISTEXT(OFFSET(T7,0,0,AuthorityCounter2,1))*1)-SUMPRODUCT((OFFSET(T7,0,0,AuthorityCounter2,1)="not selected")*1) -> 0 | L8: Barnet | M8: ul | O8: 0 | P8: =IF((ROW()-5=$G$36),1,IF((M8=Coding!$H$75)+(Coding!$H$75="ALL")+(Coding!$H$75="U")*OR(M8="W",M8="su",M8="L",M8="MD",M8="UA")+(Coding!$H$75="na")*AND(M8<>"W",M8<>"su",M8<>"L",M8<>"MD",M8<>"UA",M8<>"SC",M8<>"SD",M8<>"p"),1,0)) -> 1 | Q8: FALSE | R8: 0 | S8: 1 | T8: 0 | V8: =IF((S8=1)*($J$6<22),INDEX($J$13:$J$33,SUM($S$7:S8),1),"") ->  | W8: =COUNTIF($T$7:T8,T8) -> 2 | Y8: =IF((ROW()-6-$J$8)<1,"na",LARGE(OFFSET($T$7,0,0,AuthorityCounter2,1),ROW()-6-$J$8)) -> 0 | Z8: =INDEX(V:V,SUMPRODUCT((OFFSET($T$7,0,0,AuthorityCounter2,1)=Y8)*1,(OFFSET($W$7,0,0,AuthorityCounter2,1)=COUNTIF($Y$7:Y8,Y8))*1,ROW(OFFSET($W$7,0,0,AuthorityCounter2,1)))) ->  | AA8: 0 | AB8: =IF((Y8=AB$2)*(Z8=AC$3)*(SUM($AB$6:AB7)=0),+Y8,0) -> 0 | AC8: 0 | AE8: =IF($AE$6=3,O8,SUM((CODE(MID(CONCATENATE(UPPER(M8),"aaaaaaaaaa"),{1;2},1))-30)*{1;0.01})) -> 55.46 | AF8: =COUNTIF($AE$7:$AE8,AE8) -> 2 | AH8: 37.67 | AI8: 37.67 | AJ8: =COUNTIF($AI$7:$AI8,AI8) -> 2 | AK8: =IF($AE$6=1,L8,OFFSET($L$1,SUMPRODUCT(--(OFFSET($AE$7,0,0,AuthorityCounter,1)=AI8),--(OFFSET($AF$7,0,0,AuthorityCounter,1)=COUNTIF($AI$7:AI8,AI8)),ROW(OFFSET($AF$7,0,0,AuthorityCounter,1)))-1,0)) -> Barnet | AM8: =IF(VLOOKUP(AK8,colAM,IF($H$75="OC",8,5),FALSE)=1,MAX(AM$6:$AM7)+1,0) -> 2 | AN8: Barnet | AO8: FALSE | AP8: =IF($AP$5,SUM(SUMPRODUCT(--AO$7:$AO8)*AO8,(SUMPRODUCT(--(AO$7:$AO8=FALSE))+SUMPRODUCT(--colAP))*(1-AO8)),ROW()-6) -> 2 | AQ8: Barnet | AR8: =IF(ISERROR(AQ8),"na",AQ8) -> Barnet | IT8: Page 4: Total Service Points | IU8: #,##0 | IV8: =AB7 -> 0
A9: (P.02)[02]Total Service Points per 100,000 population | B9: 131 | C9: 1 | D9: 8 | E9: Page 8: Total Service Points per 100,000 population | I9: Number of Authorities Selected: | J9: =SUMPRODUCT((Q7:Q360=TRUE)*1,(P7:P360=1)*1) -> 0 | L9: Bedford | M9: uu | O9: 0 | P9: =IF((ROW()-5=$G$36),1,IF((M9=Coding!$H$75)+(Coding!$H$75="ALL")+(Coding!$H$75="U")*OR(M9="W",M9="su",M9="L",M9="MD",M9="UA")+(Coding!$H$75="na")*AND(M9<>"W",M9<>"su",M9<>"L",M9<>"MD",M9<>"UA",M9<>"SC",M9<>"SD",M9<>"p"),1,0)) -> 1 | Q9: FALSE | R9: 0 | S9: 1 | T9: 0 | V9: =IF((S9=1)*($J$6<22),INDEX($J$13:$J$33,SUM($S$7:S9),1),"") ->  | W9: =COUNTIF($T$7:T9,T9) -> 3 | Y9: 0 | Z9: =INDEX(V:V,SUMPRODUCT((OFFSET($T$7,0,0,AuthorityCounter2,1)=Y9)*1,(OFFSET($W$7,0,0,AuthorityCounter2,1)=COUNTIF($Y$7:Y9,Y9))*1,ROW(OFFSET($W$7,0,0,AuthorityCounter2,1)))) ->  | AA9: 0 | AB9: =IF((Y9=AB$2)*(Z9=AC$3)*(SUM($AB$6:AB8)=0),+Y9,0) -> 0 | AC9: 0 | AE9: =IF($AE$6=3,O9,SUM((CODE(MID(CONCATENATE(UPPER(M9),"aaaaaaaaaa"),{1;2},1))-30)*{1;0.01})) -> 55.55 | AF9: =COUNTIF($AE$7:$AE9,AE9) -> 1 | AH9: 37.67 | AI9: 37.67 | AJ9: =COUNTIF($AI$7:$AI9,AI9) -> 3 | AK9: =IF($AE$6=1,L9,OFFSET($L$1,SUMPRODUCT(--(OFFSET($AE$7,0,0,AuthorityCounter,1)=AI9),--(OFFSET($AF$7,0,0,AuthorityCounter,1)=COUNTIF($AI$7:AI9,AI9)),ROW(OFFSET($AF$7,0,0,AuthorityCounter,1)))-1,0)) -> Bedford | AM9: =IF(VLOOKUP(AK9,colAM,IF($H$75="OC",8,5),FALSE)=1,MAX(AM$6:$AM8)+1,0) -> 3 | AN9: Bedford | AO9: FALSE | AP9: =IF($AP$5,SUM(SUMPRODUCT(--AO$7:$AO9)*AO9,(SUMPRODUCT(--(AO$7:$AO9=FALSE))+SUMPRODUCT(--colAP))*(1-AO9)),ROW()-6) -> 3 | AQ9: Bedford | AR9: Bedford | IT9: Page 4: Total Service Points per 100,000 population | IU9: #,##0 | IV9: =AB7 -> 0
A10: (P.02)[03]Issues per annum | B10: 131 | C10: 2 | D10: 8 | E10: Page 8: Issues per annum | I10: Show only selected Authorities Actual?: | J10: =IF(J9=0,FALSE,J7) -> FALSE | L10: Bexley | M10: ul | O10: 0 | P10: =IF((ROW()-5=$G$36),1,IF((M10=Coding!$H$75)+(Coding!$H$75="ALL")+(Coding!$H$75="U")*OR(M10="W",M10="su",M10="L",M10="MD",M10="UA")+(Coding!$H$75="na")*AND(M10<>"W",M10<>"su",M10<>"L",M10<>"MD",M10<>"UA",M10<>"SC",M10<>"SD",M10<>"p"),1,0)) -> 1 | Q10: FALSE | R10: 0 | S10: 1 | T10: 0 | V10: =IF((S10=1)*($J$6<22),INDEX($J$13:$J$33,SUM($S$7:S10),1),"") ->  | W10: =COUNTIF($T$7:T10,T10) -> 4 | Y10: 0 | Z10: =INDEX(V:V,SUMPRODUCT((OFFSET($T$7,0,0,AuthorityCounter2,1)=Y10)*1,(OFFSET($W$7,0,0,AuthorityCounter2,1)=COUNTIF($Y$7:Y10,Y10))*1,ROW(OFFSET($W$7,0,0,AuthorityCounter2,1)))) ->  | AA10: 0 | AB10: =IF((Y10=AB$2)*(Z10=AC$3)*(SUM($AB$6:AB9)=0),+Y10,0) -> 0 | AC10: 0 | AE10: =IF($AE$6=3,O10,SUM((CODE(MID(CONCATENATE(UPPER(M10),"aaaaaaaaaa"),{1;2},1))-30)*{1;0.01})) -> 55.46 | AF10: =COUNTIF($AE$7:$AE10,AE10) -> 3 | AH10: 37.67 | AI10: 37.67 | AJ10: =COUNTIF($AI$7:$AI10,AI10) -> 4 | AK10: =IF($AE$6=1,L10,OFFSET($L$1,SUMPRODUCT(--(OFFSET($AE$7,0,0,AuthorityCounter,1)=AI10),--(OFFSET($AF$7,0,0,AuthorityCounter,1)=COUNTIF($AI$7:AI10,AI10)),ROW(OFFSET($AF$7,0,0,AuthorityCounter,1)))-1,0)) -> Bexley | AM10: =IF(VLOOKUP(AK10,colAM,IF($H$75="OC",8,5),FALSE)=1,MAX(AM$6:$AM9)+1,0) -> 4 | AN10: Bexley | AO10: FALSE | AP10: =IF($AP$5,SUM(SUMPRODUCT(--AO$7:$AO10)*AO10,(SUMPRODUCT(--(AO$7:$AO10=FALSE))+SUMPRODUCT(--colAP))*(1-AO10)),ROW()-6) -> 4 | AQ10: Bexley | AR10: Bexley | IT10: Page 4: Issues per annum | IU10: #,##0 | IV10: =AB7 -> 0
A11: (P.02)[04]Visits per annum | B11: 131 | C11: 3 | D11: 8 | E11: Page 8: Visits per annum | I11: Cell for greying out tickboxes: | L11: Blackburn with Darwen | M11: uu | O11: 0 | P11: =IF((ROW()-5=$G$36),1,IF((M11=Coding!$H$75)+(Coding!$H$75="ALL")+(Coding!$H$75="U")*OR(M11="W",M11="su",M11="L",M11="MD",M11="UA")+(Coding!$H$75="na")*AND(M11<>"W",M11<>"su",M11<>"L",M11<>"MD",M11<>"UA",M11<>"SC",M11<>"SD",M11<>"p"),1,0)) -> 1 | Q11: FALSE | R11: 0 | S11: 1 | T11: 0 | V11: =IF((S11=1)*($J$6<22),INDEX($J$13:$J$33,SUM($S$7:S11),1),"") ->  | W11: =COUNTIF($T$7:T11,T11) -> 5 | Y11: 0 | Z11: =INDEX(V:V,SUMPRODUCT((OFFSET($T$7,0,0,AuthorityCounter2,1)=Y11)*1,(OFFSET($W$7,0,0,AuthorityCounter2,1)=COUNTIF($Y$7:Y11,Y11))*1,ROW(OFFSET($W$7,0,0,AuthorityCounter2,1)))) ->  | AA11: 0 | AB11: =IF((Y11=AB$2)*(Z11=AC$3)*(SUM($AB$6:AB10)=0),+Y11,0) -> 0 | AC11: 0 | AE11: =IF($AE$6=3,O11,SUM((CODE(MID(CONCATENATE(UPPER(M11),"aaaaaaaaaa"),{1;2},1))-30)*{1;0.01})) -> 55.55 | AF11: =COUNTIF($AE$7:$AE11,AE11) -> 2 | AH11: 37.67 | AI11: 37.67 | AJ11: =COUNTIF($AI$7:$AI11,AI11) -> 5 | AK11: =IF($AE$6=1,L11,OFFSET($L$1,SUMPRODUCT(--(OFFSET($AE$7,0,0,AuthorityCounter,1)=AI11),--(OFFSET($AF$7,0,0,AuthorityCounter,1)=COUNTIF($AI$7:AI11,AI11)),ROW(OFFSET($AF$7,0,0,AuthorityCounter,1)))-1,0)) -> Blackburn with Darwen | AM11: =IF(VLOOKUP(AK11,colAM,IF($H$75="OC",8,5),FALSE)=1,MAX(AM$6:$AM10)+1,0) -> 5 | AN11: Blackburn with Darwen | AO11: FALSE | AP11: =IF($AP$5,SUM(SUMPRODUCT(--AO$7:$AO11)*AO11,(SUMPRODUCT(--(AO$7:$AO11=FALSE))+SUMPRODUCT(--colAP))*(1-AO11)),ROW()-6) -> 5 | AQ11: Blackburn with Darwen | AR11: Blackburn with Darwen | IT11: Page 4: Visits per annum | IU11: #,##0 | IV11: =AB7 -> 0
A12: (P.03)[01]Libraries Permanently closed | B12: 131 | C12: 4 | D12: 9 | E12: Page 9: Libraries Permanently closed | J12: Letters | L12: Blackpool | M12: uu | O12: 0 | P12: =IF((ROW()-5=$G$36),1,IF((M12=Coding!$H$75)+(Coding!$H$75="ALL")+(Coding!$H$75="U")*OR(M12="W",M12="su",M12="L",M12="MD",M12="UA")+(Coding!$H$75="na")*AND(M12<>"W",M12<>"su",M12<>"L",M12<>"MD",M12<>"UA",M12<>"SC",M12<>"SD",M12<>"p"),1,0)) -> 1 | Q12: FALSE | R12: 0 | S12: 1 | T12: 0 | V12: =IF((S12=1)*($J$6<22),INDEX($J$13:$J$33,SUM($S$7:S12),1),"") ->  | W12: =COUNTIF($T$7:T12,T12) -> 6 | Y12: 0 | Z12: =INDEX(V:V,SUMPRODUCT((OFFSET($T$7,0,0,AuthorityCounter2,1)=Y12)*1,(OFFSET($W$7,0,0,AuthorityCounter2,1)=COUNTIF($Y$7:Y12,Y12))*1,ROW(OFFSET($W$7,0,0,AuthorityCounter2,1)))) ->  | AA12: 0 | AB12: =IF((Y12=AB$2)*(Z12=AC$3)*(SUM($AB$6:AB11)=0),+Y12,0) -> 0 | AC12: 0 | AE12: =IF($AE$6=3,O12,SUM((CODE(MID(CONCATENATE(UPPER(M12),"aaaaaaaaaa"),{1;2},1))-30)*{1;0.01})) -> 55.55 | AF12: =COUNTIF($AE$7:$AE12,AE12) -> 3 | AH12: 37.67 | AI12: 37.67 | AJ12: =COUNTIF($AI$7:$AI12,AI12) -> 6 | AK12: =IF($AE$6=1,L12,OFFSET($L$1,SUMPRODUCT(--(OFFSET($AE$7,0,0,AuthorityCounter,1)=AI12),--(OFFSET($AF$7,0,0,AuthorityCounter,1)=COUNTIF($AI$7:AI12,AI12)),ROW(OFFSET($AF$7,0,0,AuthorityCounter,1)))-1,0)) -> Blackpool | AM12: =IF(VLOOKUP(AK12,colAM,IF($H$75="OC",8,5),FALSE)=1,MAX(AM$6:$AM11)+1,0) -> 6 | AN12: Blackpool | AO12: FALSE | AP12: =IF($AP$5,SUM(SUMPRODUCT(--AO$7:$AO12)*AO12,(SUMPRODUCT(--(AO$7:$AO12=FALSE))+SUMPRODUCT(--colAP))*(1-AO12)),ROW()-6) -> 6 | AQ12: Blackpool | AR12: Blackpool | IT12: Page 5: Libraries Permanently closed | IU12: #,##0.00 | IV12: =AB7 -> 0
A13: (P.03)[02]Libraries Opened | B13: 131 | C13: 5 | D13: 9 | E13: Page 9: Libraries Opened | J13: h | L13: Bolton | M13: um | O13: 0 | P13: =IF((ROW()-5=$G$36),1,IF((M13=Coding!$H$75)+(Coding!$H$75="ALL")+(Coding!$H$75="U")*OR(M13="W",M13="su",M13="L",M13="MD",M13="UA")+(Coding!$H$75="na")*AND(M13<>"W",M13<>"su",M13<>"L",M13<>"MD",M13<>"UA",M13<>"SC",M13<>"SD",M13<>"p"),1,0)) -> 1 | Q13: FALSE | R13: 0 | S13: 1 | T13: 0 | V13: =IF((S13=1)*($J$6<22),INDEX($J$13:$J$33,SUM($S$7:S13),1),"") ->  | W13: =COUNTIF($T$7:T13,T13) -> 7 | Y13: 0 | Z13: =INDEX(V:V,SUMPRODUCT((OFFSET($T$7,0,0,AuthorityCounter2,1)=Y13)*1,(OFFSET($W$7,0,0,AuthorityCounter2,1)=COUNTIF($Y$7:Y13,Y13))*1,ROW(OFFSET($W$7,0,0,AuthorityCounter2,1)))) ->  | AA13: 0 | AB13: =IF((Y13=AB$2)*(Z13=AC$3)*(SUM($AB$6:AB12)=0),+Y13,0) -> 0 | AC13: 0 | AE13: =IF($AE$6=3,O13,SUM((CODE(MID(CONCATENATE(UPPER(M13),"aaaaaaaaaa"),{1;2},1))-30)*{1;0.01})) -> 55.47 | AF13: =COUNTIF($AE$7:$AE13,AE13) -> 1 | AH13: 37.67 | AI13: 37.67 | AJ13: =COUNTIF($AI$7:$AI13,AI13) -> 7 | AK13: =IF($AE$6=1,L13,OFFSET($L$1,SUMPRODUCT(--(OFFSET($AE$7,0,0,AuthorityCounter,1)=AI13),--(OFFSET($AF$7,0,0,AuthorityCounter,1)=COUNTIF($AI$7:AI13,AI13)),ROW(OFFSET($AF$7,0,0,AuthorityCounter,1)))-1,0)) -> Bolton | AM13: =IF(VLOOKUP(AK13,colAM,IF($H$75="OC",8,5),FALSE)=1,MAX(AM$6:$AM12)+1,0) -> 7 | AN13: Bolton | AO13: FALSE | AP13: =IF($AP$5,SUM(SUMPRODUCT(--AO$7:$AO13)*AO13,(SUMPRODUCT(--(AO$7:$AO13=FALSE))+SUMPRODUCT(--colAP))*(1-AO13)),ROW()-6) -> 7 | AQ13: Bolton | AR13: Bolton | IT13: Page 5: Libraries Opened | IU13: #,##0.00 | IV13: =AB7 -> 0
A14: (P.03)[03]Net Openings/Closures | B14: 131 | C14: 6 | D14: 9 | E14: Page 9: Net Openings/Closures | J14: m | L14: Bournemouth | M14: uu | O14: 0 | P14: =IF((ROW()-5=$G$36),1,IF((M14=Coding!$H$75)+(Coding!$H$75="ALL")+(Coding!$H$75="U")*OR(M14="W",M14="su",M14="L",M14="MD",M14="UA")+(Coding!$H$75="na")*AND(M14<>"W",M14<>"su",M14<>"L",M14<>"MD",M14<>"UA",M14<>"SC",M14<>"SD",M14<>"p"),1,0)) -> 1 | Q14: FALSE | R14: 0 | S14: 1 | T14: 0 | V14: =IF((S14=1)*($J$6<22),INDEX($J$13:$J$33,SUM($S$7:S14),1),"") ->  | W14: =COUNTIF($T$7:T14,T14) -> 8 | Y14: 0 | Z14: =INDEX(V:V,SUMPRODUCT((OFFSET($T$7,0,0,AuthorityCounter2,1)=Y14)*1,(OFFSET($W$7,0,0,AuthorityCounter2,1)=COUNTIF($Y$7:Y14,Y14))*1,ROW(OFFSET($W$7,0,0,AuthorityCounter2,1)))) ->  | AA14: 0 | AB14: =IF((Y14=AB$2)*(Z14=AC$3)*(SUM($AB$6:AB13)=0),+Y14,0) -> 0 | AC14: 0 | AE14: =IF($AE$6=3,O14,SUM((CODE(MID(CONCATENATE(UPPER(M14),"aaaaaaaaaa"),{1;2},1))-30)*{1;0.01})) -> 55.55 | AF14: =COUNTIF($AE$7:$AE14,AE14) -> 4 | AH14: 37.67 | AI14: 37.67 | AJ14: =COUNTIF($AI$7:$AI14,AI14) -> 8 | AK14: =IF($AE$6=1,L14,OFFSET($L$1,SUMPRODUCT(--(OFFSET($AE$7,0,0,AuthorityCounter,1)=AI14),--(OFFSET($AF$7,0,0,AuthorityCounter,1)=COUNTIF($AI$7:AI14,AI14)),ROW(OFFSET($AF$7,0,0,AuthorityCounter,1)))-1,0)) -> Bournemouth | AM14: =IF(VLOOKUP(AK14,colAM,IF($H$75="OC",8,5),FALSE)=1,MAX(AM$6:$AM13)+1,0) -> 8 | AN14: Bournemouth | AO14: FALSE | AP14: =IF($AP$5,SUM(SUMPRODUCT(--AO$7:$AO14)*AO14,(SUMPRODUCT(--(AO$7:$AO14=FALSE))+SUMPRODUCT(--colAP))*(1-AO14)),ROW()-6) -> 8 | AQ14: Bournemouth | AR14: Bournemouth | IT14: Page 5: Net Openings/Closures | IU14: #,##0.00 | IV14: =AB7 -> 0
A15: (P.04)[01]Mobile libraries per 100,000 population | B15: 131 | C15: 7 | D15: 10 | E15: Page 10: Mobile libraries per 100,000 population | J15: d | L15: Bracknell Forest | M15: uu | O15: 0 | P15: =IF((ROW()-5=$G$36),1,IF((M15=Coding!$H$75)+(Coding!$H$75="ALL")+(Coding!$H$75="U")*OR(M15="W",M15="su",M15="L",M15="MD",M15="UA")+(Coding!$H$75="na")*AND(M15<>"W",M15<>"su",M15<>"L",M15<>"MD",M15<>"UA",M15<>"SC",M15<>"SD",M15<>"p"),1,0)) -> 1 | Q15: FALSE | R15: 0 | S15: 1 | T15: 0 | V15: =IF((S15=1)*($J$6<22),INDEX($J$13:$J$33,SUM($S$7:S15),1),"") ->  | W15: =COUNTIF($T$7:T15,T15) -> 9 | Y15: 0 | Z15: =INDEX(V:V,SUMPRODUCT((OFFSET($T$7,0,0,AuthorityCounter2,1)=Y15)*1,(OFFSET($W$7,0,0,AuthorityCounter2,1)=COUNTIF($Y$7:Y15,Y15))*1,ROW(OFFSET($W$7,0,0,AuthorityCounter2,1)))) ->  | AA15: 0 | AB15: =IF((Y15=AB$2)*(Z15=AC$3)*(SUM($AB$6:AB14)=0),+Y15,0) -> 0 | AC15: 0 | AE15: =IF($AE$6=3,O15,SUM((CODE(MID(CONCATENATE(UPPER(M15),"aaaaaaaaaa"),{1;2},1))-30)*{1;0.01})) -> 55.55 | AF15: =COUNTIF($AE$7:$AE15,AE15) -> 5 | AH15: 37.67 | AI15: 37.67 | AJ15: =COUNTIF($AI$7:$AI15,AI15) -> 9 | AK15: =IF($AE$6=1,L15,OFFSET($L$1,SUMPRODUCT(--(OFFSET($AE$7,0,0,AuthorityCounter,1)=AI15),--(OFFSET($AF$7,0,0,AuthorityCounter,1)=COUNTIF($AI$7:AI15,AI15)),ROW(OFFSET($AF$7,0,0,AuthorityCounter,1)))-1,0)) -> Bracknell Forest | AM15: =IF(VLOOKUP(AK15,colAM,IF($H$75="OC",8,5),FALSE)=1,MAX(AM$6:$AM14)+1,0) -> 9 | AN15: Bracknell Forest | AO15: FALSE | AP15: =IF($AP$5,SUM(SUMPRODUCT(--AO$7:$AO15)*AO15,(SUMPRODUCT(--(AO$7:$AO15=FALSE))+SUMPRODUCT(--colAP))*(1-AO15)),ROW()-6) -> 9 | AQ15: Bracknell Forest | AR15: Bracknell Forest | IT15: Page 6: Mobile libraries per 100,000 population | IU15: #,##0.00 | IV15: =AB7 -> 0
A16: (P.05)[01]Opening Hours at the Busiest Service (Issues) | B16: 131 | C16: 8 | D16: 11 | E16: Page 11: Opening Hours at the Busiest Service (Issues) | J16: a | L16: Brent | M16: ul | O16: 0 | P16: =IF((ROW()-5=$G$36),1,IF((M16=Coding!$H$75)+(Coding!$H$75="ALL")+(Coding!$H$75="U")*OR(M16="W",M16="su",M16="L",M16="MD",M16="UA")+(Coding!$H$75="na")*AND(M16<>"W",M16<>"su",M16<>"L",M16<>"MD",M16<>"UA",M16<>"SC",M16<>"SD",M16<>"p"),1,0)) -> 1 | Q16: FALSE | R16: 0 | S16: 1 | T16: 0 | V16: =IF((S16=1)*($J$6<22),INDEX($J$13:$J$33,SUM($S$7:S16),1),"") ->  | W16: =COUNTIF($T$7:T16,T16) -> 10 | Y16: 0 | Z16: =INDEX(V:V,SUMPRODUCT((OFFSET($T$7,0,0,AuthorityCounter2,1)=Y16)*1,(OFFSET($W$7,0,0,AuthorityCounter2,1)=COUNTIF($Y$7:Y16,Y16))*1,ROW(OFFSET($W$7,0,0,AuthorityCounter2,1)))) ->  | AA16: 0 | AB16: =IF((Y16=AB$2)*(Z16=AC$3)*(SUM($AB$6:AB15)=0),+Y16,0) -> 0 | AC16: 0 | AE16: =IF($AE$6=3,O16,SUM((CODE(MID(CONCATENATE(UPPER(M16),"aaaaaaaaaa"),{1;2},1))-30)*{1;0.01})) -> 55.46 | AF16: =COUNTIF($AE$7:$AE16,AE16) -> 4 | AH16: 37.67 | AI16: 37.67 | AJ16: =COUNTIF($AI$7:$AI16,AI16) -> 10 | AK16: =IF($AE$6=1,L16,OFFSET($L$1,SUMPRODUCT(--(OFFSET($AE$7,0,0,AuthorityCounter,1)=AI16),--(OFFSET($AF$7,0,0,AuthorityCounter,1)=COUNTIF($AI$7:AI16,AI16)),ROW(OFFSET($AF$7,0,0,AuthorityCounter,1)))-1,0)) -> Brent | AM16: =IF(VLOOKUP(AK16,colAM,IF($H$75="OC",8,5),FALSE)=1,MAX(AM$6:$AM15)+1,0) -> 10 | AN16: Brent | AO16: FALSE | AP16: =IF($AP$5,SUM(SUMPRODUCT(--AO$7:$AO16)*AO16,(SUMPRODUCT(--(AO$7:$AO16=FALSE))+SUMPRODUCT(--colAP))*(1-AO16)),ROW()-6) -> 10 | AQ16: Brent | AR16: Brent | IT16: Page 7: Opening Hours at the Busiest Service (Issues) | IU16: #,##0 | IV16: =AB7 -> 0
A17: (P.05)[02]Opening Hours at the Busiest Service (Visits) | B17: 131 | C17: 9 | D17: 11 | E17: Page 11: Opening Hours at the Busiest Service (Visits) | J17: x | L17: Brighton & Hove | M17: uu | O17: 0 | P17: =IF((ROW()-5=$G$36),1,IF((M17=Coding!$H$75)+(Coding!$H$75="ALL")+(Coding!$H$75="U")*OR(M17="W",M17="su",M17="L",M17="MD",M17="UA")+(Coding!$H$75="na")*AND(M17<>"W",M17<>"su",M17<>"L",M17<>"MD",M17<>"UA",M17<>"SC",M17<>"SD",M17<>"p"),1,0)) -> 1 | Q17: FALSE | R17: 0 | S17: 1 | T17: 0 | V17: =IF((S17=1)*($J$6<22),INDEX($J$13:$J$33,SUM($S$7:S17),1),"") ->  | W17: =COUNTIF($T$7:T17,T17) -> 11 | Y17: 0 | Z17: =INDEX(V:V,SUMPRODUCT((OFFSET($T$7,0,0,AuthorityCounter2,1)=Y17)*1,(OFFSET($W$7,0,0,AuthorityCounter2,1)=COUNTIF($Y$7:Y17,Y17))*1,ROW(OFFSET($W$7,0,0,AuthorityCounter2,1)))) ->  | AA17: 0 | AB17: =IF((Y17=AB$2)*(Z17=AC$3)*(SUM($AB$6:AB16)=0),+Y17,0) -> 0 | AC17: 0 | AE17: =IF($AE$6=3,O17,SUM((CODE(MID(CONCATENATE(UPPER(M17),"aaaaaaaaaa"),{1;2},1))-30)*{1;0.01})) -> 55.55 | AF17: =COUNTIF($AE$7:$AE17,AE17) -> 6 | AH17: 37.67 | AI17: 37.67 | AJ17: =COUNTIF($AI$7:$AI17,AI17) -> 11 | AK17: =IF($AE$6=1,L17,OFFSET($L$1,SUMPRODUCT(--(OFFSET($AE$7,0,0,AuthorityCounter,1)=AI17),--(OFFSET($AF$7,0,0,AuthorityCounter,1)=COUNTIF($AI$7:AI17,AI17)),ROW(OFFSET($AF$7,0,0,AuthorityCounter,1)))-1,0)) -> Brighton & Hove | AM17: =IF(VLOOKUP(AK17,colAM,IF($H$75="OC",8,5),FALSE)=1,MAX(AM$6:$AM16)+1,0) -> 11 | AN17: Brighton & Hove | AO17: FALSE | AP17: =IF($AP$5,SUM(SUMPRODUCT(--AO$7:$AO17)*AO17,(SUMPRODUCT(--(AO$7:$AO17=FALSE))+SUMPRODUCT(--colAP))*(1-AO17)),ROW()-6) -> 11 | AQ17: Brighton & Hove | AR17: Brighton & Hove | IT17: Page 7: Opening Hours at the Busiest Service (Visits) | IU17: #,##0 | IV17: =AB7 -> 0
A18: (P.06)[01]Number of Active Borrowers per 1,000 population | B18: 131 | C18: 10 | D18: 12 | E18: Page 12: Number of Active Borrowers per 1,000 population | J18: k | L18: Bristol | M18: uu | O18: 0 | P18: =IF((ROW()-5=$G$36),1,IF((M18=Coding!$H$75)+(Coding!$H$75="ALL")+(Coding!$H$75="U")*OR(M18="W",M18="su",M18="L",M18="MD",M18="UA")+(Coding!$H$75="na")*AND(M18<>"W",M18<>"su",M18<>"L",M18<>"MD",M18<>"UA",M18<>"SC",M18<>"SD",M18<>"p"),1,0)) -> 1 | Q18: FALSE | R18: 0 | S18: 1 | T18: 0 | V18: =IF((S18=1)*($J$6<22),INDEX($J$13:$J$33,SUM($S$7:S18),1),"") ->  | W18: =COUNTIF($T$7:T18,T18) -> 12 | Y18: 0 | Z18: =INDEX(V:V,SUMPRODUCT((OFFSET($T$7,0,0,AuthorityCounter2,1)=Y18)*1,(OFFSET($W$7,0,0,AuthorityCounter2,1)=COUNTIF($Y$7:Y18,Y18))*1,ROW(OFFSET($W$7,0,0,AuthorityCounter2,1)))) ->  | AA18: 0 | AB18: =IF((Y18=AB$2)*(Z18=AC$3)*(SUM($AB$6:AB17)=0),+Y18,0) -> 0 | AC18: 0 | AE18: =IF($AE$6=3,O18,SUM((CODE(MID(CONCATENATE(UPPER(M18),"aaaaaaaaaa"),{1;2},1))-30)*{1;0.01})) -> 55.55 | AF18: =COUNTIF($AE$7:$AE18,AE18) -> 7 | AH18: 37.67 | AI18: =IF(ISERROR(AH18),"na",AH18) -> 37.67 | AJ18: =COUNTIF($AI$7:$AI18,AI18) -> 12 | AK18: =IF($AE$6=1,L18,OFFSET($L$1,SUMPRODUCT(--(OFFSET($AE$7,0,0,AuthorityCounter,1)=AI18),--(OFFSET($AF$7,0,0,AuthorityCounter,1)=COUNTIF($AI$7:AI18,AI18)),ROW(OFFSET($AF$7,0,0,AuthorityCounter,1)))-1,0)) -> Bristol | AM18: =IF(VLOOKUP(AK18,colAM,IF($H$75="OC",8,5),FALSE)=1,MAX(AM$6:$AM17)+1,0) -> 12 | AN18: Bristol | AO18: FALSE | AP18: =IF($AP$5,SUM(SUMPRODUCT(--AO$7:$AO18)*AO18,(SUMPRODUCT(--(AO$7:$AO18=FALSE))+SUMPRODUCT(--colAP))*(1-AO18)),ROW()-6) -> 12 | AQ18: Bristol | AR18: Bristol | IT18: Page 8: Number of Active Borrowers | IU18: #,##0 | IV18: =AB7 -> 0
A19: (P.06)[02]Number of Housebound Readers per 1,000 population | B19: 131 | C19: 11 | D19: 12 | E19: Page 12: Number of Housebound Readers per 1,000 population | J19: s | L19: Bromley | M19: ul | O19: 0 | P19: =IF((ROW()-5=$G$36),1,IF((M19=Coding!$H$75)+(Coding!$H$75="ALL")+(Coding!$H$75="U")*OR(M19="W",M19="su",M19="L",M19="MD",M19="UA")+(Coding!$H$75="na")*AND(M19<>"W",M19<>"su",M19<>"L",M19<>"MD",M19<>"UA",M19<>"SC",M19<>"SD",M19<>"p"),1,0)) -> 1 | Q19: FALSE | R19: 0 | S19: 1 | T19: 0 | V19: =IF((S19=1)*($J$6<22),INDEX($J$13:$J$33,SUM($S$7:S19),1),"") ->  | W19: =COUNTIF($T$7:T19,T19) -> 13 | Y19: 0 | Z19: =INDEX(V:V,SUMPRODUCT((OFFSET($T$7,0,0,AuthorityCounter2,1)=Y19)*1,(OFFSET($W$7,0,0,AuthorityCounter2,1)=COUNTIF($Y$7:Y19,Y19))*1,ROW(OFFSET($W$7,0,0,AuthorityCounter2,1)))) ->  | AA19: 0 | AB19: =IF((Y19=AB$2)*(Z19=AC$3)*(SUM($AB$6:AB18)=0),+Y19,0) -> 0 | AC19: 0 | AE19: =IF($AE$6=3,O19,SUM((CODE(MID(CONCATENATE(UPPER(M19),"aaaaaaaaaa"),{1;2},1))-30)*{1;0.01})) -> 55.46 | AF19: =COUNTIF($AE$7:$AE19,AE19) -> 5 | AH19: 37.67 | AI19: 37.67 | AJ19: =COUNTIF($AI$7:$AI19,AI19) -> 13 | AK19: =IF($AE$6=1,L19,OFFSET($L$1,SUMPRODUCT(--(OFFSET($AE$7,0,0,AuthorityCounter,1)=AI19),--(OFFSET($AF$7,0,0,AuthorityCounter,1)=COUNTIF($AI$7:AI19,AI19)),ROW(OFFSET($AF$7,0,0,AuthorityCounter,1)))-1,0)) -> Bromley | AM19: =IF(VLOOKUP(AK19,colAM,IF($H$75="OC",8,5),FALSE)=1,MAX(AM$6:$AM18)+1,0) -> 13 | AN19: Bromley | AO19: FALSE | AP19: =IF($AP$5,SUM(SUMPRODUCT(--AO$7:$AO19)*AO19,(SUMPRODUCT(--(AO$7:$AO19=FALSE))+SUMPRODUCT(--colAP))*(1-AO19)),ROW()-6) -> 13 | AQ19: Bromley | AR19: Bromley | IT19: Page 8: Number of Housebound Readers | IU19: #,##0 | IV19: =AB7 -> 0
A20: (P.06)[03]Physical Visits for Library Purposes per 1,000 population | B20: 131 | C20: 12 | D20: 12 | E20: Page 12: Physical Visits for Library Purposes per 1,000 population | J20: f | L20: Buckinghamshire | M20: c | O20: 0 | P20: =IF((ROW()-5=$G$36),1,IF((M20=Coding!$H$75)+(Coding!$H$75="ALL")+(Coding!$H$75="U")*OR(M20="W",M20="su",M20="L",M20="MD",M20="UA")+(Coding!$H$75="na")*AND(M20<>"W",M20<>"su",M20<>"L",M20<>"MD",M20<>"UA",M20<>"SC",M20<>"SD",M20<>"p"),1,0)) -> 1 | Q20: FALSE | R20: 0 | S20: 1 | T20: 0 | V20: =IF((S20=1)*($J$6<22),INDEX($J$13:$J$33,SUM($S$7:S20),1),"") ->  | W20: =COUNTIF($T$7:T20,T20) -> 14 | Y20: 0 | Z20: =INDEX(V:V,SUMPRODUCT((OFFSET($T$7,0,0,AuthorityCounter2,1)=Y20)*1,(OFFSET($W$7,0,0,AuthorityCounter2,1)=COUNTIF($Y$7:Y20,Y20))*1,ROW(OFFSET($W$7,0,0,AuthorityCounter2,1)))) ->  | AA20: 0 | AB20: =IF((Y20=AB$2)*(Z20=AC$3)*(SUM($AB$6:AB19)=0),+Y20,0) -> 0 | AC20: 0 | AE20: =IF($AE$6=3,O20,SUM((CODE(MID(CONCATENATE(UPPER(M20),"aaaaaaaaaa"),{1;2},1))-30)*{1;0.01})) -> 37.67 | AF20: =COUNTIF($AE$7:$AE20,AE20) -> 1 | AH20: 37.67 | AI20: 37.67 | AJ20: =COUNTIF($AI$7:$AI20,AI20) -> 14 | AK20: =IF($AE$6=1,L20,OFFSET($L$1,SUMPRODUCT(--(OFFSET($AE$7,0,0,AuthorityCounter,1)=AI20),--(OFFSET($AF$7,0,0,AuthorityCounter,1)=COUNTIF($AI$7:AI20,AI20)),ROW(OFFSET($AF$7,0,0,AuthorityCounter,1)))-1,0)) -> Buckinghamshire | AM20: =IF(VLOOKUP(AK20,colAM,IF($H$75="OC",8,5),FALSE)=1,MAX(AM$6:$AM19)+1,0) -> 14 | AN20: Buckinghamshire | AO20: FALSE | AP20: =IF($AP$5,SUM(SUMPRODUCT(--AO$7:$AO20)*AO20,(SUMPRODUCT(--(AO$7:$AO20=FALSE))+SUMPRODUCT(--colAP))*(1-AO20)),ROW()-6) -> 14 | AQ20: Buckinghamshire | AR20: Buckinghamshire | IT20: Page 8: Physical Visits for Library Purposes | IU20: #,##0 | IV20: =AB7 -> 0
A21: (P.07)[01]Percentage of Service Points with Electronic Counters | B21: 131 | C21: 13 | D21: 13 | E21: Page 13: Percentage of Service Points with Electronic Counters | J21: r | L21: Bury | M21: um | O21: 0 | P21: =IF((ROW()-5=$G$36),1,IF((M21=Coding!$H$75)+(Coding!$H$75="ALL")+(Coding!$H$75="U")*OR(M21="W",M21="su",M21="L",M21="MD",M21="UA")+(Coding!$H$75="na")*AND(M21<>"W",M21<>"su",M21<>"L",M21<>"MD",M21<>"UA",M21<>"SC",M21<>"SD",M21<>"p"),1,0)) -> 1 | Q21: FALSE | R21: 0 | S21: 1 | T21: 0 | V21: =IF((S21=1)*($J$6<22),INDEX($J$13:$J$33,SUM($S$7:S21),1),"") ->  | W21: =COUNTIF($T$7:T21,T21) -> 15 | Y21: 0 | Z21: =INDEX(V:V,SUMPRODUCT((OFFSET($T$7,0,0,AuthorityCounter2,1)=Y21)*1,(OFFSET($W$7,0,0,AuthorityCounter2,1)=COUNTIF($Y$7:Y21,Y21))*1,ROW(OFFSET($W$7,0,0,AuthorityCounter2,1)))) ->  | AA21: 0 | AB21: =IF((Y21=AB$2)*(Z21=AC$3)*(SUM($AB$6:AB20)=0),+Y21,0) -> 0 | AC21: 0 | AE21: =IF($AE$6=3,O21,SUM((CODE(MID(CONCATENATE(UPPER(M21),"aaaaaaaaaa"),{1;2},1))-30)*{1;0.01})) -> 55.47 | AF21: =COUNTIF($AE$7:$AE21,AE21) -> 2 | AH21: 37.67 | AI21: 37.67 | AJ21: =COUNTIF($AI$7:$AI21,AI21) -> 15 | AK21: =IF($AE$6=1,L21,OFFSET($L$1,SUMPRODUCT(--(OFFSET($AE$7,0,0,AuthorityCounter,1)=AI21),--(OFFSET($AF$7,0,0,AuthorityCounter,1)=COUNTIF($AI$7:AI21,AI21)),ROW(OFFSET($AF$7,0,0,AuthorityCounter,1)))-1,0)) -> Bury | AM21: =IF(VLOOKUP(AK21,colAM,IF($H$75="OC",8,5),FALSE)=1,MAX(AM$6:$AM20)+1,0) -> 15 | AN21: Bury | AO21: FALSE | AP21: =IF($AP$5,SUM(SUMPRODUCT(--AO$7:$AO21)*AO21,(SUMPRODUCT(--(AO$7:$AO21=FALSE))+SUMPRODUCT(--colAP))*(1-AO21)),ROW()-6) -> 15 | AQ21: Bury | AR21: Bury | IT21: Page 9: Percentage of Service Points with Electronic Counters | IU21: 0% | IV21: =AB7 -> 0
A22: (P.07)[02]Visits to Website per 1,000 population | B22: 131 | C22: 14 | D22: 13 | E22: Page 13: Visits to Website per 1,000 population | J22: z | L22: Calderdale | M22: um | O22: 0 | P22: =IF((ROW()-5=$G$36),1,IF((M22=Coding!$H$75)+(Coding!$H$75="ALL")+(Coding!$H$75="U")*OR(M22="W",M22="su",M22="L",M22="MD",M22="UA")+(Coding!$H$75="na")*AND(M22<>"W",M22<>"su",M22<>"L",M22<>"MD",M22<>"UA",M22<>"SC",M22<>"SD",M22<>"p"),1,0)) -> 1 | Q22: FALSE | R22: 0 | S22: 1 | T22: 0 | V22: =IF((S22=1)*($J$6<22),INDEX($J$13:$J$33,SUM($S$7:S22),1),"") ->  | W22: =COUNTIF($T$7:T22,T22) -> 16 | Y22: 0 | Z22: =INDEX(V:V,SUMPRODUCT((OFFSET($T$7,0,0,AuthorityCounter2,1)=Y22)*1,(OFFSET($W$7,0,0,AuthorityCounter2,1)=COUNTIF($Y$7:Y22,Y22))*1,ROW(OFFSET($W$7,0,0,AuthorityCounter2,1)))) ->  | AA22: 0 | AB22: =IF((Y22=AB$2)*(Z22=AC$3)*(SUM($AB$6:AB21)=0),+Y22,0) -> 0 | AC22: 0 | AE22: =IF($AE$6=3,O22,SUM((CODE(MID(CONCATENATE(UPPER(M22),"aaaaaaaaaa"),{1;2},1))-30)*{1;0.01})) -> 55.47 | AF22: =COUNTIF($AE$7:$AE22,AE22) -> 3 | AH22: 37.67 | AI22: 37.67 | AJ22: =COUNTIF($AI$7:$AI22,AI22) -> 16 | AK22: =IF($AE$6=1,L22,OFFSET($L$1,SUMPRODUCT(--(OFFSET($AE$7,0,0,AuthorityCounter,1)=AI22),--(OFFSET($AF$7,0,0,AuthorityCounter,1)=COUNTIF($AI$7:AI22,AI22)),ROW(OFFSET($AF$7,0,0,AuthorityCounter,1)))-1,0)) -> Calderdale | AM22: =IF(VLOOKUP(AK22,colAM,IF($H$75="OC",8,5),FALSE)=1,MAX(AM$6:$AM21)+1,0) -> 16 | AN22: Calderdale | AO22: FALSE | AP22: =IF($AP$5,SUM(SUMPRODUCT(--AO$7:$AO22)*AO22,(SUMPRODUCT(--(AO$7:$AO22=FALSE))+SUMPRODUCT(--colAP))*(1-AO22)),ROW()-6) -> 16 | AQ22: Calderdale | AR22: Calderdale | IT22: Page 9: Visits to Website per 1,000 population | IU22: #,##0 | IV22: =AB7 -> 0
A23: (P.08)[01]Number of Devices per 100,000 population | B23: 131 | C23: 15 | D23: 14 | E23: Page 14: Number of Devices per 100,000 population | J23: e | L23: Cambridgeshire | M23: c | O23: 0 | P23: =IF((ROW()-5=$G$36),1,IF((M23=Coding!$H$75)+(Coding!$H$75="ALL")+(Coding!$H$75="U")*OR(M23="W",M23="su",M23="L",M23="MD",M23="UA")+(Coding!$H$75="na")*AND(M23<>"W",M23<>"su",M23<>"L",M23<>"MD",M23<>"UA",M23<>"SC",M23<>"SD",M23<>"p"),1,0)) -> 1 | Q23: FALSE | R23: 0 | S23: 1 | T23: 0 | V23: =IF((S23=1)*($J$6<22),INDEX($J$13:$J$33,SUM($S$7:S23),1),"") ->  | W23: =COUNTIF($T$7:T23,T23) -> 17 | Y23: 0 | Z23: =INDEX(V:V,SUMPRODUCT((OFFSET($T$7,0,0,AuthorityCounter2,1)=Y23)*1,(OFFSET($W$7,0,0,AuthorityCounter2,1)=COUNTIF($Y$7:Y23,Y23))*1,ROW(OFFSET($W$7,0,0,AuthorityCounter2,1)))) ->  | AA23: 0 | AB23: =IF((Y23=AB$2)*(Z23=AC$3)*(SUM($AB$6:AB22)=0),+Y23,0) -> 0 | AC23: 0 | AE23: =IF($AE$6=3,O23,SUM((CODE(MID(CONCATENATE(UPPER(M23),"aaaaaaaaaa"),{1;2},1))-30)*{1;0.01})) -> 37.67 | AF23: =COUNTIF($AE$7:$AE23,AE23) -> 2 | AH23: 37.67 | AI23: 37.67 | AJ23: =COUNTIF($AI$7:$AI23,AI23) -> 17 | AK23: =IF($AE$6=1,L23,OFFSET($L$1,SUMPRODUCT(--(OFFSET($AE$7,0,0,AuthorityCounter,1)=AI23),--(OFFSET($AF$7,0,0,AuthorityCounter,1)=COUNTIF($AI$7:AI23,AI23)),ROW(OFFSET($AF$7,0,0,AuthorityCounter,1)))-1,0)) -> Cambridgeshire | AM23: =IF(VLOOKUP(AK23,colAM,IF($H$75="OC",8,5),FALSE)=1,MAX(AM$6:$AM22)+1,0) -> 17 | AN23: Cambridgeshire | AO23: FALSE | AP23: =IF($AP$5,SUM(SUMPRODUCT(--AO$7:$AO23)*AO23,(SUMPRODUCT(--(AO$7:$AO23=FALSE))+SUMPRODUCT(--colAP))*(1-AO23)),ROW()-6) -> 17 | AQ23: Cambridgeshire | AR23: Cambridgeshire | IT23: Page 10: Number of Devices per 100,000 population | IU23: #,##0 | IV23: =AB7 -> 0
A24: (P.08)[02]Number of Hours Available per 1,000 population | B24: 131 | C24: 16 | D24: 14 | E24: Page 14: Number of Hours Available per 1,000 population | J24: t | L24: Camden | M24: ul | O24: 0 | P24: =IF((ROW()-5=$G$36),1,IF((M24=Coding!$H$75)+(Coding!$H$75="ALL")+(Coding!$H$75="U")*OR(M24="W",M24="su",M24="L",M24="MD",M24="UA")+(Coding!$H$75="na")*AND(M24<>"W",M24<>"su",M24<>"L",M24<>"MD",M24<>"UA",M24<>"SC",M24<>"SD",M24<>"p"),1,0)) -> 1 | Q24: FALSE | R24: 0 | S24: 1 | T24: 0 | V24: =IF((S24=1)*($J$6<22),INDEX($J$13:$J$33,SUM($S$7:S24),1),"") ->  | W24: =COUNTIF($T$7:T24,T24) -> 18 | Y24: 0 | Z24: =INDEX(V:V,SUMPRODUCT((OFFSET($T$7,0,0,AuthorityCounter2,1)=Y24)*1,(OFFSET($W$7,0,0,AuthorityCounter2,1)=COUNTIF($Y$7:Y24,Y24))*1,ROW(OFFSET($W$7,0,0,AuthorityCounter2,1)))) ->  | AA24: 0 | AB24: =IF((Y24=AB$2)*(Z24=AC$3)*(SUM($AB$6:AB23)=0),+Y24,0) -> 0 | AC24: 0 | AE24: =IF($AE$6=3,O24,SUM((CODE(MID(CONCATENATE(UPPER(M24),"aaaaaaaaaa"),{1;2},1))-30)*{1;0.01})) -> 55.46 | AF24: =COUNTIF($AE$7:$AE24,AE24) -> 6 | AH24: 37.67 | AI24: 37.67 | AJ24: =COUNTIF($AI$7:$AI24,AI24) -> 18 | AK24: =IF($AE$6=1,L24,OFFSET($L$1,SUMPRODUCT(--(OFFSET($AE$7,0,0,AuthorityCounter,1)=AI24),--(OFFSET($AF$7,0,0,AuthorityCounter,1)=COUNTIF($AI$7:AI24,AI24)),ROW(OFFSET($AF$7,0,0,AuthorityCounter,1)))-1,0)) -> Camden | AM24: =IF(VLOOKUP(AK24,colAM,IF($H$75="OC",8,5),FALSE)=1,MAX(AM$6:$AM23)+1,0) -> 18 | AN24: Camden | AO24: FALSE | AP24: =IF($AP$5,SUM(SUMPRODUCT(--AO$7:$AO24)*AO24,(SUMPRODUCT(--(AO$7:$AO24=FALSE))+SUMPRODUCT(--colAP))*(1-AO24)),ROW()-6) -> 18 | AQ24: Camden | AR24: Camden | IT24: Page 10: Number of Hours Available per 1,000 population | IU24: #,##0 | IV24: =AB7 -> 0
A25: (P.08)[03]Number of Hours Recorded per 1,000 population | B25: 131 | C25: 17 | D25: 14 | E25: Page 14: Number of Hours Recorded per 1,000 population | J25: w | L25: Central Bedfordshire | M25: uu | O25: 0 | P25: =IF((ROW()-5=$G$36),1,IF((M25=Coding!$H$75)+(Coding!$H$75="ALL")+(Coding!$H$75="U")*OR(M25="W",M25="su",M25="L",M25="MD",M25="UA")+(Coding!$H$75="na")*AND(M25<>"W",M25<>"su",M25<>"L",M25<>"MD",M25<>"UA",M25<>"SC",M25<>"SD",M25<>"p"),1,0)) -> 1 | Q25: FALSE | R25: 0 | S25: 1 | T25: 0 | V25: =IF((S25=1)*($J$6<22),INDEX($J$13:$J$33,SUM($S$7:S25),1),"") ->  | W25: =COUNTIF($T$7:T25,T25) -> 19 | Y25: 0 | Z25: =INDEX(V:V,SUMPRODUCT((OFFSET($T$7,0,0,AuthorityCounter2,1)=Y25)*1,(OFFSET($W$7,0,0,AuthorityCounter2,1)=COUNTIF($Y$7:Y25,Y25))*1,ROW(OFFSET($W$7,0,0,AuthorityCounter2,1)))) ->  | AA25: 0 | AB25: =IF((Y25=AB$2)*(Z25=AC$3)*(SUM($AB$6:AB24)=0),+Y25,0) -> 0 | AC25: 0 | AE25: =IF($AE$6=3,O25,SUM((CODE(MID(CONCATENATE(UPPER(M25),"aaaaaaaaaa"),{1;2},1))-30)*{1;0.01})) -> 55.55 | AF25: =COUNTIF($AE$7:$AE25,AE25) -> 8 | AH25: 37.67 | AI25: 37.67 | AJ25: =COUNTIF($AI$7:$AI25,AI25) -> 19 | AK25: =IF($AE$6=1,L25,OFFSET($L$1,SUMPRODUCT(--(OFFSET($AE$7,0,0,AuthorityCounter,1)=AI25),--(OFFSET($AF$7,0,0,AuthorityCounter,1)=COUNTIF($AI$7:AI25,AI25)),ROW(OFFSET($AF$7,0,0,AuthorityCounter,1)))-1,0)) -> Central Bedfordshire | AM25: =IF(VLOOKUP(AK25,colAM,IF($H$75="OC",8,5),FALSE)=1,MAX(AM$6:$AM24)+1,0) -> 19 | AN25: Central Bedfordshire | AO25: FALSE | AP25: =IF($AP$5,SUM(SUMPRODUCT(--AO$7:$AO25)*AO25,(SUMPRODUCT(--(AO$7:$AO25=FALSE))+SUMPRODUCT(--colAP))*(1-AO25)),ROW()-6) -> 19 | AQ25: Central Bedfordshire | AR25: Central Bedfordshire | IT25: Page 10: Number of Hours Recorded per 1,000 population | IU25: #,##0 | IV25: =AB7 -> 0
A26: (P.08)[04]Percentage of Service Points with Public Wi-Fi Access | B26: 131 | C26: 18 | D26: 14 | E26: Page 14: Percentage of Service Points with Public Wi-Fi Access | J26: n | L26: Cheshire East | M26: uu | O26: 0 | P26: =IF((ROW()-5=$G$36),1,IF((M26=Coding!$H$75)+(Coding!$H$75="ALL")+(Coding!$H$75="U")*OR(M26="W",M26="su",M26="L",M26="MD",M26="UA")+(Coding!$H$75="na")*AND(M26<>"W",M26<>"su",M26<>"L",M26<>"MD",M26<>"UA",M26<>"SC",M26<>"SD",M26<>"p"),1,0)) -> 1 | Q26: FALSE | R26: 0 | S26: 1 | T26: 0 | V26: =IF((S26=1)*($J$6<22),INDEX($J$13:$J$33,SUM($S$7:S26),1),"") ->  | W26: =COUNTIF($T$7:T26,T26) -> 20 | Y26: 0 | Z26: =INDEX(V:V,SUMPRODUCT((OFFSET($T$7,0,0,AuthorityCounter2,1)=Y26)*1,(OFFSET($W$7,0,0,AuthorityCounter2,1)=COUNTIF($Y$7:Y26,Y26))*1,ROW(OFFSET($W$7,0,0,AuthorityCounter2,1)))) ->  | AA26: 0 | AB26: =IF((Y26=AB$2)*(Z26=AC$3)*(SUM($AB$6:AB25)=0),+Y26,0) -> 0 | AC26: 0 | AE26: =IF($AE$6=3,O26,SUM((CODE(MID(CONCATENATE(UPPER(M26),"aaaaaaaaaa"),{1;2},1))-30)*{1;0.01})) -> 55.55 | AF26: =COUNTIF($AE$7:$AE26,AE26) -> 9 | AH26: 37.67 | AI26: 37.67 | AJ26: =COUNTIF($AI$7:$AI26,AI26) -> 20 | AK26: =IF($AE$6=1,L26,OFFSET($L$1,SUMPRODUCT(--(OFFSET($AE$7,0,0,AuthorityCounter,1)=AI26),--(OFFSET($AF$7,0,0,AuthorityCounter,1)=COUNTIF($AI$7:AI26,AI26)),ROW(OFFSET($AF$7,0,0,AuthorityCounter,1)))-1,0)) -> Cheshire East | AM26: =IF(VLOOKUP(AK26,colAM,IF($H$75="OC",8,5),FALSE)=1,MAX(AM$6:$AM25)+1,0) -> 20 | AN26: Cheshire East | AO26: FALSE | AP26: =IF($AP$5,SUM(SUMPRODUCT(--AO$7:$AO26)*AO26,(SUMPRODUCT(--(AO$7:$AO26=FALSE))+SUMPRODUCT(--colAP))*(1-AO26)),ROW()-6) -> 20 | AQ26: Cheshire East | AR26: Cheshire East | IT26: Page 10: Percentage of Service Points with Public Wi-Fi Access | IU26: 0% | IV26: =AB7 -> 0
A27: (P.01)[01]Total Revenue Expenditure per 1,000 population | B27: 262 | C27: 0 | D27: 15 | E27: Page 15: Total Revenue Expenditure per 1,000 population | J27: u | L27: Cheshire West & Chester | M27: uu | O27: 0 | P27: =IF((ROW()-5=$G$36),1,IF((M27=Coding!$H$75)+(Coding!$H$75="ALL")+(Coding!$H$75="U")*OR(M27="W",M27="su",M27="L",M27="MD",M27="UA")+(Coding!$H$75="na")*AND(M27<>"W",M27<>"su",M27<>"L",M27<>"MD",M27<>"UA",M27<>"SC",M27<>"SD",M27<>"p"),1,0)) -> 1 | Q27: FALSE | R27: 0 | S27: 1 | T27: 0 | V27: =IF((S27=1)*($J$6<22),INDEX($J$13:$J$33,SUM($S$7:S27),1),"") ->  | W27: =COUNTIF($T$7:T27,T27) -> 21 | Y27: 0 | Z27: =INDEX(V:V,SUMPRODUCT((OFFSET($T$7,0,0,AuthorityCounter2,1)=Y27)*1,(OFFSET($W$7,0,0,AuthorityCounter2,1)=COUNTIF($Y$7:Y27,Y27))*1,ROW(OFFSET($W$7,0,0,AuthorityCounter2,1)))) ->  | AA27: 0 | AB27: =IF((Y27=AB$2)*(Z27=AC$3)*(SUM($AB$6:AB26)=0),+Y27,0) -> 0 | AC27: 0 | AE27: =IF($AE$6=3,O27,SUM((CODE(MID(CONCATENATE(UPPER(M27),"aaaaaaaaaa"),{1;2},1))-30)*{1;0.01})) -> 55.55 | AF27: =COUNTIF($AE$7:$AE27,AE27) -> 10 | AH27: 37.67 | AI27: 37.67 | AJ27: =COUNTIF($AI$7:$AI27,AI27) -> 21 | AK27: =IF($AE$6=1,L27,OFFSET($L$1,SUMPRODUCT(--(OFFSET($AE$7,0,0,AuthorityCounter,1)=AI27),--(OFFSET($AF$7,0,0,AuthorityCounter,1)=COUNTIF($AI$7:AI27,AI27)),ROW(OFFSET($AF$7,0,0,AuthorityCounter,1)))-1,0)) -> Cheshire West & Chester | AM27: =IF(VLOOKUP(AK27,colAM,IF($H$75="OC",8,5),FALSE)=1,MAX(AM$6:$AM26)+1,0) -> 21 | AN27: Cheshire West & Chester | AO27: FALSE | AP27: =IF($AP$5,SUM(SUMPRODUCT(--AO$7:$AO27)*AO27,(SUMPRODUCT(--(AO$7:$AO27=FALSE))+SUMPRODUCT(--colAP))*(1-AO27)),ROW()-6) -> 21 | AQ27: Cheshire West & Chester | AR27: Cheshire West & Chester | IT27: Page 11: Total Revenue Expenditure per 1,000 population | IU27: £#,##0 | IV27: =AB7 -> 0
A28: (P.02)[01]Net Expenditure | B28: 262 | C28: 1 | D28: 16 | E28: Page 16: Net Expenditure | J28: g | L28: Coventry | M28: um | O28: 0 | P28: =IF((ROW()-5=$G$36),1,IF((M28=Coding!$H$75)+(Coding!$H$75="ALL")+(Coding!$H$75="U")*OR(M28="W",M28="su",M28="L",M28="MD",M28="UA")+(Coding!$H$75="na")*AND(M28<>"W",M28<>"su",M28<>"L",M28<>"MD",M28<>"UA",M28<>"SC",M28<>"SD",M28<>"p"),1,0)) -> 1 | Q28: FALSE | R28: 0 | S28: 1 | T28: 0 | V28: =IF((S28=1)*($J$6<22),INDEX($J$13:$J$33,SUM($S$7:S28),1),"") ->  | W28: =COUNTIF($T$7:T28,T28) -> 22 | Y28: 0 | Z28: =INDEX(V:V,SUMPRODUCT((OFFSET($T$7,0,0,AuthorityCounter2,1)=Y28)*1,(OFFSET($W$7,0,0,AuthorityCounter2,1)=COUNTIF($Y$7:Y28,Y28))*1,ROW(OFFSET($W$7,0,0,AuthorityCounter2,1)))) ->  | AA28: 0 | AB28: =IF((Y28=AB$2)*(Z28=AC$3)*(SUM($AB$6:AB27)=0),+Y28,0) -> 0 | AC28: 0 | AE28: =IF($AE$6=3,O28,SUM((CODE(MID(CONCATENATE(UPPER(M28),"aaaaaaaaaa"),{1;2},1))-30)*{1;0.01})) -> 55.47 | AF28: =COUNTIF($AE$7:$AE28,AE28) -> 4 | AH28: 37.67 | AI28: 37.67 | AJ28: =COUNTIF($AI$7:$AI28,AI28) -> 22 | AK28: =IF($AE$6=1,L28,OFFSET($L$1,SUMPRODUCT(--(OFFSET($AE$7,0,0,AuthorityCounter,1)=AI28),--(OFFSET($AF$7,0,0,AuthorityCounter,1)=COUNTIF($AI$7:AI28,AI28)),ROW(OFFSET($AF$7,0,0,AuthorityCounter,1)))-1,0)) -> Coventry | AM28: =IF(VLOOKUP(AK28,colAM,IF($H$75="OC",8,5),FALSE)=1,MAX(AM$6:$AM27)+1,0) -> 22 | AN28: Coventry | AO28: FALSE | AP28: =IF($AP$5,SUM(SUMPRODUCT(--AO$7:$AO28)*AO28,(SUMPRODUCT(--(AO$7:$AO28=FALSE))+SUMPRODUCT(--colAP))*(1-AO28)),ROW()-6) -> 22 | AQ28: Coventry | AR28: Coventry | IT28: Page 12: Net Expenditure | IU28: £#,##0 | IV28: =AB7 -> 0
A29: (P.02)[02]Total Revenue Expenditure | B29: 262 | C29: 2 | D29: 16 | E29: Page 16: Total Revenue Expenditure | J29: o | L29: Croydon | M29: ul | O29: 0 | P29: =IF((ROW()-5=$G$36),1,IF((M29=Coding!$H$75)+(Coding!$H$75="ALL")+(Coding!$H$75="U")*OR(M29="W",M29="su",M29="L",M29="MD",M29="UA")+(Coding!$H$75="na")*AND(M29<>"W",M29<>"su",M29<>"L",M29<>"MD",M29<>"UA",M29<>"SC",M29<>"SD",M29<>"p"),1,0)) -> 1 | Q29: FALSE | R29: 0 | S29: 1 | T29: 0 | V29: =IF((S29=1)*($J$6<22),INDEX($J$13:$J$33,SUM($S$7:S29),1),"") ->  | W29: =COUNTIF($T$7:T29,T29) -> 23 | Y29: 0 | Z29: =INDEX(V:V,SUMPRODUCT((OFFSET($T$7,0,0,AuthorityCounter2,1)=Y29)*1,(OFFSET($W$7,0,0,AuthorityCounter2,1)=COUNTIF($Y$7:Y29,Y29))*1,ROW(OFFSET($W$7,0,0,AuthorityCounter2,1)))) ->  | AA29: 0 | AB29: =IF((Y29=AB$2)*(Z29=AC$3)*(SUM($AB$6:AB28)=0),+Y29,0) -> 0 | AC29: 0 | AE29: =IF($AE$6=3,O29,SUM((CODE(MID(CONCATENATE(UPPER(M29),"aaaaaaaaaa"),{1;2},1))-30)*{1;0.01})) -> 55.46 | AF29: =COUNTIF($AE$7:$AE29,AE29) -> 7 | AH29: 37.67 | AI29: 37.67 | AJ29: =COUNTIF($AI$7:$AI29,AI29) -> 23 | AK29: =IF($AE$6=1,L29,OFFSET($L$1,SUMPRODUCT(--(OFFSET($AE$7,0,0,AuthorityCounter,1)=AI29),--(OFFSET($AF$7,0,0,AuthorityCounter,1)=COUNTIF($AI$7:AI29,AI29)),ROW(OFFSET($AF$7,0,0,AuthorityCounter,1)))-1,0)) -> Croydon | AM29: =IF(VLOOKUP(AK29,colAM,IF($H$75="OC",8,5),FALSE)=1,MAX(AM$6:$AM28)+1,0) -> 23 | AN29: Croydon | AO29: FALSE | AP29: =IF($AP$5,SUM(SUMPRODUCT(--AO$7:$AO29)*AO29,(SUMPRODUCT(--(AO$7:$AO29=FALSE))+SUMPRODUCT(--colAP))*(1-AO29)),ROW()-6) -> 23 | AQ29: Croydon | AR29: Croydon | IT29: Page 12: Total Revenue Expenditure | IU29: £#,##0 | IV29: =AB7 -> 0
A30: (P.02)[03]Total Revenue Income | B30: 262 | C30: 3 | D30: 16 | E30: Page 16: Total Revenue Income | J30: b | L30: Cumbria | M30: c | O30: 0 | P30: =IF((ROW()-5=$G$36),1,IF((M30=Coding!$H$75)+(Coding!$H$75="ALL")+(Coding!$H$75="U")*OR(M30="W",M30="su",M30="L",M30="MD",M30="UA")+(Coding!$H$75="na")*AND(M30<>"W",M30<>"su",M30<>"L",M30<>"MD",M30<>"UA",M30<>"SC",M30<>"SD",M30<>"p"),1,0)) -> 1 | Q30: FALSE | R30: 0 | S30: 1 | T30: 0 | V30: =IF((S30=1)*($J$6<22),INDEX($J$13:$J$33,SUM($S$7:S30),1),"") ->  | W30: =COUNTIF($T$7:T30,T30) -> 24 | Y30: 0 | Z30: =INDEX(V:V,SUMPRODUCT((OFFSET($T$7,0,0,AuthorityCounter2,1)=Y30)*1,(OFFSET($W$7,0,0,AuthorityCounter2,1)=COUNTIF($Y$7:Y30,Y30))*1,ROW(OFFSET($W$7,0,0,AuthorityCounter2,1)))) ->  | AA30: 0 | AB30: =IF((Y30=AB$2)*(Z30=AC$3)*(SUM($AB$6:AB29)=0),+Y30,0) -> 0 | AC30: 0 | AE30: =IF($AE$6=3,O30,SUM((CODE(MID(CONCATENATE(UPPER(M30),"aaaaaaaaaa"),{1;2},1))-30)*{1;0.01})) -> 37.67 | AF30: =COUNTIF($AE$7:$AE30,AE30) -> 3 | AH30: 37.67 | AI30: 37.67 | AJ30: =COUNTIF($AI$7:$AI30,AI30) -> 24 | AK30: =IF($AE$6=1,L30,OFFSET($L$1,SUMPRODUCT(--(OFFSET($AE$7,0,0,AuthorityCounter,1)=AI30),--(OFFSET($AF$7,0,0,AuthorityCounter,1)=COUNTIF($AI$7:AI30,AI30)),ROW(OFFSET($AF$7,0,0,AuthorityCounter,1)))-1,0)) -> Cumbria | AM30: =IF(VLOOKUP(AK30,colAM,IF($H$75="OC",8,5),FALSE)=1,MAX(AM$6:$AM29)+1,0) -> 24 | AN30: Cumbria | AO30: FALSE | AP30: =IF($AP$5,SUM(SUMPRODUCT(--AO$7:$AO30)*AO30,(SUMPRODUCT(--(AO$7:$AO30=FALSE))+SUMPRODUCT(--colAP))*(1-AO30)),ROW()-6) -> 24 | AQ30: Cumbria | AR30: Cumbria | IT30: Page 12: Total Revenue Income | IU30: £#,##0 | IV30: =AB7 -> 0
A31: (P.03)[01]Employees | B31: 262 | C31: 4 | D31: 17 | E31: Page 17: Employees | J31: j | L31: Darlington | M31: uu | O31: 0 | P31: =IF((ROW()-5=$G$36),1,IF((M31=Coding!$H$75)+(Coding!$H$75="ALL")+(Coding!$H$75="U")*OR(M31="W",M31="su",M31="L",M31="MD",M31="UA")+(Coding!$H$75="na")*AND(M31<>"W",M31<>"su",M31<>"L",M31<>"MD",M31<>"UA",M31<>"SC",M31<>"SD",M31<>"p"),1,0)) -> 1 | Q31: FALSE | R31: 0 | S31: 1 | T31: 0 | V31: =IF((S31=1)*($J$6<22),INDEX($J$13:$J$33,SUM($S$7:S31),1),"") ->  | W31: =COUNTIF($T$7:T31,T31) -> 25 | Y31: 0 | Z31: =INDEX(V:V,SUMPRODUCT((OFFSET($T$7,0,0,AuthorityCounter2,1)=Y31)*1,(OFFSET($W$7,0,0,AuthorityCounter2,1)=COUNTIF($Y$7:Y31,Y31))*1,ROW(OFFSET($W$7,0,0,AuthorityCounter2,1)))) ->  | AA31: 0 | AB31: =IF((Y31=AB$2)*(Z31=AC$3)*(SUM($AB$6:AB30)=0),+Y31,0) -> 0 | AC31: 0 | AE31: =IF($AE$6=3,O31,SUM((CODE(MID(CONCATENATE(UPPER(M31),"aaaaaaaaaa"),{1;2},1))-30)*{1;0.01})) -> 55.55 | AF31: =COUNTIF($AE$7:$AE31,AE31) -> 11 | AH31: 37.67 | AI31: 37.67 | AJ31: =COUNTIF($AI$7:$AI31,AI31) -> 25 | AK31: =IF($AE$6=1,L31,OFFSET($L$1,SUMPRODUCT(--(OFFSET($AE$7,0,0,AuthorityCounter,1)=AI31),--(OFFSET($AF$7,0,0,AuthorityCounter,1)=COUNTIF($AI$7:AI31,AI31)),ROW(OFFSET($AF$7,0,0,AuthorityCounter,1)))-1,0)) -> Darlington | AM31: =IF(VLOOKUP(AK31,colAM,IF($H$75="OC",8,5),FALSE)=1,MAX(AM$6:$AM30)+1,0) -> 25 | AN31: Darlington | AO31: FALSE | AP31: =IF($AP$5,SUM(SUMPRODUCT(--AO$7:$AO31)*AO31,(SUMPRODUCT(--(AO$7:$AO31=FALSE))+SUMPRODUCT(--colAP))*(1-AO31)),ROW()-6) -> 25 | AQ31: Darlington | AR31: Darlington | IT31: Page 13: Employees | IU31: £#,##0 | IV31: =AB7 -> 0
A32: (P.03)[02]Premises | B32: 262 | C32: 5 | D32: 17 | E32: Page 17: Premises | J32: q | L32: Devon | M32: c | O32: 0 | P32: =IF((ROW()-5=$G$36),1,IF((M32=Coding!$H$75)+(Coding!$H$75="ALL")+(Coding!$H$75="U")*OR(M32="W",M32="su",M32="L",M32="MD",M32="UA")+(Coding!$H$75="na")*AND(M32<>"W",M32<>"su",M32<>"L",M32<>"MD",M32<>"UA",M32<>"SC",M32<>"SD",M32<>"p"),1,0)) -> 1 | Q32: FALSE | R32: 0 | S32: 1 | T32: 0 | V32: =IF((S32=1)*($J$6<22),INDEX($J$13:$J$33,SUM($S$7:S32),1),"") ->  | W32: =COUNTIF($T$7:T32,T32) -> 26 | Y32: 0 | Z32: =INDEX(V:V,SUMPRODUCT((OFFSET($T$7,0,0,AuthorityCounter2,1)=Y32)*1,(OFFSET($W$7,0,0,AuthorityCounter2,1)=COUNTIF($Y$7:Y32,Y32))*1,ROW(OFFSET($W$7,0,0,AuthorityCounter2,1)))) ->  | AA32: 0 | AB32: =IF((Y32=AB$2)*(Z32=AC$3)*(SUM($AB$6:AB31)=0),+Y32,0) -> 0 | AC32: 0 | AE32: =IF($AE$6=3,O32,SUM((CODE(MID(CONCATENATE(UPPER(M32),"aaaaaaaaaa"),{1;2},1))-30)*{1;0.01})) -> 37.67 | AF32: =COUNTIF($AE$7:$AE32,AE32) -> 4 | AH32: 37.67 | AI32: 37.67 | AJ32: =COUNTIF($AI$7:$AI32,AI32) -> 26 | AK32: =IF($AE$6=1,L32,OFFSET($L$1,SUMPRODUCT(--(OFFSET($AE$7,0,0,AuthorityCounter,1)=AI32),--(OFFSET($AF$7,0,0,AuthorityCounter,1)=COUNTIF($AI$7:AI32,AI32)),ROW(OFFSET($AF$7,0,0,AuthorityCounter,1)))-1,0)) -> Devon | AM32: =IF(VLOOKUP(AK32,colAM,IF($H$75="OC",8,5),FALSE)=1,MAX(AM$6:$AM31)+1,0) -> 26 | AN32: Devon | AO32: FALSE | AP32: =IF($AP$5,SUM(SUMPRODUCT(--AO$7:$AO32)*AO32,(SUMPRODUCT(--(AO$7:$AO32=FALSE))+SUMPRODUCT(--colAP))*(1-AO32)),ROW()-6) -> 26 | AQ32: Devon | AR32: Devon | IT32: Page 13: Premises | IU32: £#,##0 | IV32: =AB7 -> 0
A33: (P.03)[03]Total Materials | B33: 262 | C33: 6 | D33: 17 | E33: Page 17: Total Materials | J33: p | L33: Dorset | M33: c | O33: 0 | P33: =IF((ROW()-5=$G$36),1,IF((M33=Coding!$H$75)+(Coding!$H$75="ALL")+(Coding!$H$75="U")*OR(M33="W",M33="su",M33="L",M33="MD",M33="UA")+(Coding!$H$75="na")*AND(M33<>"W",M33<>"su",M33<>"L",M33<>"MD",M33<>"UA",M33<>"SC",M33<>"SD",M33<>"p"),1,0)) -> 1 | Q33: FALSE | R33: 0 | S33: 1 | T33: 0 | V33: =IF((S33=1)*($J$6<22),INDEX($J$13:$J$33,SUM($S$7:S33),1),"") ->  | W33: =COUNTIF($T$7:T33,T33) -> 27 | Y33: 0 | Z33: =INDEX(V:V,SUMPRODUCT((OFFSET($T$7,0,0,AuthorityCounter2,1)=Y33)*1,(OFFSET($W$7,0,0,AuthorityCounter2,1)=COUNTIF($Y$7:Y33,Y33))*1,ROW(OFFSET($W$7,0,0,AuthorityCounter2,1)))) ->  | AA33: 0 | AB33: =IF((Y33=AB$2)*(Z33=AC$3)*(SUM($AB$6:AB32)=0),+Y33,0) -> 0 | AC33: 0 | AE33: =IF($AE$6=3,O33,SUM((CODE(MID(CONCATENATE(UPPER(M33),"aaaaaaaaaa"),{1;2},1))-30)*{1;0.01})) -> 37.67 | AF33: =COUNTIF($AE$7:$AE33,AE33) -> 5 | AH33: 55.46 | AI33: 55.46 | AJ33: =COUNTIF($AI$7:$AI33,AI33) -> 1 | AK33: =IF($AE$6=1,L33,OFFSET($L$1,SUMPRODUCT(--(OFFSET($AE$7,0,0,AuthorityCounter,1)=AI33),--(OFFSET($AF$7,0,0,AuthorityCounter,1)=COUNTIF($AI$7:AI33,AI33)),ROW(OFFSET($AF$7,0,0,AuthorityCounter,1)))-1,0)) -> Dorset | AM33: =IF(VLOOKUP(AK33,colAM,IF($H$75="OC",8,5),FALSE)=1,MAX(AM$6:$AM32)+1,0) -> 27 | AN33: Dorset | AO33: FALSE | AP33: =IF($AP$5,SUM(SUMPRODUCT(--AO$7:$AO33)*AO33,(SUMPRODUCT(--(AO$7:$AO33=FALSE))+SUMPRODUCT(--colAP))*(1-AO33)),ROW()-6) -> 27 | AQ33: Dorset | AR33: Dorset | IT33: Page 13: Total Materials | IU33: £#,##0 | IV33: =AB7 -> 0
A34: (P.03)[04]Computing Costs | B34: 262 | C34: 7 | D34: 17 | E34: Page 17: Computing Costs | L34: Dudley | M34: um | O34: 0 | P34: =IF((ROW()-5=$G$36),1,IF((M34=Coding!$H$75)+(Coding!$H$75="ALL")+(Coding!$H$75="U")*OR(M34="W",M34="su",M34="L",M34="MD",M34="UA")+(Coding!$H$75="na")*AND(M34<>"W",M34<>"su",M34<>"L",M34<>"MD",M34<>"UA",M34<>"SC",M34<>"SD",M34<>"p"),1,0)) -> 1 | Q34: FALSE | R34: 0 | S34: 1 | T34: 0 | V34: =IF((S34=1)*($J$6<22),INDEX($J$13:$J$33,SUM($S$7:S34),1),"") ->  | W34: =COUNTIF($T$7:T34,T34) -> 28 | Y34: 0 | Z34: =INDEX(V:V,SUMPRODUCT((OFFSET($T$7,0,0,AuthorityCounter2,1)=Y34)*1,(OFFSET($W$7,0,0,AuthorityCounter2,1)=COUNTIF($Y$7:Y34,Y34))*1,ROW(OFFSET($W$7,0,0,AuthorityCounter2,1)))) ->  | AA34: 0 | AB34: =IF((Y34=AB$2)*(Z34=AC$3)*(SUM($AB$6:AB33)=0),+Y34,0) -> 0 | AC34: 0 | AE34: =IF($AE$6=3,O34,SUM((CODE(MID(CONCATENATE(UPPER(M34),"aaaaaaaaaa"),{1;2},1))-30)*{1;0.01})) -> 55.47 | AF34: =COUNTIF($AE$7:$AE34,AE34) -> 5 | AH34: 55.46 | AI34: 55.46 | AJ34: =COUNTIF($AI$7:$AI34,AI34) -> 2 | AK34: =IF($AE$6=1,L34,OFFSET($L$1,SUMPRODUCT(--(OFFSET($AE$7,0,0,AuthorityCounter,1)=AI34),--(OFFSET($AF$7,0,0,AuthorityCounter,1)=COUNTIF($AI$7:AI34,AI34)),ROW(OFFSET($AF$7,0,0,AuthorityCounter,1)))-1,0)) -> Dudley | AM34: =IF(VLOOKUP(AK34,colAM,IF($H$75="OC",8,5),FALSE)=1,MAX(AM$6:$AM33)+1,0) -> 28 | AN34: Dudley | AO34: FALSE | AP34: =IF($AP$5,SUM(SUMPRODUCT(--AO$7:$AO34)*AO34,(SUMPRODUCT(--(AO$7:$AO34=FALSE))+SUMPRODUCT(--colAP))*(1-AO34)),ROW()-6) -> 28 | AQ34: Dudley | AR34: Dudley | IT34: Page 13: Computing Costs | IU34: £#,##0 | IV34: =AB7 -> 0
A35: (P.03)[05]Other Supplies & Services | B35: 262 | C35: 8 | D35: 17 | E35: Page 17: Other Supplies & Services | L35: Durham | M35: uu | O35: 0 | P35: =IF((ROW()-5=$G$36),1,IF((M35=Coding!$H$75)+(Coding!$H$75="ALL")+(Coding!$H$75="U")*OR(M35="W",M35="su",M35="L",M35="MD",M35="UA")+(Coding!$H$75="na")*AND(M35<>"W",M35<>"su",M35<>"L",M35<>"MD",M35<>"UA",M35<>"SC",M35<>"SD",M35<>"p"),1,0)) -> 1 | Q35: FALSE | R35: 0 | S35: 1 | T35: 0 | V35: =IF((S35=1)*($J$6<22),INDEX($J$13:$J$33,SUM($S$7:S35),1),"") ->  | W35: =COUNTIF($T$7:T35,T35) -> 29 | Y35: 0 | Z35: =INDEX(V:V,SUMPRODUCT((OFFSET($T$7,0,0,AuthorityCounter2,1)=Y35)*1,(OFFSET($W$7,0,0,AuthorityCounter2,1)=COUNTIF($Y$7:Y35,Y35))*1,ROW(OFFSET($W$7,0,0,AuthorityCounter2,1)))) ->  | AA35: 0 | AB35: =IF((Y35=AB$2)*(Z35=AC$3)*(SUM($AB$6:AB34)=0),+Y35,0) -> 0 | AC35: 0 | AE35: =IF($AE$6=3,O35,SUM((CODE(MID(CONCATENATE(UPPER(M35),"aaaaaaaaaa"),{1;2},1))-30)*{1;0.01})) -> 55.55 | AF35: =COUNTIF($AE$7:$AE35,AE35) -> 12 | AH35: 55.46 | AI35: 55.46 | AJ35: =COUNTIF($AI$7:$AI35,AI35) -> 3 | AK35: =IF($AE$6=1,L35,OFFSET($L$1,SUMPRODUCT(--(OFFSET($AE$7,0,0,AuthorityCounter,1)=AI35),--(OFFSET($AF$7,0,0,AuthorityCounter,1)=COUNTIF($AI$7:AI35,AI35)),ROW(OFFSET($AF$7,0,0,AuthorityCounter,1)))-1,0)) -> Durham | AM35: =IF(VLOOKUP(AK35,colAM,IF($H$75="OC",8,5),FALSE)=1,MAX(AM$6:$AM34)+1,0) -> 29 | AN35: Durham | AO35: FALSE | AP35: =IF($AP$5,SUM(SUMPRODUCT(--AO$7:$AO35)*AO35,(SUMPRODUCT(--(AO$7:$AO35=FALSE))+SUMPRODUCT(--colAP))*(1-AO35)),ROW()-6) -> 29 | AQ35: Durham | AR35: Durham | IT35: Page 13: Other Supplies & Services | IU35: £#,##0 | IV35: =AB7 -> 0
A36: (P.03)[06]Transport | B36: 262 | C36: 9 | D36: 17 | E36: Page 17: Transport | G36: 1 | H36: Cell Link for Authorities | J36: (Max 300) | L36: Ealing | M36: ul | O36: 0 | P36: =IF((ROW()-5=$G$36),1,IF((M36=Coding!$H$75)+(Coding!$H$75="ALL")+(Coding!$H$75="U")*OR(M36="W",M36="su",M36="L",M36="MD",M36="UA")+(Coding!$H$75="na")*AND(M36<>"W",M36<>"su",M36<>"L",M36<>"MD",M36<>"UA",M36<>"SC",M36<>"SD",M36<>"p"),1,0)) -> 1 | Q36: FALSE | R36: 0 | S36: 1 | T36: 0 | V36: =IF((S36=1)*($J$6<22),INDEX($J$13:$J$33,SUM($S$7:S36),1),"") ->  | W36: =COUNTIF($T$7:T36,T36) -> 30 | Y36: 0 | Z36: =INDEX(V:V,SUMPRODUCT((OFFSET($T$7,0,0,AuthorityCounter2,1)=Y36)*1,(OFFSET($W$7,0,0,AuthorityCounter2,1)=COUNTIF($Y$7:Y36,Y36))*1,ROW(OFFSET($W$7,0,0,AuthorityCounter2,1)))) ->  | AA36: 0 | AB36: =IF((Y36=AB$2)*(Z36=AC$3)*(SUM($AB$6:AB35)=0),+Y36,0) -> 0 | AC36: 0 | AE36: =IF($AE$6=3,O36,SUM((CODE(MID(CONCATENATE(UPPER(M36),"aaaaaaaaaa"),{1;2},1))-30)*{1;0.01})) -> 55.46 | AF36: =COUNTIF($AE$7:$AE36,AE36) -> 8 | AH36: 55.46 | AI36: 55.46 | AJ36: =COUNTIF($AI$7:$AI36,AI36) -> 4 | AK36: =IF($AE$6=1,L36,OFFSET($L$1,SUMPRODUCT(--(OFFSET($AE$7,0,0,AuthorityCounter,1)=AI36),--(OFFSET($AF$7,0,0,AuthorityCounter,1)=COUNTIF($AI$7:AI36,AI36)),ROW(OFFSET($AF$7,0,0,AuthorityCounter,1)))-1,0)) -> Ealing | AM36: =IF(VLOOKUP(AK36,colAM,IF($H$75="OC",8,5),FALSE)=1,MAX(AM$6:$AM35)+1,0) -> 30 | AN36: Ealing | AO36: FALSE | AP36: =IF($AP$5,SUM(SUMPRODUCT(--AO$7:$AO36)*AO36,(SUMPRODUCT(--(AO$7:$AO36=FALSE))+SUMPRODUCT(--colAP))*(1-AO36)),ROW()-6) -> 30 | AQ36: Ealing | AR36: Ealing | IT36: Page 13: Transport | IU36: £#,##0 | IV36: =AB7 -> 0
A37: (P.03)[07]Third Party Payments | B37: 262 | C37: 10 | D37: 17 | E37: Page 17: Third Party Payments | L37: East Sussex | M37: c | O37: 0 | P37: =IF((ROW()-5=$G$36),1,IF((M37=Coding!$H$75)+(Coding!$H$75="ALL")+(Coding!$H$75="U")*OR(M37="W",M37="su",M37="L",M37="MD",M37="UA")+(Coding!$H$75="na")*AND(M37<>"W",M37<>"su",M37<>"L",M37<>"MD",M37<>"UA",M37<>"SC",M37<>"SD",M37<>"p"),1,0)) -> 1 | Q37: FALSE | R37: 0 | S37: 1 | T37: 0 | V37: =IF((S37=1)*($J$6<22),INDEX($J$13:$J$33,SUM($S$7:S37),1),"") ->  | W37: =COUNTIF($T$7:T37,T37) -> 31 | Y37: 0 | Z37: =INDEX(V:V,SUMPRODUCT((OFFSET($T$7,0,0,AuthorityCounter2,1)=Y37)*1,(OFFSET($W$7,0,0,AuthorityCounter2,1)=COUNTIF($Y$7:Y37,Y37))*1,ROW(OFFSET($W$7,0,0,AuthorityCounter2,1)))) ->  | AA37: 0 | AB37: =IF((Y37=AB$2)*(Z37=AC$3)*(SUM($AB$6:AB36)=0),+Y37,0) -> 0 | AC37: 0 | AE37: =IF($AE$6=3,O37,SUM((CODE(MID(CONCATENATE(UPPER(M37),"aaaaaaaaaa"),{1;2},1))-30)*{1;0.01})) -> 37.67 | AF37: =COUNTIF($AE$7:$AE37,AE37) -> 6 | AH37: 55.46 | AI37: 55.46 | AJ37: =COUNTIF($AI$7:$AI37,AI37) -> 5 | AK37: =IF($AE$6=1,L37,OFFSET($L$1,SUMPRODUCT(--(OFFSET($AE$7,0,0,AuthorityCounter,1)=AI37),--(OFFSET($AF$7,0,0,AuthorityCounter,1)=COUNTIF($AI$7:AI37,AI37)),ROW(OFFSET($AF$7,0,0,AuthorityCounter,1)))-1,0)) -> East Sussex | AM37: =IF(VLOOKUP(AK37,colAM,IF($H$75="OC",8,5),FALSE)=1,MAX(AM$6:$AM36)+1,0) -> 31 | AN37: East Sussex | AO37: FALSE | AP37: =IF($AP$5,SUM(SUMPRODUCT(--AO$7:$AO37)*AO37,(SUMPRODUCT(--(AO$7:$AO37=FALSE))+SUMPRODUCT(--colAP))*(1-AO37)),ROW()-6) -> 31 | AQ37: East Sussex | AR37: East Sussex | IT37: Page 13: Third Party Payments | IU37: £#,##0 | IV37: =AB7 -> 0
A38: (P.03)[08]Support Service Costs | B38: 262 | C38: 11 | D38: 17 | E38: Page 17: Support Service Costs | G38: 1 | H38: Cell Link for Chart Names | J38: (Max 200) | L38: Enfield | M38: ul | O38: 0 | P38: =IF((ROW()-5=$G$36),1,IF((M38=Coding!$H$75)+(Coding!$H$75="ALL")+(Coding!$H$75="U")*OR(M38="W",M38="su",M38="L",M38="MD",M38="UA")+(Coding!$H$75="na")*AND(M38<>"W",M38<>"su",M38<>"L",M38<>"MD",M38<>"UA",M38<>"SC",M38<>"SD",M38<>"p"),1,0)) -> 1 | Q38: FALSE | R38: 0 | S38: 1 | T38: 0 | V38: =IF((S38=1)*($J$6<22),INDEX($J$13:$J$33,SUM($S$7:S38),1),"") ->  | W38: =COUNTIF($T$7:T38,T38) -> 32 | Y38: 0 | Z38: =INDEX(V:V,SUMPRODUCT((OFFSET($T$7,0,0,AuthorityCounter2,1)=Y38)*1,(OFFSET($W$7,0,0,AuthorityCounter2,1)=COUNTIF($Y$7:Y38,Y38))*1,ROW(OFFSET($W$7,0,0,AuthorityCounter2,1)))) ->  | AA38: 0 | AB38: =IF((Y38=AB$2)*(Z38=AC$3)*(SUM($AB$6:AB37)=0),+Y38,0) -> 0 | AC38: 0 | AE38: =IF($AE$6=3,O38,SUM((CODE(MID(CONCATENATE(UPPER(M38),"aaaaaaaaaa"),{1;2},1))-30)*{1;0.01})) -> 55.46 | AF38: =COUNTIF($AE$7:$AE38,AE38) -> 9 | AH38: 55.46 | AI38: 55.46 | AJ38: =COUNTIF($AI$7:$AI38,AI38) -> 6 | AK38: =IF($AE$6=1,L38,OFFSET($L$1,SUMPRODUCT(--(OFFSET($AE$7,0,0,AuthorityCounter,1)=AI38),--(OFFSET($AF$7,0,0,AuthorityCounter,1)=COUNTIF($AI$7:AI38,AI38)),ROW(OFFSET($AF$7,0,0,AuthorityCounter,1)))-1,0)) -> Enfield | AM38: =IF(VLOOKUP(AK38,colAM,IF($H$75="OC",8,5),FALSE)=1,MAX(AM$6:$AM37)+1,0) -> 32 | AN38: Enfield | AO38: FALSE | AP38: =IF($AP$5,SUM(SUMPRODUCT(--AO$7:$AO38)*AO38,(SUMPRODUCT(--(AO$7:$AO38=FALSE))+SUMPRODUCT(--colAP))*(1-AO38)),ROW()-6) -> 32 | AQ38: Enfield | AR38: Enfield | IT38: Page 13: Support Service Costs | IU38: £#,##0 | IV38: =AB7 -> 0
A39: (P.04)[01]Overdue Charges | B39: 262 | C39: 12 | D39: 18 | E39: Page 18: Overdue Charges | G39: =OFFSET($B$1,G38-1,0) -> -1 | H39: Offset Value 1 | L39: Essex | M39: c | O39: =IF(ISNUMBER(--OFFSET($D$409,(ROW()-6)+$G$39+AuthorityCounter+5,$G$40)),OFFSET($D$409,(ROW()-6)+$G$39+AuthorityCounter+5,$G$40),"na") -> 0 | P39: =IF((ROW()-5=$G$36),1,IF((M39=Coding!$H$75)+(Coding!$H$75="ALL")+(Coding!$H$75="U")*OR(M39="W",M39="su",M39="L",M39="MD",M39="UA")+(Coding!$H$75="na")*AND(M39<>"W",M39<>"su",M39<>"L",M39<>"MD",M39<>"UA",M39<>"SC",M39<>"SD",M39<>"p"),1,0)) -> 1 | Q39: FALSE | R39: =IF(OR(NOT(ISERROR(MATCH(L39,OFFSET($H$410,$G$36-2,0,1,18),FALSE))),$G$75=L39),1,0+(($G$36=1)*($H$75="OC"))) -> 0 | S39: 1 | T39: 0 | V39: =IF((S39=1)*($J$6<22),INDEX($J$13:$J$33,SUM($S$7:S39),1),"") ->  | W39: =COUNTIF($T$7:T39,T39) -> 33 | Y39: 0 | Z39: =INDEX(V:V,SUMPRODUCT((OFFSET($T$7,0,0,AuthorityCounter2,1)=Y39)*1,(OFFSET($W$7,0,0,AuthorityCounter2,1)=COUNTIF($Y$7:Y39,Y39))*1,ROW(OFFSET($W$7,0,0,AuthorityCounter2,1)))) ->  | AA39: 0 | AB39: =IF((Y39=AB$2)*(Z39=AC$3)*(SUM($AB$6:AB38)=0),+Y39,0) -> 0 | AC39: 0 | AE39: =IF($AE$6=3,O39,SUM((CODE(MID(CONCATENATE(UPPER(M39),"aaaaaaaaaa"),{1;2},1))-30)*{1;0.01})) -> 37.67 | AF39: =COUNTIF($AE$7:$AE39,AE39) -> 7 | AH39: 55.46 | AI39: 55.46 | AJ39: =COUNTIF($AI$7:$AI39,AI39) -> 7 | AK39: =IF($AE$6=1,L39,OFFSET($L$1,SUMPRODUCT(--(OFFSET($AE$7,0,0,AuthorityCounter,1)=AI39),--(OFFSET($AF$7,0,0,AuthorityCounter,1)=COUNTIF($AI$7:AI39,AI39)),ROW(OFFSET($AF$7,0,0,AuthorityCounter,1)))-1,0)) -> Essex | AM39: =IF(VLOOKUP(AK39,colAM,IF($H$75="OC",8,5),FALSE)=1,MAX(AM$6:$AM38)+1,0) -> 33 | AN39: Essex | AO39: FALSE | AP39: =IF($AP$5,SUM(SUMPRODUCT(--AO$7:$AO39)*AO39,(SUMPRODUCT(--(AO$7:$AO39=FALSE))+SUMPRODUCT(--colAP))*(1-AO39)),ROW()-6) -> 33 | AQ39: Essex | AR39: Essex | IT39: Page 14: Overdue Charges | IU39: £#,##0 | IV39: =AB7 -> 0
A40: (P.04)[02]Hire of Audio & Visual Materials | B40: 262 | C40: 13 | D40: 18 | E40: Page 18: Hire of Audio & Visual Materials | G40: =OFFSET($C$1,G38-1,0) -> -1 | H40: Offset Value 2 | L40: Gateshead | M40: um | O40: 0 | P40: =IF((ROW()-5=$G$36),1,IF((M40=Coding!$H$75)+(Coding!$H$75="ALL")+(Coding!$H$75="U")*OR(M40="W",M40="su",M40="L",M40="MD",M40="UA")+(Coding!$H$75="na")*AND(M40<>"W",M40<>"su",M40<>"L",M40<>"MD",M40<>"UA",M40<>"SC",M40<>"SD",M40<>"p"),1,0)) -> 1 | Q40: FALSE | R40: 0 | S40: 1 | T40: 0 | V40: =IF((S40=1)*($J$6<22),INDEX($J$13:$J$33,SUM($S$7:S40),1),"") ->  | W40: =COUNTIF($T$7:T40,T40) -> 34 | Y40: 0 | Z40: =INDEX(V:V,SUMPRODUCT((OFFSET($T$7,0,0,AuthorityCounter2,1)=Y40)*1,(OFFSET($W$7,0,0,AuthorityCounter2,1)=COUNTIF($Y$7:Y40,Y40))*1,ROW(OFFSET($W$7,0,0,AuthorityCounter2,1)))) ->  | AA40: 0 | AB40: =IF((Y40=AB$2)*(Z40=AC$3)*(SUM($AB$6:AB39)=0),+Y40,0) -> 0 | AC40: 0 | AE40: =IF($AE$6=3,O40,SUM((CODE(MID(CONCATENATE(UPPER(M40),"aaaaaaaaaa"),{1;2},1))-30)*{1;0.01})) -> 55.47 | AF40: =COUNTIF($AE$7:$AE40,AE40) -> 6 | AH40: 55.46 | AI40: 55.46 | AJ40: =COUNTIF($AI$7:$AI40,AI40) -> 8 | AK40: =IF($AE$6=1,L40,OFFSET($L$1,SUMPRODUCT(--(OFFSET($AE$7,0,0,AuthorityCounter,1)=AI40),--(OFFSET($AF$7,0,0,AuthorityCounter,1)=COUNTIF($AI$7:AI40,AI40)),ROW(OFFSET($AF$7,0,0,AuthorityCounter,1)))-1,0)) -> Gateshead | AM40: =IF(VLOOKUP(AK40,colAM,IF($H$75="OC",8,5),FALSE)=1,MAX(AM$6:$AM39)+1,0) -> 34 | AN40: Gateshead | AO40: FALSE | AP40: =IF($AP$5,SUM(SUMPRODUCT(--AO$7:$AO40)*AO40,(SUMPRODUCT(--(AO$7:$AO40=FALSE))+SUMPRODUCT(--colAP))*(1-AO40)),ROW()-6) -> 34 | AQ40: Gateshead | AR40: Gateshead | IT40: Page 14: Hire of Audio & Visual Materials | IU40: £#,##0 | IV40: =AB7 -> 0
A41: (P.04)[03]Specific Grants | B41: 262 | C41: 14 | D41: 18 | E41: Page 18: Specific Grants | L41: Gloucestershire | M41: c | O41: 0 | P41: =IF((ROW()-5=$G$36),1,IF((M41=Coding!$H$75)+(Coding!$H$75="ALL")+(Coding!$H$75="U")*OR(M41="W",M41="su",M41="L",M41="MD",M41="UA")+(Coding!$H$75="na")*AND(M41<>"W",M41<>"su",M41<>"L",M41<>"MD",M41<>"UA",M41<>"SC",M41<>"SD",M41<>"p"),1,0)) -> 1 | Q41: FALSE | R41: 0 | S41: 1 | T41: 0 | V41: =IF((S41=1)*($J$6<22),INDEX($J$13:$J$33,SUM($S$7:S41),1),"") ->  | W41: =COUNTIF($T$7:T41,T41) -> 35 | Y41: 0 | Z41: =INDEX(V:V,SUMPRODUCT((OFFSET($T$7,0,0,AuthorityCounter2,1)=Y41)*1,(OFFSET($W$7,0,0,AuthorityCounter2,1)=COUNTIF($Y$7:Y41,Y41))*1,ROW(OFFSET($W$7,0,0,AuthorityCounter2,1)))) ->  | AA41: 0 | AB41: =IF((Y41=AB$2)*(Z41=AC$3)*(SUM($AB$6:AB40)=0),+Y41,0) -> 0 | AC41: 0 | AE41: =IF($AE$6=3,O41,SUM((CODE(MID(CONCATENATE(UPPER(M41),"aaaaaaaaaa"),{1;2},1))-30)*{1;0.01})) -> 37.67 | AF41: =COUNTIF($AE$7:$AE41,AE41) -> 8 | AH41: 55.46 | AI41: 55.46 | AJ41: =COUNTIF($AI$7:$AI41,AI41) -> 9 | AK41: =IF($AE$6=1,L41,OFFSET($L$1,SUMPRODUCT(--(OFFSET($AE$7,0,0,AuthorityCounter,1)=AI41),--(OFFSET($AF$7,0,0,AuthorityCounter,1)=COUNTIF($AI$7:AI41,AI41)),ROW(OFFSET($AF$7,0,0,AuthorityCounter,1)))-1,0)) -> Gloucestershire | AM41: =IF(VLOOKUP(AK41,colAM,IF($H$75="OC",8,5),FALSE)=1,MAX(AM$6:$AM40)+1,0) -> 35 | AN41: Gloucestershire | AO41: FALSE | AP41: =IF($AP$5,SUM(SUMPRODUCT(--AO$7:$AO41)*AO41,(SUMPRODUCT(--(AO$7:$AO41=FALSE))+SUMPRODUCT(--colAP))*(1-AO41)),ROW()-6) -> 35 | AQ41: Gloucestershire | AR41: Gloucestershire | IT41: Page 14: Specific Grants | IU41: £#,##0 | IV41: =AB7 -> 0
A42: (P.04)[04]Receipts from the Public | B42: 262 | C42: 15 | D42: 18 | E42: Page 18: Receipts from the Public | G42: CIPFA Public Libraries Profile | H42: Club (for Text, or Club) | L42: Greenwich | M42: ul | O42: 0 | P42: =IF((ROW()-5=$G$36),1,IF((M42=Coding!$H$75)+(Coding!$H$75="ALL")+(Coding!$H$75="U")*OR(M42="W",M42="su",M42="L",M42="MD",M42="UA")+(Coding!$H$75="na")*AND(M42<>"W",M42<>"su",M42<>"L",M42<>"MD",M42<>"UA",M42<>"SC",M42<>"SD",M42<>"p"),1,0)) -> 1 | Q42: FALSE | R42: 0 | S42: 1 | T42: 0 | V42: =IF((S42=1)*($J$6<22),INDEX($J$13:$J$33,SUM($S$7:S42),1),"") ->  | W42: =COUNTIF($T$7:T42,T42) -> 36 | Y42: 0 | Z42: =INDEX(V:V,SUMPRODUCT((OFFSET($T$7,0,0,AuthorityCounter2,1)=Y42)*1,(OFFSET($W$7,0,0,AuthorityCounter2,1)=COUNTIF($Y$7:Y42,Y42))*1,ROW(OFFSET($W$7,0,0,AuthorityCounter2,1)))) ->  | AA42: 0 | AB42: =IF((Y42=AB$2)*(Z42=AC$3)*(SUM($AB$6:AB41)=0),+Y42,0) -> 0 | AC42: 0 | AE42: =IF($AE$6=3,O42,SUM((CODE(MID(CONCATENATE(UPPER(M42),"aaaaaaaaaa"),{1;2},1))-30)*{1;0.01})) -> 55.46 | AF42: =COUNTIF($AE$7:$AE42,AE42) -> 10 | AH42: 55.46 | AI42: 55.46 | AJ42: =COUNTIF($AI$7:$AI42,AI42) -> 10 | AK42: =IF($AE$6=1,L42,OFFSET($L$1,SUMPRODUCT(--(OFFSET($AE$7,0,0,AuthorityCounter,1)=AI42),--(OFFSET($AF$7,0,0,AuthorityCounter,1)=COUNTIF($AI$7:AI42,AI42)),ROW(OFFSET($AF$7,0,0,AuthorityCounter,1)))-1,0)) -> Greenwich | AM42: =IF(VLOOKUP(AK42,colAM,IF($H$75="OC",8,5),FALSE)=1,MAX(AM$6:$AM41)+1,0) -> 36 | AN42: Greenwich | AO42: FALSE | AP42: =IF($AP$5,SUM(SUMPRODUCT(--AO$7:$AO42)*AO42,(SUMPRODUCT(--(AO$7:$AO42=FALSE))+SUMPRODUCT(--colAP))*(1-AO42)),ROW()-6) -> 36 | AQ42: Greenwich | AR42: Greenwich | IT42: Page 14: Receipts from the Public | IU42: £#,##0 | IV42: =AB7 -> 0
A43: (P.04)[05]Corporate Income | B43: 262 | C43: 16 | D43: 18 | E43: Page 18: Corporate Income | L43: Hackney | M43: ul | O43: 0 | P43: =IF((ROW()-5=$G$36),1,IF((M43=Coding!$H$75)+(Coding!$H$75="ALL")+(Coding!$H$75="U")*OR(M43="W",M43="su",M43="L",M43="MD",M43="UA")+(Coding!$H$75="na")*AND(M43<>"W",M43<>"su",M43<>"L",M43<>"MD",M43<>"UA",M43<>"SC",M43<>"SD",M43<>"p"),1,0)) -> 1 | Q43: FALSE | R43: 0 | S43: 1 | T43: 0 | V43: =IF((S43=1)*($J$6<22),INDEX($J$13:$J$33,SUM($S$7:S43),1),"") ->  | W43: =COUNTIF($T$7:T43,T43) -> 37 | Y43: 0 | Z43: =INDEX(V:V,SUMPRODUCT((OFFSET($T$7,0,0,AuthorityCounter2,1)=Y43)*1,(OFFSET($W$7,0,0,AuthorityCounter2,1)=COUNTIF($Y$7:Y43,Y43))*1,ROW(OFFSET($W$7,0,0,AuthorityCounter2,1)))) ->  | AA43: 0 | AB43: =IF((Y43=AB$2)*(Z43=AC$3)*(SUM($AB$6:AB42)=0),+Y43,0) -> 0 | AC43: 0 | AE43: =IF($AE$6=3,O43,SUM((CODE(MID(CONCATENATE(UPPER(M43),"aaaaaaaaaa"),{1;2},1))-30)*{1;0.01})) -> 55.46 | AF43: =COUNTIF($AE$7:$AE43,AE43) -> 11 | AH43: 55.46 | AI43: 55.46 | AJ43: =COUNTIF($AI$7:$AI43,AI43) -> 11 | AK43: =IF($AE$6=1,L43,OFFSET($L$1,SUMPRODUCT(--(OFFSET($AE$7,0,0,AuthorityCounter,1)=AI43),--(OFFSET($AF$7,0,0,AuthorityCounter,1)=COUNTIF($AI$7:AI43,AI43)),ROW(OFFSET($AF$7,0,0,AuthorityCounter,1)))-1,0)) -> Hackney | AM43: =IF(VLOOKUP(AK43,colAM,IF($H$75="OC",8,5),FALSE)=1,MAX(AM$6:$AM42)+1,0) -> 37 | AN43: Hackney | AO43: FALSE | AP43: =IF($AP$5,SUM(SUMPRODUCT(--AO$7:$AO43)*AO43,(SUMPRODUCT(--(AO$7:$AO43=FALSE))+SUMPRODUCT(--colAP))*(1-AO43)),ROW()-6) -> 37 | AQ43: Hackney | AR43: Hackney | IT43: Page 14: Corporate Income | IU43: £#,##0 | IV43: =AB7 -> 0
A44: (P.04)[06]Other Income | B44: 262 | C44: 17 | D44: 18 | E44: Page 18: Other Income | G44: =MATCH(I89,I95:I106,FALSE) ->  | L44: Halton | M44: uu | O44: 0 | P44: =IF((ROW()-5=$G$36),1,IF((M44=Coding!$H$75)+(Coding!$H$75="ALL")+(Coding!$H$75="U")*OR(M44="W",M44="su",M44="L",M44="MD",M44="UA")+(Coding!$H$75="na")*AND(M44<>"W",M44<>"su",M44<>"L",M44<>"MD",M44<>"UA",M44<>"SC",M44<>"SD",M44<>"p"),1,0)) -> 1 | Q44: FALSE | R44: 0 | S44: 1 | T44: 0 | V44: =IF((S44=1)*($J$6<22),INDEX($J$13:$J$33,SUM($S$7:S44),1),"") ->  | W44: =COUNTIF($T$7:T44,T44) -> 38 | Y44: 0 | Z44: =INDEX(V:V,SUMPRODUCT((OFFSET($T$7,0,0,AuthorityCounter2,1)=Y44)*1,(OFFSET($W$7,0,0,AuthorityCounter2,1)=COUNTIF($Y$7:Y44,Y44))*1,ROW(OFFSET($W$7,0,0,AuthorityCounter2,1)))) ->  | AA44: 0 | AB44: =IF((Y44=AB$2)*(Z44=AC$3)*(SUM($AB$6:AB43)=0),+Y44,0) -> 0 | AC44: 0 | AE44: =IF($AE$6=3,O44,SUM((CODE(MID(CONCATENATE(UPPER(M44),"aaaaaaaaaa"),{1;2},1))-30)*{1;0.01})) -> 55.55 | AF44: =COUNTIF($AE$7:$AE44,AE44) -> 13 | AH44: 55.46 | AI44: 55.46 | AJ44: =COUNTIF($AI$7:$AI44,AI44) -> 12 | AK44: =IF($AE$6=1,L44,OFFSET($L$1,SUMPRODUCT(--(OFFSET($AE$7,0,0,AuthorityCounter,1)=AI44),--(OFFSET($AF$7,0,0,AuthorityCounter,1)=COUNTIF($AI$7:AI44,AI44)),ROW(OFFSET($AF$7,0,0,AuthorityCounter,1)))-1,0)) -> Halton | AM44: =IF(VLOOKUP(AK44,colAM,IF($H$75="OC",8,5),FALSE)=1,MAX(AM$6:$AM43)+1,0) -> 38 | AN44: Halton | AO44: FALSE | AP44: =IF($AP$5,SUM(SUMPRODUCT(--AO$7:$AO44)*AO44,(SUMPRODUCT(--(AO$7:$AO44=FALSE))+SUMPRODUCT(--colAP))*(1-AO44)),ROW()-6) -> 38 | AQ44: Halton | AR44: Halton | IT44: Page 14: Other Income | IU44: £#,##0 | IV44: =AB7 -> 0
A45: (P.05)[01]Reservation Fees | B45: 262 | C45: 18 | D45: 19 | E45: Page 19: Reservation Fees | L45: Hammersmith & Fulham | M45: ul | O45: 0 | P45: =IF((ROW()-5=$G$36),1,IF((M45=Coding!$H$75)+(Coding!$H$75="ALL")+(Coding!$H$75="U")*OR(M45="W",M45="su",M45="L",M45="MD",M45="UA")+(Coding!$H$75="na")*AND(M45<>"W",M45<>"su",M45<>"L",M45<>"MD",M45<>"UA",M45<>"SC",M45<>"SD",M45<>"p"),1,0)) -> 1 | Q45: FALSE | R45: 0 | S45: 1 | T45: 0 | V45: =IF((S45=1)*($J$6<22),INDEX($J$13:$J$33,SUM($S$7:S45),1),"") ->  | W45: =COUNTIF($T$7:T45,T45) -> 39 | Y45: 0 | Z45: =INDEX(V:V,SUMPRODUCT((OFFSET($T$7,0,0,AuthorityCounter2,1)=Y45)*1,(OFFSET($W$7,0,0,AuthorityCounter2,1)=COUNTIF($Y$7:Y45,Y45))*1,ROW(OFFSET($W$7,0,0,AuthorityCounter2,1)))) ->  | AA45: 0 | AB45: =IF((Y45=AB$2)*(Z45=AC$3)*(SUM($AB$6:AB44)=0),+Y45,0) -> 0 | AC45: 0 | AE45: =IF($AE$6=3,O45,SUM((CODE(MID(CONCATENATE(UPPER(M45),"aaaaaaaaaa"),{1;2},1))-30)*{1;0.01})) -> 55.46 | AF45: =COUNTIF($AE$7:$AE45,AE45) -> 12 | AH45: 55.46 | AI45: 55.46 | AJ45: =COUNTIF($AI$7:$AI45,AI45) -> 13 | AK45: =IF($AE$6=1,L45,OFFSET($L$1,SUMPRODUCT(--(OFFSET($AE$7,0,0,AuthorityCounter,1)=AI45),--(OFFSET($AF$7,0,0,AuthorityCounter,1)=COUNTIF($AI$7:AI45,AI45)),ROW(OFFSET($AF$7,0,0,AuthorityCounter,1)))-1,0)) -> Hammersmith & Fulham | AM45: =IF(VLOOKUP(AK45,colAM,IF($H$75="OC",8,5),FALSE)=1,MAX(AM$6:$AM44)+1,0) -> 39 | AN45: Hammersmith & Fulham | AO45: FALSE | AP45: =IF($AP$5,SUM(SUMPRODUCT(--AO$7:$AO45)*AO45,(SUMPRODUCT(--(AO$7:$AO45=FALSE))+SUMPRODUCT(--colAP))*(1-AO45)),ROW()-6) -> 39 | AQ45: Hammersmith & Fulham | AR45: Hammersmith & Fulham | IT45: Page 15: Reservation Fees | IU45: £#,##0 | IV45: =AB7 -> 0
A46: (P.05)[02]Electronic Revenue | B46: 262 | C46: 19 | D46: 19 | E46: Page 19: Electronic Revenue | L46: Hampshire | M46: c | O46: 0 | P46: =IF((ROW()-5=$G$36),1,IF((M46=Coding!$H$75)+(Coding!$H$75="ALL")+(Coding!$H$75="U")*OR(M46="W",M46="su",M46="L",M46="MD",M46="UA")+(Coding!$H$75="na")*AND(M46<>"W",M46<>"su",M46<>"L",M46<>"MD",M46<>"UA",M46<>"SC",M46<>"SD",M46<>"p"),1,0)) -> 1 | Q46: FALSE | R46: 0 | S46: 1 | T46: 0 | V46: =IF((S46=1)*($J$6<22),INDEX($J$13:$J$33,SUM($S$7:S46),1),"") ->  | W46: =COUNTIF($T$7:T46,T46) -> 40 | Y46: 0 | Z46: =INDEX(V:V,SUMPRODUCT((OFFSET($T$7,0,0,AuthorityCounter2,1)=Y46)*1,(OFFSET($W$7,0,0,AuthorityCounter2,1)=COUNTIF($Y$7:Y46,Y46))*1,ROW(OFFSET($W$7,0,0,AuthorityCounter2,1)))) ->  | AA46: 0 | AB46: =IF((Y46=AB$2)*(Z46=AC$3)*(SUM($AB$6:AB45)=0),+Y46,0) -> 0 | AC46: 0 | AE46: =IF($AE$6=3,O46,SUM((CODE(MID(CONCATENATE(UPPER(M46),"aaaaaaaaaa"),{1;2},1))-30)*{1;0.01})) -> 37.67 | AF46: =COUNTIF($AE$7:$AE46,AE46) -> 9 | AH46: 55.46 | AI46: 55.46 | AJ46: =COUNTIF($AI$7:$AI46,AI46) -> 14 | AK46: =IF($AE$6=1,L46,OFFSET($L$1,SUMPRODUCT(--(OFFSET($AE$7,0,0,AuthorityCounter,1)=AI46),--(OFFSET($AF$7,0,0,AuthorityCounter,1)=COUNTIF($AI$7:AI46,AI46)),ROW(OFFSET($AF$7,0,0,AuthorityCounter,1)))-1,0)) -> Hampshire | AM46: =IF(VLOOKUP(AK46,colAM,IF($H$75="OC",8,5),FALSE)=1,MAX(AM$6:$AM45)+1,0) -> 40 | AN46: Hampshire | AO46: FALSE | AP46: =IF($AP$5,SUM(SUMPRODUCT(--AO$7:$AO46)*AO46,(SUMPRODUCT(--(AO$7:$AO46=FALSE))+SUMPRODUCT(--colAP))*(1-AO46)),ROW()-6) -> 40 | AQ46: Hampshire | AR46: Hampshire | IT46: Page 15: Electronic Revenue | IU46: £#,##0 | IV46: =AB7 -> 0
A47: (P.05)[03]Lettings | B47: 262 | C47: 20 | D47: 19 | E47: Page 19: Lettings | L47: Haringey | M47: ul | O47: 0 | P47: =IF((ROW()-5=$G$36),1,IF((M47=Coding!$H$75)+(Coding!$H$75="ALL")+(Coding!$H$75="U")*OR(M47="W",M47="su",M47="L",M47="MD",M47="UA")+(Coding!$H$75="na")*AND(M47<>"W",M47<>"su",M47<>"L",M47<>"MD",M47<>"UA",M47<>"SC",M47<>"SD",M47<>"p"),1,0)) -> 1 | Q47: FALSE | R47: 0 | S47: 1 | T47: 0 | V47: =IF((S47=1)*($J$6<22),INDEX($J$13:$J$33,SUM($S$7:S47),1),"") ->  | W47: =COUNTIF($T$7:T47,T47) -> 41 | Y47: 0 | Z47: =INDEX(V:V,SUMPRODUCT((OFFSET($T$7,0,0,AuthorityCounter2,1)=Y47)*1,(OFFSET($W$7,0,0,AuthorityCounter2,1)=COUNTIF($Y$7:Y47,Y47))*1,ROW(OFFSET($W$7,0,0,AuthorityCounter2,1)))) ->  | AA47: 0 | AB47: =IF((Y47=AB$2)*(Z47=AC$3)*(SUM($AB$6:AB46)=0),+Y47,0) -> 0 | AC47: 0 | AE47: =IF($AE$6=3,O47,SUM((CODE(MID(CONCATENATE(UPPER(M47),"aaaaaaaaaa"),{1;2},1))-30)*{1;0.01})) -> 55.46 | AF47: =COUNTIF($AE$7:$AE47,AE47) -> 13 | AH47: 55.46 | AI47: 55.46 | AJ47: =COUNTIF($AI$7:$AI47,AI47) -> 15 | AK47: =IF($AE$6=1,L47,OFFSET($L$1,SUMPRODUCT(--(OFFSET($AE$7,0,0,AuthorityCounter,1)=AI47),--(OFFSET($AF$7,0,0,AuthorityCounter,1)=COUNTIF($AI$7:AI47,AI47)),ROW(OFFSET($AF$7,0,0,AuthorityCounter,1)))-1,0)) -> Haringey | AM47: =IF(VLOOKUP(AK47,colAM,IF($H$75="OC",8,5),FALSE)=1,MAX(AM$6:$AM46)+1,0) -> 41 | AN47: Haringey | AO47: FALSE | AP47: =IF($AP$5,SUM(SUMPRODUCT(--AO$7:$AO47)*AO47,(SUMPRODUCT(--(AO$7:$AO47=FALSE))+SUMPRODUCT(--colAP))*(1-AO47)),ROW()-6) -> 41 | AQ47: Haringey | AR47: Haringey | IT47: Page 15: Lettings | IU47: £#,##0 | IV47: =AB7 -> 0
A48: (P.05)[04]Provision to other LAs | B48: 262 | C48: 21 | D48: 19 | E48: Page 19: Provision to other LAs | L48: Harrow | M48: ul | O48: 0 | P48: =IF((ROW()-5=$G$36),1,IF((M48=Coding!$H$75)+(Coding!$H$75="ALL")+(Coding!$H$75="U")*OR(M48="W",M48="su",M48="L",M48="MD",M48="UA")+(Coding!$H$75="na")*AND(M48<>"W",M48<>"su",M48<>"L",M48<>"MD",M48<>"UA",M48<>"SC",M48<>"SD",M48<>"p"),1,0)) -> 1 | Q48: FALSE | R48: 0 | S48: 1 | T48: 0 | V48: =IF((S48=1)*($J$6<22),INDEX($J$13:$J$33,SUM($S$7:S48),1),"") ->  | W48: =COUNTIF($T$7:T48,T48) -> 42 | Y48: 0 | Z48: =INDEX(V:V,SUMPRODUCT((OFFSET($T$7,0,0,AuthorityCounter2,1)=Y48)*1,(OFFSET($W$7,0,0,AuthorityCounter2,1)=COUNTIF($Y$7:Y48,Y48))*1,ROW(OFFSET($W$7,0,0,AuthorityCounter2,1)))) ->  | AA48: 0 | AB48: =IF((Y48=AB$2)*(Z48=AC$3)*(SUM($AB$6:AB47)=0),+Y48,0) -> 0 | AC48: 0 | AE48: =IF($AE$6=3,O48,SUM((CODE(MID(CONCATENATE(UPPER(M48),"aaaaaaaaaa"),{1;2},1))-30)*{1;0.01})) -> 55.46 | AF48: =COUNTIF($AE$7:$AE48,AE48) -> 14 | AH48: 55.46 | AI48: 55.46 | AJ48: =COUNTIF($AI$7:$AI48,AI48) -> 16 | AK48: =IF($AE$6=1,L48,OFFSET($L$1,SUMPRODUCT(--(OFFSET($AE$7,0,0,AuthorityCounter,1)=AI48),--(OFFSET($AF$7,0,0,AuthorityCounter,1)=COUNTIF($AI$7:AI48,AI48)),ROW(OFFSET($AF$7,0,0,AuthorityCounter,1)))-1,0)) -> Harrow | AM48: =IF(VLOOKUP(AK48,colAM,IF($H$75="OC",8,5),FALSE)=1,MAX(AM$6:$AM47)+1,0) -> 42 | AN48: Harrow | AO48: FALSE | AP48: =IF($AP$5,SUM(SUMPRODUCT(--AO$7:$AO48)*AO48,(SUMPRODUCT(--(AO$7:$AO48=FALSE))+SUMPRODUCT(--colAP))*(1-AO48)),ROW()-6) -> 42 | AQ48: Harrow | AR48: Harrow | IT48: Page 15: Provision to other LAs | IU48: £#,##0 | IV48: =AB7 -> 0
A49: (P.06)[01]Average Cost per Acquisition (Books) | B49: 262 | C49: 22 | D49: 20 | E49: Page 20: Average Cost per Acquisition (Books) | L49: Havering | M49: ul | O49: 0 | P49: =IF((ROW()-5=$G$36),1,IF((M49=Coding!$H$75)+(Coding!$H$75="ALL")+(Coding!$H$75="U")*OR(M49="W",M49="su",M49="L",M49="MD",M49="UA")+(Coding!$H$75="na")*AND(M49<>"W",M49<>"su",M49<>"L",M49<>"MD",M49<>"UA",M49<>"SC",M49<>"SD",M49<>"p"),1,0)) -> 1 | Q49: FALSE | R49: 0 | S49: 1 | T49: 0 | V49: =IF((S49=1)*($J$6<22),INDEX($J$13:$J$33,SUM($S$7:S49),1),"") ->  | W49: =COUNTIF($T$7:T49,T49) -> 43 | Y49: 0 | Z49: =INDEX(V:V,SUMPRODUCT((OFFSET($T$7,0,0,AuthorityCounter2,1)=Y49)*1,(OFFSET($W$7,0,0,AuthorityCounter2,1)=COUNTIF($Y$7:Y49,Y49))*1,ROW(OFFSET($W$7,0,0,AuthorityCounter2,1)))) ->  | AA49: 0 | AB49: =IF((Y49=AB$2)*(Z49=AC$3)*(SUM($AB$6:AB48)=0),+Y49,0) -> 0 | AC49: 0 | AE49: =IF($AE$6=3,O49,SUM((CODE(MID(CONCATENATE(UPPER(M49),"aaaaaaaaaa"),{1;2},1))-30)*{1;0.01})) -> 55.46 | AF49: =COUNTIF($AE$7:$AE49,AE49) -> 15 | AH49: 55.46 | AI49: 55.46 | AJ49: =COUNTIF($AI$7:$AI49,AI49) -> 17 | AK49: =IF($AE$6=1,L49,OFFSET($L$1,SUMPRODUCT(--(OFFSET($AE$7,0,0,AuthorityCounter,1)=AI49),--(OFFSET($AF$7,0,0,AuthorityCounter,1)=COUNTIF($AI$7:AI49,AI49)),ROW(OFFSET($AF$7,0,0,AuthorityCounter,1)))-1,0)) -> Havering | AM49: =IF(VLOOKUP(AK49,colAM,IF($H$75="OC",8,5),FALSE)=1,MAX(AM$6:$AM48)+1,0) -> 43 | AN49: Havering | AO49: FALSE | AP49: =IF($AP$5,SUM(SUMPRODUCT(--AO$7:$AO49)*AO49,(SUMPRODUCT(--(AO$7:$AO49=FALSE))+SUMPRODUCT(--colAP))*(1-AO49)),ROW()-6) -> 43 | AQ49: Havering | AR49: Havering | IT49: Page 16: Average Cost per Acquisition (Books) | IU49: £#,##0.00 | IV49: =AB7 -> 0
A50: (P.06)[02]Cost per Visitor | B50: 262 | C50: 23 | D50: 20 | E50: Page 20: Cost per Visitor | L50: Herefordshire | M50: uu | O50: 0 | P50: =IF((ROW()-5=$G$36),1,IF((M50=Coding!$H$75)+(Coding!$H$75="ALL")+(Coding!$H$75="U")*OR(M50="W",M50="su",M50="L",M50="MD",M50="UA")+(Coding!$H$75="na")*AND(M50<>"W",M50<>"su",M50<>"L",M50<>"MD",M50<>"UA",M50<>"SC",M50<>"SD",M50<>"p"),1,0)) -> 1 | Q50: FALSE | R50: 0 | S50: 1 | T50: 0 | V50: =IF((S50=1)*($J$6<22),INDEX($J$13:$J$33,SUM($S$7:S50),1),"") ->  | W50: =COUNTIF($T$7:T50,T50) -> 44 | Y50: 0 | Z50: =INDEX(V:V,SUMPRODUCT((OFFSET($T$7,0,0,AuthorityCounter2,1)=Y50)*1,(OFFSET($W$7,0,0,AuthorityCounter2,1)=COUNTIF($Y$7:Y50,Y50))*1,ROW(OFFSET($W$7,0,0,AuthorityCounter2,1)))) ->  | AA50: 0 | AB50: =IF((Y50=AB$2)*(Z50=AC$3)*(SUM($AB$6:AB49)=0),+Y50,0) -> 0 | AC50: 0 | AE50: =IF($AE$6=3,O50,SUM((CODE(MID(CONCATENATE(UPPER(M50),"aaaaaaaaaa"),{1;2},1))-30)*{1;0.01})) -> 55.55 | AF50: =COUNTIF($AE$7:$AE50,AE50) -> 14 | AH50: 55.46 | AI50: 55.46 | AJ50: =COUNTIF($AI$7:$AI50,AI50) -> 18 | AK50: =IF($AE$6=1,L50,OFFSET($L$1,SUMPRODUCT(--(OFFSET($AE$7,0,0,AuthorityCounter,1)=AI50),--(OFFSET($AF$7,0,0,AuthorityCounter,1)=COUNTIF($AI$7:AI50,AI50)),ROW(OFFSET($AF$7,0,0,AuthorityCounter,1)))-1,0)) -> Herefordshire | AM50: =IF(VLOOKUP(AK50,colAM,IF($H$75="OC",8,5),FALSE)=1,MAX(AM$6:$AM49)+1,0) -> 44 | AN50: Herefordshire | AO50: FALSE | AP50: =IF($AP$5,SUM(SUMPRODUCT(--AO$7:$AO50)*AO50,(SUMPRODUCT(--(AO$7:$AO50=FALSE))+SUMPRODUCT(--colAP))*(1-AO50)),ROW()-6) -> 44 | AQ50: Herefordshire | AR50: Herefordshire | IT50: Page 16: Cost per Visitor | IU50: £#,##0.00 | IV50: =AB7 -> 0
A51: (P.06)[03]Employee Expenditure as a % of Revenue Expenditure | B51: 262 | C51: 24 | D51: 20 | E51: Page 20: Employee Expenditure as a % of Revenue Expenditure | L51: Hertfordshire | M51: c | O51: 0 | P51: =IF((ROW()-5=$G$36),1,IF((M51=Coding!$H$75)+(Coding!$H$75="ALL")+(Coding!$H$75="U")*OR(M51="W",M51="su",M51="L",M51="MD",M51="UA")+(Coding!$H$75="na")*AND(M51<>"W",M51<>"su",M51<>"L",M51<>"MD",M51<>"UA",M51<>"SC",M51<>"SD",M51<>"p"),1,0)) -> 1 | Q51: FALSE | R51: 0 | S51: 1 | T51: 0 | V51: =IF((S51=1)*($J$6<22),INDEX($J$13:$J$33,SUM($S$7:S51),1),"") ->  | W51: =COUNTIF($T$7:T51,T51) -> 45 | Y51: 0 | Z51: =INDEX(V:V,SUMPRODUCT((OFFSET($T$7,0,0,AuthorityCounter2,1)=Y51)*1,(OFFSET($W$7,0,0,AuthorityCounter2,1)=COUNTIF($Y$7:Y51,Y51))*1,ROW(OFFSET($W$7,0,0,AuthorityCounter2,1)))) ->  | AA51: 0 | AB51: =IF((Y51=AB$2)*(Z51=AC$3)*(SUM($AB$6:AB50)=0),+Y51,0) -> 0 | AC51: 0 | AE51: =IF($AE$6=3,O51,SUM((CODE(MID(CONCATENATE(UPPER(M51),"aaaaaaaaaa"),{1;2},1))-30)*{1;0.01})) -> 37.67 | AF51: =COUNTIF($AE$7:$AE51,AE51) -> 10 | AH51: 55.46 | AI51: 55.46 | AJ51: =COUNTIF($AI$7:$AI51,AI51) -> 19 | AK51: =IF($AE$6=1,L51,OFFSET($L$1,SUMPRODUCT(--(OFFSET($AE$7,0,0,AuthorityCounter,1)=AI51),--(OFFSET($AF$7,0,0,AuthorityCounter,1)=COUNTIF($AI$7:AI51,AI51)),ROW(OFFSET($AF$7,0,0,AuthorityCounter,1)))-1,0)) -> Hertfordshire | AM51: =IF(VLOOKUP(AK51,colAM,IF($H$75="OC",8,5),FALSE)=1,MAX(AM$6:$AM50)+1,0) -> 45 | AN51: Hertfordshire | AO51: FALSE | AP51: =IF($AP$5,SUM(SUMPRODUCT(--AO$7:$AO51)*AO51,(SUMPRODUCT(--(AO$7:$AO51=FALSE))+SUMPRODUCT(--colAP))*(1-AO51)),ROW()-6) -> 45 | AQ51: Hertfordshire | AR51: Hertfordshire | IT51: Page 16: Employee Expenditure as a % of Revenue Expenditure | IU51: 0% | IV51: =AB7 -> 0
A52: (P.06)[04]Material Expenditure as a % of Revenue Expenditure | B52: 262 | C52: 25 | D52: 20 | E52: Page 20: Material Expenditure as a % of Revenue Expenditure | L52: Hounslow | M52: ul | O52: 0 | P52: =IF((ROW()-5=$G$36),1,IF((M52=Coding!$H$75)+(Coding!$H$75="ALL")+(Coding!$H$75="U")*OR(M52="W",M52="su",M52="L",M52="MD",M52="UA")+(Coding!$H$75="na")*AND(M52<>"W",M52<>"su",M52<>"L",M52<>"MD",M52<>"UA",M52<>"SC",M52<>"SD",M52<>"p"),1,0)) -> 1 | Q52: FALSE | R52: 0 | S52: 1 | T52: 0 | V52: =IF((S52=1)*($J$6<22),INDEX($J$13:$J$33,SUM($S$7:S52),1),"") ->  | W52: =COUNTIF($T$7:T52,T52) -> 46 | Y52: 0 | Z52: =INDEX(V:V,SUMPRODUCT((OFFSET($T$7,0,0,AuthorityCounter2,1)=Y52)*1,(OFFSET($W$7,0,0,AuthorityCounter2,1)=COUNTIF($Y$7:Y52,Y52))*1,ROW(OFFSET($W$7,0,0,AuthorityCounter2,1)))) ->  | AA52: 0 | AB52: =IF((Y52=AB$2)*(Z52=AC$3)*(SUM($AB$6:AB51)=0),+Y52,0) -> 0 | AC52: 0 | AE52: =IF($AE$6=3,O52,SUM((CODE(MID(CONCATENATE(UPPER(M52),"aaaaaaaaaa"),{1;2},1))-30)*{1;0.01})) -> 55.46 | AF52: =COUNTIF($AE$7:$AE52,AE52) -> 16 | AH52: 55.46 | AI52: 55.46 | AJ52: =COUNTIF($AI$7:$AI52,AI52) -> 20 | AK52: =IF($AE$6=1,L52,OFFSET($L$1,SUMPRODUCT(--(OFFSET($AE$7,0,0,AuthorityCounter,1)=AI52),--(OFFSET($AF$7,0,0,AuthorityCounter,1)=COUNTIF($AI$7:AI52,AI52)),ROW(OFFSET($AF$7,0,0,AuthorityCounter,1)))-1,0)) -> Hounslow | AM52: =IF(VLOOKUP(AK52,colAM,IF($H$75="OC",8,5),FALSE)=1,MAX(AM$6:$AM51)+1,0) -> 46 | AN52: Hounslow | AO52: FALSE | AP52: =IF($AP$5,SUM(SUMPRODUCT(--AO$7:$AO52)*AO52,(SUMPRODUCT(--(AO$7:$AO52=FALSE))+SUMPRODUCT(--colAP))*(1-AO52)),ROW()-6) -> 46 | AQ52: Hounslow | AR52: Hounslow | IT52: Page 16: Material Expenditure as a % of Revenue Expenditure | IU52: 0% | IV52: =AB7 -> 0
A53: (P.06)[05]Support Service Costs as a % of Revenue Expenditure | B53: 262 | C53: 26 | D53: 20 | E53: Page 20: Support Service Costs as a % of Revenue Expenditure | L53: Isle of Wight | M53: uu | O53: 0 | P53: =IF((ROW()-5=$G$36),1,IF((M53=Coding!$H$75)+(Coding!$H$75="ALL")+(Coding!$H$75="U")*OR(M53="W",M53="su",M53="L",M53="MD",M53="UA")+(Coding!$H$75="na")*AND(M53<>"W",M53<>"su",M53<>"L",M53<>"MD",M53<>"UA",M53<>"SC",M53<>"SD",M53<>"p"),1,0)) -> 1 | Q53: FALSE | R53: 0 | S53: 1 | T53: 0 | V53: =IF((S53=1)*($J$6<22),INDEX($J$13:$J$33,SUM($S$7:S53),1),"") ->  | W53: =COUNTIF($T$7:T53,T53) -> 47 | Y53: 0 | Z53: =INDEX(V:V,SUMPRODUCT((OFFSET($T$7,0,0,AuthorityCounter2,1)=Y53)*1,(OFFSET($W$7,0,0,AuthorityCounter2,1)=COUNTIF($Y$7:Y53,Y53))*1,ROW(OFFSET($W$7,0,0,AuthorityCounter2,1)))) ->  | AA53: 0 | AB53: =IF((Y53=AB$2)*(Z53=AC$3)*(SUM($AB$6:AB52)=0),+Y53,0) -> 0 | AC53: 0 | AE53: =IF($AE$6=3,O53,SUM((CODE(MID(CONCATENATE(UPPER(M53),"aaaaaaaaaa"),{1;2},1))-30)*{1;0.01})) -> 55.55 | AF53: =COUNTIF($AE$7:$AE53,AE53) -> 15 | AH53: 55.46 | AI53: 55.46 | AJ53: =COUNTIF($AI$7:$AI53,AI53) -> 21 | AK53: =IF($AE$6=1,L53,OFFSET($L$1,SUMPRODUCT(--(OFFSET($AE$7,0,0,AuthorityCounter,1)=AI53),--(OFFSET($AF$7,0,0,AuthorityCounter,1)=COUNTIF($AI$7:AI53,AI53)),ROW(OFFSET($AF$7,0,0,AuthorityCounter,1)))-1,0)) -> Isle of Wight | AM53: =IF(VLOOKUP(AK53,colAM,IF($H$75="OC",8,5),FALSE)=1,MAX(AM$6:$AM52)+1,0) -> 47 | AN53: Isle of Wight | AO53: FALSE | AP53: =IF($AP$5,SUM(SUMPRODUCT(--AO$7:$AO53)*AO53,(SUMPRODUCT(--(AO$7:$AO53=FALSE))+SUMPRODUCT(--colAP))*(1-AO53)),ROW()-6) -> 47 | AQ53: Isle of Wight | AR53: Isle of Wight | IT53: Page 16: Support Service Costs as a % of Revenue Expenditure | IU53: 0% | IV53: =AB7 -> 0
A54: (P.06)[06]Cost per Available Hour | B54: 262 | C54: 27 | D54: 20 | E54: Page 20: Cost per Available Hour | L54: Islington | M54: ul | O54: 0 | P54: =IF((ROW()-5=$G$36),1,IF((M54=Coding!$H$75)+(Coding!$H$75="ALL")+(Coding!$H$75="U")*OR(M54="W",M54="su",M54="L",M54="MD",M54="UA")+(Coding!$H$75="na")*AND(M54<>"W",M54<>"su",M54<>"L",M54<>"MD",M54<>"UA",M54<>"SC",M54<>"SD",M54<>"p"),1,0)) -> 1 | Q54: FALSE | R54: 0 | S54: 1 | T54: 0 | V54: =IF((S54=1)*($J$6<22),INDEX($J$13:$J$33,SUM($S$7:S54),1),"") ->  | W54: =COUNTIF($T$7:T54,T54) -> 48 | Y54: 0 | Z54: =INDEX(V:V,SUMPRODUCT((OFFSET($T$7,0,0,AuthorityCounter2,1)=Y54)*1,(OFFSET($W$7,0,0,AuthorityCounter2,1)=COUNTIF($Y$7:Y54,Y54))*1,ROW(OFFSET($W$7,0,0,AuthorityCounter2,1)))) ->  | AA54: 0 | AB54: =IF((Y54=AB$2)*(Z54=AC$3)*(SUM($AB$6:AB53)=0),+Y54,0) -> 0 | AC54: 0 | AE54: =IF($AE$6=3,O54,SUM((CODE(MID(CONCATENATE(UPPER(M54),"aaaaaaaaaa"),{1;2},1))-30)*{1;0.01})) -> 55.46 | AF54: =COUNTIF($AE$7:$AE54,AE54) -> 17 | AH54: 55.46 | AI54: 55.46 | AJ54: =COUNTIF($AI$7:$AI54,AI54) -> 22 | AK54: =IF($AE$6=1,L54,OFFSET($L$1,SUMPRODUCT(--(OFFSET($AE$7,0,0,AuthorityCounter,1)=AI54),--(OFFSET($AF$7,0,0,AuthorityCounter,1)=COUNTIF($AI$7:AI54,AI54)),ROW(OFFSET($AF$7,0,0,AuthorityCounter,1)))-1,0)) -> Islington | AM54: =IF(VLOOKUP(AK54,colAM,IF($H$75="OC",8,5),FALSE)=1,MAX(AM$6:$AM53)+1,0) -> 48 | AN54: Islington | AO54: FALSE | AP54: =IF($AP$5,SUM(SUMPRODUCT(--AO$7:$AO54)*AO54,(SUMPRODUCT(--(AO$7:$AO54=FALSE))+SUMPRODUCT(--colAP))*(1-AO54)),ROW()-6) -> 48 | AQ54: Islington | AR54: Islington | IT54: Page 16: Cost per Available Hour | IU54: £#,##0 | IV54: =AB7 -> 0
A55: (P.07)[01]Estimated Net Expenditure 2018-19 | B55: 262 | C55: 28 | D55: 21 | E55: Page 21: Estimated Net Expenditure 2018-19 | L55: Kensington & Chelsea | M55: ul | O55: 0 | P55: =IF((ROW()-5=$G$36),1,IF((M55=Coding!$H$75)+(Coding!$H$75="ALL")+(Coding!$H$75="U")*OR(M55="W",M55="su",M55="L",M55="MD",M55="UA")+(Coding!$H$75="na")*AND(M55<>"W",M55<>"su",M55<>"L",M55<>"MD",M55<>"UA",M55<>"SC",M55<>"SD",M55<>"p"),1,0)) -> 1 | Q55: FALSE | R55: 0 | S55: 1 | T55: 0 | V55: =IF((S55=1)*($J$6<22),INDEX($J$13:$J$33,SUM($S$7:S55),1),"") ->  | W55: =COUNTIF($T$7:T55,T55) -> 49 | Y55: 0 | Z55: =INDEX(V:V,SUMPRODUCT((OFFSET($T$7,0,0,AuthorityCounter2,1)=Y55)*1,(OFFSET($W$7,0,0,AuthorityCounter2,1)=COUNTIF($Y$7:Y55,Y55))*1,ROW(OFFSET($W$7,0,0,AuthorityCounter2,1)))) ->  | AA55: 0 | AB55: =IF((Y55=AB$2)*(Z55=AC$3)*(SUM($AB$6:AB54)=0),+Y55,0) -> 0 | AC55: 0 | AE55: =IF($AE$6=3,O55,SUM((CODE(MID(CONCATENATE(UPPER(M55),"aaaaaaaaaa"),{1;2},1))-30)*{1;0.01})) -> 55.46 | AF55: =COUNTIF($AE$7:$AE55,AE55) -> 18 | AH55: 55.46 | AI55: 55.46 | AJ55: =COUNTIF($AI$7:$AI55,AI55) -> 23 | AK55: =IF($AE$6=1,L55,OFFSET($L$1,SUMPRODUCT(--(OFFSET($AE$7,0,0,AuthorityCounter,1)=AI55),--(OFFSET($AF$7,0,0,AuthorityCounter,1)=COUNTIF($AI$7:AI55,AI55)),ROW(OFFSET($AF$7,0,0,AuthorityCounter,1)))-1,0)) -> Kensington & Chelsea | AM55: =IF(VLOOKUP(AK55,colAM,IF($H$75="OC",8,5),FALSE)=1,MAX(AM$6:$AM54)+1,0) -> 49 | AN55: Kensington & Chelsea | AO55: FALSE | AP55: =IF($AP$5,SUM(SUMPRODUCT(--AO$7:$AO55)*AO55,(SUMPRODUCT(--(AO$7:$AO55=FALSE))+SUMPRODUCT(--colAP))*(1-AO55)),ROW()-6) -> 49 | AQ55: Kensington & Chelsea | AR55: Kensington & Chelsea | IT55: Page 17: Estimated Net Expenditure 2018-19 | IU55: £#,##0 | IV55: =AB7 -> 0
A56: (P.07)[02]Estimated Total Revenue Expenditure 2018-19 | B56: 262 | C56: 29 | D56: 21 | E56: Page 21: Estimated Total Revenue Expenditure 2018-19 | L56: Kent | M56: c | O56: 0 | P56: =IF((ROW()-5=$G$36),1,IF((M56=Coding!$H$75)+(Coding!$H$75="ALL")+(Coding!$H$75="U")*OR(M56="W",M56="su",M56="L",M56="MD",M56="UA")+(Coding!$H$75="na")*AND(M56<>"W",M56<>"su",M56<>"L",M56<>"MD",M56<>"UA",M56<>"SC",M56<>"SD",M56<>"p"),1,0)) -> 1 | Q56: FALSE | R56: 0 | S56: 1 | T56: 0 | V56: =IF((S56=1)*($J$6<22),INDEX($J$13:$J$33,SUM($S$7:S56),1),"") ->  | W56: =COUNTIF($T$7:T56,T56) -> 50 | Y56: 0 | Z56: =INDEX(V:V,SUMPRODUCT((OFFSET($T$7,0,0,AuthorityCounter2,1)=Y56)*1,(OFFSET($W$7,0,0,AuthorityCounter2,1)=COUNTIF($Y$7:Y56,Y56))*1,ROW(OFFSET($W$7,0,0,AuthorityCounter2,1)))) ->  | AA56: 0 | AB56: =IF((Y56=AB$2)*(Z56=AC$3)*(SUM($AB$6:AB55)=0),+Y56,0) -> 0 | AC56: 0 | AE56: =IF($AE$6=3,O56,SUM((CODE(MID(CONCATENATE(UPPER(M56),"aaaaaaaaaa"),{1;2},1))-30)*{1;0.01})) -> 37.67 | AF56: =COUNTIF($AE$7:$AE56,AE56) -> 11 | AH56: 55.46 | AI56: 55.46 | AJ56: =COUNTIF($AI$7:$AI56,AI56) -> 24 | AK56: =IF($AE$6=1,L56,OFFSET($L$1,SUMPRODUCT(--(OFFSET($AE$7,0,0,AuthorityCounter,1)=AI56),--(OFFSET($AF$7,0,0,AuthorityCounter,1)=COUNTIF($AI$7:AI56,AI56)),ROW(OFFSET($AF$7,0,0,AuthorityCounter,1)))-1,0)) -> Kent | AM56: =IF(VLOOKUP(AK56,colAM,IF($H$75="OC",8,5),FALSE)=1,MAX(AM$6:$AM55)+1,0) -> 50 | AN56: Kent | AO56: FALSE | AP56: =IF($AP$5,SUM(SUMPRODUCT(--AO$7:$AO56)*AO56,(SUMPRODUCT(--(AO$7:$AO56=FALSE))+SUMPRODUCT(--colAP))*(1-AO56)),ROW()-6) -> 50 | AQ56: Kent | AR56: Kent | IT56: Page 17: Estimated Total Revenue Expenditure 2018-19 | IU56: £#,##0 | IV56: =AB7 -> 0
A57: (P.07)[03]Estimated Total Revenue Income 2018-19 | B57: 262 | C57: 30 | D57: 21 | E57: Page 21: Estimated Total Revenue Income 2018-19 | L57: Kingston-upon-Thames | M57: ul | O57: 0 | P57: =IF((ROW()-5=$G$36),1,IF((M57=Coding!$H$75)+(Coding!$H$75="ALL")+(Coding!$H$75="U")*OR(M57="W",M57="su",M57="L",M57="MD",M57="UA")+(Coding!$H$75="na")*AND(M57<>"W",M57<>"su",M57<>"L",M57<>"MD",M57<>"UA",M57<>"SC",M57<>"SD",M57<>"p"),1,0)) -> 1 | Q57: FALSE | R57: 0 | S57: 1 | T57: 0 | V57: =IF((S57=1)*($J$6<22),INDEX($J$13:$J$33,SUM($S$7:S57),1),"") ->  | W57: =COUNTIF($T$7:T57,T57) -> 51 | Y57: 0 | Z57: =INDEX(V:V,SUMPRODUCT((OFFSET($T$7,0,0,AuthorityCounter2,1)=Y57)*1,(OFFSET($W$7,0,0,AuthorityCounter2,1)=COUNTIF($Y$7:Y57,Y57))*1,ROW(OFFSET($W$7,0,0,AuthorityCounter2,1)))) ->  | AA57: 0 | AB57: =IF((Y57=AB$2)*(Z57=AC$3)*(SUM($AB$6:AB56)=0),+Y57,0) -> 0 | AC57: 0 | AE57: =IF($AE$6=3,O57,SUM((CODE(MID(CONCATENATE(UPPER(M57),"aaaaaaaaaa"),{1;2},1))-30)*{1;0.01})) -> 55.46 | AF57: =COUNTIF($AE$7:$AE57,AE57) -> 19 | AH57: 55.46 | AI57: 55.46 | AJ57: =COUNTIF($AI$7:$AI57,AI57) -> 25 | AK57: =IF($AE$6=1,L57,OFFSET($L$1,SUMPRODUCT(--(OFFSET($AE$7,0,0,AuthorityCounter,1)=AI57),--(OFFSET($AF$7,0,0,AuthorityCounter,1)=COUNTIF($AI$7:AI57,AI57)),ROW(OFFSET($AF$7,0,0,AuthorityCounter,1)))-1,0)) -> Kingston-upon-Thames | AM57: =IF(VLOOKUP(AK57,colAM,IF($H$75="OC",8,5),FALSE)=1,MAX(AM$6:$AM56)+1,0) -> 51 | AN57: Kingston-upon-Thames | AO57: FALSE | AP57: =IF($AP$5,SUM(SUMPRODUCT(--AO$7:$AO57)*AO57,(SUMPRODUCT(--(AO$7:$AO57=FALSE))+SUMPRODUCT(--colAP))*(1-AO57)),ROW()-6) -> 51 | AQ57: Kingston-upon-Thames | AR57: Kingston-upon-Thames | IT57: Page 17: Estimated Total Revenue Income 2018-19 | IU57: £#,##0 | IV57: =AB7 -> 0
A58: (P.07)[04]Estimated Employee Expenditure as a % of Revenue Expenditure | B58: 262 | C58: 31 | D58: 21 | E58: Page 21: Estimated Employee Expenditure as a % of Revenue Expenditure | L58: Lancashire | M58: c | O58: 0 | P58: =IF((ROW()-5=$G$36),1,IF((M58=Coding!$H$75)+(Coding!$H$75="ALL")+(Coding!$H$75="U")*OR(M58="W",M58="su",M58="L",M58="MD",M58="UA")+(Coding!$H$75="na")*AND(M58<>"W",M58<>"su",M58<>"L",M58<>"MD",M58<>"UA",M58<>"SC",M58<>"SD",M58<>"p"),1,0)) -> 1 | Q58: FALSE | R58: 0 | S58: 1 | T58: 0 | V58: =IF((S58=1)*($J$6<22),INDEX($J$13:$J$33,SUM($S$7:S58),1),"") ->  | W58: =COUNTIF($T$7:T58,T58) -> 52 | Y58: 0 | Z58: =INDEX(V:V,SUMPRODUCT((OFFSET($T$7,0,0,AuthorityCounter2,1)=Y58)*1,(OFFSET($W$7,0,0,AuthorityCounter2,1)=COUNTIF($Y$7:Y58,Y58))*1,ROW(OFFSET($W$7,0,0,AuthorityCounter2,1)))) ->  | AA58: 0 | AB58: =IF((Y58=AB$2)*(Z58=AC$3)*(SUM($AB$6:AB57)=0),+Y58,0) -> 0 | AC58: 0 | AE58: =IF($AE$6=3,O58,SUM((CODE(MID(CONCATENATE(UPPER(M58),"aaaaaaaaaa"),{1;2},1))-30)*{1;0.01})) -> 37.67 | AF58: =COUNTIF($AE$7:$AE58,AE58) -> 12 | AH58: 55.46 | AI58: 55.46 | AJ58: =COUNTIF($AI$7:$AI58,AI58) -> 26 | AK58: =IF($AE$6=1,L58,OFFSET($L$1,SUMPRODUCT(--(OFFSET($AE$7,0,0,AuthorityCounter,1)=AI58),--(OFFSET($AF$7,0,0,AuthorityCounter,1)=COUNTIF($AI$7:AI58,AI58)),ROW(OFFSET($AF$7,0,0,AuthorityCounter,1)))-1,0)) -> Lancashire | AM58: =IF(VLOOKUP(AK58,colAM,IF($H$75="OC",8,5),FALSE)=1,MAX(AM$6:$AM57)+1,0) -> 52 | AN58: Lancashire | AO58: FALSE | AP58: =IF($AP$5,SUM(SUMPRODUCT(--AO$7:$AO58)*AO58,(SUMPRODUCT(--(AO$7:$AO58=FALSE))+SUMPRODUCT(--colAP))*(1-AO58)),ROW()-6) -> 52 | AQ58: Lancashire | AR58: Lancashire | IT58: Page 17: Estimated Employee Expenditure as a % of Revenue Expenditure | IU58: 0% | IV58: =AB7 -> 0
A59: (P.07)[05]Estimated Material Expenditure as a % of Revenue Expenditure | B59: 262 | C59: 32 | D59: 21 | E59: Page 21: Estimated Material Expenditure as a % of Revenue Expenditure | L59: Leicester | M59: uu | O59: 0 | P59: =IF((ROW()-5=$G$36),1,IF((M59=Coding!$H$75)+(Coding!$H$75="ALL")+(Coding!$H$75="U")*OR(M59="W",M59="su",M59="L",M59="MD",M59="UA")+(Coding!$H$75="na")*AND(M59<>"W",M59<>"su",M59<>"L",M59<>"MD",M59<>"UA",M59<>"SC",M59<>"SD",M59<>"p"),1,0)) -> 1 | Q59: FALSE | R59: 0 | S59: 1 | T59: 0 | V59: =IF((S59=1)*($J$6<22),INDEX($J$13:$J$33,SUM($S$7:S59),1),"") ->  | W59: =COUNTIF($T$7:T59,T59) -> 53 | Y59: 0 | Z59: =INDEX(V:V,SUMPRODUCT((OFFSET($T$7,0,0,AuthorityCounter2,1)=Y59)*1,(OFFSET($W$7,0,0,AuthorityCounter2,1)=COUNTIF($Y$7:Y59,Y59))*1,ROW(OFFSET($W$7,0,0,AuthorityCounter2,1)))) ->  | AA59: 0 | AB59: =IF((Y59=AB$2)*(Z59=AC$3)*(SUM($AB$6:AB58)=0),+Y59,0) -> 0 | AC59: 0 | AE59: =IF($AE$6=3,O59,SUM((CODE(MID(CONCATENATE(UPPER(M59),"aaaaaaaaaa"),{1;2},1))-30)*{1;0.01})) -> 55.55 | AF59: =COUNTIF($AE$7:$AE59,AE59) -> 16 | AH59: 55.46 | AI59: 55.46 | AJ59: =COUNTIF($AI$7:$AI59,AI59) -> 27 | AK59: =IF($AE$6=1,L59,OFFSET($L$1,SUMPRODUCT(--(OFFSET($AE$7,0,0,AuthorityCounter,1)=AI59),--(OFFSET($AF$7,0,0,AuthorityCounter,1)=COUNTIF($AI$7:AI59,AI59)),ROW(OFFSET($AF$7,0,0,AuthorityCounter,1)))-1,0)) -> Leicester | AM59: =IF(VLOOKUP(AK59,colAM,IF($H$75="OC",8,5),FALSE)=1,MAX(AM$6:$AM58)+1,0) -> 53 | AN59: Leicester | AO59: FALSE | AP59: =IF($AP$5,SUM(SUMPRODUCT(--AO$7:$AO59)*AO59,(SUMPRODUCT(--(AO$7:$AO59=FALSE))+SUMPRODUCT(--colAP))*(1-AO59)),ROW()-6) -> 53 | AQ59: Leicester | AR59: Leicester | IT59: Page 17: Estimated Material Expenditure as a % of Revenue Expenditure | IU59: 0% | IV59: =AB7 -> 0
A60: (P.08)[01]Total Staff per 100,000 population | B60: 262 | C60: 33 | D60: 22 | E60: Page 22: Total Staff per 100,000 population | L60: Leicestershire | M60: c | O60: 0 | P60: =IF((ROW()-5=$G$36),1,IF((M60=Coding!$H$75)+(Coding!$H$75="ALL")+(Coding!$H$75="U")*OR(M60="W",M60="su",M60="L",M60="MD",M60="UA")+(Coding!$H$75="na")*AND(M60<>"W",M60<>"su",M60<>"L",M60<>"MD",M60<>"UA",M60<>"SC",M60<>"SD",M60<>"p"),1,0)) -> 1 | Q60: FALSE | R60: 0 | S60: 1 | T60: 0 | V60: =IF((S60=1)*($J$6<22),INDEX($J$13:$J$33,SUM($S$7:S60),1),"") ->  | W60: =COUNTIF($T$7:T60,T60) -> 54 | Y60: 0 | Z60: =INDEX(V:V,SUMPRODUCT((OFFSET($T$7,0,0,AuthorityCounter2,1)=Y60)*1,(OFFSET($W$7,0,0,AuthorityCounter2,1)=COUNTIF($Y$7:Y60,Y60))*1,ROW(OFFSET($W$7,0,0,AuthorityCounter2,1)))) ->  | AA60: 0 | AB60: =IF((Y60=AB$2)*(Z60=AC$3)*(SUM($AB$6:AB59)=0),+Y60,0) -> 0 | AC60: 0 | AE60: =IF($AE$6=3,O60,SUM((CODE(MID(CONCATENATE(UPPER(M60),"aaaaaaaaaa"),{1;2},1))-30)*{1;0.01})) -> 37.67 | AF60: =COUNTIF($AE$7:$AE60,AE60) -> 13 | AH60: 55.46 | AI60: 55.46 | AJ60: =COUNTIF($AI$7:$AI60,AI60) -> 28 | AK60: =IF($AE$6=1,L60,OFFSET($L$1,SUMPRODUCT(--(OFFSET($AE$7,0,0,AuthorityCounter,1)=AI60),--(OFFSET($AF$7,0,0,AuthorityCounter,1)=COUNTIF($AI$7:AI60,AI60)),ROW(OFFSET($AF$7,0,0,AuthorityCounter,1)))-1,0)) -> Leicestershire | AM60: =IF(VLOOKUP(AK60,colAM,IF($H$75="OC",8,5),FALSE)=1,MAX(AM$6:$AM59)+1,0) -> 54 | AN60: Leicestershire | AO60: FALSE | AP60: =IF($AP$5,SUM(SUMPRODUCT(--AO$7:$AO60)*AO60,(SUMPRODUCT(--(AO$7:$AO60=FALSE))+SUMPRODUCT(--colAP))*(1-AO60)),ROW()-6) -> 54 | AQ60: Leicestershire | AR60: Leicestershire | IT60: Page 18: Total Staff per 100,000 population | IU60: #,##0 | IV60: =AB7 -> 0
A61: (P.08)[02]Professional Staff per 100,000 population | B61: 262 | C61: 34 | D61: 22 | E61: Page 22: Professional Staff per 100,000 population | L61: Lewisham | M61: ul | O61: 0 | P61: =IF((ROW()-5=$G$36),1,IF((M61=Coding!$H$75)+(Coding!$H$75="ALL")+(Coding!$H$75="U")*OR(M61="W",M61="su",M61="L",M61="MD",M61="UA")+(Coding!$H$75="na")*AND(M61<>"W",M61<>"su",M61<>"L",M61<>"MD",M61<>"UA",M61<>"SC",M61<>"SD",M61<>"p"),1,0)) -> 1 | Q61: FALSE | R61: 0 | S61: 1 | T61: 0 | V61: =IF((S61=1)*($J$6<22),INDEX($J$13:$J$33,SUM($S$7:S61),1),"") ->  | W61: =COUNTIF($T$7:T61,T61) -> 55 | Y61: 0 | Z61: =INDEX(V:V,SUMPRODUCT((OFFSET($T$7,0,0,AuthorityCounter2,1)=Y61)*1,(OFFSET($W$7,0,0,AuthorityCounter2,1)=COUNTIF($Y$7:Y61,Y61))*1,ROW(OFFSET($W$7,0,0,AuthorityCounter2,1)))) ->  | AA61: 0 | AB61: =IF((Y61=AB$2)*(Z61=AC$3)*(SUM($AB$6:AB60)=0),+Y61,0) -> 0 | AC61: 0 | AE61: =IF($AE$6=3,O61,SUM((CODE(MID(CONCATENATE(UPPER(M61),"aaaaaaaaaa"),{1;2},1))-30)*{1;0.01})) -> 55.46 | AF61: =COUNTIF($AE$7:$AE61,AE61) -> 20 | AH61: 55.46 | AI61: 55.46 | AJ61: =COUNTIF($AI$7:$AI61,AI61) -> 29 | AK61: =IF($AE$6=1,L61,OFFSET($L$1,SUMPRODUCT(--(OFFSET($AE$7,0,0,AuthorityCounter,1)=AI61),--(OFFSET($AF$7,0,0,AuthorityCounter,1)=COUNTIF($AI$7:AI61,AI61)),ROW(OFFSET($AF$7,0,0,AuthorityCounter,1)))-1,0)) -> Lewisham | AM61: =IF(VLOOKUP(AK61,colAM,IF($H$75="OC",8,5),FALSE)=1,MAX(AM$6:$AM60)+1,0) -> 55 | AN61: Lewisham | AO61: FALSE | AP61: =IF($AP$5,SUM(SUMPRODUCT(--AO$7:$AO61)*AO61,(SUMPRODUCT(--(AO$7:$AO61=FALSE))+SUMPRODUCT(--colAP))*(1-AO61)),ROW()-6) -> 55 | AQ61: Lewisham | AR61: Lewisham | IT61: Page 18: Professional Staff per 100,000 population | IU61: #,##0 | IV61: =AB7 -> 0
A62: (P.08)[03]Other Paid Staff per 100,000 population | B62: 262 | C62: 35 | D62: 22 | E62: Page 22: Other Paid Staff per 100,000 population | L62: Lincolnshire | M62: c | O62: 0 | P62: =IF((ROW()-5=$G$36),1,IF((M62=Coding!$H$75)+(Coding!$H$75="ALL")+(Coding!$H$75="U")*OR(M62="W",M62="su",M62="L",M62="MD",M62="UA")+(Coding!$H$75="na")*AND(M62<>"W",M62<>"su",M62<>"L",M62<>"MD",M62<>"UA",M62<>"SC",M62<>"SD",M62<>"p"),1,0)) -> 1 | Q62: FALSE | R62: 0 | S62: 1 | T62: 0 | V62: =IF((S62=1)*($J$6<22),INDEX($J$13:$J$33,SUM($S$7:S62),1),"") ->  | W62: =COUNTIF($T$7:T62,T62) -> 56 | Y62: 0 | Z62: =INDEX(V:V,SUMPRODUCT((OFFSET($T$7,0,0,AuthorityCounter2,1)=Y62)*1,(OFFSET($W$7,0,0,AuthorityCounter2,1)=COUNTIF($Y$7:Y62,Y62))*1,ROW(OFFSET($W$7,0,0,AuthorityCounter2,1)))) ->  | AA62: 0 | AB62: =IF((Y62=AB$2)*(Z62=AC$3)*(SUM($AB$6:AB61)=0),+Y62,0) -> 0 | AC62: 0 | AE62: =IF($AE$6=3,O62,SUM((CODE(MID(CONCATENATE(UPPER(M62),"aaaaaaaaaa"),{1;2},1))-30)*{1;0.01})) -> 37.67 | AF62: =COUNTIF($AE$7:$AE62,AE62) -> 14 | AH62: 55.46 | AI62: 55.46 | AJ62: =COUNTIF($AI$7:$AI62,AI62) -> 30 | AK62: =IF($AE$6=1,L62,OFFSET($L$1,SUMPRODUCT(--(OFFSET($AE$7,0,0,AuthorityCounter,1)=AI62),--(OFFSET($AF$7,0,0,AuthorityCounter,1)=COUNTIF($AI$7:AI62,AI62)),ROW(OFFSET($AF$7,0,0,AuthorityCounter,1)))-1,0)) -> Lincolnshire | AM62: =IF(VLOOKUP(AK62,colAM,IF($H$75="OC",8,5),FALSE)=1,MAX(AM$6:$AM61)+1,0) -> 56 | AN62: Lincolnshire | AO62: FALSE | AP62: =IF($AP$5,SUM(SUMPRODUCT(--AO$7:$AO62)*AO62,(SUMPRODUCT(--(AO$7:$AO62=FALSE))+SUMPRODUCT(--colAP))*(1-AO62)),ROW()-6) -> 56 | AQ62: Lincolnshire | AR62: Lincolnshire | IT62: Page 18: Other Paid Staff per 100,000 population | IU62: #,##0 | IV62: =AB7 -> 0
A63: (P.09)[01]Employee Costs per Employee | B63: 262 | C63: 36 | D63: 23 | E63: Page 23: Employee Costs per Employee | L63: Luton | M63: uu | O63: 0 | P63: =IF((ROW()-5=$G$36),1,IF((M63=Coding!$H$75)+(Coding!$H$75="ALL")+(Coding!$H$75="U")*OR(M63="W",M63="su",M63="L",M63="MD",M63="UA")+(Coding!$H$75="na")*AND(M63<>"W",M63<>"su",M63<>"L",M63<>"MD",M63<>"UA",M63<>"SC",M63<>"SD",M63<>"p"),1,0)) -> 1 | Q63: FALSE | R63: 0 | S63: 1 | T63: 0 | V63: =IF((S63=1)*($J$6<22),INDEX($J$13:$J$33,SUM($S$7:S63),1),"") ->  | W63: =COUNTIF($T$7:T63,T63) -> 57 | Y63: 0 | Z63: =INDEX(V:V,SUMPRODUCT((OFFSET($T$7,0,0,AuthorityCounter2,1)=Y63)*1,(OFFSET($W$7,0,0,AuthorityCounter2,1)=COUNTIF($Y$7:Y63,Y63))*1,ROW(OFFSET($W$7,0,0,AuthorityCounter2,1)))) ->  | AA63: 0 | AB63: =IF((Y63=AB$2)*(Z63=AC$3)*(SUM($AB$6:AB62)=0),+Y63,0) -> 0 | AC63: 0 | AE63: =IF($AE$6=3,O63,SUM((CODE(MID(CONCATENATE(UPPER(M63),"aaaaaaaaaa"),{1;2},1))-30)*{1;0.01})) -> 55.55 | AF63: =COUNTIF($AE$7:$AE63,AE63) -> 17 | AH63: 55.47 | AI63: 55.47 | AJ63: =COUNTIF($AI$7:$AI63,AI63) -> 1 | AK63: =IF($AE$6=1,L63,OFFSET($L$1,SUMPRODUCT(--(OFFSET($AE$7,0,0,AuthorityCounter,1)=AI63),--(OFFSET($AF$7,0,0,AuthorityCounter,1)=COUNTIF($AI$7:AI63,AI63)),ROW(OFFSET($AF$7,0,0,AuthorityCounter,1)))-1,0)) -> Luton | AM63: =IF(VLOOKUP(AK63,colAM,IF($H$75="OC",8,5),FALSE)=1,MAX(AM$6:$AM62)+1,0) -> 57 | AN63: Luton | AO63: FALSE | AP63: =IF($AP$5,SUM(SUMPRODUCT(--AO$7:$AO63)*AO63,(SUMPRODUCT(--(AO$7:$AO63=FALSE))+SUMPRODUCT(--colAP))*(1-AO63)),ROW()-6) -> 57 | AQ63: Luton | AR63: Luton | IT63: Page 19: Employee Costs per Employee | IU63: £#,##0 | IV63: =AB7 -> 0
A64: (P.09)[02]Employees per 1,000 population | B64: 262 | C64: 37 | D64: 23 | E64: Page 23: Employees per 1,000 population | L64: Manchester | M64: um | O64: 0 | P64: =IF((ROW()-5=$G$36),1,IF((M64=Coding!$H$75)+(Coding!$H$75="ALL")+(Coding!$H$75="U")*OR(M64="W",M64="su",M64="L",M64="MD",M64="UA")+(Coding!$H$75="na")*AND(M64<>"W",M64<>"su",M64<>"L",M64<>"MD",M64<>"UA",M64<>"SC",M64<>"SD",M64<>"p"),1,0)) -> 1 | Q64: FALSE | R64: 0 | S64: 1 | T64: 0 | V64: =IF((S64=1)*($J$6<22),INDEX($J$13:$J$33,SUM($S$7:S64),1),"") ->  | W64: =COUNTIF($T$7:T64,T64) -> 58 | Y64: 0 | Z64: =INDEX(V:V,SUMPRODUCT((OFFSET($T$7,0,0,AuthorityCounter2,1)=Y64)*1,(OFFSET($W$7,0,0,AuthorityCounter2,1)=COUNTIF($Y$7:Y64,Y64))*1,ROW(OFFSET($W$7,0,0,AuthorityCounter2,1)))) ->  | AA64: 0 | AB64: =IF((Y64=AB$2)*(Z64=AC$3)*(SUM($AB$6:AB63)=0),+Y64,0) -> 0 | AC64: 0 | AE64: =IF($AE$6=3,O64,SUM((CODE(MID(CONCATENATE(UPPER(M64),"aaaaaaaaaa"),{1;2},1))-30)*{1;0.01})) -> 55.47 | AF64: =COUNTIF($AE$7:$AE64,AE64) -> 7 | AH64: 55.47 | AI64: 55.47 | AJ64: =COUNTIF($AI$7:$AI64,AI64) -> 2 | AK64: =IF($AE$6=1,L64,OFFSET($L$1,SUMPRODUCT(--(OFFSET($AE$7,0,0,AuthorityCounter,1)=AI64),--(OFFSET($AF$7,0,0,AuthorityCounter,1)=COUNTIF($AI$7:AI64,AI64)),ROW(OFFSET($AF$7,0,0,AuthorityCounter,1)))-1,0)) -> Manchester | AM64: =IF(VLOOKUP(AK64,colAM,IF($H$75="OC",8,5),FALSE)=1,MAX(AM$6:$AM63)+1,0) -> 58 | AN64: Manchester | AO64: FALSE | AP64: =IF($AP$5,SUM(SUMPRODUCT(--AO$7:$AO64)*AO64,(SUMPRODUCT(--(AO$7:$AO64=FALSE))+SUMPRODUCT(--colAP))*(1-AO64)),ROW()-6) -> 58 | AQ64: Manchester | AR64: Manchester | IT64: Page 19: Employees per 1,000 population | IU64: 0.00 | IV64: =AB7 -> 0
A65: (P.09)[03]Employee Costs per 1,000 population | B65: 262 | C65: 38 | D65: 23 | E65: Page 23: Employee Costs per 1,000 population | L65: Medway | M65: uu | O65: 0 | P65: =IF((ROW()-5=$G$36),1,IF((M65=Coding!$H$75)+(Coding!$H$75="ALL")+(Coding!$H$75="U")*OR(M65="W",M65="su",M65="L",M65="MD",M65="UA")+(Coding!$H$75="na")*AND(M65<>"W",M65<>"su",M65<>"L",M65<>"MD",M65<>"UA",M65<>"SC",M65<>"SD",M65<>"p"),1,0)) -> 1 | Q65: FALSE | R65: 0 | S65: 1 | T65: 0 | V65: =IF((S65=1)*($J$6<22),INDEX($J$13:$J$33,SUM($S$7:S65),1),"") ->  | W65: =COUNTIF($T$7:T65,T65) -> 59 | Y65: 0 | Z65: =INDEX(V:V,SUMPRODUCT((OFFSET($T$7,0,0,AuthorityCounter2,1)=Y65)*1,(OFFSET($W$7,0,0,AuthorityCounter2,1)=COUNTIF($Y$7:Y65,Y65))*1,ROW(OFFSET($W$7,0,0,AuthorityCounter2,1)))) ->  | AA65: 0 | AB65: =IF((Y65=AB$2)*(Z65=AC$3)*(SUM($AB$6:AB64)=0),+Y65,0) -> 0 | AC65: 0 | AE65: =IF($AE$6=3,O65,SUM((CODE(MID(CONCATENATE(UPPER(M65),"aaaaaaaaaa"),{1;2},1))-30)*{1;0.01})) -> 55.55 | AF65: =COUNTIF($AE$7:$AE65,AE65) -> 18 | AH65: 55.47 | AI65: 55.47 | AJ65: =COUNTIF($AI$7:$AI65,AI65) -> 3 | AK65: =IF($AE$6=1,L65,OFFSET($L$1,SUMPRODUCT(--(OFFSET($AE$7,0,0,AuthorityCounter,1)=AI65),--(OFFSET($AF$7,0,0,AuthorityCounter,1)=COUNTIF($AI$7:AI65,AI65)),ROW(OFFSET($AF$7,0,0,AuthorityCounter,1)))-1,0)) -> Medway | AM65: =IF(VLOOKUP(AK65,colAM,IF($H$75="OC",8,5),FALSE)=1,MAX(AM$6:$AM64)+1,0) -> 59 | AN65: Medway | AO65: FALSE | AP65: =IF($AP$5,SUM(SUMPRODUCT(--AO$7:$AO65)*AO65,(SUMPRODUCT(--(AO$7:$AO65=FALSE))+SUMPRODUCT(--colAP))*(1-AO65)),ROW()-6) -> 59 | AQ65: Medway | AR65: Medway | IT65: Page 19: Employee Costs per 1,000 population | IU65: £#,##0 | IV65: =AB7 -> 0
A66: (P.10)[01]Number of Volunteers | B66: 262 | C66: 39 | D66: 24 | E66: Page 24: Number of Volunteers | L66: Merton | M66: ul | O66: 0 | P66: =IF((ROW()-5=$G$36),1,IF((M66=Coding!$H$75)+(Coding!$H$75="ALL")+(Coding!$H$75="U")*OR(M66="W",M66="su",M66="L",M66="MD",M66="UA")+(Coding!$H$75="na")*AND(M66<>"W",M66<>"su",M66<>"L",M66<>"MD",M66<>"UA",M66<>"SC",M66<>"SD",M66<>"p"),1,0)) -> 1 | Q66: FALSE | R66: 0 | S66: 1 | T66: 0 | V66: =IF((S66=1)*($J$6<22),INDEX($J$13:$J$33,SUM($S$7:S66),1),"") ->  | W66: =COUNTIF($T$7:T66,T66) -> 60 | Y66: 0 | Z66: =INDEX(V:V,SUMPRODUCT((OFFSET($T$7,0,0,AuthorityCounter2,1)=Y66)*1,(OFFSET($W$7,0,0,AuthorityCounter2,1)=COUNTIF($Y$7:Y66,Y66))*1,ROW(OFFSET($W$7,0,0,AuthorityCounter2,1)))) ->  | AA66: 0 | AB66: =IF((Y66=AB$2)*(Z66=AC$3)*(SUM($AB$6:AB65)=0),+Y66,0) -> 0 | AC66: 0 | AE66: =IF($AE$6=3,O66,SUM((CODE(MID(CONCATENATE(UPPER(M66),"aaaaaaaaaa"),{1;2},1))-30)*{1;0.01})) -> 55.46 | AF66: =COUNTIF($AE$7:$AE66,AE66) -> 21 | AH66: 55.47 | AI66: 55.47 | AJ66: =COUNTIF($AI$7:$AI66,AI66) -> 4 | AK66: =IF($AE$6=1,L66,OFFSET($L$1,SUMPRODUCT(--(OFFSET($AE$7,0,0,AuthorityCounter,1)=AI66),--(OFFSET($AF$7,0,0,AuthorityCounter,1)=COUNTIF($AI$7:AI66,AI66)),ROW(OFFSET($AF$7,0,0,AuthorityCounter,1)))-1,0)) -> Merton | AM66: =IF(VLOOKUP(AK66,colAM,IF($H$75="OC",8,5),FALSE)=1,MAX(AM$6:$AM65)+1,0) -> 60 | AN66: Merton | AO66: FALSE | AP66: =IF($AP$5,SUM(SUMPRODUCT(--AO$7:$AO66)*AO66,(SUMPRODUCT(--(AO$7:$AO66=FALSE))+SUMPRODUCT(--colAP))*(1-AO66)),ROW()-6) -> 60 | AQ66: Merton | AR66: Merton | IT66: Page 20: Number of Volunteers | IU66: #,##0 | IV66: =AB7 -> 0
A67: (P.10)[02]Number of Volunteer Hours | B67: 262 | C67: 40 | D67: 24 | E67: Page 24: Number of Volunteer Hours | L67: Newcastle-upon-Tyne | M67: um | O67: 0 | P67: =IF((ROW()-5=$G$36),1,IF((M67=Coding!$H$75)+(Coding!$H$75="ALL")+(Coding!$H$75="U")*OR(M67="W",M67="su",M67="L",M67="MD",M67="UA")+(Coding!$H$75="na")*AND(M67<>"W",M67<>"su",M67<>"L",M67<>"MD",M67<>"UA",M67<>"SC",M67<>"SD",M67<>"p"),1,0)) -> 1 | Q67: FALSE | R67: 0 | S67: 1 | T67: 0 | V67: =IF((S67=1)*($J$6<22),INDEX($J$13:$J$33,SUM($S$7:S67),1),"") ->  | W67: =COUNTIF($T$7:T67,T67) -> 61 | Y67: 0 | Z67: =INDEX(V:V,SUMPRODUCT((OFFSET($T$7,0,0,AuthorityCounter2,1)=Y67)*1,(OFFSET($W$7,0,0,AuthorityCounter2,1)=COUNTIF($Y$7:Y67,Y67))*1,ROW(OFFSET($W$7,0,0,AuthorityCounter2,1)))) ->  | AA67: 0 | AB67: =IF((Y67=AB$2)*(Z67=AC$3)*(SUM($AB$6:AB66)=0),+Y67,0) -> 0 | AC67: 0 | AE67: =IF($AE$6=3,O67,SUM((CODE(MID(CONCATENATE(UPPER(M67),"aaaaaaaaaa"),{1;2},1))-30)*{1;0.01})) -> 55.47 | AF67: =COUNTIF($AE$7:$AE67,AE67) -> 8 | AH67: 55.47 | AI67: 55.47 | AJ67: =COUNTIF($AI$7:$AI67,AI67) -> 5 | AK67: =IF($AE$6=1,L67,OFFSET($L$1,SUMPRODUCT(--(OFFSET($AE$7,0,0,AuthorityCounter,1)=AI67),--(OFFSET($AF$7,0,0,AuthorityCounter,1)=COUNTIF($AI$7:AI67,AI67)),ROW(OFFSET($AF$7,0,0,AuthorityCounter,1)))-1,0)) -> Newcastle-upon-Tyne | AM67: =IF(VLOOKUP(AK67,colAM,IF($H$75="OC",8,5),FALSE)=1,MAX(AM$6:$AM66)+1,0) -> 61 | AN67: Newcastle-upon-Tyne | AO67: FALSE | AP67: =IF($AP$5,SUM(SUMPRODUCT(--AO$7:$AO67)*AO67,(SUMPRODUCT(--(AO$7:$AO67=FALSE))+SUMPRODUCT(--colAP))*(1-AO67)),ROW()-6) -> 61 | AQ67: Newcastle-upon-Tyne | AR67: Newcastle-upon-Tyne | IT67: Page 20: Number of Volunteer Hours | IU67: #,##0 | IV67: =AB7 -> 0
A68: (P.10)[03]Number of Hours per Volunteer | B68: 262 | C68: 41 | D68: =D67--OR(B68<>B67,LEFT(A68,5)<>LEFT(A67,5)) -> 24 | E68: ="Page "&D68&": " &RIGHT(A68,LEN(A68)-10) -> Page 24: Number of Hours per Volunteer | L68: Newham | M68: ul | O68: 0 | P68: =IF((ROW()-5=$G$36),1,IF((M68=Coding!$H$75)+(Coding!$H$75="ALL")+(Coding!$H$75="U")*OR(M68="W",M68="su",M68="L",M68="MD",M68="UA")+(Coding!$H$75="na")*AND(M68<>"W",M68<>"su",M68<>"L",M68<>"MD",M68<>"UA",M68<>"SC",M68<>"SD",M68<>"p"),1,0)) -> 1 | Q68: FALSE | R68: 0 | S68: 1 | T68: 0 | V68: =IF((S68=1)*($J$6<22),INDEX($J$13:$J$33,SUM($S$7:S68),1),"") ->  | W68: =COUNTIF($T$7:T68,T68) -> 62 | Y68: 0 | Z68: =INDEX(V:V,SUMPRODUCT((OFFSET($T$7,0,0,AuthorityCounter2,1)=Y68)*1,(OFFSET($W$7,0,0,AuthorityCounter2,1)=COUNTIF($Y$7:Y68,Y68))*1,ROW(OFFSET($W$7,0,0,AuthorityCounter2,1)))) ->  | AA68: 0 | AB68: =IF((Y68=AB$2)*(Z68=AC$3)*(SUM($AB$6:AB67)=0),+Y68,0) -> 0 | AC68: 0 | AE68: =IF($AE$6=3,O68,SUM((CODE(MID(CONCATENATE(UPPER(M68),"aaaaaaaaaa"),{1;2},1))-30)*{1;0.01})) -> 55.46 | AF68: =COUNTIF($AE$7:$AE68,AE68) -> 22 | AH68: 55.47 | AI68: 55.47 | AJ68: =COUNTIF($AI$7:$AI68,AI68) -> 6 | AK68: =IF($AE$6=1,L68,OFFSET($L$1,SUMPRODUCT(--(OFFSET($AE$7,0,0,AuthorityCounter,1)=AI68),--(OFFSET($AF$7,0,0,AuthorityCounter,1)=COUNTIF($AI$7:AI68,AI68)),ROW(OFFSET($AF$7,0,0,AuthorityCounter,1)))-1,0)) -> Newham | AM68: =IF(VLOOKUP(AK68,colAM,IF($H$75="OC",8,5),FALSE)=1,MAX(AM$6:$AM67)+1,0) -> 62 | AN68: Newham | AO68: FALSE | AP68: =IF($AP$5,SUM(SUMPRODUCT(--AO$7:$AO68)*AO68,(SUMPRODUCT(--(AO$7:$AO68=FALSE))+SUMPRODUCT(--colAP))*(1-AO68)),ROW()-6) -> 62 | AQ68: Newham | AR68: Newham | IT68: Page 20: Number of Hours per Volunteer | IU68: #,##0 | IV68: =AB7 -> 0
A69: (P.10)[04]Volunteer hours as a % of volunteer hours plus employee hours | B69: 262 | C69: 42 | D69: 24 | E69: Page 24: Volunteer hours as a % of volunteer hours plus employee hours | L69: Norfolk | M69: c | O69: 0 | P69: =IF((ROW()-5=$G$36),1,IF((M69=Coding!$H$75)+(Coding!$H$75="ALL")+(Coding!$H$75="U")*OR(M69="W",M69="su",M69="L",M69="MD",M69="UA")+(Coding!$H$75="na")*AND(M69<>"W",M69<>"su",M69<>"L",M69<>"MD",M69<>"UA",M69<>"SC",M69<>"SD",M69<>"p"),1,0)) -> 1 | Q69: FALSE | R69: 0 | S69: 1 | T69: 0 | V69: =IF((S69=1)*($J$6<22),INDEX($J$13:$J$33,SUM($S$7:S69),1),"") ->  | W69: =COUNTIF($T$7:T69,T69) -> 63 | Y69: 0 | Z69: =INDEX(V:V,SUMPRODUCT((OFFSET($T$7,0,0,AuthorityCounter2,1)=Y69)*1,(OFFSET($W$7,0,0,AuthorityCounter2,1)=COUNTIF($Y$7:Y69,Y69))*1,ROW(OFFSET($W$7,0,0,AuthorityCounter2,1)))) ->  | AA69: 0 | AB69: =IF((Y69=AB$2)*(Z69=AC$3)*(SUM($AB$6:AB68)=0),+Y69,0) -> 0 | AC69: 0 | AE69: =IF($AE$6=3,O69,SUM((CODE(MID(CONCATENATE(UPPER(M69),"aaaaaaaaaa"),{1;2},1))-30)*{1;0.01})) -> 37.67 | AF69: =COUNTIF($AE$7:$AE69,AE69) -> 15 | AH69: 55.47 | AI69: 55.47 | AJ69: =COUNTIF($AI$7:$AI69,AI69) -> 7 | AK69: =IF($AE$6=1,L69,OFFSET($L$1,SUMPRODUCT(--(OFFSET($AE$7,0,0,AuthorityCounter,1)=AI69),--(OFFSET($AF$7,0,0,AuthorityCounter,1)=COUNTIF($AI$7:AI69,AI69)),ROW(OFFSET($AF$7,0,0,AuthorityCounter,1)))-1,0)) -> Norfolk | AM69: =IF(VLOOKUP(AK69,colAM,IF($H$75="OC",8,5),FALSE)=1,MAX(AM$6:$AM68)+1,0) -> 63 | AN69: Norfolk | AO69: FALSE | AP69: =IF($AP$5,SUM(SUMPRODUCT(--AO$7:$AO69)*AO69,(SUMPRODUCT(--(AO$7:$AO69=FALSE))+SUMPRODUCT(--colAP))*(1-AO69)),ROW()-6) -> 63 | AQ69: Norfolk | AR69: Norfolk | IT69: Page 20: Volunteer hours as a % of volunteer hours plus employee hours | IU69: 0.0% | IV69: =AB7 -> 0
A70: (P.10)[05]Number of volunteers as a % of volunteer headcount plus employee headcount | B70: 262 | C70: 43 | D70: 24 | E70: Page 24: Number of volunteers as a % of volunteer headcount plus employee headcount | L70: North Lincolnshire | M70: uu | O70: 0 | P70: =IF((ROW()-5=$G$36),1,IF((M70=Coding!$H$75)+(Coding!$H$75="ALL")+(Coding!$H$75="U")*OR(M70="W",M70="su",M70="L",M70="MD",M70="UA")+(Coding!$H$75="na")*AND(M70<>"W",M70<>"su",M70<>"L",M70<>"MD",M70<>"UA",M70<>"SC",M70<>"SD",M70<>"p"),1,0)) -> 1 | Q70: FALSE | R70: 0 | S70: 1 | T70: 0 | V70: =IF((S70=1)*($J$6<22),INDEX($J$13:$J$33,SUM($S$7:S70),1),"") ->  | W70: =COUNTIF($T$7:T70,T70) -> 64 | Y70: 0 | Z70: =INDEX(V:V,SUMPRODUCT((OFFSET($T$7,0,0,AuthorityCounter2,1)=Y70)*1,(OFFSET($W$7,0,0,AuthorityCounter2,1)=COUNTIF($Y$7:Y70,Y70))*1,ROW(OFFSET($W$7,0,0,AuthorityCounter2,1)))) ->  | AA70: 0 | AB70: =IF((Y70=AB$2)*(Z70=AC$3)*(SUM($AB$6:AB69)=0),+Y70,0) -> 0 | AC70: 0 | AE70: =IF($AE$6=3,O70,SUM((CODE(MID(CONCATENATE(UPPER(M70),"aaaaaaaaaa"),{1;2},1))-30)*{1;0.01})) -> 55.55 | AF70: =COUNTIF($AE$7:$AE70,AE70) -> 19 | AH70: 55.47 | AI70: 55.47 | AJ70: =COUNTIF($AI$7:$AI70,AI70) -> 8 | AK70: =IF($AE$6=1,L70,OFFSET($L$1,SUMPRODUCT(--(OFFSET($AE$7,0,0,AuthorityCounter,1)=AI70),--(OFFSET($AF$7,0,0,AuthorityCounter,1)=COUNTIF($AI$7:AI70,AI70)),ROW(OFFSET($AF$7,0,0,AuthorityCounter,1)))-1,0)) -> North Lincolnshire | AM70: =IF(VLOOKUP(AK70,colAM,IF($H$75="OC",8,5),FALSE)=1,MAX(AM$6:$AM69)+1,0) -> 64 | AN70: North Lincolnshire | AO70: FALSE | AP70: =IF($AP$5,SUM(SUMPRODUCT(--AO$7:$AO70)*AO70,(SUMPRODUCT(--(AO$7:$AO70=FALSE))+SUMPRODUCT(--colAP))*(1-AO70)),ROW()-6) -> 64 | AQ70: North Lincolnshire | AR70: North Lincolnshire | IT70: Page 20: Number of volunteers as a % of volunteer headcount plus employee headcount | IU70: 0% | IV70: =AB7 -> 0
A71: (P.01)[01]Total Book Issues per 1,000 population | B71: 393 | C71: 0 | D71: 25 | E71: Page 25: Total Book Issues per 1,000 population | L71: =IF((ROW()-6)<=AuthorityCounter,OFFSET($D$409,ROW()-6,0),"") -> North Somerset | M71: =IF((ROW()-6)<=AuthorityCounter,OFFSET($F$409,ROW()-6,0),"") -> uu | O71: =IF(ISNUMBER(--OFFSET($D$409,(ROW()-6)+$G$39+AuthorityCounter+5,$G$40)),OFFSET($D$409,(ROW()-6)+$G$39+AuthorityCounter+5,$G$40),"na") -> 0 | P71: =IF((ROW()-5=$G$36),1,IF((M71=Coding!$H$75)+(Coding!$H$75="ALL")+(Coding!$H$75="U")*OR(M71="W",M71="su",M71="L",M71="MD",M71="UA")+(Coding!$H$75="na")*AND(M71<>"W",M71<>"su",M71<>"L",M71<>"MD",M71<>"UA",M71<>"SC",M71<>"SD",M71<>"p"),1,0)) -> 1 | Q71: FALSE | R71: =IF(OR(NOT(ISERROR(MATCH(L71,OFFSET($H$410,$G$36-2,0,1,18),FALSE))),$G$75=L71),1,0+(($G$36=1)*($H$75="OC"))) -> 0 | S71: =IF((ROW()-5=$G$36),1,IF($H$75="OC",IF(NOT($J$10)+Q71,R71,0),IF(NOT($J$10)+Q71,P71,0))) -> 1 | T71: =IF(S71=1,O71,"not selected") -> 0 | V71: =IF((S71=1)*($J$6<22),INDEX($J$13:$J$33,SUM($S$7:S71),1),"") ->  | W71: =COUNTIF($T$7:T71,T71) -> 65 | Y71: =IF((ROW()-6-$J$8)<1,"na",LARGE(OFFSET($T$7,0,0,AuthorityCounter2,1),ROW()-6-$J$8)) -> 0 | Z71: =INDEX(V:V,SUMPRODUCT((OFFSET($T$7,0,0,AuthorityCounter2,1)=Y71)*1,(OFFSET($W$7,0,0,AuthorityCounter2,1)=COUNTIF($Y$7:Y71,Y71))*1,ROW(OFFSET($W$7,0,0,AuthorityCounter2,1)))) ->  | AA71: =AB$3 -> 0 | AB71: =IF((Y71=AB$2)*(Z71=AC$3)*(SUM($AB$6:AB70)=0),+Y71,0) -> 0 | AC71: =IF(ISNUMBER(AA71),Y71-AB71,"na") -> 0 | AE71: =IF($AE$6=3,O71,SUM((CODE(MID(CONCATENATE(UPPER(M71),"aaaaaaaaaa"),{1;2},1))-30)*{1;0.01})) -> 55.55 | AF71: =COUNTIF($AE$7:$AE71,AE71) -> 20 | AH71: =IF($AE$6=3,LARGE(OFFSET($AE$7,0,0,AuthorityCounter2,1),ROW()-6),SMALL(OFFSET($AE$7,0,0,AuthorityCounter2,1),ROW()-6)) -> 55.47 | AI71: 55.47 | AJ71: =COUNTIF($AI$7:$AI71,AI71) -> 9 | AK71: =IF($AE$6=1,L71,OFFSET($L$1,SUMPRODUCT(--(OFFSET($AE$7,0,0,AuthorityCounter,1)=AI71),--(OFFSET($AF$7,0,0,AuthorityCounter,1)=COUNTIF($AI$7:AI71,AI71)),ROW(OFFSET($AF$7,0,0,AuthorityCounter,1)))-1,0)) -> North Somerset | AM71: =IF(VLOOKUP(AK71,colAM,IF($H$75="OC",8,5),FALSE)=1,MAX(AM$6:$AM70)+1,0) -> 65 | AN71: =OFFSET($AK$1,ABS(SUMPRODUCT(--(colAN=(ROW()-6)),ROW(colAN))-1),0) -> North Somerset | AO71: =IF(AN71=0,0,VLOOKUP(AN71,colAO,6,FALSE)) -> FALSE | AP71: =IF($AP$5,SUM(SUMPRODUCT(--AO$7:$AO71)*AO71,(SUMPRODUCT(--(AO$7:$AO71=FALSE))+SUMPRODUCT(--colAP))*(1-AO71)),ROW()-6) -> 65 | AQ71: =OFFSET($AN$6,MATCH(ROW()-6,colAQ,FALSE),0) -> North Somerset | AR71: North Somerset | IT71: Page 21: Total Book Issues per 1,000 population | IU71: #,##0 | IV71: =AB7 -> 0
A72: (P.02)[01]Total Book Issues | B72: 393 | C72: 1 | D72: 26 | E72: Page 26: Total Book Issues | L72: North Tyneside | M72: um | O72: 0 | P72: =IF((ROW()-5=$G$36),1,IF((M72=Coding!$H$75)+(Coding!$H$75="ALL")+(Coding!$H$75="U")*OR(M72="W",M72="su",M72="L",M72="MD",M72="UA")+(Coding!$H$75="na")*AND(M72<>"W",M72<>"su",M72<>"L",M72<>"MD",M72<>"UA",M72<>"SC",M72<>"SD",M72<>"p"),1,0)) -> 1 | Q72: FALSE | R72: 0 | S72: 1 | T72: 0 | V72: =IF((S72=1)*($J$6<22),INDEX($J$13:$J$33,SUM($S$7:S72),1),"") ->  | W72: =COUNTIF($T$7:T72,T72) -> 66 | Y72: 0 | Z72: =INDEX(V:V,SUMPRODUCT((OFFSET($T$7,0,0,AuthorityCounter2,1)=Y72)*1,(OFFSET($W$7,0,0,AuthorityCounter2,1)=COUNTIF($Y$7:Y72,Y72))*1,ROW(OFFSET($W$7,0,0,AuthorityCounter2,1)))) ->  | AA72: 0 | AB72: =IF((Y72=AB$2)*(Z72=AC$3)*(SUM($AB$6:AB71)=0),+Y72,0) -> 0 | AC72: 0 | AE72: =IF($AE$6=3,O72,SUM((CODE(MID(CONCATENATE(UPPER(M72),"aaaaaaaaaa"),{1;2},1))-30)*{1;0.01})) -> 55.47 | AF72: =COUNTIF($AE$7:$AE72,AE72) -> 9 | AH72: 55.47 | AI72: 55.47 | AJ72: =COUNTIF($AI$7:$AI72,AI72) -> 10 | AK72: =IF($AE$6=1,L72,OFFSET($L$1,SUMPRODUCT(--(OFFSET($AE$7,0,0,AuthorityCounter,1)=AI72),--(OFFSET($AF$7,0,0,AuthorityCounter,1)=COUNTIF($AI$7:AI72,AI72)),ROW(OFFSET($AF$7,0,0,AuthorityCounter,1)))-1,0)) -> North Tyneside | AM72: =IF(VLOOKUP(AK72,colAM,IF($H$75="OC",8,5),FALSE)=1,MAX(AM$6:$AM71)+1,0) -> 66 | AN72: North Tyneside | AO72: FALSE | AP72: =IF($AP$5,SUM(SUMPRODUCT(--AO$7:$AO72)*AO72,(SUMPRODUCT(--(AO$7:$AO72=FALSE))+SUMPRODUCT(--colAP))*(1-AO72)),ROW()-6) -> 66 | AQ72: North Tyneside | AR72: =IF(ISERROR(AQ72),"na",AQ72) -> North Tyneside | IT72: Page 22: Total Book Issues | IU72: #,##0 | IV72: =AB7 -> 0
A73: (P.02)[02]Adult Fiction Issues | B73: 393 | C73: 2 | D73: 26 | E73: Page 26: Adult Fiction Issues | G73: Authority | H73: Group | I73: Question | L73: North Yorkshire | M73: c | O73: 0 | P73: =IF((ROW()-5=$G$36),1,IF((M73=Coding!$H$75)+(Coding!$H$75="ALL")+(Coding!$H$75="U")*OR(M73="W",M73="su",M73="L",M73="MD",M73="UA")+(Coding!$H$75="na")*AND(M73<>"W",M73<>"su",M73<>"L",M73<>"MD",M73<>"UA",M73<>"SC",M73<>"SD",M73<>"p"),1,0)) -> 1 | Q73: FALSE | R73: 0 | S73: 1 | T73: 0 | V73: =IF((S73=1)*($J$6<22),INDEX($J$13:$J$33,SUM($S$7:S73),1),"") ->  | W73: =COUNTIF($T$7:T73,T73) -> 67 | Y73: 0 | Z73: =INDEX(V:V,SUMPRODUCT((OFFSET($T$7,0,0,AuthorityCounter2,1)=Y73)*1,(OFFSET($W$7,0,0,AuthorityCounter2,1)=COUNTIF($Y$7:Y73,Y73))*1,ROW(OFFSET($W$7,0,0,AuthorityCounter2,1)))) ->  | AA73: 0 | AB73: =IF((Y73=AB$2)*(Z73=AC$3)*(SUM($AB$6:AB72)=0),+Y73,0) -> 0 | AC73: 0 | AE73: =IF($AE$6=3,O73,SUM((CODE(MID(CONCATENATE(UPPER(M73),"aaaaaaaaaa"),{1;2},1))-30)*{1;0.01})) -> 37.67 | AF73: =COUNTIF($AE$7:$AE73,AE73) -> 16 | AH73: 55.47 | AI73: 55.47 | AJ73: =COUNTIF($AI$7:$AI73,AI73) -> 11 | AK73: =IF($AE$6=1,L73,OFFSET($L$1,SUMPRODUCT(--(OFFSET($AE$7,0,0,AuthorityCounter,1)=AI73),--(OFFSET($AF$7,0,0,AuthorityCounter,1)=COUNTIF($AI$7:AI73,AI73)),ROW(OFFSET($AF$7,0,0,AuthorityCounter,1)))-1,0)) -> North Yorkshire | AM73: =IF(VLOOKUP(AK73,colAM,IF($H$75="OC",8,5),FALSE)=1,MAX(AM$6:$AM72)+1,0) -> 67 | AN73: North Yorkshire | AO73: FALSE | AP73: =IF($AP$5,SUM(SUMPRODUCT(--AO$7:$AO73)*AO73,(SUMPRODUCT(--(AO$7:$AO73=FALSE))+SUMPRODUCT(--colAP))*(1-AO73)),ROW()-6) -> 67 | AQ73: North Yorkshire | AR73: North Yorkshire | IT73: Page 22: Adult Fiction Issues | IU73: #,##0 | IV73: =AB7 -> 0
A74: (P.02)[03]Adult Non-Fiction Issues | B74: 393 | C74: 3 | D74: 26 | E74: Page 26: Adult Non-Fiction Issues | G74: =Coding!G36 -> 1 | H74: 1 | I74: =Coding!G38 -> 1 | L74: Northamptonshire | M74: c | O74: 0 | P74: =IF((ROW()-5=$G$36),1,IF((M74=Coding!$H$75)+(Coding!$H$75="ALL")+(Coding!$H$75="U")*OR(M74="W",M74="su",M74="L",M74="MD",M74="UA")+(Coding!$H$75="na")*AND(M74<>"W",M74<>"su",M74<>"L",M74<>"MD",M74<>"UA",M74<>"SC",M74<>"SD",M74<>"p"),1,0)) -> 1 | Q74: FALSE | R74: 0 | S74: 1 | T74: 0 | V74: =IF((S74=1)*($J$6<22),INDEX($J$13:$J$33,SUM($S$7:S74),1),"") ->  | W74: =COUNTIF($T$7:T74,T74) -> 68 | Y74: 0 | Z74: =INDEX(V:V,SUMPRODUCT((OFFSET($T$7,0,0,AuthorityCounter2,1)=Y74)*1,(OFFSET($W$7,0,0,AuthorityCounter2,1)=COUNTIF($Y$7:Y74,Y74))*1,ROW(OFFSET($W$7,0,0,AuthorityCounter2,1)))) ->  | AA74: 0 | AB74: =IF((Y74=AB$2)*(Z74=AC$3)*(SUM($AB$6:AB73)=0),+Y74,0) -> 0 | AC74: 0 | AE74: =IF($AE$6=3,O74,SUM((CODE(MID(CONCATENATE(UPPER(M74),"aaaaaaaaaa"),{1;2},1))-30)*{1;0.01})) -> 37.67 | AF74: =COUNTIF($AE$7:$AE74,AE74) -> 17 | AH74: 55.47 | AI74: 55.47 | AJ74: =COUNTIF($AI$7:$AI74,AI74) -> 12 | AK74: =IF($AE$6=1,L74,OFFSET($L$1,SUMPRODUCT(--(OFFSET($AE$7,0,0,AuthorityCounter,1)=AI74),--(OFFSET($AF$7,0,0,AuthorityCounter,1)=COUNTIF($AI$7:AI74,AI74)),ROW(OFFSET($AF$7,0,0,AuthorityCounter,1)))-1,0)) -> Northamptonshire | AM74: =IF(VLOOKUP(AK74,colAM,IF($H$75="OC",8,5),FALSE)=1,MAX(AM$6:$AM73)+1,0) -> 68 | AN74: Northamptonshire | AO74: FALSE | AP74: =IF($AP$5,SUM(SUMPRODUCT(--AO$7:$AO74)*AO74,(SUMPRODUCT(--(AO$7:$AO74=FALSE))+SUMPRODUCT(--colAP))*(1-AO74)),ROW()-6) -> 68 | AQ74: Northamptonshire | AR74: Northamptonshire | IT74: Page 22: Adult Non-Fiction Issues | IU74: #,##0 | IV74: =AB7 -> 0
A75: (P.02)[04]Children's Fiction Issues | B75: 393 | C75: 4 | D75: 26 | E75: Page 26: Children's Fiction Issues | G75: =INDEX(Coding!L6:L360,G74) -> --- Please Select --- | H75: =INDEX(Coding!H91:H96,H74,1) -> All | L75: Nottingham | M75: uu | O75: 0 | P75: =IF((ROW()-5=$G$36),1,IF((M75=Coding!$H$75)+(Coding!$H$75="ALL")+(Coding!$H$75="U")*OR(M75="W",M75="su",M75="L",M75="MD",M75="UA")+(Coding!$H$75="na")*AND(M75<>"W",M75<>"su",M75<>"L",M75<>"MD",M75<>"UA",M75<>"SC",M75<>"SD",M75<>"p"),1,0)) -> 1 | Q75: FALSE | R75: 0 | S75: 1 | T75: 0 | V75: =IF((S75=1)*($J$6<22),INDEX($J$13:$J$33,SUM($S$7:S75),1),"") ->  | W75: =COUNTIF($T$7:T75,T75) -> 69 | Y75: 0 | Z75: =INDEX(V:V,SUMPRODUCT((OFFSET($T$7,0,0,AuthorityCounter2,1)=Y75)*1,(OFFSET($W$7,0,0,AuthorityCounter2,1)=COUNTIF($Y$7:Y75,Y75))*1,ROW(OFFSET($W$7,0,0,AuthorityCounter2,1)))) ->  | AA75: 0 | AB75: =IF((Y75=AB$2)*(Z75=AC$3)*(SUM($AB$6:AB74)=0),+Y75,0) -> 0 | AC75: 0 | AE75: =IF($AE$6=3,O75,SUM((CODE(MID(CONCATENATE(UPPER(M75),"aaaaaaaaaa"),{1;2},1))-30)*{1;0.01})) -> 55.55 | AF75: =COUNTIF($AE$7:$AE75,AE75) -> 21 | AH75: 55.47 | AI75: 55.47 | AJ75: =COUNTIF($AI$7:$AI75,AI75) -> 13 | AK75: =IF($AE$6=1,L75,OFFSET($L$1,SUMPRODUCT(--(OFFSET($AE$7,0,0,AuthorityCounter,1)=AI75),--(OFFSET($AF$7,0,0,AuthorityCounter,1)=COUNTIF($AI$7:AI75,AI75)),ROW(OFFSET($AF$7,0,0,AuthorityCounter,1)))-1,0)) -> Nottingham | AM75: =IF(VLOOKUP(AK75,colAM,IF($H$75="OC",8,5),FALSE)=1,MAX(AM$6:$AM74)+1,0) -> 69 | AN75: Nottingham | AO75: FALSE | AP75: =IF($AP$5,SUM(SUMPRODUCT(--AO$7:$AO75)*AO75,(SUMPRODUCT(--(AO$7:$AO75=FALSE))+SUMPRODUCT(--colAP))*(1-AO75)),ROW()-6) -> 69 | AQ75: Nottingham | AR75: Nottingham | IT75: Page 22: Children's Fiction Issues | IU75: #,##0 | IV75: =AB7 -> 0
A76: (P.02)[05]Children's Non-Fiction Issues | B76: 393 | C76: 5 | D76: 26 | E76: Page 26: Children's Non-Fiction Issues | L76: Nottinghamshire | M76: c | O76: 0 | P76: =IF((ROW()-5=$G$36),1,IF((M76=Coding!$H$75)+(Coding!$H$75="ALL")+(Coding!$H$75="U")*OR(M76="W",M76="su",M76="L",M76="MD",M76="UA")+(Coding!$H$75="na")*AND(M76<>"W",M76<>"su",M76<>"L",M76<>"MD",M76<>"UA",M76<>"SC",M76<>"SD",M76<>"p"),1,0)) -> 1 | Q76: FALSE | R76: 0 | S76: 1 | T76: 0 | V76: =IF((S76=1)*($J$6<22),INDEX($J$13:$J$33,SUM($S$7:S76),1),"") ->  | W76: =COUNTIF($T$7:T76,T76) -> 70 | Y76: 0 | Z76: =INDEX(V:V,SUMPRODUCT((OFFSET($T$7,0,0,AuthorityCounter2,1)=Y76)*1,(OFFSET($W$7,0,0,AuthorityCounter2,1)=COUNTIF($Y$7:Y76,Y76))*1,ROW(OFFSET($W$7,0,0,AuthorityCounter2,1)))) ->  | AA76: 0 | AB76: =IF((Y76=AB$2)*(Z76=AC$3)*(SUM($AB$6:AB75)=0),+Y76,0) -> 0 | AC76: 0 | AE76: =IF($AE$6=3,O76,SUM((CODE(MID(CONCATENATE(UPPER(M76),"aaaaaaaaaa"),{1;2},1))-30)*{1;0.01})) -> 37.67 | AF76: =COUNTIF($AE$7:$AE76,AE76) -> 18 | AH76: 55.47 | AI76: 55.47 | AJ76: =COUNTIF($AI$7:$AI76,AI76) -> 14 | AK76: =IF($AE$6=1,L76,OFFSET($L$1,SUMPRODUCT(--(OFFSET($AE$7,0,0,AuthorityCounter,1)=AI76),--(OFFSET($AF$7,0,0,AuthorityCounter,1)=COUNTIF($AI$7:AI76,AI76)),ROW(OFFSET($AF$7,0,0,AuthorityCounter,1)))-1,0)) -> Nottinghamshire | AM76: =IF(VLOOKUP(AK76,colAM,IF($H$75="OC",8,5),FALSE)=1,MAX(AM$6:$AM75)+1,0) -> 70 | AN76: Nottinghamshire | AO76: FALSE | AP76: =IF($AP$5,SUM(SUMPRODUCT(--AO$7:$AO76)*AO76,(SUMPRODUCT(--(AO$7:$AO76=FALSE))+SUMPRODUCT(--colAP))*(1-AO76)),ROW()-6) -> 70 | AQ76: Nottinghamshire | AR76: Nottinghamshire | IT76: Page 22: Children's Non-Fiction Issues | IU76: #,##0 | IV76: =AB7 -> 0
A77: (P.03)[01]Total Book Issue Stock Turn | B77: 393 | C77: 6 | D77: 27 | E77: Page 27: Total Book Issue Stock Turn | L77: Oldham | M77: um | O77: 0 | P77: =IF((ROW()-5=$G$36),1,IF((M77=Coding!$H$75)+(Coding!$H$75="ALL")+(Coding!$H$75="U")*OR(M77="W",M77="su",M77="L",M77="MD",M77="UA")+(Coding!$H$75="na")*AND(M77<>"W",M77<>"su",M77<>"L",M77<>"MD",M77<>"UA",M77<>"SC",M77<>"SD",M77<>"p"),1,0)) -> 1 | Q77: FALSE | R77: 0 | S77: 1 | T77: 0 | V77: =IF((S77=1)*($J$6<22),INDEX($J$13:$J$33,SUM($S$7:S77),1),"") ->  | W77: =COUNTIF($T$7:T77,T77) -> 71 | Y77: 0 | Z77: =INDEX(V:V,SUMPRODUCT((OFFSET($T$7,0,0,AuthorityCounter2,1)=Y77)*1,(OFFSET($W$7,0,0,AuthorityCounter2,1)=COUNTIF($Y$7:Y77,Y77))*1,ROW(OFFSET($W$7,0,0,AuthorityCounter2,1)))) ->  | AA77: 0 | AB77: =IF((Y77=AB$2)*(Z77=AC$3)*(SUM($AB$6:AB76)=0),+Y77,0) -> 0 | AC77: 0 | AE77: =IF($AE$6=3,O77,SUM((CODE(MID(CONCATENATE(UPPER(M77),"aaaaaaaaaa"),{1;2},1))-30)*{1;0.01})) -> 55.47 | AF77: =COUNTIF($AE$7:$AE77,AE77) -> 10 | AH77: 55.47 | AI77: 55.47 | AJ77: =COUNTIF($AI$7:$AI77,AI77) -> 15 | AK77: =IF($AE$6=1,L77,OFFSET($L$1,SUMPRODUCT(--(OFFSET($AE$7,0,0,AuthorityCounter,1)=AI77),--(OFFSET($AF$7,0,0,AuthorityCounter,1)=COUNTIF($AI$7:AI77,AI77)),ROW(OFFSET($AF$7,0,0,AuthorityCounter,1)))-1,0)) -> Oldham | AM77: =IF(VLOOKUP(AK77,colAM,IF($H$75="OC",8,5),FALSE)=1,MAX(AM$6:$AM76)+1,0) -> 71 | AN77: Oldham | AO77: FALSE | AP77: =IF($AP$5,SUM(SUMPRODUCT(--AO$7:$AO77)*AO77,(SUMPRODUCT(--(AO$7:$AO77=FALSE))+SUMPRODUCT(--colAP))*(1-AO77)),ROW()-6) -> 71 | AQ77: Oldham | AR77: Oldham | IT77: Page 23: Total Book Issue Stock Turn | IU77: #,##0.0 | IV77: =AB7 -> 0
A78: (P.03)[02]Adult Fiction Stock Turn | B78: 393 | C78: 7 | D78: 27 | E78: Page 27: Adult Fiction Stock Turn | H78: Comparator Group Table | L78: Oxfordshire | M78: c | O78: 0 | P78: =IF((ROW()-5=$G$36),1,IF((M78=Coding!$H$75)+(Coding!$H$75="ALL")+(Coding!$H$75="U")*OR(M78="W",M78="su",M78="L",M78="MD",M78="UA")+(Coding!$H$75="na")*AND(M78<>"W",M78<>"su",M78<>"L",M78<>"MD",M78<>"UA",M78<>"SC",M78<>"SD",M78<>"p"),1,0)) -> 1 | Q78: FALSE | R78: 0 | S78: 1 | T78: 0 | V78: =IF((S78=1)*($J$6<22),INDEX($J$13:$J$33,SUM($S$7:S78),1),"") ->  | W78: =COUNTIF($T$7:T78,T78) -> 72 | Y78: 0 | Z78: =INDEX(V:V,SUMPRODUCT((OFFSET($T$7,0,0,AuthorityCounter2,1)=Y78)*1,(OFFSET($W$7,0,0,AuthorityCounter2,1)=COUNTIF($Y$7:Y78,Y78))*1,ROW(OFFSET($W$7,0,0,AuthorityCounter2,1)))) ->  | AA78: 0 | AB78: =IF((Y78=AB$2)*(Z78=AC$3)*(SUM($AB$6:AB77)=0),+Y78,0) -> 0 | AC78: 0 | AE78: =IF($AE$6=3,O78,SUM((CODE(MID(CONCATENATE(UPPER(M78),"aaaaaaaaaa"),{1;2},1))-30)*{1;0.01})) -> 37.67 | AF78: =COUNTIF($AE$7:$AE78,AE78) -> 19 | AH78: 55.47 | AI78: 55.47 | AJ78: =COUNTIF($AI$7:$AI78,AI78) -> 16 | AK78: =IF($AE$6=1,L78,OFFSET($L$1,SUMPRODUCT(--(OFFSET($AE$7,0,0,AuthorityCounter,1)=AI78),--(OFFSET($AF$7,0,0,AuthorityCounter,1)=COUNTIF($AI$7:AI78,AI78)),ROW(OFFSET($AF$7,0,0,AuthorityCounter,1)))-1,0)) -> Oxfordshire | AM78: =IF(VLOOKUP(AK78,colAM,IF($H$75="OC",8,5),FALSE)=1,MAX(AM$6:$AM77)+1,0) -> 72 | AN78: Oxfordshire | AO78: FALSE | AP78: =IF($AP$5,SUM(SUMPRODUCT(--AO$7:$AO78)*AO78,(SUMPRODUCT(--(AO$7:$AO78=FALSE))+SUMPRODUCT(--colAP))*(1-AO78)),ROW()-6) -> 72 | AQ78: Oxfordshire | AR78: Oxfordshire | IT78: Page 23: Adult Fiction Stock Turn | IU78: #,##0.0 | IV78: =AB7 -> 0
A79: (P.03)[03]Adult Non-Fiction Stock Turn | B79: 393 | C79: 8 | D79: 27 | E79: Page 27: Adult Non-Fiction Stock Turn | G79: 6 | H79: C | I79: Counties | J79: 26 | L79: Peterborough | M79: uu | O79: 0 | P79: =IF((ROW()-5=$G$36),1,IF((M79=Coding!$H$75)+(Coding!$H$75="ALL")+(Coding!$H$75="U")*OR(M79="W",M79="su",M79="L",M79="MD",M79="UA")+(Coding!$H$75="na")*AND(M79<>"W",M79<>"su",M79<>"L",M79<>"MD",M79<>"UA",M79<>"SC",M79<>"SD",M79<>"p"),1,0)) -> 1 | Q79: FALSE | R79: 0 | S79: 1 | T79: 0 | V79: =IF((S79=1)*($J$6<22),INDEX($J$13:$J$33,SUM($S$7:S79),1),"") ->  | W79: =COUNTIF($T$7:T79,T79) -> 73 | Y79: 0 | Z79: =INDEX(V:V,SUMPRODUCT((OFFSET($T$7,0,0,AuthorityCounter2,1)=Y79)*1,(OFFSET($W$7,0,0,AuthorityCounter2,1)=COUNTIF($Y$7:Y79,Y79))*1,ROW(OFFSET($W$7,0,0,AuthorityCounter2,1)))) ->  | AA79: 0 | AB79: =IF((Y79=AB$2)*(Z79=AC$3)*(SUM($AB$6:AB78)=0),+Y79,0) -> 0 | AC79: 0 | AE79: =IF($AE$6=3,O79,SUM((CODE(MID(CONCATENATE(UPPER(M79),"aaaaaaaaaa"),{1;2},1))-30)*{1;0.01})) -> 55.55 | AF79: =COUNTIF($AE$7:$AE79,AE79) -> 22 | AH79: 55.47 | AI79: 55.47 | AJ79: =COUNTIF($AI$7:$AI79,AI79) -> 17 | AK79: =IF($AE$6=1,L79,OFFSET($L$1,SUMPRODUCT(--(OFFSET($AE$7,0,0,AuthorityCounter,1)=AI79),--(OFFSET($AF$7,0,0,AuthorityCounter,1)=COUNTIF($AI$7:AI79,AI79)),ROW(OFFSET($AF$7,0,0,AuthorityCounter,1)))-1,0)) -> Peterborough | AM79: =IF(VLOOKUP(AK79,colAM,IF($H$75="OC",8,5),FALSE)=1,MAX(AM$6:$AM78)+1,0) -> 73 | AN79: Peterborough | AO79: FALSE | AP79: =IF($AP$5,SUM(SUMPRODUCT(--AO$7:$AO79)*AO79,(SUMPRODUCT(--(AO$7:$AO79=FALSE))+SUMPRODUCT(--colAP))*(1-AO79)),ROW()-6) -> 73 | AQ79: Peterborough | AR79: Peterborough | IT79: Page 23: Adult Non-Fiction Stock Turn | IU79: #,##0.0 | IV79: =AB7 -> 0
A80: (P.03)[04]Children's Fiction Stock Turn | B80: 393 | C80: 9 | D80: 27 | E80: Page 27: Children's Fiction Stock Turn | G80: 5 | H80: UU | I80: English Unitaries | J80: 42 | L80: Plymouth | M80: uu | O80: 0 | P80: =IF((ROW()-5=$G$36),1,IF((M80=Coding!$H$75)+(Coding!$H$75="ALL")+(Coding!$H$75="U")*OR(M80="W",M80="su",M80="L",M80="MD",M80="UA")+(Coding!$H$75="na")*AND(M80<>"W",M80<>"su",M80<>"L",M80<>"MD",M80<>"UA",M80<>"SC",M80<>"SD",M80<>"p"),1,0)) -> 1 | Q80: FALSE | R80: 0 | S80: 1 | T80: 0 | V80: =IF((S80=1)*($J$6<22),INDEX($J$13:$J$33,SUM($S$7:S80),1),"") ->  | W80: =COUNTIF($T$7:T80,T80) -> 74 | Y80: 0 | Z80: =INDEX(V:V,SUMPRODUCT((OFFSET($T$7,0,0,AuthorityCounter2,1)=Y80)*1,(OFFSET($W$7,0,0,AuthorityCounter2,1)=COUNTIF($Y$7:Y80,Y80))*1,ROW(OFFSET($W$7,0,0,AuthorityCounter2,1)))) ->  | AA80: 0 | AB80: =IF((Y80=AB$2)*(Z80=AC$3)*(SUM($AB$6:AB79)=0),+Y80,0) -> 0 | AC80: 0 | AE80: =IF($AE$6=3,O80,SUM((CODE(MID(CONCATENATE(UPPER(M80),"aaaaaaaaaa"),{1;2},1))-30)*{1;0.01})) -> 55.55 | AF80: =COUNTIF($AE$7:$AE80,AE80) -> 23 | AH80: 55.47 | AI80: 55.47 | AJ80: =COUNTIF($AI$7:$AI80,AI80) -> 18 | AK80: =IF($AE$6=1,L80,OFFSET($L$1,SUMPRODUCT(--(OFFSET($AE$7,0,0,AuthorityCounter,1)=AI80),--(OFFSET($AF$7,0,0,AuthorityCounter,1)=COUNTIF($AI$7:AI80,AI80)),ROW(OFFSET($AF$7,0,0,AuthorityCounter,1)))-1,0)) -> Plymouth | AM80: =IF(VLOOKUP(AK80,colAM,IF($H$75="OC",8,5),FALSE)=1,MAX(AM$6:$AM79)+1,0) -> 74 | AN80: Plymouth | AO80: FALSE | AP80: =IF($AP$5,SUM(SUMPRODUCT(--AO$7:$AO80)*AO80,(SUMPRODUCT(--(AO$7:$AO80=FALSE))+SUMPRODUCT(--colAP))*(1-AO80)),ROW()-6) -> 74 | AQ80: Plymouth | AR80: Plymouth | IT80: Page 23: Children's Fiction Stock Turn | IU80: #,##0.0 | IV80: =AB7 -> 0
A81: (P.03)[05]Children's Non-Fiction Stock Turn | B81: 393 | C81: 10 | D81: 27 | E81: Page 27: Children's Non-Fiction Stock Turn | G81: =G80+(J81>0) -> 5 | H81: WU | I81: Welsh Unitaries | J81: 0 | L81: Poole | M81: uu | O81: 0 | P81: =IF((ROW()-5=$G$36),1,IF((M81=Coding!$H$75)+(Coding!$H$75="ALL")+(Coding!$H$75="U")*OR(M81="W",M81="su",M81="L",M81="MD",M81="UA")+(Coding!$H$75="na")*AND(M81<>"W",M81<>"su",M81<>"L",M81<>"MD",M81<>"UA",M81<>"SC",M81<>"SD",M81<>"p"),1,0)) -> 1 | Q81: FALSE | R81: 0 | S81: 1 | T81: 0 | V81: =IF((S81=1)*($J$6<22),INDEX($J$13:$J$33,SUM($S$7:S81),1),"") ->  | W81: =COUNTIF($T$7:T81,T81) -> 75 | Y81: 0 | Z81: =INDEX(V:V,SUMPRODUCT((OFFSET($T$7,0,0,AuthorityCounter2,1)=Y81)*1,(OFFSET($W$7,0,0,AuthorityCounter2,1)=COUNTIF($Y$7:Y81,Y81))*1,ROW(OFFSET($W$7,0,0,AuthorityCounter2,1)))) ->  | AA81: 0 | AB81: =IF((Y81=AB$2)*(Z81=AC$3)*(SUM($AB$6:AB80)=0),+Y81,0) -> 0 | AC81: 0 | AE81: =IF($AE$6=3,O81,SUM((CODE(MID(CONCATENATE(UPPER(M81),"aaaaaaaaaa"),{1;2},1))-30)*{1;0.01})) -> 55.55 | AF81: =COUNTIF($AE$7:$AE81,AE81) -> 24 | AH81: 55.47 | AI81: 55.47 | AJ81: =COUNTIF($AI$7:$AI81,AI81) -> 19 | AK81: =IF($AE$6=1,L81,OFFSET($L$1,SUMPRODUCT(--(OFFSET($AE$7,0,0,AuthorityCounter,1)=AI81),--(OFFSET($AF$7,0,0,AuthorityCounter,1)=COUNTIF($AI$7:AI81,AI81)),ROW(OFFSET($AF$7,0,0,AuthorityCounter,1)))-1,0)) -> Poole | AM81: =IF(VLOOKUP(AK81,colAM,IF($H$75="OC",8,5),FALSE)=1,MAX(AM$6:$AM80)+1,0) -> 75 | AN81: Poole | AO81: FALSE | AP81: =IF($AP$5,SUM(SUMPRODUCT(--AO$7:$AO81)*AO81,(SUMPRODUCT(--(AO$7:$AO81=FALSE))+SUMPRODUCT(--colAP))*(1-AO81)),ROW()-6) -> 75 | AQ81: Poole | AR81: Poole | IT81: Page 23: Children's Non-Fiction Stock Turn | IU81: #,##0.0 | IV81: =AB7 -> 0
A82: (P.04)[01]Total Audio Visual Issues | B82: 393 | C82: 11 | D82: 28 | E82: Page 28: Total Audio Visual Issues | G82: 7 | H82: SU | I82: Scottish Unitaries | J82: 0 | L82: Portsmouth | M82: uu | O82: 0 | P82: =IF((ROW()-5=$G$36),1,IF((M82=Coding!$H$75)+(Coding!$H$75="ALL")+(Coding!$H$75="U")*OR(M82="W",M82="su",M82="L",M82="MD",M82="UA")+(Coding!$H$75="na")*AND(M82<>"W",M82<>"su",M82<>"L",M82<>"MD",M82<>"UA",M82<>"SC",M82<>"SD",M82<>"p"),1,0)) -> 1 | Q82: FALSE | R82: 0 | S82: 1 | T82: 0 | V82: =IF((S82=1)*($J$6<22),INDEX($J$13:$J$33,SUM($S$7:S82),1),"") ->  | W82: =COUNTIF($T$7:T82,T82) -> 76 | Y82: 0 | Z82: =INDEX(V:V,SUMPRODUCT((OFFSET($T$7,0,0,AuthorityCounter2,1)=Y82)*1,(OFFSET($W$7,0,0,AuthorityCounter2,1)=COUNTIF($Y$7:Y82,Y82))*1,ROW(OFFSET($W$7,0,0,AuthorityCounter2,1)))) ->  | AA82: 0 | AB82: =IF((Y82=AB$2)*(Z82=AC$3)*(SUM($AB$6:AB81)=0),+Y82,0) -> 0 | AC82: 0 | AE82: =IF($AE$6=3,O82,SUM((CODE(MID(CONCATENATE(UPPER(M82),"aaaaaaaaaa"),{1;2},1))-30)*{1;0.01})) -> 55.55 | AF82: =COUNTIF($AE$7:$AE82,AE82) -> 25 | AH82: 55.47 | AI82: =IF(ISERROR(AH82),"na",AH82) -> 55.47 | AJ82: =COUNTIF($AI$7:$AI82,AI82) -> 20 | AK82: =IF($AE$6=1,L82,OFFSET($L$1,SUMPRODUCT(--(OFFSET($AE$7,0,0,AuthorityCounter,1)=AI82),--(OFFSET($AF$7,0,0,AuthorityCounter,1)=COUNTIF($AI$7:AI82,AI82)),ROW(OFFSET($AF$7,0,0,AuthorityCounter,1)))-1,0)) -> Portsmouth | AM82: =IF(VLOOKUP(AK82,colAM,IF($H$75="OC",8,5),FALSE)=1,MAX(AM$6:$AM81)+1,0) -> 76 | AN82: Portsmouth | AO82: FALSE | AP82: =IF($AP$5,SUM(SUMPRODUCT(--AO$7:$AO82)*AO82,(SUMPRODUCT(--(AO$7:$AO82=FALSE))+SUMPRODUCT(--colAP))*(1-AO82)),ROW()-6) -> 76 | AQ82: Portsmouth | AR82: Portsmouth | IT82: Page 24: Total Audio Visual Issues | IU82: #,##0 | IV82: =AB7 -> 0
A83: (P.05)[01]Music, Videos and DVDs; Multi-media and Open Learning Packs; CD-ROMs and Software Issues | B83: 393 | C83: 12 | D83: 29 | E83: Page 29: Music, Videos and DVDs; Multi-media and Open Learning Packs; CD-ROMs and Software Issues | G83: 3 | H83: UL | I83: London Authorities | J83: 30 | L83: Reading | M83: uu | O83: 0 | P83: =IF((ROW()-5=$G$36),1,IF((M83=Coding!$H$75)+(Coding!$H$75="ALL")+(Coding!$H$75="U")*OR(M83="W",M83="su",M83="L",M83="MD",M83="UA")+(Coding!$H$75="na")*AND(M83<>"W",M83<>"su",M83<>"L",M83<>"MD",M83<>"UA",M83<>"SC",M83<>"SD",M83<>"p"),1,0)) -> 1 | Q83: FALSE | R83: 0 | S83: 1 | T83: 0 | V83: =IF((S83=1)*($J$6<22),INDEX($J$13:$J$33,SUM($S$7:S83),1),"") ->  | W83: =COUNTIF($T$7:T83,T83) -> 77 | Y83: 0 | Z83: =INDEX(V:V,SUMPRODUCT((OFFSET($T$7,0,0,AuthorityCounter2,1)=Y83)*1,(OFFSET($W$7,0,0,AuthorityCounter2,1)=COUNTIF($Y$7:Y83,Y83))*1,ROW(OFFSET($W$7,0,0,AuthorityCounter2,1)))) ->  | AA83: 0 | AB83: =IF((Y83=AB$2)*(Z83=AC$3)*(SUM($AB$6:AB82)=0),+Y83,0) -> 0 | AC83: 0 | AE83: =IF($AE$6=3,O83,SUM((CODE(MID(CONCATENATE(UPPER(M83),"aaaaaaaaaa"),{1;2},1))-30)*{1;0.01})) -> 55.55 | AF83: =COUNTIF($AE$7:$AE83,AE83) -> 26 | AH83: 55.47 | AI83: 55.47 | AJ83: =COUNTIF($AI$7:$AI83,AI83) -> 21 | AK83: =IF($AE$6=1,L83,OFFSET($L$1,SUMPRODUCT(--(OFFSET($AE$7,0,0,AuthorityCounter,1)=AI83),--(OFFSET($AF$7,0,0,AuthorityCounter,1)=COUNTIF($AI$7:AI83,AI83)),ROW(OFFSET($AF$7,0,0,AuthorityCounter,1)))-1,0)) -> Reading | AM83: =IF(VLOOKUP(AK83,colAM,IF($H$75="OC",8,5),FALSE)=1,MAX(AM$6:$AM82)+1,0) -> 77 | AN83: Reading | AO83: FALSE | AP83: =IF($AP$5,SUM(SUMPRODUCT(--AO$7:$AO83)*AO83,(SUMPRODUCT(--(AO$7:$AO83=FALSE))+SUMPRODUCT(--colAP))*(1-AO83)),ROW()-6) -> 77 | AQ83: Reading | AR83: Reading | IT83: Page 25: Music, Videos and DVDs; Multi-media and Open Learning Packs; CD-ROMs and Software Issues | IU83: #,##0 | IV83: =AB7 -> 0
A84: (P.05)[02]Adult Talking Book Issues | B84: 393 | C84: 13 | D84: 29 | E84: Page 29: Adult Talking Book Issues | G84: 4 | H84: UM | I84: Metropolitan Districts | J84: 23 | L84: Redbridge | M84: ul | O84: 0 | P84: =IF((ROW()-5=$G$36),1,IF((M84=Coding!$H$75)+(Coding!$H$75="ALL")+(Coding!$H$75="U")*OR(M84="W",M84="su",M84="L",M84="MD",M84="UA")+(Coding!$H$75="na")*AND(M84<>"W",M84<>"su",M84<>"L",M84<>"MD",M84<>"UA",M84<>"SC",M84<>"SD",M84<>"p"),1,0)) -> 1 | Q84: FALSE | R84: 0 | S84: 1 | T84: 0 | V84: =IF((S84=1)*($J$6<22),INDEX($J$13:$J$33,SUM($S$7:S84),1),"") ->  | W84: =COUNTIF($T$7:T84,T84) -> 78 | Y84: 0 | Z84: =INDEX(V:V,SUMPRODUCT((OFFSET($T$7,0,0,AuthorityCounter2,1)=Y84)*1,(OFFSET($W$7,0,0,AuthorityCounter2,1)=COUNTIF($Y$7:Y84,Y84))*1,ROW(OFFSET($W$7,0,0,AuthorityCounter2,1)))) ->  | AA84: 0 | AB84: =IF((Y84=AB$2)*(Z84=AC$3)*(SUM($AB$6:AB83)=0),+Y84,0) -> 0 | AC84: 0 | AE84: =IF($AE$6=3,O84,SUM((CODE(MID(CONCATENATE(UPPER(M84),"aaaaaaaaaa"),{1;2},1))-30)*{1;0.01})) -> 55.46 | AF84: =COUNTIF($AE$7:$AE84,AE84) -> 23 | AH84: 55.47 | AI84: 55.47 | AJ84: =COUNTIF($AI$7:$AI84,AI84) -> 22 | AK84: =IF($AE$6=1,L84,OFFSET($L$1,SUMPRODUCT(--(OFFSET($AE$7,0,0,AuthorityCounter,1)=AI84),--(OFFSET($AF$7,0,0,AuthorityCounter,1)=COUNTIF($AI$7:AI84,AI84)),ROW(OFFSET($AF$7,0,0,AuthorityCounter,1)))-1,0)) -> Redbridge | AM84: =IF(VLOOKUP(AK84,colAM,IF($H$75="OC",8,5),FALSE)=1,MAX(AM$6:$AM83)+1,0) -> 78 | AN84: Redbridge | AO84: FALSE | AP84: =IF($AP$5,SUM(SUMPRODUCT(--AO$7:$AO84)*AO84,(SUMPRODUCT(--(AO$7:$AO84=FALSE))+SUMPRODUCT(--colAP))*(1-AO84)),ROW()-6) -> 78 | AQ84: Redbridge | AR84: Redbridge | IT84: Page 25: Adult Talking Book Issues | IU84: #,##0 | IV84: =AB7 -> 0
A85: (P.05)[03]Children's Talking Book Issues | B85: 393 | C85: 14 | D85: 29 | E85: Page 29: Children's Talking Book Issues | G85: 1 | H85: All | I85: All Members | J85: 121 | L85: Redcar & Cleveland | M85: uu | O85: 0 | P85: =IF((ROW()-5=$G$36),1,IF((M85=Coding!$H$75)+(Coding!$H$75="ALL")+(Coding!$H$75="U")*OR(M85="W",M85="su",M85="L",M85="MD",M85="UA")+(Coding!$H$75="na")*AND(M85<>"W",M85<>"su",M85<>"L",M85<>"MD",M85<>"UA",M85<>"SC",M85<>"SD",M85<>"p"),1,0)) -> 1 | Q85: FALSE | R85: 0 | S85: 1 | T85: 0 | V85: =IF((S85=1)*($J$6<22),INDEX($J$13:$J$33,SUM($S$7:S85),1),"") ->  | W85: =COUNTIF($T$7:T85,T85) -> 79 | Y85: 0 | Z85: =INDEX(V:V,SUMPRODUCT((OFFSET($T$7,0,0,AuthorityCounter2,1)=Y85)*1,(OFFSET($W$7,0,0,AuthorityCounter2,1)=COUNTIF($Y$7:Y85,Y85))*1,ROW(OFFSET($W$7,0,0,AuthorityCounter2,1)))) ->  | AA85: 0 | AB85: =IF((Y85=AB$2)*(Z85=AC$3)*(SUM($AB$6:AB84)=0),+Y85,0) -> 0 | AC85: 0 | AE85: =IF($AE$6=3,O85,SUM((CODE(MID(CONCATENATE(UPPER(M85),"aaaaaaaaaa"),{1;2},1))-30)*{1;0.01})) -> 55.55 | AF85: =COUNTIF($AE$7:$AE85,AE85) -> 27 | AH85: 55.47 | AI85: 55.47 | AJ85: =COUNTIF($AI$7:$AI85,AI85) -> 23 | AK85: =IF($AE$6=1,L85,OFFSET($L$1,SUMPRODUCT(--(OFFSET($AE$7,0,0,AuthorityCounter,1)=AI85),--(OFFSET($AF$7,0,0,AuthorityCounter,1)=COUNTIF($AI$7:AI85,AI85)),ROW(OFFSET($AF$7,0,0,AuthorityCounter,1)))-1,0)) -> Redcar & Cleveland | AM85: =IF(VLOOKUP(AK85,colAM,IF($H$75="OC",8,5),FALSE)=1,MAX(AM$6:$AM84)+1,0) -> 79 | AN85: Redcar & Cleveland | AO85: FALSE | AP85: =IF($AP$5,SUM(SUMPRODUCT(--AO$7:$AO85)*AO85,(SUMPRODUCT(--(AO$7:$AO85=FALSE))+SUMPRODUCT(--colAP))*(1-AO85)),ROW()-6) -> 79 | AQ85: Redcar & Cleveland | AR85: Redcar & Cleveland | IT85: Page 25: Children's Talking Book Issues | IU85: #,##0 | IV85: =AB7 -> 0
A86: (P.06)[01]Number of Requests for Specific Items | B86: 393 | C86: 15 | D86: 30 | E86: Page 30: Number of Requests for Specific Items | G86: 2 | H86: OC | I86: Original Comparators | J86: 1 | L86: Richmond-upon-Thames | M86: ul | O86: 0 | P86: =IF((ROW()-5=$G$36),1,IF((M86=Coding!$H$75)+(Coding!$H$75="ALL")+(Coding!$H$75="U")*OR(M86="W",M86="su",M86="L",M86="MD",M86="UA")+(Coding!$H$75="na")*AND(M86<>"W",M86<>"su",M86<>"L",M86<>"MD",M86<>"UA",M86<>"SC",M86<>"SD",M86<>"p"),1,0)) -> 1 | Q86: FALSE | R86: 0 | S86: 1 | T86: 0 | V86: =IF((S86=1)*($J$6<22),INDEX($J$13:$J$33,SUM($S$7:S86),1),"") ->  | W86: =COUNTIF($T$7:T86,T86) -> 80 | Y86: 0 | Z86: =INDEX(V:V,SUMPRODUCT((OFFSET($T$7,0,0,AuthorityCounter2,1)=Y86)*1,(OFFSET($W$7,0,0,AuthorityCounter2,1)=COUNTIF($Y$7:Y86,Y86))*1,ROW(OFFSET($W$7,0,0,AuthorityCounter2,1)))) ->  | AA86: 0 | AB86: =IF((Y86=AB$2)*(Z86=AC$3)*(SUM($AB$6:AB85)=0),+Y86,0) -> 0 | AC86: 0 | AE86: =IF($AE$6=3,O86,SUM((CODE(MID(CONCATENATE(UPPER(M86),"aaaaaaaaaa"),{1;2},1))-30)*{1;0.01})) -> 55.46 | AF86: =COUNTIF($AE$7:$AE86,AE86) -> 24 | AH86: 55.55 | AI86: 55.55 | AJ86: =COUNTIF($AI$7:$AI86,AI86) -> 1 | AK86: =IF($AE$6=1,L86,OFFSET($L$1,SUMPRODUCT(--(OFFSET($AE$7,0,0,AuthorityCounter,1)=AI86),--(OFFSET($AF$7,0,0,AuthorityCounter,1)=COUNTIF($AI$7:AI86,AI86)),ROW(OFFSET($AF$7,0,0,AuthorityCounter,1)))-1,0)) -> Richmond-upon-Thames | AM86: =IF(VLOOKUP(AK86,colAM,IF($H$75="OC",8,5),FALSE)=1,MAX(AM$6:$AM85)+1,0) -> 80 | AN86: Richmond-upon-Thames | AO86: FALSE | AP86: =IF($AP$5,SUM(SUMPRODUCT(--AO$7:$AO86)*AO86,(SUMPRODUCT(--(AO$7:$AO86=FALSE))+SUMPRODUCT(--colAP))*(1-AO86)),ROW()-6) -> 80 | AQ86: Richmond-upon-Thames | AR86: Richmond-upon-Thames | IT86: Page 26: Number of Requests for Specific Items | IU86: #,##0 | IV86: =AB7 -> 0
A87: (P.06)[02]Number of Online Requests | B87: 393 | C87: 16 | D87: 30 | E87: Page 30: Number of Online Requests | L87: Rochdale | M87: um | O87: 0 | P87: =IF((ROW()-5=$G$36),1,IF((M87=Coding!$H$75)+(Coding!$H$75="ALL")+(Coding!$H$75="U")*OR(M87="W",M87="su",M87="L",M87="MD",M87="UA")+(Coding!$H$75="na")*AND(M87<>"W",M87<>"su",M87<>"L",M87<>"MD",M87<>"UA",M87<>"SC",M87<>"SD",M87<>"p"),1,0)) -> 1 | Q87: FALSE | R87: 0 | S87: 1 | T87: 0 | V87: =IF((S87=1)*($J$6<22),INDEX($J$13:$J$33,SUM($S$7:S87),1),"") ->  | W87: =COUNTIF($T$7:T87,T87) -> 81 | Y87: 0 | Z87: =INDEX(V:V,SUMPRODUCT((OFFSET($T$7,0,0,AuthorityCounter2,1)=Y87)*1,(OFFSET($W$7,0,0,AuthorityCounter2,1)=COUNTIF($Y$7:Y87,Y87))*1,ROW(OFFSET($W$7,0,0,AuthorityCounter2,1)))) ->  | AA87: 0 | AB87: =IF((Y87=AB$2)*(Z87=AC$3)*(SUM($AB$6:AB86)=0),+Y87,0) -> 0 | AC87: 0 | AE87: =IF($AE$6=3,O87,SUM((CODE(MID(CONCATENATE(UPPER(M87),"aaaaaaaaaa"),{1;2},1))-30)*{1;0.01})) -> 55.47 | AF87: =COUNTIF($AE$7:$AE87,AE87) -> 11 | AH87: 55.55 | AI87: 55.55 | AJ87: =COUNTIF($AI$7:$AI87,AI87) -> 2 | AK87: =IF($AE$6=1,L87,OFFSET($L$1,SUMPRODUCT(--(OFFSET($AE$7,0,0,AuthorityCounter,1)=AI87),--(OFFSET($AF$7,0,0,AuthorityCounter,1)=COUNTIF($AI$7:AI87,AI87)),ROW(OFFSET($AF$7,0,0,AuthorityCounter,1)))-1,0)) -> Rochdale | AM87: =IF(VLOOKUP(AK87,colAM,IF($H$75="OC",8,5),FALSE)=1,MAX(AM$6:$AM86)+1,0) -> 81 | AN87: Rochdale | AO87: FALSE | AP87: =IF($AP$5,SUM(SUMPRODUCT(--AO$7:$AO87)*AO87,(SUMPRODUCT(--(AO$7:$AO87=FALSE))+SUMPRODUCT(--colAP))*(1-AO87)),ROW()-6) -> 81 | AQ87: Rochdale | AR87: Rochdale | IT87: Page 26: Number of Online Requests | IU87: #,##0 | IV87: =AB7 -> 0
A88: (P.06)[03]Number of Enquiries | B88: 393 | C88: 17 | D88: 30 | E88: Page 30: Number of Enquiries | L88: Rotherham | M88: um | O88: 0 | P88: =IF((ROW()-5=$G$36),1,IF((M88=Coding!$H$75)+(Coding!$H$75="ALL")+(Coding!$H$75="U")*OR(M88="W",M88="su",M88="L",M88="MD",M88="UA")+(Coding!$H$75="na")*AND(M88<>"W",M88<>"su",M88<>"L",M88<>"MD",M88<>"UA",M88<>"SC",M88<>"SD",M88<>"p"),1,0)) -> 1 | Q88: FALSE | R88: 0 | S88: 1 | T88: 0 | V88: =IF((S88=1)*($J$6<22),INDEX($J$13:$J$33,SUM($S$7:S88),1),"") ->  | W88: =COUNTIF($T$7:T88,T88) -> 82 | Y88: 0 | Z88: =INDEX(V:V,SUMPRODUCT((OFFSET($T$7,0,0,AuthorityCounter2,1)=Y88)*1,(OFFSET($W$7,0,0,AuthorityCounter2,1)=COUNTIF($Y$7:Y88,Y88))*1,ROW(OFFSET($W$7,0,0,AuthorityCounter2,1)))) ->  | AA88: 0 | AB88: =IF((Y88=AB$2)*(Z88=AC$3)*(SUM($AB$6:AB87)=0),+Y88,0) -> 0 | AC88: 0 | AE88: =IF($AE$6=3,O88,SUM((CODE(MID(CONCATENATE(UPPER(M88),"aaaaaaaaaa"),{1;2},1))-30)*{1;0.01})) -> 55.47 | AF88: =COUNTIF($AE$7:$AE88,AE88) -> 12 | AH88: 55.55 | AI88: 55.55 | AJ88: =COUNTIF($AI$7:$AI88,AI88) -> 3 | AK88: =IF($AE$6=1,L88,OFFSET($L$1,SUMPRODUCT(--(OFFSET($AE$7,0,0,AuthorityCounter,1)=AI88),--(OFFSET($AF$7,0,0,AuthorityCounter,1)=COUNTIF($AI$7:AI88,AI88)),ROW(OFFSET($AF$7,0,0,AuthorityCounter,1)))-1,0)) -> Rotherham | AM88: =IF(VLOOKUP(AK88,colAM,IF($H$75="OC",8,5),FALSE)=1,MAX(AM$6:$AM87)+1,0) -> 82 | AN88: Rotherham | AO88: FALSE | AP88: =IF($AP$5,SUM(SUMPRODUCT(--AO$7:$AO88)*AO88,(SUMPRODUCT(--(AO$7:$AO88=FALSE))+SUMPRODUCT(--colAP))*(1-AO88)),ROW()-6) -> 82 | AQ88: Rotherham | AR88: Rotherham | IT88: Page 26: Number of Enquiries | IU88: #,##0 | IV88: =AB7 -> 0
A89: (P.06)[04]Number of Online Enquiries | B89: 393 | C89: 18 | D89: 30 | E89: Page 30: Number of Online Enquiries | L89: Rutland | M89: uu | O89: 0 | P89: =IF((ROW()-5=$G$36),1,IF((M89=Coding!$H$75)+(Coding!$H$75="ALL")+(Coding!$H$75="U")*OR(M89="W",M89="su",M89="L",M89="MD",M89="UA")+(Coding!$H$75="na")*AND(M89<>"W",M89<>"su",M89<>"L",M89<>"MD",M89<>"UA",M89<>"SC",M89<>"SD",M89<>"p"),1,0)) -> 1 | Q89: FALSE | R89: 0 | S89: 1 | T89: 0 | V89: =IF((S89=1)*($J$6<22),INDEX($J$13:$J$33,SUM($S$7:S89),1),"") ->  | W89: =COUNTIF($T$7:T89,T89) -> 83 | Y89: 0 | Z89: =INDEX(V:V,SUMPRODUCT((OFFSET($T$7,0,0,AuthorityCounter2,1)=Y89)*1,(OFFSET($W$7,0,0,AuthorityCounter2,1)=COUNTIF($Y$7:Y89,Y89))*1,ROW(OFFSET($W$7,0,0,AuthorityCounter2,1)))) ->  | AA89: 0 | AB89: =IF((Y89=AB$2)*(Z89=AC$3)*(SUM($AB$6:AB88)=0),+Y89,0) -> 0 | AC89: 0 | AE89: =IF($AE$6=3,O89,SUM((CODE(MID(CONCATENATE(UPPER(M89),"aaaaaaaaaa"),{1;2},1))-30)*{1;0.01})) -> 55.55 | AF89: =COUNTIF($AE$7:$AE89,AE89) -> 28 | AH89: 55.55 | AI89: 55.55 | AJ89: =COUNTIF($AI$7:$AI89,AI89) -> 4 | AK89: =IF($AE$6=1,L89,OFFSET($L$1,SUMPRODUCT(--(OFFSET($AE$7,0,0,AuthorityCounter,1)=AI89),--(OFFSET($AF$7,0,0,AuthorityCounter,1)=COUNTIF($AI$7:AI89,AI89)),ROW(OFFSET($AF$7,0,0,AuthorityCounter,1)))-1,0)) -> Rutland | AM89: =IF(VLOOKUP(AK89,colAM,IF($H$75="OC",8,5),FALSE)=1,MAX(AM$6:$AM88)+1,0) -> 83 | AN89: Rutland | AO89: FALSE | AP89: =IF($AP$5,SUM(SUMPRODUCT(--AO$7:$AO89)*AO89,(SUMPRODUCT(--(AO$7:$AO89=FALSE))+SUMPRODUCT(--colAP))*(1-AO89)),ROW()-6) -> 83 | AQ89: Rutland | AR89: Rutland | IT89: Page 26: Number of Online Enquiries | IU89: #,##0 | IV89: =AB7 -> 0
A90: (P.06)[05]Inter-Library Loans Supplied | B90: 393 | C90: 19 | D90: 30 | E90: Page 30: Inter-Library Loans Supplied | H90: Comparator Group Table | L90: Salford | M90: um | O90: 0 | P90: =IF((ROW()-5=$G$36),1,IF((M90=Coding!$H$75)+(Coding!$H$75="ALL")+(Coding!$H$75="U")*OR(M90="W",M90="su",M90="L",M90="MD",M90="UA")+(Coding!$H$75="na")*AND(M90<>"W",M90<>"su",M90<>"L",M90<>"MD",M90<>"UA",M90<>"SC",M90<>"SD",M90<>"p"),1,0)) -> 1 | Q90: FALSE | R90: 0 | S90: 1 | T90: 0 | V90: =IF((S90=1)*($J$6<22),INDEX($J$13:$J$33,SUM($S$7:S90),1),"") ->  | W90: =COUNTIF($T$7:T90,T90) -> 84 | Y90: 0 | Z90: =INDEX(V:V,SUMPRODUCT((OFFSET($T$7,0,0,AuthorityCounter2,1)=Y90)*1,(OFFSET($W$7,0,0,AuthorityCounter2,1)=COUNTIF($Y$7:Y90,Y90))*1,ROW(OFFSET($W$7,0,0,AuthorityCounter2,1)))) ->  | AA90: 0 | AB90: =IF((Y90=AB$2)*(Z90=AC$3)*(SUM($AB$6:AB89)=0),+Y90,0) -> 0 | AC90: 0 | AE90: =IF($AE$6=3,O90,SUM((CODE(MID(CONCATENATE(UPPER(M90),"aaaaaaaaaa"),{1;2},1))-30)*{1;0.01})) -> 55.47 | AF90: =COUNTIF($AE$7:$AE90,AE90) -> 13 | AH90: 55.55 | AI90: 55.55 | AJ90: =COUNTIF($AI$7:$AI90,AI90) -> 5 | AK90: =IF($AE$6=1,L90,OFFSET($L$1,SUMPRODUCT(--(OFFSET($AE$7,0,0,AuthorityCounter,1)=AI90),--(OFFSET($AF$7,0,0,AuthorityCounter,1)=COUNTIF($AI$7:AI90,AI90)),ROW(OFFSET($AF$7,0,0,AuthorityCounter,1)))-1,0)) -> Salford | AM90: =IF(VLOOKUP(AK90,colAM,IF($H$75="OC",8,5),FALSE)=1,MAX(AM$6:$AM89)+1,0) -> 84 | AN90: Salford | AO90: FALSE | AP90: =IF($AP$5,SUM(SUMPRODUCT(--AO$7:$AO90)*AO90,(SUMPRODUCT(--(AO$7:$AO90=FALSE))+SUMPRODUCT(--colAP))*(1-AO90)),ROW()-6) -> 84 | AQ90: Salford | AR90: Salford | IT90: Page 26: Inter-Library Loans Supplied | IU90: #,##0.0 | IV90: =AB7 -> 0
A91: (P.06)[06]Inter-Library Loans Received | B91: 393 | C91: 20 | D91: 30 | E91: Page 30: Inter-Library Loans Received | G91: 1 | H91: =VLOOKUP(G91,$G$79:$J$86,2,FALSE) -> All | I91: =VLOOKUP(G91,$G$79:$J$86,3,FALSE) -> All Members | L91: Sandwell | M91: um | O91: 0 | P91: =IF((ROW()-5=$G$36),1,IF((M91=Coding!$H$75)+(Coding!$H$75="ALL")+(Coding!$H$75="U")*OR(M91="W",M91="su",M91="L",M91="MD",M91="UA")+(Coding!$H$75="na")*AND(M91<>"W",M91<>"su",M91<>"L",M91<>"MD",M91<>"UA",M91<>"SC",M91<>"SD",M91<>"p"),1,0)) -> 1 | Q91: FALSE | R91: 0 | S91: 1 | T91: 0 | V91: =IF((S91=1)*($J$6<22),INDEX($J$13:$J$33,SUM($S$7:S91),1),"") ->  | W91: =COUNTIF($T$7:T91,T91) -> 85 | Y91: 0 | Z91: =INDEX(V:V,SUMPRODUCT((OFFSET($T$7,0,0,AuthorityCounter2,1)=Y91)*1,(OFFSET($W$7,0,0,AuthorityCounter2,1)=COUNTIF($Y$7:Y91,Y91))*1,ROW(OFFSET($W$7,0,0,AuthorityCounter2,1)))) ->  | AA91: 0 | AB91: =IF((Y91=AB$2)*(Z91=AC$3)*(SUM($AB$6:AB90)=0),+Y91,0) -> 0 | AC91: 0 | AE91: =IF($AE$6=3,O91,SUM((CODE(MID(CONCATENATE(UPPER(M91),"aaaaaaaaaa"),{1;2},1))-30)*{1;0.01})) -> 55.47 | AF91: =COUNTIF($AE$7:$AE91,AE91) -> 14 | AH91: 55.55 | AI91: 55.55 | AJ91: =COUNTIF($AI$7:$AI91,AI91) -> 6 | AK91: =IF($AE$6=1,L91,OFFSET($L$1,SUMPRODUCT(--(OFFSET($AE$7,0,0,AuthorityCounter,1)=AI91),--(OFFSET($AF$7,0,0,AuthorityCounter,1)=COUNTIF($AI$7:AI91,AI91)),ROW(OFFSET($AF$7,0,0,AuthorityCounter,1)))-1,0)) -> Sandwell | AM91: =IF(VLOOKUP(AK91,colAM,IF($H$75="OC",8,5),FALSE)=1,MAX(AM$6:$AM90)+1,0) -> 85 | AN91: Sandwell | AO91: FALSE | AP91: =IF($AP$5,SUM(SUMPRODUCT(--AO$7:$AO91)*AO91,(SUMPRODUCT(--(AO$7:$AO91=FALSE))+SUMPRODUCT(--colAP))*(1-AO91)),ROW()-6) -> 85 | AQ91: Sandwell | AR91: Sandwell | IT91: Page 26: Inter-Library Loans Received | IU91: #,##0.00 | IV91: =AB7 -> 0
A92: (P.03)[01]Total Book Stock | B92: 524 | C92: 0 | D92: 33 | E92: Page 33: Total Book Stock | G92: 2 | H92: OC | I92: Original Comparators | L92: Sefton | M92: um | O92: 0 | P92: =IF((ROW()-5=$G$36),1,IF((M92=Coding!$H$75)+(Coding!$H$75="ALL")+(Coding!$H$75="U")*OR(M92="W",M92="su",M92="L",M92="MD",M92="UA")+(Coding!$H$75="na")*AND(M92<>"W",M92<>"su",M92<>"L",M92<>"MD",M92<>"UA",M92<>"SC",M92<>"SD",M92<>"p"),1,0)) -> 1 | Q92: FALSE | R92: 0 | S92: 1 | T92: 0 | V92: =IF((S92=1)*($J$6<22),INDEX($J$13:$J$33,SUM($S$7:S92),1),"") ->  | W92: =COUNTIF($T$7:T92,T92) -> 86 | Y92: 0 | Z92: =INDEX(V:V,SUMPRODUCT((OFFSET($T$7,0,0,AuthorityCounter2,1)=Y92)*1,(OFFSET($W$7,0,0,AuthorityCounter2,1)=COUNTIF($Y$7:Y92,Y92))*1,ROW(OFFSET($W$7,0,0,AuthorityCounter2,1)))) ->  | AA92: 0 | AB92: =IF((Y92=AB$2)*(Z92=AC$3)*(SUM($AB$6:AB91)=0),+Y92,0) -> 0 | AC92: 0 | AE92: =IF($AE$6=3,O92,SUM((CODE(MID(CONCATENATE(UPPER(M92),"aaaaaaaaaa"),{1;2},1))-30)*{1;0.01})) -> 55.47 | AF92: =COUNTIF($AE$7:$AE92,AE92) -> 15 | AH92: 55.55 | AI92: 55.55 | AJ92: =COUNTIF($AI$7:$AI92,AI92) -> 7 | AK92: =IF($AE$6=1,L92,OFFSET($L$1,SUMPRODUCT(--(OFFSET($AE$7,0,0,AuthorityCounter,1)=AI92),--(OFFSET($AF$7,0,0,AuthorityCounter,1)=COUNTIF($AI$7:AI92,AI92)),ROW(OFFSET($AF$7,0,0,AuthorityCounter,1)))-1,0)) -> Sefton | AM92: =IF(VLOOKUP(AK92,colAM,IF($H$75="OC",8,5),FALSE)=1,MAX(AM$6:$AM91)+1,0) -> 86 | AN92: Sefton | AO92: FALSE | AP92: =IF($AP$5,SUM(SUMPRODUCT(--AO$7:$AO92)*AO92,(SUMPRODUCT(--(AO$7:$AO92=FALSE))+SUMPRODUCT(--colAP))*(1-AO92)),ROW()-6) -> 86 | AQ92: Sefton | AR92: Sefton | IT92: Page 27: Total Book Stock | IU92: #,##0 | IV92: =AB7 -> 0
A93: (P.03)[02]Reference Book Stock | B93: 524 | C93: 1 | D93: 33 | E93: Page 33: Reference Book Stock | G93: 3 | H93: UL | I93: London Authorities | L93: Sheffield | M93: um | O93: 0 | P93: =IF((ROW()-5=$G$36),1,IF((M93=Coding!$H$75)+(Coding!$H$75="ALL")+(Coding!$H$75="U")*OR(M93="W",M93="su",M93="L",M93="MD",M93="UA")+(Coding!$H$75="na")*AND(M93<>"W",M93<>"su",M93<>"L",M93<>"MD",M93<>"UA",M93<>"SC",M93<>"SD",M93<>"p"),1,0)) -> 1 | Q93: FALSE | R93: 0 | S93: 1 | T93: 0 | V93: =IF((S93=1)*($J$6<22),INDEX($J$13:$J$33,SUM($S$7:S93),1),"") ->  | W93: =COUNTIF($T$7:T93,T93) -> 87 | Y93: 0 | Z93: =INDEX(V:V,SUMPRODUCT((OFFSET($T$7,0,0,AuthorityCounter2,1)=Y93)*1,(OFFSET($W$7,0,0,AuthorityCounter2,1)=COUNTIF($Y$7:Y93,Y93))*1,ROW(OFFSET($W$7,0,0,AuthorityCounter2,1)))) ->  | AA93: 0 | AB93: =IF((Y93=AB$2)*(Z93=AC$3)*(SUM($AB$6:AB92)=0),+Y93,0) -> 0 | AC93: 0 | AE93: =IF($AE$6=3,O93,SUM((CODE(MID(CONCATENATE(UPPER(M93),"aaaaaaaaaa"),{1;2},1))-30)*{1;0.01})) -> 55.47 | AF93: =COUNTIF($AE$7:$AE93,AE93) -> 16 | AH93: 55.55 | AI93: 55.55 | AJ93: =COUNTIF($AI$7:$AI93,AI93) -> 8 | AK93: =IF($AE$6=1,L93,OFFSET($L$1,SUMPRODUCT(--(OFFSET($AE$7,0,0,AuthorityCounter,1)=AI93),--(OFFSET($AF$7,0,0,AuthorityCounter,1)=COUNTIF($AI$7:AI93,AI93)),ROW(OFFSET($AF$7,0,0,AuthorityCounter,1)))-1,0)) -> Sheffield | AM93: =IF(VLOOKUP(AK93,colAM,IF($H$75="OC",8,5),FALSE)=1,MAX(AM$6:$AM92)+1,0) -> 87 | AN93: Sheffield | AO93: FALSE | AP93: =IF($AP$5,SUM(SUMPRODUCT(--AO$7:$AO93)*AO93,(SUMPRODUCT(--(AO$7:$AO93=FALSE))+SUMPRODUCT(--colAP))*(1-AO93)),ROW()-6) -> 87 | AQ93: Sheffield | AR93: Sheffield | IT93: Page 27: Reference Book Stock | IU93: #,##0 | IV93: =AB7 -> 0
A94: (P.03)[03]Adult Fiction Stock | B94: 524 | C94: 2 | D94: 33 | E94: Page 33: Adult Fiction Stock | G94: 4 | H94: UM | I94: Metropolitan Districts | L94: Shropshire | M94: uu | O94: 0 | P94: =IF((ROW()-5=$G$36),1,IF((M94=Coding!$H$75)+(Coding!$H$75="ALL")+(Coding!$H$75="U")*OR(M94="W",M94="su",M94="L",M94="MD",M94="UA")+(Coding!$H$75="na")*AND(M94<>"W",M94<>"su",M94<>"L",M94<>"MD",M94<>"UA",M94<>"SC",M94<>"SD",M94<>"p"),1,0)) -> 1 | Q94: FALSE | R94: 0 | S94: 1 | T94: 0 | V94: =IF((S94=1)*($J$6<22),INDEX($J$13:$J$33,SUM($S$7:S94),1),"") ->  | W94: =COUNTIF($T$7:T94,T94) -> 88 | Y94: 0 | Z94: =INDEX(V:V,SUMPRODUCT((OFFSET($T$7,0,0,AuthorityCounter2,1)=Y94)*1,(OFFSET($W$7,0,0,AuthorityCounter2,1)=COUNTIF($Y$7:Y94,Y94))*1,ROW(OFFSET($W$7,0,0,AuthorityCounter2,1)))) ->  | AA94: 0 | AB94: =IF((Y94=AB$2)*(Z94=AC$3)*(SUM($AB$6:AB93)=0),+Y94,0) -> 0 | AC94: 0 | AE94: =IF($AE$6=3,O94,SUM((CODE(MID(CONCATENATE(UPPER(M94),"aaaaaaaaaa"),{1;2},1))-30)*{1;0.01})) -> 55.55 | AF94: =COUNTIF($AE$7:$AE94,AE94) -> 29 | AH94: 55.55 | AI94: 55.55 | AJ94: =COUNTIF($AI$7:$AI94,AI94) -> 9 | AK94: =IF($AE$6=1,L94,OFFSET($L$1,SUMPRODUCT(--(OFFSET($AE$7,0,0,AuthorityCounter,1)=AI94),--(OFFSET($AF$7,0,0,AuthorityCounter,1)=COUNTIF($AI$7:AI94,AI94)),ROW(OFFSET($AF$7,0,0,AuthorityCounter,1)))-1,0)) -> Shropshire | AM94: =IF(VLOOKUP(AK94,colAM,IF($H$75="OC",8,5),FALSE)=1,MAX(AM$6:$AM93)+1,0) -> 88 | AN94: Shropshire | AO94: FALSE | AP94: =IF($AP$5,SUM(SUMPRODUCT(--AO$7:$AO94)*AO94,(SUMPRODUCT(--(AO$7:$AO94=FALSE))+SUMPRODUCT(--colAP))*(1-AO94)),ROW()-6) -> 88 | AQ94: Shropshire | AR94: Shropshire | IT94: Page 27: Adult Fiction Stock | IU94: #,##0 | IV94: =AB7 -> 0
A95: (P.03)[04]Adult Non-Fiction Stock | B95: 524 | C95: 3 | D95: 33 | E95: Page 33: Adult Non-Fiction Stock | G95: 5 | H95: UU | I95: English Unitaries | L95: Solihull | M95: um | O95: 0 | P95: =IF((ROW()-5=$G$36),1,IF((M95=Coding!$H$75)+(Coding!$H$75="ALL")+(Coding!$H$75="U")*OR(M95="W",M95="su",M95="L",M95="MD",M95="UA")+(Coding!$H$75="na")*AND(M95<>"W",M95<>"su",M95<>"L",M95<>"MD",M95<>"UA",M95<>"SC",M95<>"SD",M95<>"p"),1,0)) -> 1 | Q95: FALSE | R95: 0 | S95: 1 | T95: 0 | V95: =IF((S95=1)*($J$6<22),INDEX($J$13:$J$33,SUM($S$7:S95),1),"") ->  | W95: =COUNTIF($T$7:T95,T95) -> 89 | Y95: 0 | Z95: =INDEX(V:V,SUMPRODUCT((OFFSET($T$7,0,0,AuthorityCounter2,1)=Y95)*1,(OFFSET($W$7,0,0,AuthorityCounter2,1)=COUNTIF($Y$7:Y95,Y95))*1,ROW(OFFSET($W$7,0,0,AuthorityCounter2,1)))) ->  | AA95: 0 | AB95: =IF((Y95=AB$2)*(Z95=AC$3)*(SUM($AB$6:AB94)=0),+Y95,0) -> 0 | AC95: 0 | AE95: =IF($AE$6=3,O95,SUM((CODE(MID(CONCATENATE(UPPER(M95),"aaaaaaaaaa"),{1;2},1))-30)*{1;0.01})) -> 55.47 | AF95: =COUNTIF($AE$7:$AE95,AE95) -> 17 | AH95: 55.55 | AI95: 55.55 | AJ95: =COUNTIF($AI$7:$AI95,AI95) -> 10 | AK95: =IF($AE$6=1,L95,OFFSET($L$1,SUMPRODUCT(--(OFFSET($AE$7,0,0,AuthorityCounter,1)=AI95),--(OFFSET($AF$7,0,0,AuthorityCounter,1)=COUNTIF($AI$7:AI95,AI95)),ROW(OFFSET($AF$7,0,0,AuthorityCounter,1)))-1,0)) -> Solihull | AM95: =IF(VLOOKUP(AK95,colAM,IF($H$75="OC",8,5),FALSE)=1,MAX(AM$6:$AM94)+1,0) -> 89 | AN95: Solihull | AO95: FALSE | AP95: =IF($AP$5,SUM(SUMPRODUCT(--AO$7:$AO95)*AO95,(SUMPRODUCT(--(AO$7:$AO95=FALSE))+SUMPRODUCT(--colAP))*(1-AO95)),ROW()-6) -> 89 | AQ95: Solihull | AR95: Solihull | IT95: Page 27: Adult Non-Fiction Stock | IU95: #,##0 | IV95: =AB7 -> 0
A96: (P.03)[05]Children's Fiction Stock | B96: 524 | C96: 4 | D96: 33 | E96: Page 33: Children's Fiction Stock | G96: 6 | H96: C | I96: Counties | L96: Somerset | M96: c | O96: 0 | P96: =IF((ROW()-5=$G$36),1,IF((M96=Coding!$H$75)+(Coding!$H$75="ALL")+(Coding!$H$75="U")*OR(M96="W",M96="su",M96="L",M96="MD",M96="UA")+(Coding!$H$75="na")*AND(M96<>"W",M96<>"su",M96<>"L",M96<>"MD",M96<>"UA",M96<>"SC",M96<>"SD",M96<>"p"),1,0)) -> 1 | Q96: FALSE | R96: 0 | S96: 1 | T96: 0 | V96: =IF((S96=1)*($J$6<22),INDEX($J$13:$J$33,SUM($S$7:S96),1),"") ->  | W96: =COUNTIF($T$7:T96,T96) -> 90 | Y96: 0 | Z96: =INDEX(V:V,SUMPRODUCT((OFFSET($T$7,0,0,AuthorityCounter2,1)=Y96)*1,(OFFSET($W$7,0,0,AuthorityCounter2,1)=COUNTIF($Y$7:Y96,Y96))*1,ROW(OFFSET($W$7,0,0,AuthorityCounter2,1)))) ->  | AA96: 0 | AB96: =IF((Y96=AB$2)*(Z96=AC$3)*(SUM($AB$6:AB95)=0),+Y96,0) -> 0 | AC96: 0 | AE96: =IF($AE$6=3,O96,SUM((CODE(MID(CONCATENATE(UPPER(M96),"aaaaaaaaaa"),{1;2},1))-30)*{1;0.01})) -> 37.67 | AF96: =COUNTIF($AE$7:$AE96,AE96) -> 20 | AH96: 55.55 | AI96: 55.55 | AJ96: =COUNTIF($AI$7:$AI96,AI96) -> 11 | AK96: =IF($AE$6=1,L96,OFFSET($L$1,SUMPRODUCT(--(OFFSET($AE$7,0,0,AuthorityCounter,1)=AI96),--(OFFSET($AF$7,0,0,AuthorityCounter,1)=COUNTIF($AI$7:AI96,AI96)),ROW(OFFSET($AF$7,0,0,AuthorityCounter,1)))-1,0)) -> Somerset | AM96: =IF(VLOOKUP(AK96,colAM,IF($H$75="OC",8,5),FALSE)=1,MAX(AM$6:$AM95)+1,0) -> 90 | AN96: Somerset | AO96: FALSE | AP96: =IF($AP$5,SUM(SUMPRODUCT(--AO$7:$AO96)*AO96,(SUMPRODUCT(--(AO$7:$AO96=FALSE))+SUMPRODUCT(--colAP))*(1-AO96)),ROW()-6) -> 90 | AQ96: Somerset | AR96: Somerset | IT96: Page 27: Children's Fiction Stock | IU96: #,##0 | IV96: =AB7 -> 0
A97: (P.03)[06]Children's Non-Fiction Stock | B97: 524 | C97: 5 | D97: 33 | E97: Page 33: Children's Non-Fiction Stock | L97: South Gloucestershire | M97: uu | O97: 0 | P97: =IF((ROW()-5=$G$36),1,IF((M97=Coding!$H$75)+(Coding!$H$75="ALL")+(Coding!$H$75="U")*OR(M97="W",M97="su",M97="L",M97="MD",M97="UA")+(Coding!$H$75="na")*AND(M97<>"W",M97<>"su",M97<>"L",M97<>"MD",M97<>"UA",M97<>"SC",M97<>"SD",M97<>"p"),1,0)) -> 1 | Q97: FALSE | R97: 0 | S97: 1 | T97: 0 | V97: =IF((S97=1)*($J$6<22),INDEX($J$13:$J$33,SUM($S$7:S97),1),"") ->  | W97: =COUNTIF($T$7:T97,T97) -> 91 | Y97: 0 | Z97: =INDEX(V:V,SUMPRODUCT((OFFSET($T$7,0,0,AuthorityCounter2,1)=Y97)*1,(OFFSET($W$7,0,0,AuthorityCounter2,1)=COUNTIF($Y$7:Y97,Y97))*1,ROW(OFFSET($W$7,0,0,AuthorityCounter2,1)))) ->  | AA97: 0 | AB97: =IF((Y97=AB$2)*(Z97=AC$3)*(SUM($AB$6:AB96)=0),+Y97,0) -> 0 | AC97: 0 | AE97: =IF($AE$6=3,O97,SUM((CODE(MID(CONCATENATE(UPPER(M97),"aaaaaaaaaa"),{1;2},1))-30)*{1;0.01})) -> 55.55 | AF97: =COUNTIF($AE$7:$AE97,AE97) -> 30 | AH97: 55.55 | AI97: 55.55 | AJ97: =COUNTIF($AI$7:$AI97,AI97) -> 12 | AK97: =IF($AE$6=1,L97,OFFSET($L$1,SUMPRODUCT(--(OFFSET($AE$7,0,0,AuthorityCounter,1)=AI97),--(OFFSET($AF$7,0,0,AuthorityCounter,1)=COUNTIF($AI$7:AI97,AI97)),ROW(OFFSET($AF$7,0,0,AuthorityCounter,1)))-1,0)) -> South Gloucestershire | AM97: =IF(VLOOKUP(AK97,colAM,IF($H$75="OC",8,5),FALSE)=1,MAX(AM$6:$AM96)+1,0) -> 91 | AN97: South Gloucestershire | AO97: FALSE | AP97: =IF($AP$5,SUM(SUMPRODUCT(--AO$7:$AO97)*AO97,(SUMPRODUCT(--(AO$7:$AO97=FALSE))+SUMPRODUCT(--colAP))*(1-AO97)),ROW()-6) -> 91 | AQ97: South Gloucestershire | AR97: South Gloucestershire | IT97: Page 27: Children's Non-Fiction Stock | IU97: #,##0 | IV97: =AB7 -> 0
A98: (P.03)[07]Reserve Stock | B98: 524 | C98: 6 | D98: 33 | E98: Page 33: Reserve Stock | L98: Southampton | M98: uu | O98: 0 | P98: =IF((ROW()-5=$G$36),1,IF((M98=Coding!$H$75)+(Coding!$H$75="ALL")+(Coding!$H$75="U")*OR(M98="W",M98="su",M98="L",M98="MD",M98="UA")+(Coding!$H$75="na")*AND(M98<>"W",M98<>"su",M98<>"L",M98<>"MD",M98<>"UA",M98<>"SC",M98<>"SD",M98<>"p"),1,0)) -> 1 | Q98: FALSE | R98: 0 | S98: 1 | T98: 0 | V98: =IF((S98=1)*($J$6<22),INDEX($J$13:$J$33,SUM($S$7:S98),1),"") ->  | W98: =COUNTIF($T$7:T98,T98) -> 92 | Y98: 0 | Z98: =INDEX(V:V,SUMPRODUCT((OFFSET($T$7,0,0,AuthorityCounter2,1)=Y98)*1,(OFFSET($W$7,0,0,AuthorityCounter2,1)=COUNTIF($Y$7:Y98,Y98))*1,ROW(OFFSET($W$7,0,0,AuthorityCounter2,1)))) ->  | AA98: 0 | AB98: =IF((Y98=AB$2)*(Z98=AC$3)*(SUM($AB$6:AB97)=0),+Y98,0) -> 0 | AC98: 0 | AE98: =IF($AE$6=3,O98,SUM((CODE(MID(CONCATENATE(UPPER(M98),"aaaaaaaaaa"),{1;2},1))-30)*{1;0.01})) -> 55.55 | AF98: =COUNTIF($AE$7:$AE98,AE98) -> 31 | AH98: 55.55 | AI98: 55.55 | AJ98: =COUNTIF($AI$7:$AI98,AI98) -> 13 | AK98: =IF($AE$6=1,L98,OFFSET($L$1,SUMPRODUCT(--(OFFSET($AE$7,0,0,AuthorityCounter,1)=AI98),--(OFFSET($AF$7,0,0,AuthorityCounter,1)=COUNTIF($AI$7:AI98,AI98)),ROW(OFFSET($AF$7,0,0,AuthorityCounter,1)))-1,0)) -> Southampton | AM98: =IF(VLOOKUP(AK98,colAM,IF($H$75="OC",8,5),FALSE)=1,MAX(AM$6:$AM97)+1,0) -> 92 | AN98: Southampton | AO98: FALSE | AP98: =IF($AP$5,SUM(SUMPRODUCT(--AO$7:$AO98)*AO98,(SUMPRODUCT(--(AO$7:$AO98=FALSE))+SUMPRODUCT(--colAP))*(1-AO98)),ROW()-6) -> 92 | AQ98: Southampton | AR98: Southampton | IT98: Page 27: Reserve Stock | IU98: #,##0 | IV98: =AB7 -> 0
A99: (P.05)[01]Total Audio Visual Stock | B99: 524 | C99: 7 | D99: 35 | E99: Page 35: Total Audio Visual Stock | L99: Southend-on-Sea | M99: uu | O99: 0 | P99: =IF((ROW()-5=$G$36),1,IF((M99=Coding!$H$75)+(Coding!$H$75="ALL")+(Coding!$H$75="U")*OR(M99="W",M99="su",M99="L",M99="MD",M99="UA")+(Coding!$H$75="na")*AND(M99<>"W",M99<>"su",M99<>"L",M99<>"MD",M99<>"UA",M99<>"SC",M99<>"SD",M99<>"p"),1,0)) -> 1 | Q99: FALSE | R99: 0 | S99: 1 | T99: 0 | V99: =IF((S99=1)*($J$6<22),INDEX($J$13:$J$33,SUM($S$7:S99),1),"") ->  | W99: =COUNTIF($T$7:T99,T99) -> 93 | Y99: 0 | Z99: =INDEX(V:V,SUMPRODUCT((OFFSET($T$7,0,0,AuthorityCounter2,1)=Y99)*1,(OFFSET($W$7,0,0,AuthorityCounter2,1)=COUNTIF($Y$7:Y99,Y99))*1,ROW(OFFSET($W$7,0,0,AuthorityCounter2,1)))) ->  | AA99: 0 | AB99: =IF((Y99=AB$2)*(Z99=AC$3)*(SUM($AB$6:AB98)=0),+Y99,0) -> 0 | AC99: 0 | AE99: =IF($AE$6=3,O99,SUM((CODE(MID(CONCATENATE(UPPER(M99),"aaaaaaaaaa"),{1;2},1))-30)*{1;0.01})) -> 55.55 | AF99: =COUNTIF($AE$7:$AE99,AE99) -> 32 | AH99: 55.55 | AI99: 55.55 | AJ99: =COUNTIF($AI$7:$AI99,AI99) -> 14 | AK99: =IF($AE$6=1,L99,OFFSET($L$1,SUMPRODUCT(--(OFFSET($AE$7,0,0,AuthorityCounter,1)=AI99),--(OFFSET($AF$7,0,0,AuthorityCounter,1)=COUNTIF($AI$7:AI99,AI99)),ROW(OFFSET($AF$7,0,0,AuthorityCounter,1)))-1,0)) -> Southend-on-Sea | AM99: =IF(VLOOKUP(AK99,colAM,IF($H$75="OC",8,5),FALSE)=1,MAX(AM$6:$AM98)+1,0) -> 93 | AN99: Southend-on-Sea | AO99: FALSE | AP99: =IF($AP$5,SUM(SUMPRODUCT(--AO$7:$AO99)*AO99,(SUMPRODUCT(--(AO$7:$AO99=FALSE))+SUMPRODUCT(--colAP))*(1-AO99)),ROW()-6) -> 93 | AQ99: Southend-on-Sea | AR99: Southend-on-Sea | IT99: Page 28: Total Audio Visual Stock | IU99: #,##0 | IV99: =AB7 -> 0
A100: (P.06)[01]Music, Videos and DVDs; Multi-media and Open Learning Packs; CD-ROMs and Software Stock | B100: 524 | C100: 8 | D100: 36 | E100: Page 36: Music, Videos and DVDs; Multi-media and Open Learning Packs; CD-ROMs and Software Stock | L100: Southwark | M100: ul | O100: 0 | P100: =IF((ROW()-5=$G$36),1,IF((M100=Coding!$H$75)+(Coding!$H$75="ALL")+(Coding!$H$75="U")*OR(M100="W",M100="su",M100="L",M100="MD",M100="UA")+(Coding!$H$75="na")*AND(M100<>"W",M100<>"su",M100<>"L",M100<>"MD",M100<>"UA",M100<>"SC",M100<>"SD",M100<>"p"),1,0)) -> 1 | Q100: FALSE | R100: 0 | S100: 1 | T100: 0 | V100: =IF((S100=1)*($J$6<22),INDEX($J$13:$J$33,SUM($S$7:S100),1),"") ->  | W100: =COUNTIF($T$7:T100,T100) -> 94 | Y100: 0 | Z100: =INDEX(V:V,SUMPRODUCT((OFFSET($T$7,0,0,AuthorityCounter2,1)=Y100)*1,(OFFSET($W$7,0,0,AuthorityCounter2,1)=COUNTIF($Y$7:Y100,Y100))*1,ROW(OFFSET($W$7,0,0,AuthorityCounter2,1)))) ->  | AA100: 0 | AB100: =IF((Y100=AB$2)*(Z100=AC$3)*(SUM($AB$6:AB99)=0),+Y100,0) -> 0 | AC100: 0 | AE100: =IF($AE$6=3,O100,SUM((CODE(MID(CONCATENATE(UPPER(M100),"aaaaaaaaaa"),{1;2},1))-30)*{1;0.01})) -> 55.46 | AF100: =COUNTIF($AE$7:$AE100,AE100) -> 25 | AH100: 55.55 | AI100: 55.55 | AJ100: =COUNTIF($AI$7:$AI100,AI100) -> 15 | AK100: =IF($AE$6=1,L100,OFFSET($L$1,SUMPRODUCT(--(OFFSET($AE$7,0,0,AuthorityCounter,1)=AI100),--(OFFSET($AF$7,0,0,AuthorityCounter,1)=COUNTIF($AI$7:AI100,AI100)),ROW(OFFSET($AF$7,0,0,AuthorityCounter,1)))-1,0)) -> Southwark | AM100: =IF(VLOOKUP(AK100,colAM,IF($H$75="OC",8,5),FALSE)=1,MAX(AM$6:$AM99)+1,0) -> 94 | AN100: Southwark | AO100: FALSE | AP100: =IF($AP$5,SUM(SUMPRODUCT(--AO$7:$AO100)*AO100,(SUMPRODUCT(--(AO$7:$AO100=FALSE))+SUMPRODUCT(--colAP))*(1-AO100)),ROW()-6) -> 94 | AQ100: Southwark | AR100: Southwark | IT100: Page 29: Music, Videos and DVDs; Multi-media and Open Learning Packs; CD-ROMs and Software Stock | IU100: #,##0 | IV100: =AB7 -> 0
A101: (P.06)[02]Adult Talking Book Stock | B101: 524 | C101: 9 | D101: 36 | E101: Page 36: Adult Talking Book Stock | L101: St Helens | M101: um | O101: 0 | P101: =IF((ROW()-5=$G$36),1,IF((M101=Coding!$H$75)+(Coding!$H$75="ALL")+(Coding!$H$75="U")*OR(M101="W",M101="su",M101="L",M101="MD",M101="UA")+(Coding!$H$75="na")*AND(M101<>"W",M101<>"su",M101<>"L",M101<>"MD",M101<>"UA",M101<>"SC",M101<>"SD",M101<>"p"),1,0)) -> 1 | Q101: FALSE | R101: 0 | S101: 1 | T101: 0 | V101: =IF((S101=1)*($J$6<22),INDEX($J$13:$J$33,SUM($S$7:S101),1),"") ->  | W101: =COUNTIF($T$7:T101,T101) -> 95 | Y101: 0 | Z101: =INDEX(V:V,SUMPRODUCT((OFFSET($T$7,0,0,AuthorityCounter2,1)=Y101)*1,(OFFSET($W$7,0,0,AuthorityCounter2,1)=COUNTIF($Y$7:Y101,Y101))*1,ROW(OFFSET($W$7,0,0,AuthorityCounter2,1)))) ->  | AA101: 0 | AB101: =IF((Y101=AB$2)*(Z101=AC$3)*(SUM($AB$6:AB100)=0),+Y101,0) -> 0 | AC101: 0 | AE101: =IF($AE$6=3,O101,SUM((CODE(MID(CONCATENATE(UPPER(M101),"aaaaaaaaaa"),{1;2},1))-30)*{1;0.01})) -> 55.47 | AF101: =COUNTIF($AE$7:$AE101,AE101) -> 18 | AH101: 55.55 | AI101: 55.55 | AJ101: =COUNTIF($AI$7:$AI101,AI101) -> 16 | AK101: =IF($AE$6=1,L101,OFFSET($L$1,SUMPRODUCT(--(OFFSET($AE$7,0,0,AuthorityCounter,1)=AI101),--(OFFSET($AF$7,0,0,AuthorityCounter,1)=COUNTIF($AI$7:AI101,AI101)),ROW(OFFSET($AF$7,0,0,AuthorityCounter,1)))-1,0)) -> St Helens | AM101: =IF(VLOOKUP(AK101,colAM,IF($H$75="OC",8,5),FALSE)=1,MAX(AM$6:$AM100)+1,0) -> 95 | AN101: St Helens | AO101: FALSE | AP101: =IF($AP$5,SUM(SUMPRODUCT(--AO$7:$AO101)*AO101,(SUMPRODUCT(--(AO$7:$AO101=FALSE))+SUMPRODUCT(--colAP))*(1-AO101)),ROW()-6) -> 95 | AQ101: St Helens | AR101: St Helens | IT101: Page 29: Adult Talking Book Stock | IU101: #,##0 | IV101: =AB7 -> 0
A102: (P.06)[03]Children's Talking Book Stock | B102: 524 | C102: 10 | D102: 36 | E102: Page 36: Children's Talking Book Stock | L102: Staffordshire | M102: c | O102: 0 | P102: =IF((ROW()-5=$G$36),1,IF((M102=Coding!$H$75)+(Coding!$H$75="ALL")+(Coding!$H$75="U")*OR(M102="W",M102="su",M102="L",M102="MD",M102="UA")+(Coding!$H$75="na")*AND(M102<>"W",M102<>"su",M102<>"L",M102<>"MD",M102<>"UA",M102<>"SC",M102<>"SD",M102<>"p"),1,0)) -> 1 | Q102: FALSE | R102: 0 | S102: 1 | T102: 0 | V102: =IF((S102=1)*($J$6<22),INDEX($J$13:$J$33,SUM($S$7:S102),1),"") ->  | W102: =COUNTIF($T$7:T102,T102) -> 96 | Y102: 0 | Z102: =INDEX(V:V,SUMPRODUCT((OFFSET($T$7,0,0,AuthorityCounter2,1)=Y102)*1,(OFFSET($W$7,0,0,AuthorityCounter2,1)=COUNTIF($Y$7:Y102,Y102))*1,ROW(OFFSET($W$7,0,0,AuthorityCounter2,1)))) ->  | AA102: 0 | AB102: =IF((Y102=AB$2)*(Z102=AC$3)*(SUM($AB$6:AB101)=0),+Y102,0) -> 0 | AC102: 0 | AE102: =IF($AE$6=3,O102,SUM((CODE(MID(CONCATENATE(UPPER(M102),"aaaaaaaaaa"),{1;2},1))-30)*{1;0.01})) -> 37.67 | AF102: =COUNTIF($AE$7:$AE102,AE102) -> 21 | AH102: 55.55 | AI102: 55.55 | AJ102: =COUNTIF($AI$7:$AI102,AI102) -> 17 | AK102: =IF($AE$6=1,L102,OFFSET($L$1,SUMPRODUCT(--(OFFSET($AE$7,0,0,AuthorityCounter,1)=AI102),--(OFFSET($AF$7,0,0,AuthorityCounter,1)=COUNTIF($AI$7:AI102,AI102)),ROW(OFFSET($AF$7,0,0,AuthorityCounter,1)))-1,0)) -> Staffordshire | AM102: =IF(VLOOKUP(AK102,colAM,IF($H$75="OC",8,5),FALSE)=1,MAX(AM$6:$AM101)+1,0) -> 96 | AN102: Staffordshire | AO102: FALSE | AP102: =IF($AP$5,SUM(SUMPRODUCT(--AO$7:$AO102)*AO102,(SUMPRODUCT(--(AO$7:$AO102=FALSE))+SUMPRODUCT(--colAP))*(1-AO102)),ROW()-6) -> 96 | AQ102: Staffordshire | AR102: Staffordshire | IT102: Page 29: Children's Talking Book Stock | IU102: #,##0 | IV102: =AB7 -> 0
A103: (P.06)[04]Reserve Stock | B103: 524 | C103: 11 | D103: 36 | E103: Page 36: Reserve Stock | L103: Stockport | M103: um | O103: =IF(ISNUMBER(--OFFSET($D$409,(ROW()-6)+$G$39+AuthorityCounter+5,$G$40)),OFFSET($D$409,(ROW()-6)+$G$39+AuthorityCounter+5,$G$40),"na") -> 0 | P103: =IF((ROW()-5=$G$36),1,IF((M103=Coding!$H$75)+(Coding!$H$75="ALL")+(Coding!$H$75="U")*OR(M103="W",M103="su",M103="L",M103="MD",M103="UA")+(Coding!$H$75="na")*AND(M103<>"W",M103<>"su",M103<>"L",M103<>"MD",M103<>"UA",M103<>"SC",M103<>"SD",M103<>"p"),1,0)) -> 1 | Q103: FALSE | R103: =IF(OR(NOT(ISERROR(MATCH(L103,OFFSET($H$410,$G$36-2,0,1,18),FALSE))),$G$75=L103),1,0+(($G$36=1)*($H$75="OC"))) -> 0 | S103: 1 | T103: 0 | V103: =IF((S103=1)*($J$6<22),INDEX($J$13:$J$33,SUM($S$7:S103),1),"") ->  | W103: =COUNTIF($T$7:T103,T103) -> 97 | Y103: 0 | Z103: =INDEX(V:V,SUMPRODUCT((OFFSET($T$7,0,0,AuthorityCounter2,1)=Y103)*1,(OFFSET($W$7,0,0,AuthorityCounter2,1)=COUNTIF($Y$7:Y103,Y103))*1,ROW(OFFSET($W$7,0,0,AuthorityCounter2,1)))) ->  | AA103: 0 | AB103: =IF((Y103=AB$2)*(Z103=AC$3)*(SUM($AB$6:AB102)=0),+Y103,0) -> 0 | AC103: 0 | AE103: =IF($AE$6=3,O103,SUM((CODE(MID(CONCATENATE(UPPER(M103),"aaaaaaaaaa"),{1;2},1))-30)*{1;0.01})) -> 55.47 | AF103: =COUNTIF($AE$7:$AE103,AE103) -> 19 | AH103: 55.55 | AI103: 55.55 | AJ103: =COUNTIF($AI$7:$AI103,AI103) -> 18 | AK103: =IF($AE$6=1,L103,OFFSET($L$1,SUMPRODUCT(--(OFFSET($AE$7,0,0,AuthorityCounter,1)=AI103),--(OFFSET($AF$7,0,0,AuthorityCounter,1)=COUNTIF($AI$7:AI103,AI103)),ROW(OFFSET($AF$7,0,0,AuthorityCounter,1)))-1,0)) -> Stockport | AM103: =IF(VLOOKUP(AK103,colAM,IF($H$75="OC",8,5),FALSE)=1,MAX(AM$6:$AM102)+1,0) -> 97 | AN103: Stockport | AO103: FALSE | AP103: =IF($AP$5,SUM(SUMPRODUCT(--AO$7:$AO103)*AO103,(SUMPRODUCT(--(AO$7:$AO103=FALSE))+SUMPRODUCT(--colAP))*(1-AO103)),ROW()-6) -> 97 | AQ103: Stockport | AR103: Stockport | IT103: Page 29: Reserve Stock | IU103: #,##0 | IV103: =AB7 -> 0
A104: (P.06)[05]Reference Stock | B104: 524 | C104: 12 | D104: 36 | E104: Page 36: Reference Stock | L104: Stoke-on-Trent | M104: uu | O104: 0 | P104: =IF((ROW()-5=$G$36),1,IF((M104=Coding!$H$75)+(Coding!$H$75="ALL")+(Coding!$H$75="U")*OR(M104="W",M104="su",M104="L",M104="MD",M104="UA")+(Coding!$H$75="na")*AND(M104<>"W",M104<>"su",M104<>"L",M104<>"MD",M104<>"UA",M104<>"SC",M104<>"SD",M104<>"p"),1,0)) -> 1 | Q104: FALSE | R104: 0 | S104: 1 | T104: 0 | V104: =IF((S104=1)*($J$6<22),INDEX($J$13:$J$33,SUM($S$7:S104),1),"") ->  | W104: =COUNTIF($T$7:T104,T104) -> 98 | Y104: 0 | Z104: =INDEX(V:V,SUMPRODUCT((OFFSET($T$7,0,0,AuthorityCounter2,1)=Y104)*1,(OFFSET($W$7,0,0,AuthorityCounter2,1)=COUNTIF($Y$7:Y104,Y104))*1,ROW(OFFSET($W$7,0,0,AuthorityCounter2,1)))) ->  | AA104: 0 | AB104: =IF((Y104=AB$2)*(Z104=AC$3)*(SUM($AB$6:AB103)=0),+Y104,0) -> 0 | AC104: 0 | AE104: =IF($AE$6=3,O104,SUM((CODE(MID(CONCATENATE(UPPER(M104),"aaaaaaaaaa"),{1;2},1))-30)*{1;0.01})) -> 55.55 | AF104: =COUNTIF($AE$7:$AE104,AE104) -> 33 | AH104: 55.55 | AI104: 55.55 | AJ104: =COUNTIF($AI$7:$AI104,AI104) -> 19 | AK104: =IF($AE$6=1,L104,OFFSET($L$1,SUMPRODUCT(--(OFFSET($AE$7,0,0,AuthorityCounter,1)=AI104),--(OFFSET($AF$7,0,0,AuthorityCounter,1)=COUNTIF($AI$7:AI104,AI104)),ROW(OFFSET($AF$7,0,0,AuthorityCounter,1)))-1,0)) -> Stoke-on-Trent | AM104: =IF(VLOOKUP(AK104,colAM,IF($H$75="OC",8,5),FALSE)=1,MAX(AM$6:$AM103)+1,0) -> 98 | AN104: Stoke-on-Trent | AO104: FALSE | AP104: =IF($AP$5,SUM(SUMPRODUCT(--AO$7:$AO104)*AO104,(SUMPRODUCT(--(AO$7:$AO104=FALSE))+SUMPRODUCT(--colAP))*(1-AO104)),ROW()-6) -> 98 | AQ104: Stoke-on-Trent | AR104: Stoke-on-Trent | IT104: Page 29: Reference Stock | IU104: #,##0.0 | IV104: =AB7 -> 0
A105: (P.07)[01]Total Book Acquisitions | B105: 524 | C105: 13 | D105: 37 | E105: Page 37: Total Book Acquisitions | L105: Suffolk | M105: c | O105: 0 | P105: =IF((ROW()-5=$G$36),1,IF((M105=Coding!$H$75)+(Coding!$H$75="ALL")+(Coding!$H$75="U")*OR(M105="W",M105="su",M105="L",M105="MD",M105="UA")+(Coding!$H$75="na")*AND(M105<>"W",M105<>"su",M105<>"L",M105<>"MD",M105<>"UA",M105<>"SC",M105<>"SD",M105<>"p"),1,0)) -> 1 | Q105: FALSE | R105: 0 | S105: 1 | T105: 0 | V105: =IF((S105=1)*($J$6<22),INDEX($J$13:$J$33,SUM($S$7:S105),1),"") ->  | W105: =COUNTIF($T$7:T105,T105) -> 99 | Y105: 0 | Z105: =INDEX(V:V,SUMPRODUCT((OFFSET($T$7,0,0,AuthorityCounter2,1)=Y105)*1,(OFFSET($W$7,0,0,AuthorityCounter2,1)=COUNTIF($Y$7:Y105,Y105))*1,ROW(OFFSET($W$7,0,0,AuthorityCounter2,1)))) ->  | AA105: 0 | AB105: =IF((Y105=AB$2)*(Z105=AC$3)*(SUM($AB$6:AB104)=0),+Y105,0) -> 0 | AC105: 0 | AE105: =IF($AE$6=3,O105,SUM((CODE(MID(CONCATENATE(UPPER(M105),"aaaaaaaaaa"),{1;2},1))-30)*{1;0.01})) -> 37.67 | AF105: =COUNTIF($AE$7:$AE105,AE105) -> 22 | AH105: 55.55 | AI105: 55.55 | AJ105: =COUNTIF($AI$7:$AI105,AI105) -> 20 | AK105: =IF($AE$6=1,L105,OFFSET($L$1,SUMPRODUCT(--(OFFSET($AE$7,0,0,AuthorityCounter,1)=AI105),--(OFFSET($AF$7,0,0,AuthorityCounter,1)=COUNTIF($AI$7:AI105,AI105)),ROW(OFFSET($AF$7,0,0,AuthorityCounter,1)))-1,0)) -> Suffolk | AM105: =IF(VLOOKUP(AK105,colAM,IF($H$75="OC",8,5),FALSE)=1,MAX(AM$6:$AM104)+1,0) -> 99 | AN105: Suffolk | AO105: FALSE | AP105: =IF($AP$5,SUM(SUMPRODUCT(--AO$7:$AO105)*AO105,(SUMPRODUCT(--(AO$7:$AO105=FALSE))+SUMPRODUCT(--colAP))*(1-AO105)),ROW()-6) -> 99 | AQ105: Suffolk | AR105: Suffolk | IT105: Page 30: Total Book Acquisitions | IU105: #,##0 | IV105: =AB7 -> 0
A106: (P.07)[02]Adult Fiction Acquisitions | B106: 524 | C106: 14 | D106: 37 | E106: Page 37: Adult Fiction Acquisitions | L106: Surrey | M106: c | O106: 0 | P106: =IF((ROW()-5=$G$36),1,IF((M106=Coding!$H$75)+(Coding!$H$75="ALL")+(Coding!$H$75="U")*OR(M106="W",M106="su",M106="L",M106="MD",M106="UA")+(Coding!$H$75="na")*AND(M106<>"W",M106<>"su",M106<>"L",M106<>"MD",M106<>"UA",M106<>"SC",M106<>"SD",M106<>"p"),1,0)) -> 1 | Q106: FALSE | R106: 0 | S106: 1 | T106: 0 | V106: =IF((S106=1)*($J$6<22),INDEX($J$13:$J$33,SUM($S$7:S106),1),"") ->  | W106: =COUNTIF($T$7:T106,T106) -> 100 | Y106: 0 | Z106: =INDEX(V:V,SUMPRODUCT((OFFSET($T$7,0,0,AuthorityCounter2,1)=Y106)*1,(OFFSET($W$7,0,0,AuthorityCounter2,1)=COUNTIF($Y$7:Y106,Y106))*1,ROW(OFFSET($W$7,0,0,AuthorityCounter2,1)))) ->  | AA106: 0 | AB106: =IF((Y106=AB$2)*(Z106=AC$3)*(SUM($AB$6:AB105)=0),+Y106,0) -> 0 | AC106: 0 | AE106: =IF($AE$6=3,O106,SUM((CODE(MID(CONCATENATE(UPPER(M106),"aaaaaaaaaa"),{1;2},1))-30)*{1;0.01})) -> 37.67 | AF106: =COUNTIF($AE$7:$AE106,AE106) -> 23 | AH106: 55.55 | AI106: 55.55 | AJ106: =COUNTIF($AI$7:$AI106,AI106) -> 21 | AK106: =IF($AE$6=1,L106,OFFSET($L$1,SUMPRODUCT(--(OFFSET($AE$7,0,0,AuthorityCounter,1)=AI106),--(OFFSET($AF$7,0,0,AuthorityCounter,1)=COUNTIF($AI$7:AI106,AI106)),ROW(OFFSET($AF$7,0,0,AuthorityCounter,1)))-1,0)) -> Surrey | AM106: =IF(VLOOKUP(AK106,colAM,IF($H$75="OC",8,5),FALSE)=1,MAX(AM$6:$AM105)+1,0) -> 100 | AN106: Surrey | AO106: FALSE | AP106: =IF($AP$5,SUM(SUMPRODUCT(--AO$7:$AO106)*AO106,(SUMPRODUCT(--(AO$7:$AO106=FALSE))+SUMPRODUCT(--colAP))*(1-AO106)),ROW()-6) -> 100 | AQ106: Surrey | AR106: Surrey | IT106: Page 30: Adult Fiction Acquisitions | IU106: #,##0 | IV106: =AB7 -> 0
A107: (P.07)[03]Adult Non-Fiction Acquisitions | B107: 524 | C107: 15 | D107: 37 | E107: Page 37: Adult Non-Fiction Acquisitions | L107: Sutton | M107: ul | O107: 0 | P107: =IF((ROW()-5=$G$36),1,IF((M107=Coding!$H$75)+(Coding!$H$75="ALL")+(Coding!$H$75="U")*OR(M107="W",M107="su",M107="L",M107="MD",M107="UA")+(Coding!$H$75="na")*AND(M107<>"W",M107<>"su",M107<>"L",M107<>"MD",M107<>"UA",M107<>"SC",M107<>"SD",M107<>"p"),1,0)) -> 1 | Q107: FALSE | R107: 0 | S107: 1 | T107: 0 | V107: =IF((S107=1)*($J$6<22),INDEX($J$13:$J$33,SUM($S$7:S107),1),"") ->  | W107: =COUNTIF($T$7:T107,T107) -> 101 | Y107: 0 | Z107: =INDEX(V:V,SUMPRODUCT((OFFSET($T$7,0,0,AuthorityCounter2,1)=Y107)*1,(OFFSET($W$7,0,0,AuthorityCounter2,1)=COUNTIF($Y$7:Y107,Y107))*1,ROW(OFFSET($W$7,0,0,AuthorityCounter2,1)))) ->  | AA107: 0 | AB107: =IF((Y107=AB$2)*(Z107=AC$3)*(SUM($AB$6:AB106)=0),+Y107,0) -> 0 | AC107: 0 | AE107: =IF($AE$6=3,O107,SUM((CODE(MID(CONCATENATE(UPPER(M107),"aaaaaaaaaa"),{1;2},1))-30)*{1;0.01})) -> 55.46 | AF107: =COUNTIF($AE$7:$AE107,AE107) -> 26 | AH107: 55.55 | AI107: 55.55 | AJ107: =COUNTIF($AI$7:$AI107,AI107) -> 22 | AK107: =IF($AE$6=1,L107,OFFSET($L$1,SUMPRODUCT(--(OFFSET($AE$7,0,0,AuthorityCounter,1)=AI107),--(OFFSET($AF$7,0,0,AuthorityCounter,1)=COUNTIF($AI$7:AI107,AI107)),ROW(OFFSET($AF$7,0,0,AuthorityCounter,1)))-1,0)) -> Sutton | AM107: =IF(VLOOKUP(AK107,colAM,IF($H$75="OC",8,5),FALSE)=1,MAX(AM$6:$AM106)+1,0) -> 101 | AN107: Sutton | AO107: FALSE | AP107: =IF($AP$5,SUM(SUMPRODUCT(--AO$7:$AO107)*AO107,(SUMPRODUCT(--(AO$7:$AO107=FALSE))+SUMPRODUCT(--colAP))*(1-AO107)),ROW()-6) -> 101 | AQ107: Sutton | AR107: Sutton | IT107: Page 30: Adult Non-Fiction Acquisitions | IU107: #,##0 | IV107: =AB7 -> 0
A108: (P.07)[04]Children's Fiction Acquisitions | B108: 524 | C108: 16 | D108: 37 | E108: Page 37: Children's Fiction Acquisitions | L108: Swindon | M108: uu | O108: 0 | P108: =IF((ROW()-5=$G$36),1,IF((M108=Coding!$H$75)+(Coding!$H$75="ALL")+(Coding!$H$75="U")*OR(M108="W",M108="su",M108="L",M108="MD",M108="UA")+(Coding!$H$75="na")*AND(M108<>"W",M108<>"su",M108<>"L",M108<>"MD",M108<>"UA",M108<>"SC",M108<>"SD",M108<>"p"),1,0)) -> 1 | Q108: FALSE | R108: 0 | S108: 1 | T108: 0 | V108: =IF((S108=1)*($J$6<22),INDEX($J$13:$J$33,SUM($S$7:S108),1),"") ->  | W108: =COUNTIF($T$7:T108,T108) -> 102 | Y108: 0 | Z108: =INDEX(V:V,SUMPRODUCT((OFFSET($T$7,0,0,AuthorityCounter2,1)=Y108)*1,(OFFSET($W$7,0,0,AuthorityCounter2,1)=COUNTIF($Y$7:Y108,Y108))*1,ROW(OFFSET($W$7,0,0,AuthorityCounter2,1)))) ->  | AA108: 0 | AB108: =IF((Y108=AB$2)*(Z108=AC$3)*(SUM($AB$6:AB107)=0),+Y108,0) -> 0 | AC108: 0 | AE108: =IF($AE$6=3,O108,SUM((CODE(MID(CONCATENATE(UPPER(M108),"aaaaaaaaaa"),{1;2},1))-30)*{1;0.01})) -> 55.55 | AF108: =COUNTIF($AE$7:$AE108,AE108) -> 34 | AH108: 55.55 | AI108: 55.55 | AJ108: =COUNTIF($AI$7:$AI108,AI108) -> 23 | AK108: =IF($AE$6=1,L108,OFFSET($L$1,SUMPRODUCT(--(OFFSET($AE$7,0,0,AuthorityCounter,1)=AI108),--(OFFSET($AF$7,0,0,AuthorityCounter,1)=COUNTIF($AI$7:AI108,AI108)),ROW(OFFSET($AF$7,0,0,AuthorityCounter,1)))-1,0)) -> Swindon | AM108: =IF(VLOOKUP(AK108,colAM,IF($H$75="OC",8,5),FALSE)=1,MAX(AM$6:$AM107)+1,0) -> 102 | AN108: Swindon | AO108: FALSE | AP108: =IF($AP$5,SUM(SUMPRODUCT(--AO$7:$AO108)*AO108,(SUMPRODUCT(--(AO$7:$AO108=FALSE))+SUMPRODUCT(--colAP))*(1-AO108)),ROW()-6) -> 102 | AQ108: Swindon | AR108: Swindon | IT108: Page 30: Children's Fiction Acquisitions | IU108: #,##0 | IV108: =AB7 -> 0
A109: (P.07)[05]Children's Non-Fiction Acquisitions | B109: 524 | C109: 17 | D109: 37 | E109: Page 37: Children's Non-Fiction Acquisitions | L109: Tameside | M109: um | O109: 0 | P109: =IF((ROW()-5=$G$36),1,IF((M109=Coding!$H$75)+(Coding!$H$75="ALL")+(Coding!$H$75="U")*OR(M109="W",M109="su",M109="L",M109="MD",M109="UA")+(Coding!$H$75="na")*AND(M109<>"W",M109<>"su",M109<>"L",M109<>"MD",M109<>"UA",M109<>"SC",M109<>"SD",M109<>"p"),1,0)) -> 1 | Q109: FALSE | R109: 0 | S109: 1 | T109: 0 | V109: =IF((S109=1)*($J$6<22),INDEX($J$13:$J$33,SUM($S$7:S109),1),"") ->  | W109: =COUNTIF($T$7:T109,T109) -> 103 | Y109: 0 | Z109: =INDEX(V:V,SUMPRODUCT((OFFSET($T$7,0,0,AuthorityCounter2,1)=Y109)*1,(OFFSET($W$7,0,0,AuthorityCounter2,1)=COUNTIF($Y$7:Y109,Y109))*1,ROW(OFFSET($W$7,0,0,AuthorityCounter2,1)))) ->  | AA109: 0 | AB109: =IF((Y109=AB$2)*(Z109=AC$3)*(SUM($AB$6:AB108)=0),+Y109,0) -> 0 | AC109: 0 | AE109: =IF($AE$6=3,O109,SUM((CODE(MID(CONCATENATE(UPPER(M109),"aaaaaaaaaa"),{1;2},1))-30)*{1;0.01})) -> 55.47 | AF109: =COUNTIF($AE$7:$AE109,AE109) -> 20 | AH109: 55.55 | AI109: 55.55 | AJ109: =COUNTIF($AI$7:$AI109,AI109) -> 24 | AK109: =IF($AE$6=1,L109,OFFSET($L$1,SUMPRODUCT(--(OFFSET($AE$7,0,0,AuthorityCounter,1)=AI109),--(OFFSET($AF$7,0,0,AuthorityCounter,1)=COUNTIF($AI$7:AI109,AI109)),ROW(OFFSET($AF$7,0,0,AuthorityCounter,1)))-1,0)) -> Tameside | AM109: =IF(VLOOKUP(AK109,colAM,IF($H$75="OC",8,5),FALSE)=1,MAX(AM$6:$AM108)+1,0) -> 103 | AN109: Tameside | AO109: FALSE | AP109: =IF($AP$5,SUM(SUMPRODUCT(--AO$7:$AO109)*AO109,(SUMPRODUCT(--(AO$7:$AO109=FALSE))+SUMPRODUCT(--colAP))*(1-AO109)),ROW()-6) -> 103 | AQ109: Tameside | AR109: Tameside | IT109: Page 30: Children's Non-Fiction Acquisitions | IU109: #,##0 | IV109: =AB7 -> 0
A110: (P.07)[06]Reference Book Acquisitions | B110: 524 | C110: 18 | D110: 37 | E110: Page 37: Reference Book Acquisitions | L110: Telford & Wrekin | M110: uu | O110: 0 | P110: =IF((ROW()-5=$G$36),1,IF((M110=Coding!$H$75)+(Coding!$H$75="ALL")+(Coding!$H$75="U")*OR(M110="W",M110="su",M110="L",M110="MD",M110="UA")+(Coding!$H$75="na")*AND(M110<>"W",M110<>"su",M110<>"L",M110<>"MD",M110<>"UA",M110<>"SC",M110<>"SD",M110<>"p"),1,0)) -> 1 | Q110: FALSE | R110: 0 | S110: 1 | T110: 0 | V110: =IF((S110=1)*($J$6<22),INDEX($J$13:$J$33,SUM($S$7:S110),1),"") ->  | W110: =COUNTIF($T$7:T110,T110) -> 104 | Y110: 0 | Z110: =INDEX(V:V,SUMPRODUCT((OFFSET($T$7,0,0,AuthorityCounter2,1)=Y110)*1,(OFFSET($W$7,0,0,AuthorityCounter2,1)=COUNTIF($Y$7:Y110,Y110))*1,ROW(OFFSET($W$7,0,0,AuthorityCounter2,1)))) ->  | AA110: 0 | AB110: =IF((Y110=AB$2)*(Z110=AC$3)*(SUM($AB$6:AB109)=0),+Y110,0) -> 0 | AC110: 0 | AE110: =IF($AE$6=3,O110,SUM((CODE(MID(CONCATENATE(UPPER(M110),"aaaaaaaaaa"),{1;2},1))-30)*{1;0.01})) -> 55.55 | AF110: =COUNTIF($AE$7:$AE110,AE110) -> 35 | AH110: 55.55 | AI110: 55.55 | AJ110: =COUNTIF($AI$7:$AI110,AI110) -> 25 | AK110: =IF($AE$6=1,L110,OFFSET($L$1,SUMPRODUCT(--(OFFSET($AE$7,0,0,AuthorityCounter,1)=AI110),--(OFFSET($AF$7,0,0,AuthorityCounter,1)=COUNTIF($AI$7:AI110,AI110)),ROW(OFFSET($AF$7,0,0,AuthorityCounter,1)))-1,0)) -> Telford & Wrekin | AM110: =IF(VLOOKUP(AK110,colAM,IF($H$75="OC",8,5),FALSE)=1,MAX(AM$6:$AM109)+1,0) -> 104 | AN110: Telford & Wrekin | AO110: FALSE | AP110: =IF($AP$5,SUM(SUMPRODUCT(--AO$7:$AO110)*AO110,(SUMPRODUCT(--(AO$7:$AO110=FALSE))+SUMPRODUCT(--colAP))*(1-AO110)),ROW()-6) -> 104 | AQ110: Telford & Wrekin | AR110: Telford & Wrekin | IT110: Page 30: Reference Book Acquisitions | IU110: #,##0.0 | IV110: =AB7 -> 0
A111: (P.08)[01]Total Audio Visual Acquisitions | B111: 524 | C111: 19 | D111: 38 | E111: Page 38: Total Audio Visual Acquisitions | L111: Thurrock | M111: uu | O111: 0 | P111: =IF((ROW()-5=$G$36),1,IF((M111=Coding!$H$75)+(Coding!$H$75="ALL")+(Coding!$H$75="U")*OR(M111="W",M111="su",M111="L",M111="MD",M111="UA")+(Coding!$H$75="na")*AND(M111<>"W",M111<>"su",M111<>"L",M111<>"MD",M111<>"UA",M111<>"SC",M111<>"SD",M111<>"p"),1,0)) -> 1 | Q111: FALSE | R111: 0 | S111: 1 | T111: 0 | V111: =IF((S111=1)*($J$6<22),INDEX($J$13:$J$33,SUM($S$7:S111),1),"") ->  | W111: =COUNTIF($T$7:T111,T111) -> 105 | Y111: 0 | Z111: =INDEX(V:V,SUMPRODUCT((OFFSET($T$7,0,0,AuthorityCounter2,1)=Y111)*1,(OFFSET($W$7,0,0,AuthorityCounter2,1)=COUNTIF($Y$7:Y111,Y111))*1,ROW(OFFSET($W$7,0,0,AuthorityCounter2,1)))) ->  | AA111: 0 | AB111: =IF((Y111=AB$2)*(Z111=AC$3)*(SUM($AB$6:AB110)=0),+Y111,0) -> 0 | AC111: 0 | AE111: =IF($AE$6=3,O111,SUM((CODE(MID(CONCATENATE(UPPER(M111),"aaaaaaaaaa"),{1;2},1))-30)*{1;0.01})) -> 55.55 | AF111: =COUNTIF($AE$7:$AE111,AE111) -> 36 | AH111: 55.55 | AI111: 55.55 | AJ111: =COUNTIF($AI$7:$AI111,AI111) -> 26 | AK111: =IF($AE$6=1,L111,OFFSET($L$1,SUMPRODUCT(--(OFFSET($AE$7,0,0,AuthorityCounter,1)=AI111),--(OFFSET($AF$7,0,0,AuthorityCounter,1)=COUNTIF($AI$7:AI111,AI111)),ROW(OFFSET($AF$7,0,0,AuthorityCounter,1)))-1,0)) -> Thurrock | AM111: =IF(VLOOKUP(AK111,colAM,IF($H$75="OC",8,5),FALSE)=1,MAX(AM$6:$AM110)+1,0) -> 105 | AN111: Thurrock | AO111: FALSE | AP111: =IF($AP$5,SUM(SUMPRODUCT(--AO$7:$AO111)*AO111,(SUMPRODUCT(--(AO$7:$AO111=FALSE))+SUMPRODUCT(--colAP))*(1-AO111)),ROW()-6) -> 105 | AQ111: Thurrock | AR111: Thurrock | IT111: Page 31: Total Audio Visual Acquisitions | IU111: #,##0 | IV111: =AB7 -> 0
A112: (P.08)[02]Adult Talking Book Acquisitions | B112: 524 | C112: 20 | D112: 38 | E112: Page 38: Adult Talking Book Acquisitions | L112: Torbay | M112: uu | O112: 0 | P112: =IF((ROW()-5=$G$36),1,IF((M112=Coding!$H$75)+(Coding!$H$75="ALL")+(Coding!$H$75="U")*OR(M112="W",M112="su",M112="L",M112="MD",M112="UA")+(Coding!$H$75="na")*AND(M112<>"W",M112<>"su",M112<>"L",M112<>"MD",M112<>"UA",M112<>"SC",M112<>"SD",M112<>"p"),1,0)) -> 1 | Q112: FALSE | R112: 0 | S112: 1 | T112: 0 | V112: =IF((S112=1)*($J$6<22),INDEX($J$13:$J$33,SUM($S$7:S112),1),"") ->  | W112: =COUNTIF($T$7:T112,T112) -> 106 | Y112: 0 | Z112: =INDEX(V:V,SUMPRODUCT((OFFSET($T$7,0,0,AuthorityCounter2,1)=Y112)*1,(OFFSET($W$7,0,0,AuthorityCounter2,1)=COUNTIF($Y$7:Y112,Y112))*1,ROW(OFFSET($W$7,0,0,AuthorityCounter2,1)))) ->  | AA112: 0 | AB112: =IF((Y112=AB$2)*(Z112=AC$3)*(SUM($AB$6:AB111)=0),+Y112,0) -> 0 | AC112: 0 | AE112: =IF($AE$6=3,O112,SUM((CODE(MID(CONCATENATE(UPPER(M112),"aaaaaaaaaa"),{1;2},1))-30)*{1;0.01})) -> 55.55 | AF112: =COUNTIF($AE$7:$AE112,AE112) -> 37 | AH112: 55.55 | AI112: 55.55 | AJ112: =COUNTIF($AI$7:$AI112,AI112) -> 27 | AK112: =IF($AE$6=1,L112,OFFSET($L$1,SUMPRODUCT(--(OFFSET($AE$7,0,0,AuthorityCounter,1)=AI112),--(OFFSET($AF$7,0,0,AuthorityCounter,1)=COUNTIF($AI$7:AI112,AI112)),ROW(OFFSET($AF$7,0,0,AuthorityCounter,1)))-1,0)) -> Torbay | AM112: =IF(VLOOKUP(AK112,colAM,IF($H$75="OC",8,5),FALSE)=1,MAX(AM$6:$AM111)+1,0) -> 106 | AN112: Torbay | AO112: FALSE | AP112: =IF($AP$5,SUM(SUMPRODUCT(--AO$7:$AO112)*AO112,(SUMPRODUCT(--(AO$7:$AO112=FALSE))+SUMPRODUCT(--colAP))*(1-AO112)),ROW()-6) -> 106 | AQ112: Torbay | AR112: Torbay | IT112: Page 31: Adult Talking Book Acquisitions | IU112: #,##0.0 | IV112: =AB7 -> 0
A113: (P.08)[03]Children's Talking Book Acquisitions | B113: 524 | C113: 21 | D113: 38 | E113: Page 38: Children's Talking Book Acquisitions | L113: Tower Hamlets | M113: ul | O113: 0 | P113: =IF((ROW()-5=$G$36),1,IF((M113=Coding!$H$75)+(Coding!$H$75="ALL")+(Coding!$H$75="U")*OR(M113="W",M113="su",M113="L",M113="MD",M113="UA")+(Coding!$H$75="na")*AND(M113<>"W",M113<>"su",M113<>"L",M113<>"MD",M113<>"UA",M113<>"SC",M113<>"SD",M113<>"p"),1,0)) -> 1 | Q113: FALSE | R113: 0 | S113: 1 | T113: 0 | V113: =IF((S113=1)*($J$6<22),INDEX($J$13:$J$33,SUM($S$7:S113),1),"") ->  | W113: =COUNTIF($T$7:T113,T113) -> 107 | Y113: 0 | Z113: =INDEX(V:V,SUMPRODUCT((OFFSET($T$7,0,0,AuthorityCounter2,1)=Y113)*1,(OFFSET($W$7,0,0,AuthorityCounter2,1)=COUNTIF($Y$7:Y113,Y113))*1,ROW(OFFSET($W$7,0,0,AuthorityCounter2,1)))) ->  | AA113: 0 | AB113: =IF((Y113=AB$2)*(Z113=AC$3)*(SUM($AB$6:AB112)=0),+Y113,0) -> 0 | AC113: 0 | AE113: =IF($AE$6=3,O113,SUM((CODE(MID(CONCATENATE(UPPER(M113),"aaaaaaaaaa"),{1;2},1))-30)*{1;0.01})) -> 55.46 | AF113: =COUNTIF($AE$7:$AE113,AE113) -> 27 | AH113: 55.55 | AI113: 55.55 | AJ113: =COUNTIF($AI$7:$AI113,AI113) -> 28 | AK113: =IF($AE$6=1,L113,OFFSET($L$1,SUMPRODUCT(--(OFFSET($AE$7,0,0,AuthorityCounter,1)=AI113),--(OFFSET($AF$7,0,0,AuthorityCounter,1)=COUNTIF($AI$7:AI113,AI113)),ROW(OFFSET($AF$7,0,0,AuthorityCounter,1)))-1,0)) -> Tower Hamlets | AM113: =IF(VLOOKUP(AK113,colAM,IF($H$75="OC",8,5),FALSE)=1,MAX(AM$6:$AM112)+1,0) -> 107 | AN113: Tower Hamlets | AO113: FALSE | AP113: =IF($AP$5,SUM(SUMPRODUCT(--AO$7:$AO113)*AO113,(SUMPRODUCT(--(AO$7:$AO113=FALSE))+SUMPRODUCT(--colAP))*(1-AO113)),ROW()-6) -> 107 | AQ113: Tower Hamlets | AR113: Tower Hamlets | IT113: Page 31: Children's Talking Book Acquisitions | IU113: #,##0.0 | IV113: =AB7 -> 0
A114: (P.08)[04]Music, Videos and DVDs; Multi-media and Open Learning Packs; CD-ROMs and Software Acquisitions | B114: 524 | C114: 22 | D114: 38 | E114: Page 38: Music, Videos and DVDs; Multi-media and Open Learning Packs; CD-ROMs and Software Acquisitions | L114: Trafford | M114: um | O114: 0 | P114: =IF((ROW()-5=$G$36),1,IF((M114=Coding!$H$75)+(Coding!$H$75="ALL")+(Coding!$H$75="U")*OR(M114="W",M114="su",M114="L",M114="MD",M114="UA")+(Coding!$H$75="na")*AND(M114<>"W",M114<>"su",M114<>"L",M114<>"MD",M114<>"UA",M114<>"SC",M114<>"SD",M114<>"p"),1,0)) -> 1 | Q114: FALSE | R114: 0 | S114: 1 | T114: 0 | V114: =IF((S114=1)*($J$6<22),INDEX($J$13:$J$33,SUM($S$7:S114),1),"") ->  | W114: =COUNTIF($T$7:T114,T114) -> 108 | Y114: 0 | Z114: =INDEX(V:V,SUMPRODUCT((OFFSET($T$7,0,0,AuthorityCounter2,1)=Y114)*1,(OFFSET($W$7,0,0,AuthorityCounter2,1)=COUNTIF($Y$7:Y114,Y114))*1,ROW(OFFSET($W$7,0,0,AuthorityCounter2,1)))) ->  | AA114: 0 | AB114: =IF((Y114=AB$2)*(Z114=AC$3)*(SUM($AB$6:AB113)=0),+Y114,0) -> 0 | AC114: 0 | AE114: =IF($AE$6=3,O114,SUM((CODE(MID(CONCATENATE(UPPER(M114),"aaaaaaaaaa"),{1;2},1))-30)*{1;0.01})) -> 55.47 | AF114: =COUNTIF($AE$7:$AE114,AE114) -> 21 | AH114: 55.55 | AI114: 55.55 | AJ114: =COUNTIF($AI$7:$AI114,AI114) -> 29 | AK114: =IF($AE$6=1,L114,OFFSET($L$1,SUMPRODUCT(--(OFFSET($AE$7,0,0,AuthorityCounter,1)=AI114),--(OFFSET($AF$7,0,0,AuthorityCounter,1)=COUNTIF($AI$7:AI114,AI114)),ROW(OFFSET($AF$7,0,0,AuthorityCounter,1)))-1,0)) -> Trafford | AM114: =IF(VLOOKUP(AK114,colAM,IF($H$75="OC",8,5),FALSE)=1,MAX(AM$6:$AM113)+1,0) -> 108 | AN114: Trafford | AO114: FALSE | AP114: =IF($AP$5,SUM(SUMPRODUCT(--AO$7:$AO114)*AO114,(SUMPRODUCT(--(AO$7:$AO114=FALSE))+SUMPRODUCT(--colAP))*(1-AO114)),ROW()-6) -> 108 | AQ114: Trafford | AR114: Trafford | IT114: Page 31: Music, Videos and DVDs; Multi-media and Open Learning Packs; CD-ROMs and Software Acquisitions | IU114: #,##0 | IV114: =AB7 -> 0
A115: (P.08)[05]Reference Acquisitions | B115: 524 | C115: 23 | D115: 38 | E115: Page 38: Reference Acquisitions | L115: Waltham Forest | M115: ul | O115: 0 | P115: =IF((ROW()-5=$G$36),1,IF((M115=Coding!$H$75)+(Coding!$H$75="ALL")+(Coding!$H$75="U")*OR(M115="W",M115="su",M115="L",M115="MD",M115="UA")+(Coding!$H$75="na")*AND(M115<>"W",M115<>"su",M115<>"L",M115<>"MD",M115<>"UA",M115<>"SC",M115<>"SD",M115<>"p"),1,0)) -> 1 | Q115: FALSE | R115: 0 | S115: 1 | T115: 0 | V115: =IF((S115=1)*($J$6<22),INDEX($J$13:$J$33,SUM($S$7:S115),1),"") ->  | W115: =COUNTIF($T$7:T115,T115) -> 109 | Y115: 0 | Z115: =INDEX(V:V,SUMPRODUCT((OFFSET($T$7,0,0,AuthorityCounter2,1)=Y115)*1,(OFFSET($W$7,0,0,AuthorityCounter2,1)=COUNTIF($Y$7:Y115,Y115))*1,ROW(OFFSET($W$7,0,0,AuthorityCounter2,1)))) ->  | AA115: 0 | AB115: =IF((Y115=AB$2)*(Z115=AC$3)*(SUM($AB$6:AB114)=0),+Y115,0) -> 0 | AC115: 0 | AE115: =IF($AE$6=3,O115,SUM((CODE(MID(CONCATENATE(UPPER(M115),"aaaaaaaaaa"),{1;2},1))-30)*{1;0.01})) -> 55.46 | AF115: =COUNTIF($AE$7:$AE115,AE115) -> 28 | AH115: 55.55 | AI115: 55.55 | AJ115: =COUNTIF($AI$7:$AI115,AI115) -> 30 | AK115: =IF($AE$6=1,L115,OFFSET($L$1,SUMPRODUCT(--(OFFSET($AE$7,0,0,AuthorityCounter,1)=AI115),--(OFFSET($AF$7,0,0,AuthorityCounter,1)=COUNTIF($AI$7:AI115,AI115)),ROW(OFFSET($AF$7,0,0,AuthorityCounter,1)))-1,0)) -> Waltham Forest | AM115: =IF(VLOOKUP(AK115,colAM,IF($H$75="OC",8,5),FALSE)=1,MAX(AM$6:$AM114)+1,0) -> 109 | AN115: Waltham Forest | AO115: FALSE | AP115: =IF($AP$5,SUM(SUMPRODUCT(--AO$7:$AO115)*AO115,(SUMPRODUCT(--(AO$7:$AO115=FALSE))+SUMPRODUCT(--colAP))*(1-AO115)),ROW()-6) -> 109 | AQ115: Waltham Forest | AR115: Waltham Forest | IT115: Page 31: Reference Acquisitions | IU115: #,##0.00 | IV115: =AB7 -> 0
A116: (P.10)[01]Lending Stock Replenishment Rate | B116: 524 | C116: 24 | D116: 40 | E116: Page 40: Lending Stock Replenishment Rate | L116: Wandsworth | M116: ul | O116: 0 | P116: =IF((ROW()-5=$G$36),1,IF((M116=Coding!$H$75)+(Coding!$H$75="ALL")+(Coding!$H$75="U")*OR(M116="W",M116="su",M116="L",M116="MD",M116="UA")+(Coding!$H$75="na")*AND(M116<>"W",M116<>"su",M116<>"L",M116<>"MD",M116<>"UA",M116<>"SC",M116<>"SD",M116<>"p"),1,0)) -> 1 | Q116: FALSE | R116: 0 | S116: 1 | T116: 0 | V116: =IF((S116=1)*($J$6<22),INDEX($J$13:$J$33,SUM($S$7:S116),1),"") ->  | W116: =COUNTIF($T$7:T116,T116) -> 110 | Y116: 0 | Z116: =INDEX(V:V,SUMPRODUCT((OFFSET($T$7,0,0,AuthorityCounter2,1)=Y116)*1,(OFFSET($W$7,0,0,AuthorityCounter2,1)=COUNTIF($Y$7:Y116,Y116))*1,ROW(OFFSET($W$7,0,0,AuthorityCounter2,1)))) ->  | AA116: 0 | AB116: =IF((Y116=AB$2)*(Z116=AC$3)*(SUM($AB$6:AB115)=0),+Y116,0) -> 0 | AC116: 0 | AE116: =IF($AE$6=3,O116,SUM((CODE(MID(CONCATENATE(UPPER(M116),"aaaaaaaaaa"),{1;2},1))-30)*{1;0.01})) -> 55.46 | AF116: =COUNTIF($AE$7:$AE116,AE116) -> 29 | AH116: 55.55 | AI116: 55.55 | AJ116: =COUNTIF($AI$7:$AI116,AI116) -> 31 | AK116: =IF($AE$6=1,L116,OFFSET($L$1,SUMPRODUCT(--(OFFSET($AE$7,0,0,AuthorityCounter,1)=AI116),--(OFFSET($AF$7,0,0,AuthorityCounter,1)=COUNTIF($AI$7:AI116,AI116)),ROW(OFFSET($AF$7,0,0,AuthorityCounter,1)))-1,0)) -> Wandsworth | AM116: =IF(VLOOKUP(AK116,colAM,IF($H$75="OC",8,5),FALSE)=1,MAX(AM$6:$AM115)+1,0) -> 110 | AN116: Wandsworth | AO116: FALSE | AP116: =IF($AP$5,SUM(SUMPRODUCT(--AO$7:$AO116)*AO116,(SUMPRODUCT(--(AO$7:$AO116=FALSE))+SUMPRODUCT(--colAP))*(1-AO116)),ROW()-6) -> 110 | AQ116: Wandsworth | AR116: Wandsworth | IT116: Page 32: Lending Stock Replenishment Rate | IU116: #,##0 | IV116: =AB7 -> 0
A117: (P.01)[01]Percentage supplied within 7 days | B117: 655 | C117: 0 | D117: 42 | E117: Page 42: Percentage supplied within 7 days | L117: Warrington | M117: uu | O117: 0 | P117: =IF((ROW()-5=$G$36),1,IF((M117=Coding!$H$75)+(Coding!$H$75="ALL")+(Coding!$H$75="U")*OR(M117="W",M117="su",M117="L",M117="MD",M117="UA")+(Coding!$H$75="na")*AND(M117<>"W",M117<>"su",M117<>"L",M117<>"MD",M117<>"UA",M117<>"SC",M117<>"SD",M117<>"p"),1,0)) -> 1 | Q117: FALSE | R117: 0 | S117: 1 | T117: 0 | V117: =IF((S117=1)*($J$6<22),INDEX($J$13:$J$33,SUM($S$7:S117),1),"") ->  | W117: =COUNTIF($T$7:T117,T117) -> 111 | Y117: 0 | Z117: =INDEX(V:V,SUMPRODUCT((OFFSET($T$7,0,0,AuthorityCounter2,1)=Y117)*1,(OFFSET($W$7,0,0,AuthorityCounter2,1)=COUNTIF($Y$7:Y117,Y117))*1,ROW(OFFSET($W$7,0,0,AuthorityCounter2,1)))) ->  | AA117: 0 | AB117: =IF((Y117=AB$2)*(Z117=AC$3)*(SUM($AB$6:AB116)=0),+Y117,0) -> 0 | AC117: 0 | AE117: =IF($AE$6=3,O117,SUM((CODE(MID(CONCATENATE(UPPER(M117),"aaaaaaaaaa"),{1;2},1))-30)*{1;0.01})) -> 55.55 | AF117: =COUNTIF($AE$7:$AE117,AE117) -> 38 | AH117: 55.55 | AI117: 55.55 | AJ117: =COUNTIF($AI$7:$AI117,AI117) -> 32 | AK117: =IF($AE$6=1,L117,OFFSET($L$1,SUMPRODUCT(--(OFFSET($AE$7,0,0,AuthorityCounter,1)=AI117),--(OFFSET($AF$7,0,0,AuthorityCounter,1)=COUNTIF($AI$7:AI117,AI117)),ROW(OFFSET($AF$7,0,0,AuthorityCounter,1)))-1,0)) -> Warrington | AM117: =IF(VLOOKUP(AK117,colAM,IF($H$75="OC",8,5),FALSE)=1,MAX(AM$6:$AM116)+1,0) -> 111 | AN117: Warrington | AO117: FALSE | AP117: =IF($AP$5,SUM(SUMPRODUCT(--AO$7:$AO117)*AO117,(SUMPRODUCT(--(AO$7:$AO117=FALSE))+SUMPRODUCT(--colAP))*(1-AO117)),ROW()-6) -> 111 | AQ117: Warrington | AR117: Warrington | IT117: Page 33: Percentage supplied within 7 days | IU117: 0% | IV117: =AB7 -> 0
A118: (P.02)[01]Percentage supplied within 15 days | B118: 655 | C118: 1 | D118: 42 | E118: Page 42: Percentage supplied within 15 days | L118: Warwickshire | M118: c | O118: 0 | P118: =IF((ROW()-5=$G$36),1,IF((M118=Coding!$H$75)+(Coding!$H$75="ALL")+(Coding!$H$75="U")*OR(M118="W",M118="su",M118="L",M118="MD",M118="UA")+(Coding!$H$75="na")*AND(M118<>"W",M118<>"su",M118<>"L",M118<>"MD",M118<>"UA",M118<>"SC",M118<>"SD",M118<>"p"),1,0)) -> 1 | Q118: FALSE | R118: 0 | S118: 1 | T118: 0 | V118: =IF((S118=1)*($J$6<22),INDEX($J$13:$J$33,SUM($S$7:S118),1),"") ->  | W118: =COUNTIF($T$7:T118,T118) -> 112 | Y118: 0 | Z118: =INDEX(V:V,SUMPRODUCT((OFFSET($T$7,0,0,AuthorityCounter2,1)=Y118)*1,(OFFSET($W$7,0,0,AuthorityCounter2,1)=COUNTIF($Y$7:Y118,Y118))*1,ROW(OFFSET($W$7,0,0,AuthorityCounter2,1)))) ->  | AA118: 0 | AB118: =IF((Y118=AB$2)*(Z118=AC$3)*(SUM($AB$6:AB117)=0),+Y118,0) -> 0 | AC118: 0 | AE118: =IF($AE$6=3,O118,SUM((CODE(MID(CONCATENATE(UPPER(M118),"aaaaaaaaaa"),{1;2},1))-30)*{1;0.01})) -> 37.67 | AF118: =COUNTIF($AE$7:$AE118,AE118) -> 24 | AH118: 55.55 | AI118: 55.55 | AJ118: =COUNTIF($AI$7:$AI118,AI118) -> 33 | AK118: =IF($AE$6=1,L118,OFFSET($L$1,SUMPRODUCT(--(OFFSET($AE$7,0,0,AuthorityCounter,1)=AI118),--(OFFSET($AF$7,0,0,AuthorityCounter,1)=COUNTIF($AI$7:AI118,AI118)),ROW(OFFSET($AF$7,0,0,AuthorityCounter,1)))-1,0)) -> Warwickshire | AM118: =IF(VLOOKUP(AK118,colAM,IF($H$75="OC",8,5),FALSE)=1,MAX(AM$6:$AM117)+1,0) -> 112 | AN118: Warwickshire | AO118: FALSE | AP118: =IF($AP$5,SUM(SUMPRODUCT(--AO$7:$AO118)*AO118,(SUMPRODUCT(--(AO$7:$AO118=FALSE))+SUMPRODUCT(--colAP))*(1-AO118)),ROW()-6) -> 112 | AQ118: Warwickshire | AR118: Warwickshire | IT118: Page 34: Percentage supplied within 15 days | IU118: 0% | IV118: =AB7 -> 0
A119: (P.02)[02]Percentage supplied within 30 days | B119: 655 | C119: 2 | D119: 42 | E119: Page 42: Percentage supplied within 30 days | L119: West Berkshire | M119: uu | O119: 0 | P119: =IF((ROW()-5=$G$36),1,IF((M119=Coding!$H$75)+(Coding!$H$75="ALL")+(Coding!$H$75="U")*OR(M119="W",M119="su",M119="L",M119="MD",M119="UA")+(Coding!$H$75="na")*AND(M119<>"W",M119<>"su",M119<>"L",M119<>"MD",M119<>"UA",M119<>"SC",M119<>"SD",M119<>"p"),1,0)) -> 1 | Q119: FALSE | R119: 0 | S119: 1 | T119: 0 | V119: =IF((S119=1)*($J$6<22),INDEX($J$13:$J$33,SUM($S$7:S119),1),"") ->  | W119: =COUNTIF($T$7:T119,T119) -> 113 | Y119: 0 | Z119: =INDEX(V:V,SUMPRODUCT((OFFSET($T$7,0,0,AuthorityCounter2,1)=Y119)*1,(OFFSET($W$7,0,0,AuthorityCounter2,1)=COUNTIF($Y$7:Y119,Y119))*1,ROW(OFFSET($W$7,0,0,AuthorityCounter2,1)))) ->  | AA119: 0 | AB119: =IF((Y119=AB$2)*(Z119=AC$3)*(SUM($AB$6:AB118)=0),+Y119,0) -> 0 | AC119: 0 | AE119: =IF($AE$6=3,O119,SUM((CODE(MID(CONCATENATE(UPPER(M119),"aaaaaaaaaa"),{1;2},1))-30)*{1;0.01})) -> 55.55 | AF119: =COUNTIF($AE$7:$AE119,AE119) -> 39 | AH119: 55.55 | AI119: 55.55 | AJ119: =COUNTIF($AI$7:$AI119,AI119) -> 34 | AK119: =IF($AE$6=1,L119,OFFSET($L$1,SUMPRODUCT(--(OFFSET($AE$7,0,0,AuthorityCounter,1)=AI119),--(OFFSET($AF$7,0,0,AuthorityCounter,1)=COUNTIF($AI$7:AI119,AI119)),ROW(OFFSET($AF$7,0,0,AuthorityCounter,1)))-1,0)) -> West Berkshire | AM119: =IF(VLOOKUP(AK119,colAM,IF($H$75="OC",8,5),FALSE)=1,MAX(AM$6:$AM118)+1,0) -> 113 | AN119: West Berkshire | AO119: FALSE | AP119: =IF($AP$5,SUM(SUMPRODUCT(--AO$7:$AO119)*AO119,(SUMPRODUCT(--(AO$7:$AO119=FALSE))+SUMPRODUCT(--colAP))*(1-AO119)),ROW()-6) -> 113 | AQ119: West Berkshire | AR119: West Berkshire | IT119: Page 34: Percentage supplied within 30 days | IU119: 0% | IV119: =AB7 -> 0
A120: (P.01)[01]Percentage of pupils achieving 5 A*-C grades including English & Maths | B120: 786 | C120: 0 | D120: 47 | E120: Page 47: Percentage of pupils achieving 5 A*-C grades including English & Maths | L120: West Sussex | M120: c | O120: 0 | P120: =IF((ROW()-5=$G$36),1,IF((M120=Coding!$H$75)+(Coding!$H$75="ALL")+(Coding!$H$75="U")*OR(M120="W",M120="su",M120="L",M120="MD",M120="UA")+(Coding!$H$75="na")*AND(M120<>"W",M120<>"su",M120<>"L",M120<>"MD",M120<>"UA",M120<>"SC",M120<>"SD",M120<>"p"),1,0)) -> 1 | Q120: FALSE | R120: 0 | S120: 1 | T120: 0 | V120: =IF((S120=1)*($J$6<22),INDEX($J$13:$J$33,SUM($S$7:S120),1),"") ->  | W120: =COUNTIF($T$7:T120,T120) -> 114 | Y120: 0 | Z120: =INDEX(V:V,SUMPRODUCT((OFFSET($T$7,0,0,AuthorityCounter2,1)=Y120)*1,(OFFSET($W$7,0,0,AuthorityCounter2,1)=COUNTIF($Y$7:Y120,Y120))*1,ROW(OFFSET($W$7,0,0,AuthorityCounter2,1)))) ->  | AA120: 0 | AB120: =IF((Y120=AB$2)*(Z120=AC$3)*(SUM($AB$6:AB119)=0),+Y120,0) -> 0 | AC120: 0 | AE120: =IF($AE$6=3,O120,SUM((CODE(MID(CONCATENATE(UPPER(M120),"aaaaaaaaaa"),{1;2},1))-30)*{1;0.01})) -> 37.67 | AF120: =COUNTIF($AE$7:$AE120,AE120) -> 25 | AH120: 55.55 | AI120: 55.55 | AJ120: =COUNTIF($AI$7:$AI120,AI120) -> 35 | AK120: =IF($AE$6=1,L120,OFFSET($L$1,SUMPRODUCT(--(OFFSET($AE$7,0,0,AuthorityCounter,1)=AI120),--(OFFSET($AF$7,0,0,AuthorityCounter,1)=COUNTIF($AI$7:AI120,AI120)),ROW(OFFSET($AF$7,0,0,AuthorityCounter,1)))-1,0)) -> West Sussex | AM120: =IF(VLOOKUP(AK120,colAM,IF($H$75="OC",8,5),FALSE)=1,MAX(AM$6:$AM119)+1,0) -> 114 | AN120: West Sussex | AO120: FALSE | AP120: =IF($AP$5,SUM(SUMPRODUCT(--AO$7:$AO120)*AO120,(SUMPRODUCT(--(AO$7:$AO120=FALSE))+SUMPRODUCT(--colAP))*(1-AO120)),ROW()-6) -> 114 | AQ120: West Sussex | AR120: West Sussex | IT120: Page 35: Percentage of pupils achieving 5 A*-C grades including English & Maths | IU120: 0% | IV120: =AB7 -> 0
A121: (P.01)[02]Indices of Deprivation | B121: 786 | C121: 1 | D121: 47 | E121: Page 47: Indices of Deprivation | L121: Westminster | M121: ul | O121: 0 | P121: =IF((ROW()-5=$G$36),1,IF((M121=Coding!$H$75)+(Coding!$H$75="ALL")+(Coding!$H$75="U")*OR(M121="W",M121="su",M121="L",M121="MD",M121="UA")+(Coding!$H$75="na")*AND(M121<>"W",M121<>"su",M121<>"L",M121<>"MD",M121<>"UA",M121<>"SC",M121<>"SD",M121<>"p"),1,0)) -> 1 | Q121: FALSE | R121: 0 | S121: 1 | T121: 0 | V121: =IF((S121=1)*($J$6<22),INDEX($J$13:$J$33,SUM($S$7:S121),1),"") ->  | W121: =COUNTIF($T$7:T121,T121) -> 115 | Y121: 0 | Z121: =INDEX(V:V,SUMPRODUCT((OFFSET($T$7,0,0,AuthorityCounter2,1)=Y121)*1,(OFFSET($W$7,0,0,AuthorityCounter2,1)=COUNTIF($Y$7:Y121,Y121))*1,ROW(OFFSET($W$7,0,0,AuthorityCounter2,1)))) ->  | AA121: 0 | AB121: =IF((Y121=AB$2)*(Z121=AC$3)*(SUM($AB$6:AB120)=0),+Y121,0) -> 0 | AC121: 0 | AE121: =IF($AE$6=3,O121,SUM((CODE(MID(CONCATENATE(UPPER(M121),"aaaaaaaaaa"),{1;2},1))-30)*{1;0.01})) -> 55.46 | AF121: =COUNTIF($AE$7:$AE121,AE121) -> 30 | AH121: 55.55 | AI121: 55.55 | AJ121: =COUNTIF($AI$7:$AI121,AI121) -> 36 | AK121: =IF($AE$6=1,L121,OFFSET($L$1,SUMPRODUCT(--(OFFSET($AE$7,0,0,AuthorityCounter,1)=AI121),--(OFFSET($AF$7,0,0,AuthorityCounter,1)=COUNTIF($AI$7:AI121,AI121)),ROW(OFFSET($AF$7,0,0,AuthorityCounter,1)))-1,0)) -> Westminster | AM121: =IF(VLOOKUP(AK121,colAM,IF($H$75="OC",8,5),FALSE)=1,MAX(AM$6:$AM120)+1,0) -> 115 | AN121: Westminster | AO121: FALSE | AP121: =IF($AP$5,SUM(SUMPRODUCT(--AO$7:$AO121)*AO121,(SUMPRODUCT(--(AO$7:$AO121=FALSE))+SUMPRODUCT(--colAP))*(1-AO121)),ROW()-6) -> 115 | AQ121: Westminster | AR121: Westminster | IT121: Page 35: Indices of Deprivation | IU121: #,##0 | IV121: =AB7 -> 0
A122: (P.02)[01]Population | B122: 786 | C122: 2 | D122: 48 | E122: Page 48: Population | L122: Wiltshire | M122: uu | O122: 0 | P122: =IF((ROW()-5=$G$36),1,IF((M122=Coding!$H$75)+(Coding!$H$75="ALL")+(Coding!$H$75="U")*OR(M122="W",M122="su",M122="L",M122="MD",M122="UA")+(Coding!$H$75="na")*AND(M122<>"W",M122<>"su",M122<>"L",M122<>"MD",M122<>"UA",M122<>"SC",M122<>"SD",M122<>"p"),1,0)) -> 1 | Q122: FALSE | R122: 0 | S122: 1 | T122: 0 | V122: =IF((S122=1)*($J$6<22),INDEX($J$13:$J$33,SUM($S$7:S122),1),"") ->  | W122: =COUNTIF($T$7:T122,T122) -> 116 | Y122: 0 | Z122: =INDEX(V:V,SUMPRODUCT((OFFSET($T$7,0,0,AuthorityCounter2,1)=Y122)*1,(OFFSET($W$7,0,0,AuthorityCounter2,1)=COUNTIF($Y$7:Y122,Y122))*1,ROW(OFFSET($W$7,0,0,AuthorityCounter2,1)))) ->  | AA122: 0 | AB122: =IF((Y122=AB$2)*(Z122=AC$3)*(SUM($AB$6:AB121)=0),+Y122,0) -> 0 | AC122: 0 | AE122: =IF($AE$6=3,O122,SUM((CODE(MID(CONCATENATE(UPPER(M122),"aaaaaaaaaa"),{1;2},1))-30)*{1;0.01})) -> 55.55 | AF122: =COUNTIF($AE$7:$AE122,AE122) -> 40 | AH122: 55.55 | AI122: 55.55 | AJ122: =COUNTIF($AI$7:$AI122,AI122) -> 37 | AK122: =IF($AE$6=1,L122,OFFSET($L$1,SUMPRODUCT(--(OFFSET($AE$7,0,0,AuthorityCounter,1)=AI122),--(OFFSET($AF$7,0,0,AuthorityCounter,1)=COUNTIF($AI$7:AI122,AI122)),ROW(OFFSET($AF$7,0,0,AuthorityCounter,1)))-1,0)) -> Wiltshire | AM122: =IF(VLOOKUP(AK122,colAM,IF($H$75="OC",8,5),FALSE)=1,MAX(AM$6:$AM121)+1,0) -> 116 | AN122: Wiltshire | AO122: FALSE | AP122: =IF($AP$5,SUM(SUMPRODUCT(--AO$7:$AO122)*AO122,(SUMPRODUCT(--(AO$7:$AO122=FALSE))+SUMPRODUCT(--colAP))*(1-AO122)),ROW()-6) -> 116 | AQ122: Wiltshire | AR122: Wiltshire | IT122: Page 36: Population | IU122: #,##0 | IV122: =AB7 -> 0
A123: (P.02)[02]Area (hectares) | B123: 786 | C123: 3 | D123: 48 | E123: Page 48: Area (hectares) | L123: Windsor & Maidenhead | M123: uu | O123: 0 | P123: =IF((ROW()-5=$G$36),1,IF((M123=Coding!$H$75)+(Coding!$H$75="ALL")+(Coding!$H$75="U")*OR(M123="W",M123="su",M123="L",M123="MD",M123="UA")+(Coding!$H$75="na")*AND(M123<>"W",M123<>"su",M123<>"L",M123<>"MD",M123<>"UA",M123<>"SC",M123<>"SD",M123<>"p"),1,0)) -> 1 | Q123: FALSE | R123: 0 | S123: 1 | T123: 0 | V123: =IF((S123=1)*($J$6<22),INDEX($J$13:$J$33,SUM($S$7:S123),1),"") ->  | W123: =COUNTIF($T$7:T123,T123) -> 117 | Y123: 0 | Z123: =INDEX(V:V,SUMPRODUCT((OFFSET($T$7,0,0,AuthorityCounter2,1)=Y123)*1,(OFFSET($W$7,0,0,AuthorityCounter2,1)=COUNTIF($Y$7:Y123,Y123))*1,ROW(OFFSET($W$7,0,0,AuthorityCounter2,1)))) ->  | AA123: 0 | AB123: =IF((Y123=AB$2)*(Z123=AC$3)*(SUM($AB$6:AB122)=0),+Y123,0) -> 0 | AC123: 0 | AE123: =IF($AE$6=3,O123,SUM((CODE(MID(CONCATENATE(UPPER(M123),"aaaaaaaaaa"),{1;2},1))-30)*{1;0.01})) -> 55.55 | AF123: =COUNTIF($AE$7:$AE123,AE123) -> 41 | AH123: 55.55 | AI123: 55.55 | AJ123: =COUNTIF($AI$7:$AI123,AI123) -> 38 | AK123: =IF($AE$6=1,L123,OFFSET($L$1,SUMPRODUCT(--(OFFSET($AE$7,0,0,AuthorityCounter,1)=AI123),--(OFFSET($AF$7,0,0,AuthorityCounter,1)=COUNTIF($AI$7:AI123,AI123)),ROW(OFFSET($AF$7,0,0,AuthorityCounter,1)))-1,0)) -> Windsor & Maidenhead | AM123: =IF(VLOOKUP(AK123,colAM,IF($H$75="OC",8,5),FALSE)=1,MAX(AM$6:$AM122)+1,0) -> 117 | AN123: Windsor & Maidenhead | AO123: FALSE | AP123: =IF($AP$5,SUM(SUMPRODUCT(--AO$7:$AO123)*AO123,(SUMPRODUCT(--(AO$7:$AO123=FALSE))+SUMPRODUCT(--colAP))*(1-AO123)),ROW()-6) -> 117 | AQ123: Windsor & Maidenhead | AR123: Windsor & Maidenhead | IT123: Page 36: Area (hectares) | IU123: #,##0 | IV123: =AB7 -> 0
A124: (P.02)[03]Population Density | B124: 786 | C124: 4 | D124: 48 | E124: Page 48: Population Density | L124: Wirral | M124: um | O124: 0 | P124: =IF((ROW()-5=$G$36),1,IF((M124=Coding!$H$75)+(Coding!$H$75="ALL")+(Coding!$H$75="U")*OR(M124="W",M124="su",M124="L",M124="MD",M124="UA")+(Coding!$H$75="na")*AND(M124<>"W",M124<>"su",M124<>"L",M124<>"MD",M124<>"UA",M124<>"SC",M124<>"SD",M124<>"p"),1,0)) -> 1 | Q124: FALSE | R124: 0 | S124: 1 | T124: 0 | V124: =IF((S124=1)*($J$6<22),INDEX($J$13:$J$33,SUM($S$7:S124),1),"") ->  | W124: =COUNTIF($T$7:T124,T124) -> 118 | Y124: 0 | Z124: =INDEX(V:V,SUMPRODUCT((OFFSET($T$7,0,0,AuthorityCounter2,1)=Y124)*1,(OFFSET($W$7,0,0,AuthorityCounter2,1)=COUNTIF($Y$7:Y124,Y124))*1,ROW(OFFSET($W$7,0,0,AuthorityCounter2,1)))) ->  | AA124: 0 | AB124: =IF((Y124=AB$2)*(Z124=AC$3)*(SUM($AB$6:AB123)=0),+Y124,0) -> 0 | AC124: 0 | AE124: =IF($AE$6=3,O124,SUM((CODE(MID(CONCATENATE(UPPER(M124),"aaaaaaaaaa"),{1;2},1))-30)*{1;0.01})) -> 55.47 | AF124: =COUNTIF($AE$7:$AE124,AE124) -> 22 | AH124: 55.55 | AI124: 55.55 | AJ124: =COUNTIF($AI$7:$AI124,AI124) -> 39 | AK124: =IF($AE$6=1,L124,OFFSET($L$1,SUMPRODUCT(--(OFFSET($AE$7,0,0,AuthorityCounter,1)=AI124),--(OFFSET($AF$7,0,0,AuthorityCounter,1)=COUNTIF($AI$7:AI124,AI124)),ROW(OFFSET($AF$7,0,0,AuthorityCounter,1)))-1,0)) -> Wirral | AM124: =IF(VLOOKUP(AK124,colAM,IF($H$75="OC",8,5),FALSE)=1,MAX(AM$6:$AM123)+1,0) -> 118 | AN124: Wirral | AO124: FALSE | AP124: =IF($AP$5,SUM(SUMPRODUCT(--AO$7:$AO124)*AO124,(SUMPRODUCT(--(AO$7:$AO124=FALSE))+SUMPRODUCT(--colAP))*(1-AO124)),ROW()-6) -> 118 | AQ124: Wirral | AR124: Wirral | IT124: Page 36: Population Density | IU124: #,##0 | IV124: =AB7 -> 0
L125: Wolverhampton | M125: um | O125: 0 | P125: =IF((ROW()-5=$G$36),1,IF((M125=Coding!$H$75)+(Coding!$H$75="ALL")+(Coding!$H$75="U")*OR(M125="W",M125="su",M125="L",M125="MD",M125="UA")+(Coding!$H$75="na")*AND(M125<>"W",M125<>"su",M125<>"L",M125<>"MD",M125<>"UA",M125<>"SC",M125<>"SD",M125<>"p"),1,0)) -> 1 | Q125: FALSE | R125: 0 | S125: 1 | T125: 0 | V125: =IF((S125=1)*($J$6<22),INDEX($J$13:$J$33,SUM($S$7:S125),1),"") ->  | W125: =COUNTIF($T$7:T125,T125) -> 119 | Y125: 0 | Z125: =INDEX(V:V,SUMPRODUCT((OFFSET($T$7,0,0,AuthorityCounter2,1)=Y125)*1,(OFFSET($W$7,0,0,AuthorityCounter2,1)=COUNTIF($Y$7:Y125,Y125))*1,ROW(OFFSET($W$7,0,0,AuthorityCounter2,1)))) ->  | AA125: 0 | AB125: =IF((Y125=AB$2)*(Z125=AC$3)*(SUM($AB$6:AB124)=0),+Y125,0) -> 0 | AC125: 0 | AE125: =IF($AE$6=3,O125,SUM((CODE(MID(CONCATENATE(UPPER(M125),"aaaaaaaaaa"),{1;2},1))-30)*{1;0.01})) -> 55.47 | AF125: =COUNTIF($AE$7:$AE125,AE125) -> 23 | AH125: 55.55 | AI125: 55.55 | AJ125: =COUNTIF($AI$7:$AI125,AI125) -> 40 | AK125: =IF($AE$6=1,L125,OFFSET($L$1,SUMPRODUCT(--(OFFSET($AE$7,0,0,AuthorityCounter,1)=AI125),--(OFFSET($AF$7,0,0,AuthorityCounter,1)=COUNTIF($AI$7:AI125,AI125)),ROW(OFFSET($AF$7,0,0,AuthorityCounter,1)))-1,0)) -> Wolverhampton | AM125: =IF(VLOOKUP(AK125,colAM,IF($H$75="OC",8,5),FALSE)=1,MAX(AM$6:$AM124)+1,0) -> 119 | AN125: Wolverhampton | AO125: FALSE | AP125: =IF($AP$5,SUM(SUMPRODUCT(--AO$7:$AO125)*AO125,(SUMPRODUCT(--(AO$7:$AO125=FALSE))+SUMPRODUCT(--colAP))*(1-AO125)),ROW()-6) -> 119 | AQ125: Wolverhampton | AR125: Wolverhampton
L126: Worcestershire | M126: c | O126: 0 | P126: =IF((ROW()-5=$G$36),1,IF((M126=Coding!$H$75)+(Coding!$H$75="ALL")+(Coding!$H$75="U")*OR(M126="W",M126="su",M126="L",M126="MD",M126="UA")+(Coding!$H$75="na")*AND(M126<>"W",M126<>"su",M126<>"L",M126<>"MD",M126<>"UA",M126<>"SC",M126<>"SD",M126<>"p"),1,0)) -> 1 | Q126: FALSE | R126: 0 | S126: 1 | T126: 0 | V126: =IF((S126=1)*($J$6<22),INDEX($J$13:$J$33,SUM($S$7:S126),1),"") ->  | W126: =COUNTIF($T$7:T126,T126) -> 120 | Y126: 0 | Z126: =INDEX(V:V,SUMPRODUCT((OFFSET($T$7,0,0,AuthorityCounter2,1)=Y126)*1,(OFFSET($W$7,0,0,AuthorityCounter2,1)=COUNTIF($Y$7:Y126,Y126))*1,ROW(OFFSET($W$7,0,0,AuthorityCounter2,1)))) ->  | AA126: 0 | AB126: =IF((Y126=AB$2)*(Z126=AC$3)*(SUM($AB$6:AB125)=0),+Y126,0) -> 0 | AC126: 0 | AE126: =IF($AE$6=3,O126,SUM((CODE(MID(CONCATENATE(UPPER(M126),"aaaaaaaaaa"),{1;2},1))-30)*{1;0.01})) -> 37.67 | AF126: =COUNTIF($AE$7:$AE126,AE126) -> 26 | AH126: 55.55 | AI126: 55.55 | AJ126: =COUNTIF($AI$7:$AI126,AI126) -> 41 | AK126: =IF($AE$6=1,L126,OFFSET($L$1,SUMPRODUCT(--(OFFSET($AE$7,0,0,AuthorityCounter,1)=AI126),--(OFFSET($AF$7,0,0,AuthorityCounter,1)=COUNTIF($AI$7:AI126,AI126)),ROW(OFFSET($AF$7,0,0,AuthorityCounter,1)))-1,0)) -> Worcestershire | AM126: =IF(VLOOKUP(AK126,colAM,IF($H$75="OC",8,5),FALSE)=1,MAX(AM$6:$AM125)+1,0) -> 120 | AN126: Worcestershire | AO126: FALSE | AP126: =IF($AP$5,SUM(SUMPRODUCT(--AO$7:$AO126)*AO126,(SUMPRODUCT(--(AO$7:$AO126=FALSE))+SUMPRODUCT(--colAP))*(1-AO126)),ROW()-6) -> 120 | AQ126: Worcestershire | AR126: Worcestershire
L127: York | M127: uu | O127: 0 | P127: =IF((ROW()-5=$G$36),1,IF((M127=Coding!$H$75)+(Coding!$H$75="ALL")+(Coding!$H$75="U")*OR(M127="W",M127="su",M127="L",M127="MD",M127="UA")+(Coding!$H$75="na")*AND(M127<>"W",M127<>"su",M127<>"L",M127<>"MD",M127<>"UA",M127<>"SC",M127<>"SD",M127<>"p"),1,0)) -> 1 | Q127: FALSE | R127: 0 | S127: 1 | T127: 0 | V127: =IF((S127=1)*($J$6<22),INDEX($J$13:$J$33,SUM($S$7:S127),1),"") ->  | W127: =COUNTIF($T$7:T127,T127) -> 121 | Y127: 0 | Z127: =INDEX(V:V,SUMPRODUCT((OFFSET($T$7,0,0,AuthorityCounter2,1)=Y127)*1,(OFFSET($W$7,0,0,AuthorityCounter2,1)=COUNTIF($Y$7:Y127,Y127))*1,ROW(OFFSET($W$7,0,0,AuthorityCounter2,1)))) ->  | AA127: 0 | AB127: =IF((Y127=AB$2)*(Z127=AC$3)*(SUM($AB$6:AB126)=0),+Y127,0) -> 0 | AC127: 0 | AE127: =IF($AE$6=3,O127,SUM((CODE(MID(CONCATENATE(UPPER(M127),"aaaaaaaaaa"),{1;2},1))-30)*{1;0.01})) -> 55.55 | AF127: =COUNTIF($AE$7:$AE127,AE127) -> 42 | AH127: 55.55 | AI127: 55.55 | AJ127: =COUNTIF($AI$7:$AI127,AI127) -> 42 | AK127: =IF($AE$6=1,L127,OFFSET($L$1,SUMPRODUCT(--(OFFSET($AE$7,0,0,AuthorityCounter,1)=AI127),--(OFFSET($AF$7,0,0,AuthorityCounter,1)=COUNTIF($AI$7:AI127,AI127)),ROW(OFFSET($AF$7,0,0,AuthorityCounter,1)))-1,0)) -> York | AM127: =IF(VLOOKUP(AK127,colAM,IF($H$75="OC",8,5),FALSE)=1,MAX(AM$6:$AM126)+1,0) -> 121 | AN127: York | AO127: FALSE | AP127: =IF($AP$5,SUM(SUMPRODUCT(--AO$7:$AO127)*AO127,(SUMPRODUCT(--(AO$7:$AO127=FALSE))+SUMPRODUCT(--colAP))*(1-AO127)),ROW()-6) -> 121 | AQ127: York | AR127: York
E401: Chart Data Template
M402: 1 | N402: 2 | O402: 3 | P402: 4 | Q402: 5 | R402: 6 | S402: 7 | T402: 8 | U402: 9 | V402: 10 | W402: 11 | X402: 12 | Y402: 13 | Z402: 14 | AA402: 15 | AB402: 16 | AC402: 17 | AD402: 18 | AE402: 19 | AF402: 20 | AG402: 21 | AH402: 22 | AI402: 23 | AJ402: 24 | AK402: 25 | AL402: 26 | AM402: 27 | AN402: 28 | AO402: 29 | AP402: 30 | AQ402: 31 | AR402: 32 | AS402: 33 | AT402: 34 | AU402: 35 | AV402: 36 | AW402: 37 | AX402: 38 | AY402: 39 | AZ402: 40 | BA402: 41 | BB402: 42 | BC402: 43 | BD402: 44 | BE402: 45 | BF402: 46 | BG402: 47 | BH402: 48 | BI402: 49 | BJ402: 50 | BK402: 51 | BL402: 52 | BM402: 53 | BN402: 54 | BO402: 55 | BP402: 56 | BQ402: 57 | BR402: 58 | BS402: 59 | BT402: 60 | BU402: 61 | BV402: 62 | BW402: 63 | BX402: 64 | BY402: 65 | BZ402: 66 | CA402: 67 | CB402: 68 | CC402: 69 | CD402: 70 | CE402: 71 | CF402: 72 | CG402: 73 | CH402: 74 | CI402: 75 | CJ402: 76 | CK402: 77 | CL402: 78 | CM402: 79 | CN402: 80 | CO402: 81 | CP402: 82 | CQ402: 83 | CR402: 84 | CS402: 85 | CT402: 86 | CU402: 87 | CV402: 88 | CW402: 89 | CX402: 90 | CY402: 91 | CZ402: 92 | DA402: 93 | DB402: 94 | DC402: 95 | DD402: 96 | DE402: 97 | DF402: 98 | DG402: 99 | DH402: 100 | DI402: 101 | DJ402: 102 | DK402: 103 | DL402: 104 | DM402: 105 | DN402: 106 | DO402: 107 | DP402: 108 | DQ402: 109 | DR402: 110 | DS402: 111 | DT402: 112 | DU402: 113 | DV402: 114 | DW402: 115 | DX402: 116 | DY402: 117 | DZ402: 118 | EA402: 119 | EB402: 120 | EC402: 121 | ED402: 122 | EE402: 123 | EF402: 124 | EG402: 125 | EH402: 126 | EI402: 127 | EJ402: 128 | EK402: 129 | EL402: 130 | EM402: 131 | EN402: 132 | EO402: 133 | EP402: 134 | EQ402: 135 | ER402: 136 | ES402: 137 | ET402: 138 | EU402: 139 | EV402: 140 | EW402: 141 | EX402: 142 | EY402: 143 | EZ402: 144 | FA402: 145 | FB402: 146 | FC402: 147 | FD402: 148 | FE402: 149 | FF402: 150 | FG402: 151 | FH402: 152 | FI402: 153 | FJ402: 154 | FK402: 155 | FL402: 156 | FM402: 157 | FN402: 158 | FO402: 159 | FP402: 160 | FQ402: 161 | FR402: 162 | FS402: 163 | FT402: 164 | FU402: 165 | FV402: 166 | FW402: 167
F403: Club Name (Full): | G403: CIPFA Public Libraries Profile | K403: Block: | L403: 7 | M403: 6 | N403: 19 | O403: 44 | P403: 21 | Q403: 25 | R403: 3 | S403: 5
F404: Number of Charts: | G404: 123 | K404: ColNo: | L404: 0
F405: Number of Authorities: | G405: 121
D407: Comparators | I407: X=VLOOKUP($D410,'N:\Information Services\Profiles\Libraries\2018\England Only\[Libraries2018 (england only).xlsm]NN_Flas'!$S$6:$AI$364,3,FALSE)
D409: Authority | E409: Longname | F409: Tier | G409: Tier2 | H409: Comp1 | I409: Comp2 | J409: Comp3 | K409: Comp4 | L409: Comp5 | M409: Comp6 | N409: Comp7 | O409: Comp8 | P409: Comp9 | Q409: Comp10 | R409: Comp11 | S409: Comp12 | T409: Comp13 | U409: Comp14 | V409: Comp15 | W409: Comp16 | X409: Comp17 | Y409: Comp18
D410: Barking & Dagenham | E410: London Borough of Barking & Dagenham | F410: ul | G410: u | H410: Waltham Forest | I410: Greenwich | J410: Newham | K410: Lewisham | L410: Enfield | M410: Haringey | N410: Hounslow | O410: Croydon | P410: Hackney | Q410: Brent | R410: Redbridge | S410: Ealing | T410: Southwark | U410: Tower Hamlets | V410: Lambeth
D411: Barnet | E411: London Borough of Barnet | F411: ul | G411: u | H411: Harrow | I411: Redbridge | J411: Enfield | K411: Ealing | L411: Croydon | M411: Kingston-upon-Thames | N411: Bromley | O411: Merton | P411: Hillingdon | Q411: Hounslow | R411: Sutton | S411: Richmond-upon-Thames | T411: Bexley | U411: Wandsworth | V411: Brent | Y411: 43496
D412: Bedford | E412: Bedford Council | F412: uu | G412: u | H412: Swindon | I412: Central Bedfordshire | J412: Solihull | K412: Stockport | L412: Milton Keynes | M412: Bath & North East Somerset | N412: Warrington | O412: Cheshire West & Chester | P412: Peterborough | Q412: Calderdale | R412: South Gloucestershire | S412: Medway | T412: Cheshire East | U412: York | V412: Trafford
D413: Bexley | E413: London Borough of Bexley | F413: ul | G413: u | H413: Havering | I413: Sutton | J413: Redbridge | K413: Hillingdon | L413: Kingston-upon-Thames | M413: Merton | N413: Croydon | O413: Bromley | P413: Enfield | Q413: Harrow | R413: Hounslow | S413: Barnet | T413: Waltham Forest | U413: Ealing | V413: Richmond-upon-Thames
D414: Blackburn with Darwen | E414: Blackburn with Darwen Borough Council | F414: uu | G414: u | H414: Oldham | I414: Rochdale | J414: Bolton | K414: Sandwell | L414: Stoke-on-Trent | M414: Tameside | N414: Derby | O414: Bradford | P414: Middlesbrough | Q414: Walsall | R414: Wrekin | S414: Salford | T414: Medway | U414: Halton | V414: Bury
D415: Blackpool | E415: Blackpool Borough Council | F415: uu | G415: u | H415: North East Lincolnshire | I415: Sunderland | J415: South Tyneside | K415: Hartlepool | L415: Plymouth | M415: Redcar & Cleveland | N415: Wirral | O415: North Tyneside | P415: Gateshead | Q415: Stoke-on-Trent | R415: Middlesbrough | S415: Sefton | T415: Tameside | U415: Salford | V415: Darlington
D416: Bolton | E416: Bolton Metropolitan Borough Council | F416: um | G416: u | H416: Rochdale | I416: Oldham | J416: Tameside | K416: Medway | L416: Bury | M416: Derby | N416: Salford | O416: Kirklees | P416: Wigan | Q416: Calderdale | R416: Stoke-on-Trent | S416: Wrekin | T416: Walsall | U416: Rotherham | V416: Stockton-on-Tees
D417: Bournemouth | E417: Bournemouth Borough Council | F417: uu | G417: u | H417: Torbay | I417: Southend-on-Sea | J417: Sefton | K417: Poole | L417: Plymouth | M417: York | N417: North Tyneside | O417: Brighton & Hove | P417: Wirral | Q417: Bristol | R417: Stockport | S417: North Somerset | T417: Northumberland | U417: Isle of Wight | V417: Southampton
D418: Bracknell Forest | E418: Bracknell Forest Borough Council | F418: uu | G418: u | H418: West Berkshire | I418: Wokingham | J418: Bedford | K418: Milton Keynes | L418: Windsor & Maidenhead | M418: Reading | N418: Central Bedfordshire | O418: Swindon | P418: Solihull | Q418: Trafford | R418: Thurrock | S418: South Gloucestershire | T418: Bath & North East Somerset | U418: Stockport | V418: Warrington
D419: Brent | E419: London Borough of Brent | F419: ul | G419: u | H419: Ealing | I419: Haringey | J419: Waltham Forest | K419: Hounslow | L419: Enfield | M419: Lambeth | N419: Lewisham | O419: Southwark | P419: Croydon | Q419: Redbridge | R419: Greenwich | S419: Newham | T419: Merton | U419: Hackney | V419: Harrow
D420: Brighton & Hove | E420: Brighton & Hove City Council | F420: uu | G420: u | H420: Portsmouth | I420: Bristol | J420: Southampton | K420: Bournemouth | L420: Southend-on-Sea | M420: Plymouth | N420: York | O420: Sefton | P420: Newcastle-upon-Tyne | Q420: North Tyneside | R420: Sheffield | S420: Stockport | T420: Wirral | U420: Medway | V420: Swindon
D421: Bristol | E421: Bristol City Council | F421: uu | G421: u | H421: Southampton | I421: Plymouth | J421: Portsmouth | K421: Sheffield | L421: Brighton & Hove | M421: Newcastle-upon-Tyne | N421: Coventry | O421: Swindon | P421: Leeds | Q421: North Tyneside | R421: Southend-on-Sea | S421: Derby | T421: Sefton | U421: Bolton | V421: Medway
D422: Bromley | E422: London Borough of Bromley | F422: ul | G422: u | H422: Havering | I422: Hillingdon | J422: Richmond-upon-Thames | K422: Bexley | L422: Barnet | M422: Sutton | N422: Kingston-upon-Thames | O422: Harrow | P422: Croydon | Q422: Redbridge | R422: Enfield | S422: Merton | T422: Hounslow | U422: Ealing | V422: Wandsworth
D423: Buckinghamshire | E423: Buckinghamshire County Council | F423: c | G423: c | H423: Oxfordshire | I423: Warwickshire | J423: Gloucestershire | K423: Suffolk | L423: Leicestershire | M423: Worcestershire | N423: Hampshire | O423: Cambridgeshire | P423: Somerset | Q423: Northamptonshire | R423: West Sussex | S423: Essex | T423: Staffordshire | U423: North Yorkshire | V423: Hertfordshire
D424: Bury | E424: Bury Metropolitan Borough Council | F424: um | G424: u | H424: Calderdale | I424: Bolton | J424: Medway | K424: Tameside | L424: Darlington | M424: Wigan | N424: Kirklees | O424: Wrekin | P424: Rochdale | Q424: St Helens | R424: Stockton-on-Tees | S424: Rotherham | T424: Derby | U424: Warrington | V424: Oldham
D425: Calderdale | E425: Calderdale Metropolitan Borough Council | F425: um | G425: u | H425: Bury | I425: Darlington | J425: Kirklees | K425: Rotherham | L425: Stockton-on-Tees | M425: Bolton | N425: Medway | O425: St Helens | P425: Wakefield | Q425: Wrekin | R425: Barnsley | S425: Dudley | T425: Derby | U425: Doncaster | V425: Wigan
D426: Cambridgeshire | E426: Cambridgeshire County Council | F426: c | G426: c | H426: Oxfordshire | I426: Surrey | J426: Buckinghamshire | K426: Hampshire | L426: Gloucestershire | M426: Hertfordshire | N426: Warwickshire | O426: West Sussex | P426: Leicestershire | Q426: Worcestershire | R426: North Yorkshire | S426: Somerset | T426: Essex | U426: Dorset | V426: Suffolk
D427: Camden | E427: London Borough of Camden | F427: ul | G427: u | H427: Hammersmith & Fulham | I427: Westminster | J427: Islington | K427: Kensington & Chelsea | L427: Wandsworth | M427: Southwark | N427: Lambeth | O427: Brent | P427: Haringey | Q427: Ealing | R427: Merton | S427: Hounslow | T427: Lewisham | U427: Harrow | V427: Tower Hamlets
D428: Central Bedfordshire | E428: Central Bedfordshire Council | F428: uu | G428: u | H428: Wiltshire | I428: Cheshire East | J428: Bedford | K428: Cheshire West & Chester | L428: Bath & North East Somerset | M428: Shropshire | N428: West Berkshire | O428: Herefordshire | P428: South Gloucestershire | Q428: Stockport | R428: Solihull | S428: North Somerset | T428: Warrington | U428: Calderdale | V428: Swindon
D429: Cheshire East | E429: Cheshire East Council | F429: uu | G429: u | H429: Cheshire West & Chester | I429: Wiltshire | J429: Shropshire | K429: Bath & North East Somerset | L429: Herefordshire | M429: Solihull | N429: Central Bedfordshire | O429: Stockport | P429: North Somerset | Q429: East Riding of Yorkshire | R429: York | S429: Bedford | T429: Poole | U429: Warrington | V429: South Gloucestershire
D430: Cheshire West & Chester | E430: Cheshire West and Chester Council | F430: uu | G430: u | H430: Cheshire East | I430: Shropshire | J430: Warrington | K430: York | L430: Bath & North East Somerset | M430: Solihull | N430: Stockport | O430: Herefordshire | P430: Central Bedfordshire | Q430: Wiltshire | R430: East Riding of Yorkshire | S430: Calderdale | T430: Northumberland | U430: Bedford | V430: North Lincolnshire
D431: Coventry | E431: Coventry City Council | F431: um | G431: u | H431: Derby | I431: Bolton | J431: Sheffield | K431: Wolverhampton | L431: Medway | M431: Walsall | N431: Nottingham | O431: Rochdale | P431: Sandwell | Q431: Dudley | R431: Salford | S431: Oldham | T431: Kirklees | U431: Bradford | V431: Newcastle-upon-Tyne
D432: Croydon | E432: London Borough of Croydon | F432: ul | G432: u | H432: Enfield | I432: Redbridge | J432: Ealing | K432: Hounslow | L432: Waltham Forest | M432: Hillingdon | N432: Bexley | O432: Barnet | P432: Brent | Q432: Merton | R432: Sutton | S432: Greenwich | T432: Lewisham | U432: Haringey | V432: Harrow
D433: Cumbria | E433: Cumbria County Council | F433: c | G433: c | H433: Derbyshire | I433: Lincolnshire | J433: North Yorkshire | K433: Staffordshire | L433: Nottinghamshire | M433: Norfolk | N433: Worcestershire | O433: Suffolk | P433: Somerset | Q433: Warwickshire | R433: Gloucestershire | S433: Devon | T433: Lancashire | U433: Leicestershire | V433: Dorset
D434: Darlington | E434: Darlington Borough Council | F434: uu | G434: u | H434: Calderdale | I434: St Helens | J434: Stockton-on-Tees | K434: Dudley | L434: Bury | M434: Derby | N434: Rotherham | O434: Bolton | P434: Gateshead | Q434: Medway | R434: Wakefield | S434: Tameside | T434: Barnsley | U434: Wrekin | V434: Doncaster
D435: Devon | E435: Devon County Council | F435: c | G435: c | H435: North Yorkshire | I435: East Sussex | J435: Dorset | K435: Gloucestershire | L435: Somerset | M435: West Sussex | N435: Warwickshire | O435: Worcestershire | P435: Cumbria | Q435: Suffolk | R435: Lincolnshire | S435: Norfolk | T435: Leicestershire | U435: Essex | V435: Staffordshire
D436: Dorset | E436: Dorset County Council | F436: c | G436: c | H436: Somerset | I436: Devon | J436: North Yorkshire | K436: Gloucestershire | L436: East Sussex | M436: Suffolk | N436: Worcestershire | O436: Warwickshire | P436: West Sussex | Q436: Norfolk | R436: Leicestershire | S436: Cumbria | T436: Buckinghamshire | U436: Hampshire | V436: Oxfordshire
D437: Dudley | E437: Dudley Metropolitan Borough Council | F437: um | G437: u | H437: Derby | I437: Stockton-on-Tees | J437: Darlington | K437: St Helens | L437: Rotherham | M437: Walsall | N437: Kirklees | O437: Wakefield | P437: Calderdale | Q437: Bolton | R437: Barnsley | S437: Medway | T437: Wigan | U437: Doncaster | V437: Sheffield
D438: Durham | E438: Durham County Council | F438: uu | G438: u | H438: Barnsley | I438: Wakefield | J438: Doncaster | K438: Rotherham | L438: Wigan | M438: Kirklees | N438: St Helens | O438: Calderdale | P438: Dudley | Q438: Northumberland | R438: Tameside | S438: Sheffield | T438: Gateshead | U438: Stockton-on-Tees | V438: Stoke-on-Trent
D439: Ealing | E439: London Borough of Ealing | F439: ul | G439: u | H439: Brent | I439: Hounslow | J439: Redbridge | K439: Croydon | L439: Enfield | M439: Waltham Forest | N439: Haringey | O439: Merton | P439: Harrow | Q439: Barnet | R439: Lambeth | S439: Lewisham | T439: Wandsworth | U439: Greenwich | V439: Southwark
D440: East Sussex | E440: East Sussex County Council | F440: c | G440: c | H440: West Sussex | I440: Devon | J440: Gloucestershire | K440: Worcestershire | L440: Kent | M440: Warwickshire | N440: Dorset | O440: Somerset | P440: Suffolk | Q440: Essex | R440: North Yorkshire | S440: Norfolk | T440: Hampshire | U440: Lincolnshire | V440: Cumbria
D441: Enfield | E441: London Borough of Enfield | F441: ul | G441: u | H441: Croydon | I441: Hounslow | J441: Redbridge | K441: Ealing | L441: Waltham Forest | M441: Brent | N441: Hillingdon | O441: Barnet | P441: Haringey | Q441: Harrow | R441: Bexley | S441: Merton | T441: Greenwich | U441: Sutton | V441: Lewisham
D442: Essex | E442: Essex County Council | F442: c | G442: c | H442: Kent | I442: Hampshire | J442: West Sussex | K442: Warwickshire | L442: Worcestershire | M442: Gloucestershire | N442: Staffordshire | O442: Suffolk | P442: Northamptonshire | Q442: Nottinghamshire | R442: Hertfordshire | S442: East Sussex | T442: Derbyshire | U442: Devon | V442: Lancashire
D443: Gateshead | E443: Gateshead Metropolitan Borough Council | F443: um | G443: u | H443: St Helens | I443: Stoke-on-Trent | J443: Salford | K443: Wakefield | L443: Rotherham | M443: Halton | N443: Tameside | O443: Newcastle-upon-Tyne | P443: Stockton-on-Tees | Q443: Darlington | R443: Doncaster | S443: Wigan | T443: Bolton | U443: Knowsley | V443: Rochdale
D444: Gloucestershire | E444: Gloucestershire County Council | F444: c | G444: c | H444: Warwickshire | I444: Worcestershire | J444: Suffolk | K444: Somerset | L444: North Yorkshire | M444: Leicestershire | N444: Staffordshire | O444: West Sussex | P444: Devon | Q444: Buckinghamshire | R444: Oxfordshire | S444: Essex | T444: Nottinghamshire | U444: East Sussex | V444: Derbyshire
D445: Greenwich | E445: Royal Borough of Greenwich | F445: ul | G445: u | H445: Lewisham | I445: Lambeth | J445: Waltham Forest | K445: Southwark | L445: Hounslow | M445: Hackney | N445: Croydon | O445: Brent | P445: Barking & Dagenham | Q445: Haringey | R445: Tower Hamlets | S445: Ealing | T445: Enfield | U445: Newham | V445: Islington
D446: Hackney | E446: London Borough of Hackney | F446: ul | G446: u | H446: Southwark | I446: Tower Hamlets | J446: Lambeth | K446: Lewisham | L446: Islington | M446: Greenwich | N446: Haringey | O446: Newham | P446: Brent | Q446: Waltham Forest | R446: Hammersmith & Fulham | S446: Barking & Dagenham | T446: Camden | U446: Hounslow | V446: Ealing
D447: Halton | E447: Halton Borough Council | F447: uu | G447: u | H447: Wrekin | I447: Knowsley | J447: St Helens | K447: Tameside | L447: Stoke-on-Trent | M447: Rochdale | N447: Gateshead | O447: Rotherham | P447: Wigan | Q447: Stockton-on-Tees | R447: Salford | S447: Bolton | T447: Doncaster | U447: Wakefield | V447: Middlesbrough
D448: Hammersmith & Fulham | E448: London Borough of Hammersmith & Fulham | F448: ul | G448: u | H448: Camden | I448: Islington | J448: Westminster | K448: Wandsworth | L448: Lambeth | M448: Southwark | N448: Kensington & Chelsea | O448: Tower Hamlets | P448: Haringey | Q448: Brent | R448: Merton | S448: Ealing | T448: Hounslow | U448: Hackney | V448: Lewisham
D449: Hampshire | E449: Hampshire County Council | F449: c | G449: c | H449: Essex | I449: West Sussex | J449: Kent | K449: Warwickshire | L449: Gloucestershire | M449: Oxfordshire | N449: Buckinghamshire | O449: Worcestershire | P449: Leicestershire | Q449: Hertfordshire | R449: Staffordshire | S449: Suffolk | T449: Devon | U449: Cambridgeshire | V449: Northamptonshire
D450: Haringey | E450: London Borough of Haringey | F450: ul | G450: u | H450: Brent | I450: Waltham Forest | J450: Ealing | K450: Lambeth | L450: Lewisham | M450: Southwark | N450: Hounslow | O450: Newham | P450: Enfield | Q450: Hackney | R450: Greenwich | S450: Croydon | T450: Islington | U450: Tower Hamlets | V450: Redbridge
D451: Harrow | E451: London Borough of Harrow | F451: ul | G451: u | H451: Barnet | I451: Kingston-upon-Thames | J451: Redbridge | K451: Merton | L451: Sutton | M451: Ealing | N451: Hounslow | O451: Enfield | P451: Bexley | Q451: Richmond-upon-Thames | R451: Croydon | S451: Hillingdon | T451: Brent | U451: Wandsworth | V451: Bromley
D452: Havering | E452: London Borough of Havering | F452: ul | G452: u | H452: Bexley | I452: Sutton | J452: Bromley | K452: Hillingdon | L452: Kingston-upon-Thames | M452: Redbridge | N452: Croydon | O452: Merton | P452: Enfield | Q452: Hounslow | R452: Harrow | S452: Barnet | T452: Richmond-upon-Thames | U452: Waltham Forest | V452: Ealing
D453: Herefordshire | E453: Herefordshire Council | F453: uu | G453: u | H453: Shropshire | I453: Cheshire East | J453: Bath & North East Somerset | K453: Wiltshire | L453: Rutland | M453: Cheshire West & Chester | N453: North Somerset | O453: Central Bedfordshire | P453: East Riding of Yorkshire | Q453: Isle of Wight | R453: Cornwall | S453: Solihull | T453: Northumberland | U453: Bedford | V453: York
D454: Hertfordshire | E454: Hertfordshire County Council | F454: c | G454: c | H454: Oxfordshire | I454: Hampshire | J454: Essex | K454: West Sussex | L454: Kent | M454: Surrey | N454: Buckinghamshire | O454: Northamptonshire | P454: Warwickshire | Q454: Cambridgeshire | R454: Gloucestershire | S454: Worcestershire | T454: Suffolk | U454: Staffordshire | V454: East Sussex
